{"text_format":"1","workbook":"xlsx","n_sheets":13,"sheets":["Introdução","Instruções","Perguntas Frequentes","Orientação para as Populações-C","TS ","HSH ","Pessoas transgénero","Prisioneiros ","PID ","Resumo das pontuações ","Etapas seguintes","Bibliografia","Acrónimos"],"not_rendered":{"charts":10,"images":0,"macros":1,"external_links":0,"defined_names":29,"comments":0,"pivot_tables":0},"unopened":[],"bounds":{"document_bytes":16777216,"sheet_cells":100000,"rows_first":2000,"rows_last":500,"rows_between":2000,"halvings":0,"cell_chars":16384,"cell_head_chars":4096},"cells_cut":0,"cells_raw":0,"read":"whole","date_system":"1900"}

{"sheet":"Introdução","index":0,"n_rows":2,"n_cols":3,"rows_kept":2,"cut":false,"hidden":false,"merged":[[1,2,1,22]]}
[]
[null,null,"O que são as Ferramentas de Auto-Avaliação da Prevenção do HIV (PSAT)?"]

{"sheet":"Instruções","index":1,"n_rows":3,"n_cols":3,"rows_kept":3,"cut":false,"hidden":false,"merged":[[2,2,2,17]]}
[]
[]
[null,null,"Como preencher a PSAT"]

{"sheet":"Perguntas Frequentes","index":2,"n_rows":2,"n_cols":3,"rows_kept":2,"cut":false,"hidden":false,"merged":[[1,2,1,22]]}
[]
[null,null,"Perguntas Frequentes"]

{"sheet":"Orientação para as Populações-C","index":3,"n_rows":2,"n_cols":3,"rows_kept":2,"cut":false,"hidden":false,"merged":[[1,2,1,22]]}
[]
[null,null,"Programas de Prevenção Combinada para todas as Populações-Chave "]

{"sheet":"TS ","index":4,"n_rows":381,"n_cols":22,"rows_kept":381,"cut":false,"hidden":false,"merged":[[322,2,329,2],[374,2,374,4],[68,2,71,2],[376,2,376,4],[372,2,372,4],[373,2,373,4],[375,2,375,4],[322,3,322,4],[322,9,329,9],[367,3,367,4],[371,2,371,4],[355,2,359,2],[355,3,355,4],[355,9,359,9],[360,2,363,2],[360,3,360,4],[360,9,363,9],[341,2,345,2],[341,3,341,4],[341,9,345,9],[346,2,354,2],[346,3,346,4],[346,9,354,9],[330,2,335,2],[330,3,330,4],[330,9,335,9],[336,2,340,2],[336,3,336,4],[336,9,340,9],[313,3,313,4],[314,2,321,2],[314,3,314,4],[314,9,321,9],[291,2,300,2],[291,3,291,4],[291,9,300,9],[301,2,311,2],[301,3,301,4],[301,9,311,9],[279,2,282,2],[279,3,279,4],[279,9,282,9],[283,2,290,2],[283,3,283,4],[283,9,290,9],[270,3,270,4],[271,2,273,2],[271,3,271,4],[271,9,273,9],[274,2,278,2],[170,2,173,2],[170,3,170,4],[170,9,173,9],[174,2,186,2],[174,3,174,4],[174,9,186,9],[154,2,160,2],[154,3,154,4],[154,9,160,9],[161,2,167,2],[161,3,161,4],[161,9,167,9],[138,2,142,2],[138,3,138,4],[138,9,142,9],[144,3,144,4],[145,2,153,2],[145,3,145,4],[145,9,153,9],[120,2,126,2],[120,3,120,4],[120,9,126,9],[127,2,137,2],[127,3,127,4],[127,9,137,9],[274,3,274,4],[274,9,278,9],[258,2,265,2],[258,3,258,4],[258,9,265,9],[266,2,269,2],[266,3,266,4],[266,9,269,9],[241,3,241,4],[242,2,247,2],[242,3,242,4],[242,9,247,9],[249,3,249,4],[250,2,257,2],[250,3,250,4],[250,9,257,9],[234,2,236,2],[234,3,234,4],[234,9,236,9],[237,2,239,2],[237,3,237,4],[237,9,239,9],[222,2,228,2],[222,3,222,4],[222,9,228,9],[229,2,233,2],[229,3,229,4],[229,9,233,9],[210,2,219,2],[210,3,210,4],[210,9,219,9],[220,2,221,2],[220,3,220,4],[220,9,221,9],[60,16380,63,16380],[60,16381,63,16381],[62,2,65,2],[62,3,62,4],[62,9,65,9],[74,3,74,4],[60,16374,63,16374],[60,16375,63,16375],[60,16376,63,16376],[60,16377,63,16377],[60,16378,63,16378],[60,16379,63,16379],[60,16368,63,16368],[60,16369,63,16369],[60,16370,63,16370],[60,16371,63,16371],[60,16372,63,16372],[60,16373,63,16373],[60,16362,63,16362],[60,16363,63,16363],[60,16364,63,16364],[60,16365,63,16365],[60,16366,63,16366],[60,16367,63,16367],[60,16356,63,16356],[60,16357,63,16357],[60,16358,63,16358],[60,16359,63,16359],[60,16360,63,16360],[60,16361,63,16361],[60,16350,63,16350],[60,16351,63,16351],[60,16352,63,16352],[60,16353,63,16353],[60,16354,63,16354],[60,16355,63,16355],[60,16344,63,16344],[60,16345,63,16345],[60,16346,63,16346],[60,16347,63,16347],[60,16348,63,16348],[60,16349,63,16349],[60,16338,63,16338],[60,16339,63,16339],[60,16340,63,16340],[68,9,71,9],[60,16341,63,16341],[60,16342,63,16342],[60,16343,63,16343],[60,16332,63,16332],[60,16333,63,16333],[60,16334,63,16334],[60,16335,63,16335],[60,16336,63,16336],[60,16337,63,16337],[60,16326,63,16326],[60,16327,63,16327],[60,16328,63,16328],[60,16329,63,16329],[60,16330,63,16330],[60,16331,63,16331],[60,16320,63,16320],[60,16321,63,16321],[60,16322,63,16322],[60,16323,63,16323],[60,16324,63,16324],[60,16325,63,16325],[60,16314,63,16314],[60,16315,63,16315],[60,16316,63,16316],[60,16317,63,16317],[60,16318,63,16318],[60,16319,63,16319],[60,16308,63,16308],[60,16309,63,16309],[60,16310,63,16310],[60,16311,63,16311],[60,16312,63,16312],[60,16313,63,16313],[60,16302,63,16302],[60,16303,63,16303],[60,16304,63,16304],[60,16305,63,16305],[60,16306,63,16306],[60,16307,63,16307],[60,16296,63,16296],[60,16297,63,16297],[60,16298,63,16298],[60,16299,63,16299],[60,16300,63,16300],[60,16301,63,16301],[60,16290,63,16290],[60,16291,63,16291],[60,16292,63,16292],[60,16293,63,16293],[60,16294,63,16294],[60,16295,63,16295],[60,16284,63,16284],[60,16285,63,16285],[60,16286,63,16286],[60,16287,63,16287],[60,16288,63,16288],[60,16289,63,16289],[60,16278,63,16278],[60,16279,63,16279],[60,16280,63,16280],[60,16281,63,16281],[60,16282,63,16282],[60,16283,63,16283],[60,16272,63,16272],[60,16273,63,16273],[60,16274,63,16274],[60,16275,63,16275],[60,16276,63,16276],[60,16277,63,16277],[60,16266,63,16266],[60,16267,63,16267],[60,16268,63,16268],[60,16269,63,16269],[60,16270,63,16270],[60,16271,63,16271],[60,16260,63,16260],[60,16261,63,16261],[60,16262,63,16262],[60,16263,63,16263],[60,16264,63,16264],[60,16265,63,16265],[60,16254,63,16254],[60,16255,63,16255],[60,16256,63,16256],[60,16257,63,16257],[60,16258,63,16258],[60,16259,63,16259],[60,16248,63,16248],[60,16249,63,16249],[60,16250,63,16250],[60,16251,63,16251],[60,16252,63,16252],[60,16253,63,16253],[60,16242,63,16242],[60,16243,63,16243],[60,16244,63,16244],[60,16245,63,16245],[60,16246,63,16246],[60,16247,63,16247],[60,16236,63,16236],[60,16237,63,16237],[60,16238,63,16238],[60,16239,63,16239],[60,16240,63,16240],[60,16241,63,16241],[60,16230,63,16230],[60,16231,63,16231],[60,16232,63,16232],[60,16233,63,16233],[60,16234,63,16234],[60,16235,63,16235],[60,16224,63,16224],[60,16225,63,16225],[60,16226,63,16226],[60,16227,63,16227],[60,16228,63,16228],[60,16229,63,16229],[60,16218,63,16218],[60,16219,63,16219],[60,16220,63,16220],[60,16221,63,16221],[60,16222,63,16222],[60,16223,63,16223],[60,16212,63,16212],[60,16213,63,16213],[60,16214,63,16214],[60,16215,63,16215],[60,16216,63,16216],[60,16217,63,16217],[60,16206,63,16206],[60,16207,63,16207],[60,16208,63,16208],[60,16209,63,16209],[60,16210,63,16210],[60,16211,63,16211],[60,16200,63,16200],[60,16201,63,16201],[60,16202,63,16202],[60,16203,63,16203],[60,16204,63,16204],[60,16205,63,16205],[60,16194,63,16194],[60,16195,63,16195],[60,16196,63,16196],[60,16197,63,16197],[60,16198,63,16198],[60,16199,63,16199],[60,16188,63,16188],[60,16189,63,16189],[60,16190,63,16190],[60,16191,63,16191],[60,16192,63,16192],[60,16193,63,16193],[60,16182,63,16182],[60,16183,63,16183],[60,16184,63,16184],[60,16185,63,16185],[60,16186,63,16186],[60,16187,63,16187],[60,16176,63,16176],[60,16177,63,16177],[60,16178,63,16178],[60,16179,63,16179],[60,16180,63,16180],[60,16181,63,16181],[60,16170,63,16170],[60,16171,63,16171],[60,16172,63,16172],[60,16173,63,16173],[60,16174,63,16174],[60,16175,63,16175],[60,16164,63,16164],[60,16165,63,16165],[60,16166,63,16166],[60,16167,63,16167],[60,16168,63,16168],[60,16169,63,16169],[60,16158,63,16158],[60,16159,63,16159],[60,16160,63,16160],[60,16161,63,16161],[60,16162,63,16162],[60,16163,63,16163],[60,16152,63,16152],[60,16153,63,16153],[60,16154,63,16154],[60,16155,63,16155],[60,16156,63,16156],[60,16157,63,16157],[60,16146,63,16146],[60,16147,63,16147],[60,16148,63,16148],[60,16149,63,16149],[60,16150,63,16150],[60,16151,63,16151],[60,16140,63,16140],[60,16141,63,16141],[60,16142,63,16142],[60,16143,63,16143],[60,16144,63,16144],[60,16145,63,16145],[60,16134,63,16134],[60,16135,63,16135],[60,16136,63,16136],[60,16137,63,16137],[60,16138,63,16138],[60,16139,63,16139],[60,16128,63,16128],[60,16129,63,16129],[60,16130,63,16130],[60,16131,63,16131],[60,16132,63,16132],[60,16133,63,16133],[60,16122,63,16122],[60,16123,63,16123],[60,16124,63,16124],[60,16125,63,16125],[60,16126,63,16126],[60,16127,63,16127],[60,16116,63,16116],[60,16117,63,16117],[60,16118,63,16118],[60,16119,63,16119],[60,16120,63,16120],[60,16121,63,16121],[60,16110,63,16110],[60,16111,63,16111],[60,16112,63,16112],[60,16113,63,16113],[60,16114,63,16114],[60,16115,63,16115],[60,16104,63,16104],[60,16105,63,16105],[60,16106,63,16106],[60,16107,63,16107],[60,16108,63,16108],[60,16109,63,16109],[60,16098,63,16098],[60,16099,63,16099],[60,16100,63,16100],[60,16101,63,16101],[60,16102,63,16102],[60,16103,63,16103],[60,16092,63,16092],[60,16093,63,16093],[60,16094,63,16094],[60,16095,63,16095],[60,16096,63,16096],[60,16097,63,16097],[60,16086,63,16086],[60,16087,63,16087],[60,16088,63,16088],[60,16089,63,16089],[60,16090,63,16090],[60,16091,63,16091],[60,16080,63,16080],[60,16081,63,16081],[60,16082,63,16082],[60,16083,63,16083],[60,16084,63,16084],[60,16085,63,16085],[60,16074,63,16074],[60,16075,63,16075],[60,16076,63,16076],[60,16077,63,16077],[60,16078,63,16078],[60,16079,63,16079],[60,16068,63,16068],[60,16069,63,16069],[60,16070,63,16070],[60,16071,63,16071],[60,16072,63,16072],[60,16073,63,16073],[60,16062,63,16062],[60,16063,63,16063],[60,16064,63,16064],[60,16065,63,16065],[60,16066,63,16066],[60,16067,63,16067],[60,16056,63,16056],[60,16057,63,16057],[60,16058,63,16058],[60,16059,63,16059],[60,16060,63,16060],[60,16061,63,16061],[60,16050,63,16050],[60,16051,63,16051],[60,16052,63,16052],[60,16053,63,16053],[60,16054,63,16054],[60,16055,63,16055],[60,16044,63,16044],[60,16045,63,16045],[60,16046,63,16046],[60,16047,63,16047],[60,16048,63,16048],[60,16049,63,16049],[60,16038,63,16038],[60,16039,63,16039],[60,16040,63,16040],[60,16041,63,16041],[60,16042,63,16042],[60,16043,63,16043],[60,16032,63,16032],[60,16033,63,16033],[60,16034,63,16034],[60,16035,63,16035],[60,16036,63,16036],[60,16037,63,16037],[60,16026,63,16026],[60,16027,63,16027],[60,16028,63,16028],[60,16029,63,16029],[60,16030,63,16030],[60,16031,63,16031],[60,16020,63,16020],[60,16021,63,16021],[60,16022,63,16022],[60,16023,63,16023],[60,16024,63,16024],[60,16025,63,16025],[60,16014,63,16014],[60,16015,63,16015],[60,16016,63,16016],[60,16017,63,16017],[60,16018,63,16018],[60,16019,63,16019],[60,16008,63,16008],[60,16009,63,16009],[60,16010,63,16010],[60,16011,63,16011],[60,16012,63,16012],[60,16013,63,16013],[60,16002,63,16002],[60,16003,63,16003],[60,16004,63,16004],[60,16005,63,16005],[60,16006,63,16006],[60,16007,63,16007],[60,15996,63,15996],[60,15997,63,15997],[60,15998,63,15998],[60,15999,63,15999],[60,16000,63,16000],[60,16001,63,16001],[60,15990,63,15990],[60,15991,63,15991],[60,15992,63,15992],[60,15993,63,15993],[60,15994,63,15994],[60,15995,63,15995],[60,15984,63,15984],[60,15985,63,15985],[60,15986,63,15986],[60,15987,63,15987],[60,15988,63,15988],[60,15989,63,15989],[60,15978,63,15978],[60,15979,63,15979],[60,15980,63,15980],[60,15981,63,15981],[60,15982,63,15982],[60,15983,63,15983],[60,15972,63,15972],[60,15973,63,15973],[60,15974,63,15974],[60,15975,63,15975],[60,15976,63,15976],[60,15977,63,15977],[60,15966,63,15966],[60,15967,63,15967],[60,15968,63,15968],[60,15969,63,15969],[60,15970,63,15970],[60,15971,63,15971],[60,15960,63,15960],[60,15961,63,15961],[60,15962,63,15962],[60,15963,63,15963],[60,15964,63,15964],[60,15965,63,15965],[60,15954,63,15954],[60,15955,63,15955],[60,15956,63,15956],[60,15957,63,15957],[60,15958,63,15958],[60,15959,63,15959],[60,15948,63,15948],[60,15949,63,15949],[60,15950,63,15950],[60,15951,63,15951],[60,15952,63,15952],[60,15953,63,15953],[60,15942,63,15942],[60,15943,63,15943],[60,15944,63,15944],[60,15945,63,15945],[60,15946,63,15946],[60,15947,63,15947],[60,15936,63,15936],[60,15937,63,15937],[60,15938,63,15938],[60,15939,63,15939],[60,15940,63,15940],[60,15941,63,15941],[60,15930,63,15930],[60,15931,63,15931],[60,15932,63,15932],[60,15933,63,15933],[60,15934,63,15934],[60,15935,63,15935],[60,15924,63,15924],[60,15925,63,15925],[60,15926,63,15926],[60,15927,63,15927],[60,15928,63,15928],[60,15929,63,15929],[60,15918,63,15918],[60,15919,63,15919],[60,15920,63,15920],[60,15921,63,15921],[60,15922,63,15922],[60,15923,63,15923],[60,15912,63,15912],[60,15913,63,15913],[60,15914,63,15914],[60,15915,63,15915],[60,15916,63,15916],[60,15917,63,15917],[60,15906,63,15906],[60,15907,63,15907],[60,15908,63,15908],[60,15909,63,15909],[60,15910,63,15910],[60,15911,63,15911],[60,15900,63,15900],[60,15901,63,15901],[60,15902,63,15902],[60,15903,63,15903],[60,15904,63,15904],[60,15905,63,15905],[60,15894,63,15894],[60,15895,63,15895],[60,15896,63,15896],[60,15897,63,15897],[60,15898,63,15898],[60,15899,63,15899],[60,15888,63,15888],[60,15889,63,15889],[60,15890,63,15890],[60,15891,63,15891],[60,15892,63,15892],[60,15893,63,15893],[60,15882,63,15882],[60,15883,63,15883],[60,15884,63,15884],[60,15885,63,15885],[60,15886,63,15886],[60,15887,63,15887],[60,15876,63,15876],[60,15877,63,15877],[60,15878,63,15878],[60,15879,63,15879],[60,15880,63,15880],[60,15881,63,15881],[60,15870,63,15870],[60,15871,63,15871],[60,15872,63,15872],[60,15873,63,15873],[60,15874,63,15874],[60,15875,63,15875],[60,15864,63,15864],[60,15865,63,15865],[60,15866,63,15866],[60,15867,63,15867],[60,15868,63,15868],[60,15869,63,15869],[60,15858,63,15858],[60,15859,63,15859],[60,15860,63,15860],[60,15861,63,15861],[60,15862,63,15862],[60,15863,63,15863],[60,15852,63,15852],[60,15853,63,15853],[60,15854,63,15854],[60,15855,63,15855],[60,15856,63,15856],[60,15857,63,15857],[60,15846,63,15846],[60,15847,63,15847],[60,15848,63,15848],[60,15849,63,15849],[60,15850,63,15850],[60,15851,63,15851],[60,15840,63,15840],[60,15841,63,15841],[60,15842,63,15842],[60,15843,63,15843],[60,15844,63,15844],[60,15845,63,15845],[60,15834,63,15834],[60,15835,63,15835],[60,15836,63,15836],[60,15837,63,15837],[60,15838,63,15838],[60,15839,63,15839],[60,15828,63,15828],[60,15829,63,15829],[60,15830,63,15830],[60,15831,63,15831],[60,15832,63,15832],[60,15833,63,15833],[60,15822,63,15822],[60,15823,63,15823],[60,15824,63,15824],[60,15825,63,15825],[60,15826,63,15826],[60,15827,63,15827],[60,15816,63,15816],[60,15817,63,15817],[60,15818,63,15818],[60,15819,63,15819],[60,15820,63,15820],[60,15821,63,15821],[60,15810,63,15810],[60,15811,63,15811],[60,15812,63,15812],[60,15813,63,15813],[60,15814,63,15814],[60,15815,63,15815],[60,15804,63,15804],[60,15805,63,15805],[60,15806,63,15806],[60,15807,63,15807],[60,15808,63,15808],[60,15809,63,15809],[60,15798,63,15798],[60,15799,63,15799],[60,15800,63,15800],[60,15801,63,15801],[60,15802,63,15802],[60,15803,63,15803],[60,15792,63,15792],[60,15793,63,15793],[60,15794,63,15794],[60,15795,63,15795],[60,15796,63,15796],[60,15797,63,15797],[60,15786,63,15786],[60,15787,63,15787],[60,15788,63,15788],[60,15789,63,15789],[60,15790,63,15790],[60,15791,63,15791],[60,15780,63,15780],[60,15781,63,15781],[60,15782,63,15782],[60,15783,63,15783],[60,15784,63,15784],[60,15785,63,15785],[60,15774,63,15774],[60,15775,63,15775],[60,15776,63,15776],[60,15777,63,15777],[60,15778,63,15778],[60,15779,63,15779],[60,15768,63,15768],[60,15769,63,15769],[60,15770,63,15770],[60,15771,63,15771],[60,15772,63,15772],[60,15773,63,15773],[60,15762,63,15762],[60,15763,63,15763],[60,15764,63,15764],[60,15765,63,15765],[60,15766,63,15766],[60,15767,63,15767],[60,15756,63,15756],[60,15757,63,15757],[60,15758,63,15758],[60,15759,63,15759],[60,15760,63,15760],[60,15761,63,15761],[60,15750,63,15750],[60,15751,63,15751],[60,15752,63,15752],[60,15753,63,15753],[60,15754,63,15754],[60,15755,63,15755],[60,15744,63,15744],[60,15745,63,15745],[60,15746,63,15746],[60,15747,63,15747],[60,15748,63,15748],[60,15749,63,15749],[60,15738,63,15738],[60,15739,63,15739],[60,15740,63,15740],[60,15741,63,15741],[60,15742,63,15742],[60,15743,63,15743],[60,15732,63,15732],[60,15733,63,15733],[60,15734,63,15734],[60,15735,63,15735],[60,15736,63,15736],[60,15737,63,15737],[60,15726,63,15726],[60,15727,63,15727],[60,15728,63,15728],[60,15729,63,15729],[60,15730,63,15730],[60,15731,63,15731],[60,15720,63,15720],[60,15721,63,15721],[60,15722,63,15722],[60,15723,63,15723],[60,15724,63,15724],[60,15725,63,15725],[60,15714,63,15714],[60,15715,63,15715],[60,15716,63,15716],[60,15717,63,15717],[60,15718,63,15718],[60,15719,63,15719],[60,15708,63,15708],[60,15709,63,15709],[60,15710,63,15710],[60,15711,63,15711],[60,15712,63,15712],[60,15713,63,15713],[60,15702,63,15702],[60,15703,63,15703],[60,15704,63,15704],[60,15705,63,15705],[60,15706,63,15706],[60,15707,63,15707],[60,15696,63,15696],[60,15697,63,15697],[60,15698,63,15698],[60,15699,63,15699],[60,15700,63,15700],[60,15701,63,15701],[60,15690,63,15690],[60,15691,63,15691],[60,15692,63,15692],[60,15693,63,15693],[60,15694,63,15694],[60,15695,63,15695],[60,15684,63,15684],[60,15685,63,15685],[60,15686,63,15686],[60,15687,63,15687],[60,15688,63,15688],[60,15689,63,15689],[60,15678,63,15678],[60,15679,63,15679],[60,15680,63,15680],[60,15681,63,15681],[60,15682,63,15682],[60,15683,63,15683],[60,15672,63,15672],[60,15673,63,15673],[60,15674,63,15674],[60,15675,63,15675],[60,15676,63,15676],[60,15677,63,15677],[60,15666,63,15666],[60,15667,63,15667],[60,15668,63,15668],[60,15669,63,15669],[60,15670,63,15670],[60,15671,63,15671],[60,15660,63,15660],[60,15661,63,15661],[60,15662,63,15662],[60,15663,63,15663],[60,15664,63,15664],[60,15665,63,15665],[60,15654,63,15654],[60,15655,63,15655],[60,15656,63,15656],[60,15657,63,15657],[60,15658,63,15658],[60,15659,63,15659],[60,15648,63,15648],[60,15649,63,15649],[60,15650,63,15650],[60,15651,63,15651],[60,15652,63,15652],[60,15653,63,15653],[60,15642,63,15642],[60,15643,63,15643],[60,15644,63,15644],[60,15645,63,15645],[60,15646,63,15646],[60,15647,63,15647],[60,15636,63,15636],[60,15637,63,15637],[60,15638,63,15638],[60,15639,63,15639],[60,15640,63,15640],[60,15641,63,15641],[60,15630,63,15630],[60,15631,63,15631],[60,15632,63,15632],[60,15633,63,15633],[60,15634,63,15634],[60,15635,63,15635],[60,15624,63,15624],[60,15625,63,15625],[60,15626,63,15626],[60,15627,63,15627],[60,15628,63,15628],[60,15629,63,15629],[60,15618,63,15618],[60,15619,63,15619],[60,15620,63,15620],[60,15621,63,15621],[60,15622,63,15622],[60,15623,63,15623],[60,15612,63,15612],[60,15613,63,15613],[60,15614,63,15614],[60,15615,63,15615],[60,15616,63,15616],[60,15617,63,15617],[60,15606,63,15606],[60,15607,63,15607],[60,15608,63,15608],[60,15609,63,15609],[60,15610,63,15610],[60,15611,63,15611],[60,15600,63,15600],[60,15601,63,15601],[60,15602,63,15602],[60,15603,63,15603],[60,15604,63,15604],[60,15605,63,15605],[60,15594,63,15594],[60,15595,63,15595],[60,15596,63,15596],[60,15597,63,15597],[60,15598,63,15598],[60,15599,63,15599],[60,15588,63,15588],[60,15589,63,15589],[60,15590,63,15590],[60,15591,63,15591],[60,15592,63,15592],[60,15593,63,15593],[60,15582,63,15582],[60,15583,63,15583],[60,15584,63,15584],[60,15585,63,15585],[60,15586,63,15586],[60,15587,63,15587],[60,15576,63,15576],[60,15577,63,15577],[60,15578,63,15578],[60,15579,63,15579],[60,15580,63,15580],[60,15581,63,15581],[60,15570,63,15570],[60,15571,63,15571],[60,15572,63,15572],[60,15573,63,15573],[60,15574,63,15574],[60,15575,63,15575],[60,15564,63,15564],[60,15565,63,15565],[60,15566,63,15566],[60,15567,63,15567],[60,15568,63,15568],[60,15569,63,15569],[60,15558,63,15558],[60,15559,63,15559],[60,15560,63,15560],[60,15561,63,15561],[60,15562,63,15562],[60,15563,63,15563],[60,15552,63,15552],[60,15553,63,15553],[60,15554,63,15554],[60,15555,63,15555],[60,15556,63,15556],[60,15557,63,15557],[60,15546,63,15546],[60,15547,63,15547],[60,15548,63,15548],[60,15549,63,15549],[60,15550,63,15550],[60,15551,63,15551],[60,15540,63,15540],[60,15541,63,15541],[60,15542,63,15542],[60,15543,63,15543],[60,15544,63,15544],[60,15545,63,15545],[60,15534,63,15534],[60,15535,63,15535],[60,15536,63,15536],[60,15537,63,15537],[60,15538,63,15538],[60,15539,63,15539],[60,15528,63,15528],[60,15529,63,15529],[60,15530,63,15530],[60,15531,63,15531],[60,15532,63,15532],[60,15533,63,15533],[60,15522,63,15522],[60,15523,63,15523],[60,15524,63,15524],[60,15525,63,15525],[60,15526,63,15526],[60,15527,63,15527],[60,15516,63,15516],[60,15517,63,15517],[60,15518,63,15518],[60,15519,63,15519],[60,15520,63,15520],[60,15521,63,15521],[60,15510,63,15510],[60,15511,63,15511],[60,15512,63,15512],[60,15513,63,15513],[60,15514,63,15514],[60,15515,63,15515],[60,15504,63,15504],[60,15505,63,15505],[60,15506,63,15506],[60,15507,63,15507],[60,15508,63,15508],[60,15509,63,15509],[60,15498,63,15498],[60,15499,63,15499],[60,15500,63,15500],[60,15501,63,15501],[60,15502,63,15502],[60,15503,63,15503],[60,15492,63,15492],[60,15493,63,15493]],"merged_total":32816,"flags":["merged_cut"]}
[]
[null,null,"Gestão de Programas"]
[]
[null,null,"Liderança e Coordenação"]
[null,null,"Elemento","Critérios",null,"N/D","Ausente","Presente mas não ideal","Presente e funcionando bem","Média por elemento","Comentários (se aplicável)","Absent","Present","Optimal","Average","Sustainability Single Figure"]
[null,null,"Estratégia Nacional das Populações-chave","Existe a inclusão de TS na estratégia nacional das populações-chave e na estratégia nacional global de prevenção do HIV:",null,null,null,null,null,{"$f":"O6","v":"-"},null,null,null,null,{"$f":"IFERROR(ROUND(AVERAGEIF(L7:N16,\"<>0\",L7:N16),0),\"-\")","v":"-"},null,{"$f":"getComment(F6)","v":""}]
[null,null,null,"○","Os TS foram envolvidos na elaboração do plano estratégico ",null,null,null,null,null,null,{"$f":"IF(ISBLANK(G7),0,1)","v":0},{"$f":"IF(ISBLANK(H7),0,3)","v":0},{"$f":"IF(ISBLANK(I7),0,5)","v":0}]
[null,null,null,"○","Os objectivos e metas foram claramente definidos para o programa de TS ",null,null,null,null,null,null,0,0,0]
[null,null,null,"○","Os TS foram foi claramente definidos de acordo com as directrizes da Organização Mundial de Saúde (OMS) ",null,null,null,null,null,null,0,0,0]
[null,null,null,"○","O plano reconhece vulnerabilidades específicas de TS devido ao sexo e à idade",null,null,null,null,null,null,0,0,0,null,{"$f":"IF(MAX(L10:N10)=0,\"\",MAX(L10:N10))","v":""}]
[null,null,null,"○","Foi atriculado um modelo lógico ou teoria da mudança claros  ",null,null,null,null,null,null,0,0,0]
[null,null,null,"○","O plano inclui um pacote abrangente de intervenções e actividades baseadas em evidências, alinhadas com as Ferramentas de Implementação de TS, identificadas por TS, incluindo intervenções não relacionadas com o sector da saúde (por exemplo, empoderamento da comunidade, combate à violência, redução do estigma, entre outras) e adaptadas para responder a vulnerabilidades específicas.",null,null,null,null,null,null,0,0,0]
[null,null,null,"○","Foi definido um processo de incrementação claro com responsabilidades atribuídas ",null,null,null,null,null,null,0,0,0]
[null,null,null,"○","Existem vigor planos de financiamento ",null,null,null,null,null,null,0,0,0]
[null,null,null,"○","Foi definido um quadro de monitoria e avaliação com indicadores e metas nucleares",null,null,null,null,null,null,0,0,0]
[null,null,null,"○","Mecanismo de implementação claramente definido",null,null,null,null,null,null,0,0,0]
[null,null,"Responsabilização","O departamento/ministério principal responsável pelo sucesso do programa de TS, com uma forte liderança/autoridade, foi identificado:",null,null,null,null,null,{"$f":"O17","v":"-"},null,null,null,null,{"$f":"IFERROR(ROUND(AVERAGEIF(L18:N22,\"<>0\",L18:N22),0),\"-\")","v":"-"}]
[null,null,null,"○","Todos os projectos de TS do país apresentam relatórios regulares sobre indicadores-chave para o governo a nível sub-nacional e nacional, com indicadores comuns, ",null,null,null,null,null,null,0,0,0]
[null,null,null,"○","Nestes relatórios, os dados são tornados anónimos e protegidos por forma a proteger o TS ",null,null,null,null,null,null,0,0,0]
[null,null,null,"○","São efectuadas avaliações programáticas regulares com recurso a dados programáticos",null,null,null,null,null,null,0,0,0]
[null,null,null,"○","O Ministério responsável pelo programa participa nas reuniões de coordenação relevantes.",null,null,null,null,null,null,0,0,0]
[null,null,null,"○","O Grupo de Trabalho Técnico de População-Chave (GTT) (com representação De TS) está envolvido na garantia da responsabilização ",null,null,null,null,null,null,0,0,0,null,null,{"$f":"getComment(F22)","v":""},"","","","",""]
[null,null,"Grupo de trabalho técnico (GTT) para TS","Foi criado um Grupo de Trabalho Técnico (os países podem ter GTTs para todas as Populações-Chave em que estão incluídos trabalhadores do sexo) a nível nacional e sub-nacional e:",null,null,null,null,null,{"$f":"O23","v":"-"},null,null,null,null,{"$f":"IFERROR(ROUND(AVERAGEIF(L24:N28,\"<>0\",L24:N28),0),\"-\")","v":"-"}]
[null,null,null,"○","Eles se reúnem regularmente ",null,null,null,null,null,null,0,0,0]
[null,null,null,"○","O Grupo de Trabalho Técnico está completo e integra Organizações da Sociedade Civil (OSC), parceiros de implementação, membros de TS",null,null,null,null,null,null,0,0,0]
[null,null,null,"○","O Grupo de Trabalho Técnico dispõe de mecanismos de comunicação para assegurar a coordenação",null,null,null,null,null,null,0,0,0]
[null,null,null,"○","Eles têm Termos de Referência ou um âmbito definidos ",null,null,null,null,null,null,0,0,0]
[null,null,null,"○","Os membros da Comunidade de TS estão incluídos, na sua diversidade (género, idade, tipologia)",null,null,null,null,null,null,0,0,0]
[null,null,"Coordenação das Partes Interessadas","Existem mecanismos para assegurar que a coordenação seja alcançada em todos os níveis e que a mesma seja bem sucedida e consistente com: ",null,null,null,null,null,{"$f":"O29","v":"-"},null,null,null,null,{"$f":"IFERROR(ROUND(AVERAGEIF(L30:N35,\"<>0\",L30:N35),0),\"-\")","v":"-"}]
[null,null,null,"○","Parceiros de financiamento (a nível nacional)",null,null,null,null,null,null,0,0,0]
[null,null,null,"○","Programas locais com iniciativas nacionais mais amplas ",null,null,null,null,null,null,0,0,0]
[null,null,null,"○","Comunidades de TS",null,null,null,null,null,null,0,0,0]
[null,null,null,"○","Parceiros de implementação ",null,null,null,null,null,null,0,0,0]
[null,null,null,"○","Ministério da Saúde/Departamentos de Saúde do Governo (a nível nacional e sub-nacional)",null,null,null,null,null,null,0,0,0]
[null,null,null,"○","Foi conseguida uma coordenação multi-sectorial com outros ministérios/departamentos (por exemplo, finanças e lei e ordem)",null,null,null,null,null,null,0,0,0]
[null,null,"Plano de Capacitação e Assistência Técnica","Existe um Plano de Assistência Técnica e: ",null,null,null,null,null,{"$f":"O36","v":"-"},null,null,null,null,{"$f":"IFERROR(ROUND(AVERAGEIF(L37:N42,\"<>0\",L37:N42),0),\"-\")","v":"-"},{"$f":"IF(MAX(L36:N36)=0,\"\",MAX(L36:N36))","v":""}]
[null,null,null,"○","Foi desenvolvido com base em alguma avaliação ",null,null,null,null,null,null,0,0,0,null,{"$f":"IF(MAX(L37:N37)=0,\"\",MAX(L37:N37))","v":""}]
[null,null,null,"○","Utiliza peritos técnicos nacionais e internacionais, incluindo o desenvolvimento de capacidades entre pares e assistência técnica",null,null,null,null,null,null,0,0,0,null,""]
[null,null,null,"○","Priorizou os componentes programáticas e questões de política ",null,null,null,null,null,null,0,0,0,null,""]
[null,null,null,"○","Facilita o estabelecimento e o fortalecimento de redes de implementadores ",null,null,null,null,null,null,0,0,0,null,""]
[null,null,null,"○","Identifica lacunas e formula pedidos consolidados de assistência quando falta experiência no país ",null,null,null,null,null,null,0,0,0,null,""]
[null,null,null,"○","Facilita o desenvolvimento de capacidade da comunidade de TS para que esta se possa apropriar dos programas de TS ",null,null,null,null,null,null,0,0,0,null,""]
[null,null,"Plano de sustentabilidade e roteiro de transição","Existe um plano de sustentabilidade e roteiro de transição completos, que delineiam a transição intervenções apoiadas por doadores para intervenções apoiadas internamente, sendo estes fundamentados por: ",null,null,null,null,null,{"$f":"O43","v":"-"},null,null,null,null,{"$f":"IFERROR(ROUND(AVERAGEIF(L44:N47,\"<>0\",L44:N47),0),\"-\")","v":"-"},""]
[null,null,null,"○","Um exercício de cálculo dos custos unitários da População-chave",null,null,null,null,null,null,0,0,0,null,""]
[null,null,null,"○","Uma análise do panorama de financiamento da população-chave",null,null,null,null,null,null,0,0,0,null,""]
[null,null,null,"○","Planificação para a integração de serviços da PC em cuidados de saúde primários",null,null,null,null,null,null,0,0,0]
[null,null,null,"○","Considera os recursos financeiros, humanos e infra-estruturas necessários",null,null,null,null,null,null,0,0,0,null,""]
[null,null,"Leis, Políticas e Regulamentos"]
[null,null,"Elemento","Critérios",null,"N/D","Ausente","Presente mas não ideal","Presente e funcionando bem","Média por elemento","Comentários (se aplicável)"]
[null,null,"Leis e Políticas ","Políticas em vigor que promovam activamente o bom funcionamento do programa de TS: ",null,null,null,null,null,{"$f":"O50","v":"-"},null,null,null,null,{"$f":"IFERROR(ROUND(AVERAGEIF(L51:N53,\"<>0\",L51:N53),0),\"-\")","v":"-"}]
[null,null,null,"○","Políticas que promovem activamente o acesso de TS a serviços, abrangendo os TS na sua diversidade (género, idade, tipologia)  ",null,null,null,null,null,null,0,0,0]
[null,null,null,"○","Existem políticas que apoiam a descriminalização do trabalho sexual",null,null,null,null,null,null,0,0,0]
[null,null,null,"○","Existem políticas que visam reduzir o estigma, a discriminação e a violência contra TS ",null,null,null,null,null,null,0,0,0]
[null,null,"Directrizes","As seguintes directrizes existem e explicam de forma clara as etapas para uma implementação bem-sucedida do programa de TS:",null,null,null,null,null,{"$f":"O54","v":"-"},null,null,null,null,{"$f":"IFERROR(ROUND(AVERAGEIF(L55:N58,\"<>0\",L55:N58),0),\"-\")","v":"-"}]
[null,null,null,"○","Existem directrizes nacionais para cada uma das intervenções e serviços comportamentais, biomédicos e estruturais, estando estas alinhadas com a orientação global ",null,null,null,null,null,null,0,0,0]
[null,null,null,"○","Foram elaboradas directrizes em colaboração com os TS",null,null,null,null,null,null,{"$f":"IF(ISBLANK(G56),0,1)","v":0},{"$f":"IF(ISBLANK(H56),0,3)","v":0},{"$f":"IF(ISBLANK(I56),0,5)","v":0}]
[null,null,null,"○","As directrizes nacionais para os serviços de testagem do HIV, Infeções de Transmissão Sexual, Profilaxia Pré-Exposição e Preservativos têm em conta as necessidades e prioridades dos TS ",null,null,null,null,null,null,0,0,0]
[null,null,null,"○","Medidas de prevenção e controlo de infeções por COVID-19 são incorporadas em todas as estratégias, planos e directrizes de prevenção do HIV/ TS",null,null,null,null,null,null,0,0,0]
[null,null,"Financiamento"]
[null,null,"Elemento","Critérios",null,"N/D","Ausente","Presente mas não ideal","Presente e funcionando bem","Média por elemento","Comentários (se aplicável)"]
[null,null,"Custos ","Orçamento nacional em vigor:",null,null,null,null,null,{"$f":"O61","v":"-"},null,null,null,null,{"$f":"IFERROR(ROUND(AVERAGEIF(L62:N62,\"<>0\",L62:N62),0),\"-\")","v":"-"}]
[null,null,null,"○","Foi realizado um exercício de orçamentação e o programa nacional está a par do custo médio para chegar a um TS com um pacote padrão de serviços de acordo com as directrizes",null,null,null,null,null,null,0,0,0]
[null,null,"Planificação orçamental","Existe um processo bem gerido de planificação orçamental para o programa de TS ",null,null,null,null,null,{"$f":"O63","v":"-"},null,null,null,null,{"$f":"IFERROR(ROUND(AVERAGEIF(L64:N66,\"<>0\",L64:N66),0),\"-\")","v":"-"}]
[null,null,null,"○","Está em curso uma avaliação dos recursos disponíveis a fim de tentar identificar lacunas e afectar um orçamento ao programa de TS",null,null,null,null,null,null,0,0,0]
[null,null,null,"○","Foi desenvolvida uma estratégia para colmatar lacunas de financiamento",null,null,null,null,null,null,0,0,0]
[null,null,null,"○","Os orçamentos estão associados às necessidades de recursos dos planos operacionais para as unidades nacionais e sub-nacionais",null,null,null,null,null,null,0,0,0]
[null,null,"Mobilização de recursos e financiamento","○","Existe financiamento suficiente para fazer face às necessidades holísticas de programação ",null,null,null,null,{"$f":"O67","v":"-"},null,0,0,0,{"$f":"IFERROR(ROUND(AVERAGEIF(L67:N67,\"<>0\",L67:N67),0),\"-\")","v":"-"},{"$f":"IF(MAX(L67:N67)=0,\"\",MAX(L67:N67))","v":""}]
[null,null,"Recursos internos","○","Mais de 50% dos recursos que apoiam o programa, humanos e financeiros, são domésticos",null,null,null,null,{"$f":"O68","v":"-"},null,0,0,0,{"$f":"IFERROR(ROUND(AVERAGEIF(L68:N68,\"<>0\",L68:N68),0),\"-\")","v":"-"},{"$f":"IF(MAX(L68:N68)=0,\"\",MAX(L68:N68))","v":""}]
[null,null,"Contratação social","○","Foram desenvolvidos mecanismos de contratação social, estando estes a ser implementados",null,null,null,null,{"$f":"O69","v":"-"},null,0,0,0,{"$f":"IFERROR(ROUND(AVERAGEIF(L69:N72,\"<>0\",L69:N72),0),\"-\")","v":"-"}]
[null,null,null,"○","A informação é amplamente divulgada com vista a permitir que Parceiros locais de Implementação e organizações dirigidas por trabalhadores do sexo tenham acesso a financiamento",null,null,null,null,null,null,0,0,0]
[null,null,null,"○","Existe um mecanismo que permite o financiamento a organizações lideradas pela comunidade",null,null,null,null,null,null,0,0,0]
[null,null,null,"○","Os fundos são reservados a organizações lideradas pela comunidade ",null,null,null,null,null,null,0,0,0,null,{"$f":"IF(MAX(L72:N72)=0,\"\",MAX(L72:N72))","v":""}]
[null,null,"Implementação do Programa"]
[null,null,"Segmentação e Planificação"]
[null,null,"Elemento","Critérios",null,"N/D","Ausente","Presente mas não ideal","Presente e funcionando bem","Média por elemento","Comentários (se aplicável)"]
[null,null,"Avaliação demográfica (estimativa da dimensão da população e micro-planificação)","Estimativa da Dimensão da População e micro-planificação concluídos e:",null,null,null,null,null,{"$f":"O76","v":"-"},null,null,null,null,{"$f":"IFERROR(ROUND(AVERAGEIF(L77:N83,\"<>0\",L77:N83),0),\"-\")","v":"-"}]
[null,null,null,"○","É baseada no local (nível local em vez do país ou região)",null,null,null,null,null,null,0,0,0]
[null,null,null,"○","A confidencialidade dos hotspots e o anonimato dos inquiridos estão garantidos e a informação não é partilhada com agentes da lei e ordem",null,null,null,null,null,null,0,0,0]
[null,null,null,"○","É actualizada anualmente ou no final de um inquérito bio-comportamental",null,null,null,null,null,null,0,0,0]
[null,null,null,"○","Foram contratados e recrutados membros formados dos TS ou de redes TS para realizar os exercícios de Estimativa da Dimensão da População e de micro-planificação",null,null,null,null,null,null,0,0,0]
[null,null,null,"○","As Estimativas da Dimensão da População são precisas e actualizadas ",null,null,null,null,null,null,0,0,0]
[null,null,null,"○","A informação é utilizada para fundamentar a necessidade de intervenções comportamentais, biomédicas e estruturais  ",null,null,null,null,null,null,0,0,0]
[null,null,null,"○","Esta informação também é utilizada para fazer uma estimativa dos requisitos em matéria de fundos e para a definição de metas",null,null,null,null,null,null,0,0,0]
[null,null,"Avaliação epidemiológica (inquérito de sero-prevalência e determinantes de risco)","As estimativas de sero-prevalência estão disponíveis e:",null,null,null,null,null,{"$f":"O84","v":"-"},null,null,null,null,{"$f":"IFERROR(ROUND(AVERAGEIF(L85:N90,\"<>0\",L85:N90),0),\"-\")","v":"-"}]
[null,null,null,"○","Com base numa vigilância recente e/ou contínua (estimativas modeladas actualizadas anualmente ou dados do inquérito actualizados a cada 3-5 anos)",null,null,null,null,null,null,0,0,0]
[null,null,null,"○","Específico para TS",null,null,null,null,null,null,0,0,0]
[null,null,null,"○","Os resultados são precisos; tamanho da amostra estatisticamente representativo (com alimentação adequada) e método de amostragem adequado para TS: amostragem de localização temporal e amostragem de conveniência.",null,null,null,null,null,null,0,0,0]
[null,null,null,"○","Foram regularmente realizadas avaliações dos determinantes de risco para TS com vista a fundamentar o programa e:",null,null,null,null,null,null,0,0,0]
[null,null,null,null,"> São específica a TS e têm em conta comportamentos específicos a idade e género  ",null,null,null,null,null,null,0,0,0]
[null,null,null,null,"> Os estudos são de boa qualidade e fornecem informação exaustiva  ",null,null,null,null,null,null,0,0,0]
[null,null,"Avaliação das necessidades","Foi concluída uma avaliação de necessidades para TS a nível da implementação e/ou local:",null,null,null,null,null,{"$f":"O91","v":"-"},null,null,null,null,{"$f":"IFERROR(ROUND(AVERAGEIF(L92:N94,\"<>0\",L92:N94),0),\"-\")","v":"-"}]
[null,null,null,"○","Contactos adequados com TS e organizações ou redes lideradas por TS a fim de aferir as necessidades",null,null,null,null,null,null,0,0,0]
[null,null,null,"○","Informações suficientes sobre que serviços os TS precisam, como prefeririam aceder aos serviços e quem deveria prestar os mesmos. ",null,null,null,null,null,null,0,0,0]
[null,null,null,"○","Informações completas sobre onde residem as lacunas em termos de prestação de serviços e barreiras ao acesso",null,null,null,null,null,null,0,0,0]
[null,null,"Definição de metas","As metas para os TS foram claramente definidas e:",null,null,null,null,null,{"$f":"O95","v":"-"},null,null,null,null,{"$f":"IFERROR(ROUND(AVERAGEIF(L96:N103,\"<>0\",L96:N103),0),\"-\")","v":"-"}]
[null,null,null,"○","Baseiam-se nos dados da estimativa da dimensão e de avaliação de risco",null,null,null,null,null,null,0,0,0]
[null,null,null,"○","Delineada para TS, em toda a sua diversidade (género, idade, tipologia) ",null,null,null,null,null,null,0,0,0]
[null,null,null,"○","Especificados a nível nacional e sub-nacional ",null,null,null,null,null,null,0,0,0]
[null,null,null,"○","Incluem realizações já alcançadas e realizações previstas no final ",null,null,null,null,null,null,0,0,0]
[null,null,null,"○","Formuladas em consulta com implementadores e redes de trabalhadores do sexo de modo a garantir que sejam realistas",null,null,null,null,null,null,0,0,0]
[null,null,null,"○","Combinam orçamentos e acordos formais com implementadores locais",null,null,null,null,null,null,0,0,0]
[null,null,null,"○","Estão desagregadas por idade e sexo",null,null,null,null,null,null,0,0,0]
[null,null,null,"○","As metas do Fundo Global e do Plano de Emergência do Presidente dos EUA para o Alívio da SIDA (PEPFAR) referem-se às estimativas de dimensão nacional e a metas nacionais",null,null,null,null,null,null,0,0,0]
[null,null,"Mecanismo de Implementação "]
[null,null,"Elemento","Critérios",null,"N/D","Ausente","Presente mas não ideal","Presente e funcionando bem","Média por elemento","Comentários (se aplicável)"]
[null,null,"Manter uma plataforma de acesso ","Uma plataforma de acesso promove esforços coordenados baseados na comunidade e clínica que;",null,null,null,null,null,{"$f":"O106","v":"-"},null,null,null,null,{"$f":"IFERROR(ROUND(AVERAGEIF(L107:N110,\"<>0\",L107:N110),0),\"-\")","v":"-"}]
[null,null,null,"○","Geram confiança em toda a comunidade através dos Agentes de Sensibilização de Pares (Peer Outreach Workers) ",null,null,null,null,null,null,0,0,0]
[null,null,null,"○","Atingem os TS em elevado número e incentivam a sua adesão, retenção e participação activa no programa.",null,null,null,null,null,null,0,0,0]
[null,null,null,"○","Incentiva a adesão e a retenção de TS",null,null,null,null,null,null,0,0,0]
[null,null,null,"○","Incentiva a participação activa de TS",null,null,null,null,null,null,0,0,0]
[null,null,"Estrutura de gestão","O processo da estrutura de gestão foi definido e;  ",null,null,null,null,null,{"$f":"O111","v":"-"},null,null,null,null,{"$f":"IFERROR(ROUND(AVERAGEIF(L112:N120,\"<>0\",L112:N120),0),\"-\")","v":"-"}]
[null,null,null,"○","Existem Termos de Referência (TdR) claros para descrever as funções e responsabilidades de todas as posições, incluindo o pessoal de nível da comunidade e das instalações",null,null,null,null,null,null,0,0,0]
[null,null,null,"○","Proporção adequada de Agentes de Sensibilização de Pares para membros da comunidade",null,null,null,null,null,null,0,0,0]
[null,null,null,"○","Existem directrizes para o recrutamento, retenção, avaliação e promoção de Agentes de Sensibilização de Pares ",null,null,null,null,null,null,0,0,0]
[null,null,null,"○","Todas as pessoas que trabalham no projeto são remuneradas ",null,null,null,null,null,null,0,0,0]
[null,null,null,"○","A supervisão adequada dos Agentes de Sensibilização de Pares (ASP) é assegurada pelos Supervisores de Pares",null,null,null,null,null,null,0,0,0]
[null,null,null,"○","A estratégia de promoção e o plano de progressão de carreira para os ASP e profissionais da Comunicação Social e para a Mudança de Comportamento (CSMCC) estão definidos ",null,null,null,null,null,null,0,0,0]
[null,null,null,"○","Está estabelecido um mecanismo formal de indicação encaminhamento ",null,null,null,null,null,null,{"$f":"IF(ISBLANK(G118),0,1)","v":0},{"$f":"IF(ISBLANK(H118),0,3)","v":0},{"$f":"IF(ISBLANK(I118),0,5)","v":0}]
[null,null,null,"○","Locais de destino equipados para receber serviços (os locais de destino são os pontos em que os serviços serão prestados, por exemplo, clínicas, hospitais, comunidades)",null,null,null,null,null,null,0,0,0]
[null,null,null,"○","A micro-planificação é utilizada para priorizar e gerir a sensibilização, bem como para identificar os beneficiários em maior risco",null,null,null,null,null,null,0,0,0]
[null,null,"Fluxo de dados ","Foram definidos fluxos de dados em cada nível e:",null,null,null,null,null,{"$f":"O121","v":"-"},null,null,null,null,{"$f":"IFERROR(ROUND(AVERAGEIF(L122:N127,\"<>0\",L122:N127),0),\"-\")","v":"-"}]
[null,null,null,"○","Sistemas de dados foram desenvolvidos e testados ",null,null,null,null,null,null,0,0,0]
[null,null,null,"○","Os indicadores padrão para a monitorização do programa de PC estão finalizados",null,null,null,null,null,null,0,0,0]
[null,null,null,"○","Foram desenvolvidas ferramentas padrão para a elaboração de relatórios ",null,null,null,null,null,null,0,0,0]
[null,null,null,"○","Os dados programáticos são comunicados e analisados mensalmente ",null,null,null,null,null,null,0,0,0]
[null,null,null,"○","Existem sistemas para manter a confidencialidade dos dados ",null,null,null,null,null,null,0,0,0]
[null,null,null,"○","Desenvolvido sistema de CIU ",null,null,null,null,null,null,0,0,0]
[null,null,"Agentes de Sensibilização de Pares (ASP)","Os Agentes de Sensibilização de Pares são utilizados de forma eficaz no programa:\n",null,null,null,null,null,{"$f":"O128","v":"-"},null,null,null,null,{"$f":"IFERROR(ROUND(AVERAGEIF(L129:N138,\"<>0\",L129:N138),0),\"-\")","v":"-"}]
[null,null,null,"○","Os ASP são recrutados no seio da comunidade de TS que representam ou servem",null,null,null,null,null,null,0,0,0]
[null,null,null,"○","Currículo de formação disponível, apropriado e inclui formação cínica para a actualização de conhecimento de ASP de TS sobre necessidades específicas dos TS",null,null,null,null,null,null,0,0,0]
[null,null,null,"○","Os ASP beneficiam de formação em micro-planificação e sensibilização",null,null,null,null,null,null,0,0,0]
[null,null,null,"○","Existe um plano de formação faseada para melhorar as competências, confiança e liderança dos ASP ",null,null,null,null,null,null,0,0,0]
[null,null,null,"○","Ferramentas de sensibilização disponíveis para a mobilização da comunidade a fim de promover serviços de acesso",null,null,null,null,null,null,0,0,0]
[null,null,null,"○","Ferramentas de micro-planificação são utilizadas para fundamentar a prestação de serviços de acordo com a necessidade do indivíduo/local ",null,null,null,null,null,null,0,0,0]
[null,null,null,"○","  Utilizam mensagens e materiais de comunicação baseados em evidências",null,null,null,null,null,null,0,0,0]
[null,null,null,"○","Fornecem informações sobre os serviços disponíveis e encaminham e associam os beneficiários aos serviços ",null,null,null,null,null,null,0,0,0]
[null,null,null,"○","Fornecem aconselhamento e apoio emocional para a manutenção no tratamento",null,null,null,null,null,null,0,0,0]
[null,null,null,"○","Para os TS,  ao planear actividades de sensibilização, os ASP têm em conta a sua idade, a rotina diária, influências de terceiros como proxenetas e chulos ",null,null,null,null,null,null,0,0,0]
[null,null,"Envolvimento significativo das comunidades afectadas na liderança e coordenação","Organização/rede liderada por TS representada no organismo nacional de coordenação ou no grupo de trabalho técnico para TS e:\n\n",null,null,null,null,null,{"$f":"O139","v":"-"},null,null,null,null,{"$f":"IFERROR(ROUND(AVERAGEIF(L140:N143,\"<>0\",L140:N143),0),\"-\")","v":"-"}]
[null,null,null,"○","Eles se reúnem regularmente",null,null,null,null,null,null,0,0,0]
[null,null,null,"○","Participam activamente nos processos de tomada de decisão como parceiros iguais ",null,null,null,null,null,null,0,0,0]
[null,null,null,"○","São apoiados de modo a solicitar comentários e prestar informações sobre as principais decisões aos grupos que representam",null,null,null,null,null,null,0,0,0]
[null,null,null,"○","Existem provas de que os comentários, contribuições e aconselhamento especializado fornecidos pela organização/rede liderada por TS são tidos em conta",null,null,null,null,null,null,0,0,0]
[null,null,"Prestação de Serviços"]
[null,null,"Elemento","Critérios",null,"N/D","Ausente","Presente mas não ideal","Presente e funcionando bem","Média por elemento","Comentários (se aplicável)"]
[null,null,"Serviços acessíveis","Os serviços são acessíveis às comunidades de TS e:",null,null,null,null,null,{"$f":"O146","v":"-"},null,null,null,null,{"$f":"IFERROR(ROUND(AVERAGEIF(L147:L147:N154,\"<>0\",L147:N154),0),\"-\")","v":"-"}]
[null,null,null,"○","São concebidos com base em pesquisas formativas realizadas na fase de avaliação de necessidades ",null,null,null,null,null,null,0,0,0]
[null,null,null,"○","Estão convenientemente localizados dentro ou nas proximidades de hotspots",null,null,null,null,null,null,0,0,0]
[null,null,null,"○","Contemplam serviços móveis sempre que necessário ",null,null,null,null,null,null,0,0,0]
[null,null,null,"○","Os horários de funcionamento são adequados para TS que pretendem alcançar ",null,null,null,null,null,null,0,0,0]
[null,null,null,"○","Estão integrados com o sistema de saúde geral e oferecem pacotes de cuidados abrangentes ",null,null,null,null,null,null,0,0,0]
[null,null,null,"○","Têm uma oferta constante de serviços e produtos",null,null,null,null,null,null,0,0,0]
[null,null,null,null,"O fornecimento de produtos é ininterrupto",null,null,null,null,null,null,0,0,0]
[null,null,null,"○","Envolvem a mudança de tarefas de modo a permitir o desenvolvimento da capacidade dos provedores de cuidados de saúde",null,null,null,null,null,null,0,0,0]
[null,null,"Serviços aceitáveis","Os serviços são aceitáveis para a comunidade de TS e:",null,null,null,null,null,{"$f":"O155","v":"-"},null,null,null,null,{"$f":"IFERROR(ROUND(AVERAGEIF(L156:N161,\"<>0\",L156:N161),0),\"-\")","v":"-"}]
[null,null,null,"○","São confidenciais e voluntários ",null,null,null,null,null,null,0,0,0]
[null,null,null,"○","Os provedores são sensíveis às necessidades dos TS, sem juízos de valor e sem estigmatização",null,null,null,null,null,null,0,0,0]
[null,null,null,"○","Os provedores são treinados para poderem oferecer um pacote abrangente de intervenção específico para TS ",null,null,null,null,null,null,0,0,0]
[null,null,null,null,null,null,null,null,null,null,null,0,0,0]
[null,null,null,"○","Criam um ambiente seguro e de apoio ",null,null,null,null,null,null,0,0,0]
[null,null,null,"○","As intervenções online são realizadas de forma ética, respeitando a privacidade e a confidencialidade dos clientes",null,null,null,null,null,null,0,0,0]
[null,null,"Serviços personalizados/adequados","Pacote de serviços e abordagens de prestação adaptadas às necessidades específicas dos TS em toda a sua diversidade:",null,null,null,null,null,{"$f":"O162","v":"-"},null,null,null,null,{"$f":"IFERROR(ROUND(AVERAGEIF(L163:N168,\"<>0\",L163:N168),0),\"-\")","v":"-"}]
[null,null,null,"○","O pacote de serviços para TS do sexo feminino contempla todos os serviços relevantes de SSR de acordo com as directrizes da OMS ",null,null,null,null,null,null,0,0,0]
[null,null,null,"○","Ampla disponibilidade de iniciação de ART baseada na comunidade para TS vivendo com HIV",null,null,null,null,null,null,0,0,0]
[null,null,null,"○","Os serviços são prestados de uma forma acessível a TS jovens em toda a sua diversidade",null,null,null,null,null,null,0,0,0]
[null,null,null,"○","Serviços adicionais (ou ligação a) disponibilizados com base nas necessidades específicas dos TS",null,null,null,null,null,null,0,0,0]
[null,null,null,"○","Os serviços são prestados de uma forma adequada e respeitam a confidencialidade/privacidade dos clientes ",null,null,null,null,null,null,0,0,0]
[null,null,null,"○","Os serviços respondem a vulnerabilidades cruzadas de adolescentes e jovens envolvidos na venda de sexo",null,null,null,null,null,null,0,0,0]
[null,null,"Intervenções Clínicas"]
[null,null,"Elemento","Critérios",null,"N/D","Ausente","Presente mas não ideal","Presente e funcionando bem","Média por elemento","Comentários (se aplicável)"]
[null,null,"Preservativos e Lubrificantes ","Todos os TS têm acesso a preservativos, lubrificantes, demonstrações e outros serviços de saúde reprodutiva e:\nTodos os TS têm acesso a preservativos, lubrificantes, demonstrações e outros serviços de saúde reprodutiva e:\n",null,null,null,null,null,{"$f":"O171","v":"-"},null,null,null,null,{"$f":"IFERROR(ROUND(AVERAGEIF(L172:N174,\"<>0\",L172:N174),0),\"-\")","v":"-"}]
[null,null,null,"○","Eles são amplamente distribuídos em quantidade suficiente",null,null,null,null,null,null,0,0,0]
[null,null,null,"○","São facilmente acessíveis em locais hotspot",null,null,null,null,null,null,0,0,0]
[null,null,null,"○","São realizadas demonstrações regulares por TS  ",null,null,null,null,null,null,0,0,0]
[null,null,"Serviços de testagem de HIV ","Serviços de testagem de HIV estão disponíveis para TS e:\n",null,null,null,null,null,{"$f":"O175","v":"-"},null,null,null,null,{"$f":"IFERROR(ROUND(AVERAGEIF(L176:N187,\"<>0\",L176:N187),0),\"-\")","v":"-"}]
[null,null,null,"○","São implementadas directrizes consolidadas da OMS sobre os serviços de testagem do HIV",null,null,null,null,null,null,0,0,0]
[null,null,null,"○","Toda a testagem é voluntária e confidencial (consentimento informado obtido)",null,null,null,null,null,null,0,0,0]
[null,null,null,"○","Aconselhamento pré e pós-teste é oferecido ",null,null,null,null,null,null,0,0,0]
[null,null,null,"○","O tratamento é oferecido independentemente da contagem de CD4",null,null,null,null,null,null,0,0,0]
[null,null,null,"○","As pessoas seropositivas recebem um encaminhamento para redes de apoio após o diagnóstico ",null,null,null,null,null,null,0,0,0]
[null,null,null,"○","O acesso aos serviços é distribuído de forma equitativa por toda a comunidade e por todos os TS",null,null,null,null,null,null,0,0,0]
[null,null,null,"○","Existem intervenções para garantir a adesão de TS que vivem com o HIV",null,null,null,null,null,null,0,0,0]
[null,null,null,"○","Monitorização regular da afluência aos cuidados entre os TS que vivem com o HIV ",null,null,null,null,null,null,0,0,0]
[null,null,null,"○","São oferecidas ligações à prevenção para co-morbidades",null,null,null,null,null,null,0,0,0]
[null,null,null,"○","São oferecidas ligações ao tratamento para co-morbidades",null,null,null,null,null,null,0,0,0]
[null,null,null,"○","Testes de carga viral disponíveis e acessíveis para TS que vivem com o HIV",null,null,null,null,null,null,{"$f":"IF(ISBLANK(G186),0,1)","v":0},{"$f":"IF(ISBLANK(H186),0,3)","v":0},{"$f":"IF(ISBLANK(I186),0,5)","v":0}]
[null,null,null,"○","Testes de CD4 disponíveis e acessíveis para TS que vivem com o HIV",null,null,null,null,null,null,0,0,0]
[null,null,"Profilaxia Pré-exposição","A PrEP oral (TDF) está disponível para TS com risco substancial de infecção pelo HIV ",null,null,null,null,null,{"$f":"O188","v":"-"},null,null,null,null,{"$f":"IFERROR(ROUND(AVERAGEIF(L189:N193,\"<>0\",L189:N193),0),\"-\")","v":"-"}]
[null,null,null,"○","Existe um fornecimento ininterrupto de Profilaxia Pré-Exposição ",null,null,null,null,null,null,0,0,0]
[null,null,null,"○","Testes de HIV são realizados antes do início da Profilaxia Pré-Exposição de modo a garantir que o indivíduo é seronegativo ",null,null,null,null,null,null,0,0,0]
[null,null,null,"○","Oferecida como parte de uma abordagem abrangente de prevenção combinada ",null,null,null,null,null,null,0,0,0]
[null,null,null,"○","As abordagens combinadas incluem o apoio à adesão, a re-testagem periódica do HIV e o aconselhamento para utilizadores de Profilaxia Pré-Exposição ",null,null,null,null,null,null,0,0,0]
[null,null,null,"○","A Profilaxia Pré-Exposição é oferecida com base na avaliação individual e não no grupo de risco para promover uma cobertura mais ampla ",null,null,null,null,null,null,0,0,0]
[null,null,"Prevenção, triagem e tratamento de Infecções de Transmissão Sexual","A triagem e testagem de Infeções de Transmissão Sexual estão disponíveis para TS e:",null,null,null,null,null,{"$f":"O194","v":"-"},null,null,null,null,{"$f":"IFERROR(ROUND(AVERAGEIF(L195:N200,\"<>0\",L195:N200),0),\"-\")","v":"-"}]
[null,null,null,"○","Toda a testagem é voluntária e confidencial ",null,null,null,null,null,null,0,0,0]
[null,null,null,"○","O tratamento é administrado imediatamente e a fornecimento é ininterrupto ",null,null,null,null,null,null,0,0,0]
[null,null,null,"○","O acesso aos serviços é distribuído de forma equitativa entre a comunidade e os TS",null,null,null,null,null,null,0,0,0]
[null,null,null,"○","É realizada triagem periódica e tratamento para casos assintomáticos ",null,null,null,null,null,null,0,0,0]
[null,null,null,"○","É realizado tratamento presuntivo periódico para casos assintomáticos em áreas de alta prevalência (> 15% de prevalência de N. gonorreia e/ou infecção por C. trachomatis) (particularmente TS)",null,null,null,null,null,null,0,0,0]
[null,null,null,"○","Na ausência de testes laboratoriais, gestão sindrómica para casos sintomáticos, em conformidade com as directrizes nacionais de gestão de ITS",null,null,null,null,null,null,0,0,0]
[null,null,"Planeamento familiar e SSR","Todos os TS têm acesso ao planeamento familiar e a outros serviços de saúde reprodutiva e:",null,null,null,null,null,{"$f":"O201","v":"-"},null,null,null,null,{"$f":"IFERROR(ROUND(AVERAGEIF(L202:N205,\"<>0\",L202:N205),0),\"-\")","v":"-"}]
[null,null,null,"○","Incluem o rastreio do cancro cervical",null,null,null,null,null,null,0,0,0]
[null,null,null,"○","São amplamente distribuídos em quantidade suficiente",null,null,null,null,null,null,0,0,0]
[null,null,null,"○","São facilmente acessíveis em locais hotspot",null,null,null,null,null,null,0,0,0]
[null,null,null,"○","Workshops de demonstração são regularmente realizados em hotspots",null,null,null,null,null,null,0,0,0]
[null,null,"Cuidados pós-violência "," Todos os TS têm acesso a cuidados pós-violência e:\n",null,null,null,null,null,{"$f":"O206","v":"-"},null,null,null,null,{"$f":"IFERROR(ROUND(AVERAGEIF(L207:N210,\"<>0\",L207:N210),0),\"-\")","v":"-"}]
[null,null,null,"○","Estão disponíveis serviços pós-violência, tais como apoio e aconselhamento",null,null,null,null,null,null,0,0,0]
[null,null,null,"○","Estão disponíveis serviços pós-violência, como a Profilaxia Pós-Exposição",null,null,null,null,null,null,0,0,0]
[null,null,null,"○","Testagem de ITS (sífilis, clamídia, gonorreia) é feita rotineiramente em casos de violência sexual",null,null,null,null,null,null,0,0,0]
[null,null,null,"○","Mecanismo de encaminhamento em vigor para serviços abrangentes de VBG, mediante necessidade",null,null,null,null,null,null,0,0,0]
[null,null,"Prevenção, triagem e tratamento da TB","A prevenção, triagem e tratamento da TB está disponível para TS e:\n",null,null,null,null,null,{"$f":"O211","v":"-"},null,null,null,null,{"$f":"IFERROR(ROUND(AVERAGEIF(L212:N220,\"<>0\",L212:N220),0),\"-\")","v":"-"}]
[null,null,null,"○","Prevenção: Terapia preventiva isoniazida oferecida à seropositivos conjuntamente com a Terapia Anti-Retroviral, controlo de infeção de TB e rastreio de contactos em meios de congregação ",null,null,null,null,null,null,0,0,0]
[null,null,null,"○","Diagnóstico: utiliza Xpert MTB/RIF como primeiros testes de diagnóstico",null,null,null,null,null,null,0,0,0]
[null,null,null,"○","Toda a testagem é voluntária e confidencial ",null,null,null,null,null,null,0,0,0]
[null,null,null,"○","Existem intervenções de apoio à adesão a fim de garantir que o regime de antibióticos seja concluído",null,null,null,null,null,null,0,0,0]
[null,null,null,"○","O tratamento é administrado imediatamente e a fornecimento é ininterrupto",null,null,null,null,null,null,0,0,0]
[null,null,null,"○","O acesso aos serviços é distribuído de forma equitativa entre a comunidade e os TS",null,null,null,null,null,null,0,0,0]
[null,null,null,"○","Boas ligações a testagem e aconselhamento de HIV para casos positivos ",null,null,null,null,null,null,0,0,0]
[null,null,null,"○","Esforços estão a ser envidados no sentido de tratar a TB latente em TS",null,null,null,null,null,null,0,0,0]
[null,null,null,"○","O tratamento da TB não é contra-indicado pelo consumo de álcool, uso de drogas e distúrbios de saúde mental",null,null,null,null,null,null,0,0,0]
[null,null,"PTMF","Todos as TS têm acesso a informações, tratamentos e cuidados adequados para prevenir a transmissão do HIV de mãe para filho",null,null,null,null,null,{"$f":"O221","v":"-"},null,null,null,null,{"$f":"IFERROR(ROUND(AVERAGEIF(L222:N222,\"<>0\",L222:N222),0),\"-\")","v":"-"}]
[null,null,null,"○","São facultadas informações à TS que estejam grávidas ou que desejem conceber  ",null,null,null,null,null,null,0,0,0]
[null,null,"Prevenção, vacinação, triagem e tratamento da hepatite viral","Prevenção, vacinação, triagem e tratamentos de Hep B e C virais estão disponíveis para atender às necessidades específicas de TS e:\n",null,null,null,null,null,{"$f":"O223","v":"-"},null,null,null,null,{"$f":"IFERROR(ROUND(AVERAGEIF(L224:N229,\"<>0\",L224:N229),0),\"-\")","v":"-"}]
[null,null,null,"○","Toda a testagem é voluntária e confidencial ",null,null,null,null,null,null,0,0,0]
[null,null,null,"○","O tratamento é administrado imediatamente e a fornecimento é ininterrupto ",null,null,null,null,null,null,0,0,0]
[null,null,null,"○","O acesso aos serviços é distribuído de forma equitativa por toda a comunidade e por todos os TS",null,null,null,null,null,null,0,0,0]
[null,null,null,"○","São realizadas rotineiramente campanhas de vacinação contra hepatite B e C ",null,null,null,null,null,null,0,0,0]
[null,null,null,null,"Regimes de vacinação rápida e padrão para a hepatite B e C estão disponíveis e facilmente acessíveis ",null,null,null,null,null,null,0,0,0]
[null,null,null,"○","Foram afectados recursos para a prevenção, vacinação, triagem e tratamento da hepatite viral",null,null,null,null,null,null,0,0,0]
[null,null,"Triagem e tratamento para o consumo de drogas e álcool","A triagem e o tratamento para o consumo problemático de álcool e drogas são rotineiramente realizados nas unidades sanitárias, nos hotspots locais e nas clínicas móveis ",null,null,null,null,null,{"$f":"O230","v":"-"},null,null,null,null,{"$f":"IFERROR(ROUND(AVERAGEIF(L231:N234,\"<>0\",L231:N234),0),\"-\")","v":"-"}]
[null,null,null,"○","Os Agentes de Sensibilização de Pares encaminham indivíduos em risco aos serviços da triagem e tratamento ",null,null,null,null,null,null,0,0,0]
[null,null,null,"○","Os indivíduos são encaminhados a conselheiros, organizações e grupos de apoio adequados",null,null,null,null,null,null,0,0,0]
[null,null,null,"○","O tratamento é iniciado imediatamente se o indivíduo assim consentir voluntariamente",null,null,null,null,null,null,0,0,0]
[null,null,null,"○","O encaminhamento a outros serviços (saúde mental, apoio psicossocial) é fornecido atempadamente",null,null,null,null,null,null,0,0,0]
[null,null,"Cuidados de saúde mental","Os cuidados de saúde mental são acessíveis e fornecidos de forma consistente aos membros dos TS que vivem com o HIV e incluem:",null,null,null,null,null,{"$f":"O235","v":"-"},null,null,null,null,{"$f":"IFERROR(ROUND(AVERAGEIF(L236:N237,\"<>0\",L236:N237),0),\"-\")","v":"-"}]
[null,null,null,"○","Triagem de rotina para distúrbios de saúde mental (em particular a depressão e stress psicossocial) conforme descrito pelo Programa de Acção para reduzir as Lacunas em Saúde Mental (mhGAP)",null,null,null,null,null,null,0,0,0]
[null,null,null,"○","Aconselhamento pós-testagem do HIV após um resultado positivo para avaliar o risco de suicídio, depressão e outros resultados de saúde mental ",null,null,null,null,null,null,0,0,0]
[null,null,"COVID-19 ","Prestação de serviços diferenciada, centrada nas pessoas, para programas de TS durante a COVID-19 \n",null,null,null,null,null,{"$f":"O238","v":"-"},null,null,null,null,{"$f":"IFERROR(ROUND(AVERAGEIF(L239:N240,\"<>0\",L239:N240),0),\"-\")","v":"-"}]
[null,null,null,"○","Existem programas que visam incentivar e acompanhar a adesão a vacina da COVID-19 entre TS",null,null,null,null,null,null,0,0,0]
[null,null,null,"○","Mensagens contínuas e acesso seguro a modelos de prestação de serviços não baseados em unidades sanitárias (por exemplo, baseados na comunidade, baseados em casa, tele-saúde) durante os picos de COVID-19 de modo a evitar interrupções de serviços",null,null,null,null,null,null,0,0,0]
[null,null,"Intervenções Comportamentais"]
[null,null,"Elemento","Critérios",null,"N/D","Ausente","Presente mas não ideal","Presente e funcionando bem","Média por elemento","Comentários (se aplicável)"]
[null,null,"Comunicação para a mudança social e de comportamento (CMSC)","Actividades de CMSC estão incluídas no Programa de População-Chave. Estas são:",null,null,null,null,null,{"$f":"O243","v":"-"},null,null,null,null,{"$f":"IFERROR(ROUND(AVERAGEIF(L244:N248,\"<>0\",L244:N248),0),\"-\")","v":"-"}]
[null,null,null,"○","Bem planeadas e com um orçamento adequado",null,null,null,null,null,null,0,0,0]
[null,null,null,"○","Baseadas em evidências ",null,null,null,null,null,null,0,0,0]
[null,null,null,"○","Os membros da população de TS foram envolvidos na concepção e teste das intervenções",null,null,null,null,null,null,0,0,0]
[null,null,null,"○","As organizações e indivíduos que implementam estas intervenções são experientes e formados em intervenções de CMSC",null,null,null,null,null,null,0,0,0]
[null,null,null,"○","Intervenções de Comunicação para a Mudança Social e de Comportamento estão incluídas nos planos e actividades de Monitoria e Avaliação",null,null,null,null,null,null,0,0,0]
[null,null,"Intervenções Estruturais"]
[null,null,"Elemento","Critérios",null,"N/D","Ausente","Presente mas não ideal","Presente e funcionando bem","Média por elemento","Comentários (se aplicável)"]
[null,null,"Prevenção e resposta à violência","Os programas para combater a violência contra TS foram implementados de forma consistente e contemplam:",null,null,null,null,null,{"$f":"O251","v":"-"},null,null,null,null,{"$f":"IFERROR(ROUND(AVERAGEIF(L252:N258,\"<>0\",L252:N258),0),\"-\")","v":"-"}]
[null,null,null,"○","Informações sobre segurança",null,null,null,null,null,null,{"$f":"IF(ISBLANK(G252),0,1)","v":0},{"$f":"IF(ISBLANK(H252),0,3)","v":0},{"$f":"IF(ISBLANK(I252),0,5)","v":0}]
[null,null,null,"○","Espaços seguros, Centros de Acolhimento (Drop-in- Centres - DIC)",null,null,null,null,null,null,0,0,0]
[null,null,null,"○","Segurança melhorada no local de trabalho",null,null,null,null,null,null,0,0,0]
[null,null,null,"○","Mecanismos de monitoria e comunicação de violência padronizados que se estendem além da polícia e podem incluir apoio paralegal de organizações de TS",null,null,null,null,null,null,0,0,0]
[null,null,null,"○","Formação abrangente de agentes da polícia e sociais para que sejam sensíveis às necessidades de TS",null,null,null,null,null,null,0,0,0]
[null,null,null,"○","Planos de resposta à violência desenvolvidos pela Comunidade",null,null,null,null,null,null,0,0,0]
[null,null,null,"○","Ligações estabelecidas ao apoio jurídico",null,null,null,null,null,null,0,0,0]
[null,null,"Redução do estigma e da discriminação ","Esforços para reduzir o estigma e a discriminação contra TS, incluindo:  ",null,null,null,null,null,{"$f":"O259","v":"-"},null,null,null,null,{"$f":"IFERROR(ROUND(AVERAGEIF(L260:N266,\"<>0\",L260:N266),0),\"-\")","v":"-"}]
[null,null,null,"○","Promoção de políticas anti-discriminação e de protecção para todos os trabalhadores do sexo",null,null,null,null,null,null,0,0,0]
[null,null,null,"○","Programas, dentro e fora do sector de saúde, que instituem políticas e códigos de conduta anti-estigmatização e anti-discriminação",null,null,null,null,null,null,0,0,0]
[null,null,null,"○","A monitoria e a supervisão são realizadas de forma rotineira a fim de garantir que as normas sejam implementadas e mantidas",null,null,null,null,null,null,0,0,0]
[null,null,null,"○","São realizadas campanhas contínuas para a redução do estigma",null,null,null,null,null,null,0,0,0]
[null,null,null,"○","Sensibilização, educação e envolvimento contínuos de líderes religiosos e anciãos, agentes da autoridade e Trabalhadores da Saúde ",null,null,null,null,null,null,0,0,0]
[null,null,null,"○","Existem mecanismos eficazes são disponibilizados para permitir a denúncia anónima de incidentes de estigma e/ou discriminação aquando do acesso a cuidados de saúde  ",null,null,null,null,null,null,0,0,0]
[null,null,null,"○","Apoio e acompanhamento são oferecidos à TS que denunciam incidentes de estigma e/ou discriminação",null,null,null,null,null,null,0,0,0]
[null,null,"Serviços jurídicos relacionados com o HIV ","Existem serviços jurídicos relacionados com o HIV para responder às necessidades das populações de TS e,  ",null,null,null,null,null,{"$f":"O267","v":"-"},null,null,null,null,{"$f":"IFERROR(ROUND(AVERAGEIF(L268:N270,\"<>0\",L268:N270),0),\"-\")","v":"-"}]
[null,null,null,"○","Existem formas alternativas de resolução de litígios",null,null,null,null,null,null,0,0,0]
[null,null,null,"○","O acesso a informação e encaminhamento jurídicos está prontamente disponível",null,null,null,null,null,null,0,0,0]
[null,null,null,"○","O acesso a assessoria e representação jurídicas está prontamente disponível",null,null,null,null,null,null,0,0,0]
[null,null,"Monitoria da aplicação da lei","A implementação de políticas, regulamentos e leis é regularmente monitorizada com vista a  avaliar o impacto sobre os TS.",null,null,null,null,null,{"$f":"O271","v":"-"},null,0,0,0,{"$f":"IFERROR(ROUND(AVERAGEIF(L271:N271,\"<>0\",L271:N271),0),\"-\")","v":"-"}]
[null,null,"Literacia legal (\"Conheça os seus direitos\")","É oferecida aos membros dos TS uma formação detalhada sobre literacia jurídica ",null,null,null,null,null,{"$f":"O272","v":"-"},null,null,null,null,{"$f":"IFERROR(ROUND(AVERAGEIF(L273:N274,\"<>0\",L273:N274),0),\"-\")","v":"-"}]
[null,null,null,"○","Estratégias eficazes para a interacção com a polícia foram delineadas e comunicadas aos TS",null,null,null,null,null,null,0,0,0]
[null,null,null,"○","Os TS estão conscientes das suas leis e direitos e são capazes de defender as suas necessidades no contexto do HIV em torno das suas leis e direitos",null,null,null,null,null,null,0,0,0]
[null,null,"Sensibilização dos fazedores de políticas e dos agentes da lei e ordem ","A formação rigorosa de legisladores e agentes da lei e ordem tem lugar regularmente de modo a garantir uma sensibilização adequada destes em relação a todos os TS e contempla: \n",null,null,null,null,null,{"$f":"O275","v":"-"},null,null,null,null,{"$f":"IFERROR(ROUND(AVERAGEIF(L276:N279,\"<>0\",L276:N279),0),\"-\")","v":"-"}]
[null,null,null,"○","Um programa abrangente de formação de sensibilização que foi adaptado ao contexto do país",null,null,null,null,null,null,0,0,0]
[null,null,null,"○","Facilitadores devidamente formados",null,null,null,null,null,null,0,0,0]
[null,null,null,"○","Participação de TS",null,null,null,null,null,null,0,0,0]
[null,null,null,"○","Feedback dos participantes",null,null,null,null,null,null,0,0,0]
[null,null,"Formação de profissionais de saúde sobre os direitos humanos e a ética médica relacionada com o HIV ","Um programa abrangente de formação de sensibilização que foi adaptado ao contexto do país",null,null,null,null,null,{"$f":"O280","v":"-"},null,null,null,null,{"$f":"IFERROR(ROUND(AVERAGEIF(L281:N283,\"<>0\",L281:N283),0),\"-\")","v":"-"}]
[null,null,null,"○","Facilitadores devidamente formados",null,null,null,null,null,null,0,0,0]
[null,null,null,"○","Participação de TS",null,null,null,null,null,null,0,0,0]
[null,null,null,"○","Feedback dos participantes",null,null,null,null,null,null,0,0,0]
[null,null,"Redução da discriminação contra as mulheres no contexto do HIV ","Foram implementados programas para fazer face a desigualdade de género e a violência baseada no género e o HIV, contemplando: ",null,null,null,null,null,{"$f":"O284","v":"-"},null,null,null,null,{"$f":"IFERROR(ROUND(AVERAGEIF(L285:N291,\"<>0\",L285:N291),0),\"-\")","v":"-"}]
[null,null,null,"○","A desigualdade entre mulheres e raparigas na tomada de decisões sexuais e reprodutivas; ",null,null,null,null,null,null,0,0,0]
[null,null,null,"○","As barreiras de género no acesso aos serviços de saúde; ",null,null,null,null,null,null,0,0,0]
[null,null,null,"○","Discriminação em matéria de herança, posse de património, casamento, divórcio e custódia; ",null,null,null,null,null,null,0,0,0]
[null,null,null,"○","Violência sexual e outras; ",null,null,null,null,null,null,0,0,0]
[null,null,null,"○","Falta de igualdade de acesso à oportunidades de educação e económicas; ",null,null,null,null,null,null,0,0,0]
[null,null,null,"○","Falta de apoio aos cuidadores em agregados familiares afectados pelo HIV. ",null,null,null,null,null,null,0,0,0]
[null,null,null,"○","São complementados por programas que visam homens e rapazes que abordam as normas de género nocivas ",null,null,null,null,null,null,0,0,0]
[null,null,"Espaços seguros/centros de acolhimento","Espaços seguros/centros de acolhimento foram estabelecidos para a comunidade de TS:",null,null,null,null,null,{"$f":"O292","v":"-"},null,null,null,null,{"$f":"IFERROR(ROUND(AVERAGEIF(L293:N301,\"<>0\",L293:N301),0),\"-\")","v":"-"}]
[null,null,null,"○","Servem como o principal local de interacção entre a comunidade e o programa",null,null,null,null,null,null,0,0,0]
[null,null,null,"○","Oferecem  uma plataforma para mobilização, formação e organização de iniciativas da comunidade",null,null,null,null,null,null,0,0,0]
[null,null,null,"○","Partilham informações sobre eventos, actividades e serviços relevantes para a comunidade",null,null,null,null,null,null,0,0,0]
[null,null,null,"○","Informações, educação e materiais de comunicação fáceis de usar estão acessíveis",null,null,null,null,null,null,0,0,0]
[null,null,null,"○","Prestam serviços e apoio psicossociais ",null,null,null,null,null,null,0,0,0]
[null,null,null,"○","Preservativos e lubrificantes estão disponíveis",null,null,null,null,null,null,0,0,0]
[null,null,null,"○","Utilizados Agentes de Sensibilização de Pares para avaliar seu trabalho e planificar acções de sensibilização",null,null,null,null,null,null,0,0,0]
[null,null,null,"○","Criados em consulta com TS por forma a determinar a localização, o horário de funcionamento e os serviços fornecidos",null,null,null,null,null,null,0,0,0]
[null,null,null,"○","Disponibilizam ou oferecem ligações a intervenções relevantes não relacionadas com o sector da saúde",null,null,null,null,null,null,0,0,0]
[null,null,"Comités comunitários","Foram formados comitês da comunidade de TS e:",null,null,null,null,null,{"$f":"O302","v":"-"},null,null,null,null,{"$f":"IFERROR(ROUND(AVERAGEIF(L303:N312,\"<>0\",L303:N312),0),\"-\")","v":"-"}]
[null,null,null,"○","Podem ser formados de forma livre e fácil",null,null,null,null,null,null,0,0,0]
[null,null,null,"○","Realizam reuniões regulares (pelo menos mensalmente) e utilizam um relatório de reunião para registar sistematicamente o debate ",null,null,null,null,null,null,0,0,0]
[null,null,null,"○","Avaliam a prestação de serviços, solucionam problemas, acompanham as mudanças, desenvolvem compreensão e responsabilização, bem como resolvem problemas gerais da comunidade",null,null,null,null,null,null,0,0,0]
[null,null,null,"○","Elegem membros da comunidade de TS anualmente",null,null,null,null,null,null,0,0,0]
[null,null,null,"○","Elegem o defensor da comunidade de TS para servir de intermediário do programa ",null,null,null,null,null,null,0,0,0]
[null,null,null,"○","Convidam pessoal relevante da organização responsável pela implementação para ser membros do comité ou para participar nas reuniões",null,null,null,null,null,null,0,0,0]
[null,null,null,"○","Dão feedback regular ao programa por forma a moldar a qualidade dos serviços oferecidos",null,null,null,null,null,null,0,0,0]
[null,null,null,"○","Respeitam a confidencialidade ",null,null,null,null,null,null,0,0,0]
[null,null,null,"○","Não permitem que o pessoal da organização responsável pela implementação vote nas reuniões",null,null,null,null,null,null,0,0,0]
[null,null,null,"○","Integram jovens PC e desenvolvem a sua capacidade ",null,null,null,null,null,null,0,0,0]
[null,null,"Monitoria do Programa"]
[null,null,"Elemento","Critérios",null,"N/D","Ausente","Presente mas não ideal","Presente e funcionando bem","Média por elemento","Comentários (se aplicável)"]
[null,null,"Monitoria de rotina","Indicadores do programa de rotina são definidos e comunicados",null,null,null,null,null,{"$f":"O315","v":"-"},null,null,null,null,{"$f":"IFERROR(ROUND(AVERAGEIF(L316:N322,\"<>0\",L316:N322),0),\"-\")","v":"-"}]
[null,null,null,"○"," Rotineiramente (mensal, trimestral),",null,null,null,null,null,null,0,0,0]
[null,null,null,"○","Completamente (os dados são consistentes e não há informação em falta)",null,null,null,null,null,null,{"$f":"IF(ISBLANK(G317),0,1)","v":0},{"$f":"IF(ISBLANK(H317),0,3)","v":0},{"$f":"IF(ISBLANK(I317),0,5)","v":0}]
[null,null,null,"○","A todos os níveis (ou seja, estado/concelho/província)",null,null,null,null,null,null,0,0,0]
[null,null,null,"○"," Por todos os parceiros de implementação",null,null,null,null,null,null,0,0,0]
[null,null,null,"○","Através da plataforma DHIS/EMR",null,null,null,null,null,null,0,0,0]
[null,null,null,"○","O rastreamento individual de dados é feito por parceiros de implementação ",null,null,null,null,null,null,0,0,0]
[null,null,null,"○","Os dados são regularmente analisados por todas as partes interessadas (governo, sociedade civil, comunidade de TS, parceiros de implementação, doadores) e utilizados para melhorar os programas ",null,null,null,null,null,null,0,0,0]
[null,null,"Monitoria para a responsabilização liderada pela Comunidade ","Incorporar a monitoria liderada pela comunidade em plataformas de monitoria nacionais e:",null,null,null,null,null,{"$f":"O323","v":"-"},null,null,null,null,{"$f":"IFERROR(ROUND(AVERAGEIF(L324:N330,\"<>0\",L324:N330),0),\"-\")","v":"-"}]
[null,null,null,"○"," A MLC é aceite e integrada  em processos de tomada de decisão e negociações com autoridades locais, financiadores e outros apoiantes externos ",null,null,null,null,null,null,{"$f":"IF(ISBLANK(G324),0,1)","v":0},{"$f":"IF(ISBLANK(H324),0,3)","v":0},{"$f":"IF(ISBLANK(I324),0,5)","v":0}]
[null,null,null,"○","Funciona como um mecanismo comunitário de vigilância e responsabilização",null,null,null,null,null,null,0,0,0]
[null,null,null,"○","Monitores de pares formados que recolhem e analisam de forma sistemática e regular dados qualitativos e quantitativos sobre a prestação de serviços de HIV",null,null,null,null,null,null,0,0,0]
[null,null,null,"○","Existem equipas de monitoria liderada pela comunidade para responder aos défices na prestação de serviços de HIV nas comunidades",null,null,null,null,null,null,0,0,0]
[null,null,null,"○","Existe colaboração entre diferentes redes de pessoas vivendo com HIV (PVHIV) e organizações lideradas pela comunidade das comunidades afectadas",null,null,null,null,null,null,0,0,0]
[null,null,null,null,"Os agentes de recolha de dados e outros membros da comunidade envolvidos na realização da monitoria liderada pela comunidade são remunerados de acordo com práticas e padrões nacionais",null,null,null,null,null,null,0,0,0]
[null,null,null,"○","As comunidades de TS são formadas e apoiadas para avaliar as unidades sanitárias e realizar a audiências públicas a fim de responsabilizar os dirigentes ",null,null,null,null,null,null,0,0,0]
[null,null,"Rastreamento do sistema de encaminhamento","Existem sistemas de rastreamento de encaminhamentos e contemplam:",null,null,null,null,null,{"$f":"O331","v":"-"},null,null,null,null,{"$f":"IFERROR(ROUND(AVERAGEIF(L332:N336,\"<>0\",L332:N336),0),\"-\")","v":"-"}]
[null,null,null," ○","Uma ferramenta de encaminhamento amplamente disponível, incluindo Procedimentos Operacionais Padrão claros",null,null,null,null,null,null,0,0,0]
[null,null,null,"○","Um directório de encaminhamento nas unidades e nas organizações lideradas por pares ",null,null,null,null,null,null,0,0,0]
[null,null,null,"○","Registo de resultados ",null,null,null,null,null,null,0,0,0]
[null,null,null,"○","Mecanismos de feedback entre pacientes e fornecedores (de encaminhamentos) ",null,null,null,null,null,null,0,0,0]
[null,null,null,"○","Relatórios sobre o encaminhamento (mensalmente) a fim de monitorizar a eficácia do sistema de encaminhamento",null,null,null,null,null,null,0,0,0]
[null,null,"Avaliação de qualidade","Foram definidos sistemas de recolha de dados sobre a qualidade do programa e indicadores conexos e:\n",null,null,null,null,null,{"$f":"O337","v":"-"},null,null,null,null,{"$f":"IFERROR(ROUND(AVERAGEIF(L338:N341,\"<>0\",L338:N341),0),\"-\")","v":"-"}]
[null,null,null,"○","São recolhidos dados precisos",null,null,null,null,null,null,0,0,0]
[null,null,null,"○","Os dados servem de base a acção ",null,null,null,null,null,null,0,0,0]
[null,null,null,"○","Os mecanismos de feedback permitem aos TS avaliar os serviços que receberam como mecanismo de monitorização da qualidade do programa",null,null,null,null,null,null,0,0,0]
[null,null,null,"○","Os dados são auditados regularmente ",null,null,null,null,null,null,0,0,0]
[null,null,"Vigilância ","A vigilância permite uma descrição precisa do contexto e resultados/impactos do programa de TS\n",null,null,null,null,null,{"$f":"O342","v":"-"},null,null,null,null,{"$f":"IFERROR(ROUND(AVERAGEIF(L343:N346,\"<>0\",L343:N346),0),\"-\")","v":"-"}]
[null,null,null,"○","Os resultados de estudos são utilizados para subsidiar a tomada de decisões e a correcção do percurso ",null,null,null,null,null,null,0,0,0]
[null,null,null,"○","Envolve a análise e interpretação de dados em intervalos regulares ",null,null,null,null,null,null,0,0,0]
[null,null,null,"○","Envolve a divulgação regular de informações para atender às necessidades locais, provinciais e nacionais ",null,null,null,null,null,null,0,0,0]
[null,null,null,"○","Inclui inquéritos biológicos e comportamentais, inquéritos sentinela e outros estudos de investigação que examinem indicadores para TS ",null,null,null,null,null,null,0,0,0]
[null,null,"Dados para tomada de decisão","O Programa Nacional, a Unidade de Monitoria e Avaliação do Ministério da Saúde, ou órgão de coordenação similar supervisiona/coordena a monitoria, pesquisa e recolha de dados de vigilância e:",null,null,null,null,null,{"$f":"O347","v":"-"},null,null,null,null,{"$f":"IFERROR(ROUND(AVERAGEIF(L348:N355,\"<>0\",L348:N355),0),\"-\")","v":"-"}]
[null,null,null,"○","Partilha dados com o Grupo de Trabalho Técnico de TS",null,null,null,null,null,null,0,0,0]
[null,null,null,"○","O Grupo de Trabalho Técnico de TS analisa os dados do programa existentes trimestralmente e identifica áreas para correcção do percurso",null,null,null,null,null,null,0,0,0]
[null,null,null,"○","O Grupo de Trabalho Técnico de TS ajuda na elaboração de estratégias para suprir as lacunas ",null,null,null,null,null,null,0,0,0]
[null,null,null,"○","São recolhidos dados de boa qualidade (válidos, fiáveis, consistentes, precisos, atempados, relevantes) e a maioria das necessidades de informação são atendidas e, caso não sejam atendidas, as lacunas são compreendidas ",null,null,null,null,null,null,0,0,0]
[null,null,null,"○","Os dados são utilizados de forma consistente e adequada para fundamentar as decisões ",null,null,null,null,null,null,0,0,0]
[null,null,null,"○","Os dados foram desduplicados em todos os parceiros de implementação e os duplicações são mínimas, se existirem",null,null,null,null,null,null,0,0,0]
[null,null,null,"○","Os dados são agregados centralmente, mas podem ser desagregados por localidade, sexo e idade",null,null,null,null,null,null,0,0,0]
[null,null,null,"○","O programa fornece dados ao Grupo de Trabalho Técnico para análise",null,null,null,null,null,null,0,0,0]
[null,null,"Utilização do Código de Identificação Único para a monitoria do programa","Um sistema utilizado para monitorizar o programa está plenamente funcional e é adequado para acompanhar o desempenho do programa",null,null,null,null,null,{"$f":"O356","v":"-"},null,null,null,null,{"$f":"IFERROR(ROUND(AVERAGEIF(L357:N360,\"<>0\",L357:N360),0),\"-\")","v":"-"}]
[null,null,null,"○","Vários Códigos de Identificação Únicos podem ser utilizados num determinado país, mas estão harmonizados",null,null,null,null,null,null,0,0,0]
[null,null,null,"○","O programa nacional utiliza dados agregados do Código de Identificação Único",null,null,null,null,null,null,0,0,0]
[null,null,null,"○","O Código de Identificação Único é capaz de distinguir o contacto/alcance, com vista a desduplicação ",null,null,null,null,null,null,0,0,0]
[null,null,null,"○","O Código de Identificação Único é baseado na electrónica",null,null,null,null,null,null,0,0,0]
[null,null,"Monitoria orçamental","A monitoria do desempenho financeiro e não financeiro do programa de TS é integrada e são gerados relatórios regulares: ",null,null,null,null,null,{"$f":"O361","v":"-"},null,null,null,null,{"$f":"IFERROR(ROUND(AVERAGEIF(L362:N364,\"<>0\",L362:N364),0),\"-\")","v":"-"}]
[null,null,null,"○","Os dados sobre as despesas relativas às intervenções relacionadas com TS são facilmente acessíveis a nível nacional. ",null,null,null,null,null,null,0,0,0]
[null,null,null,"○","Existem mecanismos de responsabilização para as sub-despesas. ",null,null,null,null,null,null,0,0,0]
[null,null,null,"○","Os dados financeiros e não financeiros são utilizados para aferir a relação qualidade/preço.",null,null,null,null,null,null,0,0,0]
[null,null,null,null,null,null,null,null,null,{"$f":"O365","v":0},null,0,0,0]
[null,null,"Resultados do Programa"]
[null,null,"Resultados e indicadores"]
[null,null,"Elemento","Critérios",null,"N/D","Não monitorizado ","Meta não atingida ou não está no rumo certo ","Meta atingida ou está no rumo certo","Média por elemento","Comentários (se aplicável)"]
[null,null,"Estimativas da dimensão populacional de TS disponíveis",null,null,null,null,null,null,{"$f":"O369","v":"-"},null,0,0,0,{"$f":"IFERROR(ROUND(AVERAGEIF(L369:N369,\"<>0\",L369:N369),0),\"-\")","v":"-"}]
[null,null,"A estratégia de prevenção inclui elementos centrais do pacote de prevenção dos TS",null,null,null,null,null,null,{"$f":"O370","v":"-"},null,0,0,0,{"$f":"IFERROR(ROUND(AVERAGEIF(L370:N370,\"<>0\",L370:N370),0),\"-\")","v":"-"}]
[null,null,"TS vivendo com o HIV conhecem o seu estado de seropositividade (meta 90%)",null,null,null,null,null,null,"-",null,0,0,0,"-"]
[null,null,"TS vivendo com HIV em terapia anti-retroviral (meta 90%)",null,null,null,null,null,null,"-",null,0,0,0,"-"]
[null,null,"TS vivendo com HIV que suprimiram cargas virais (meta 90%)",null,null,null,null,null,null,"-",null,0,0,0,"-"]
[null,null,"Uso do preservativo por parte dos TS com o cliente mais recente (meta 80%)",null,null,null,null,null,null,"-",null,0,0,0,"-"]
[null,null,"TS que receberam pelo menos 2 intervenções de prevenção do HIV nos últimos 3 meses",null,null,null,null,null,null,"-",null,0,0,0,"-"]
[null,null,"% de TS que evitaram cuidados de saúde devido ao estigma e discriminação ",null,null,null,null,null,null,"-",null,{"$f":"IF(ISBLANK(G376),0,1)","v":0},{"$f":"IF(ISBLANK(H376),0,3)","v":0},{"$f":"IF(ISBLANK(I376),0,5)","v":0},"-"]
[null,null,"Criminalização do Trabalho Sexual",null,null,null,null,null,null,"-",null,0,0,0,"-"]
[]
[null,null,null,null,null,null,null,null,null,null,null,null,{"$f":"COUNTIF(O6:O377,\"-\")","v":65}]
[null,null,null,null,null,null,null,null,null,null,null,null,{"$f":"COUNTIF(O6:O377,\">0\")","v":0}]
[null,null,null,null,null,null,null,null,null,null,null,"Preenchimento de folha",{"$f":"M380/(M379+M380)","v":0},{"$f":"1-M381","v":1}]

{"sheet":"HSH ","index":5,"n_rows":369,"n_cols":16,"rows_kept":369,"cut":false,"hidden":false,"merged":[[166,3,166,4],[105,3,105,4],[365,2,365,4],[363,2,363,4],[364,2,364,4],[75,3,75,4],[190,2,196,2],[217,2,223,2],[256,2,263,2],[312,2,319,2],[358,2,358,4],[361,2,361,4],[359,2,359,4],[360,2,360,4],[326,3,326,4],[272,2,276,2],[272,3,272,4],[248,2,255,2],[248,3,248,4],[229,2,231,2],[184,2,189,2],[362,2,362,4],[312,3,312,4],[312,9,319,9],[356,3,356,4],[345,2,349,2],[345,3,345,4],[345,9,349,9],[350,2,353,2],[350,3,350,4],[350,9,353,9],[331,2,335,2],[331,3,331,4],[331,9,335,9],[336,2,344,2],[336,3,336,4],[336,9,344,9],[320,2,325,2],[320,3,320,4],[320,9,325,9],[326,2,330,2],[357,2,357,4],[326,9,330,9],[304,2,311,2],[304,3,304,4],[304,9,311,9],[281,2,290,2],[281,3,281,4],[281,9,290,9],[291,2,301,2],[291,3,291,4],[291,9,301,9],[303,3,303,4],[272,9,276,9],[277,2,280,2],[277,3,277,4],[277,9,280,9],[264,2,267,2],[264,3,264,4],[264,9,267,9],[268,3,268,4],[269,2,271,2],[269,3,269,4],[269,9,271,9],[248,9,255,9],[256,3,256,4],[235,2,237,2],[235,3,235,4],[239,3,239,4],[240,2,245,2],[240,3,240,4],[240,9,245,9],[235,9,237,9],[256,9,263,9],[247,3,247,4],[229,9,231,9],[232,2,234,2],[232,9,234,9],[217,3,217,4],[224,2,228,2],[224,3,224,4],[224,9,228,9],[202,2,206,2],[202,3,202,4],[202,9,206,9],[207,2,216,2],[207,3,207,4],[207,9,216,9],[217,9,223,9],[184,9,189,9],[197,2,201,2],[197,9,201,9],[190,9,196,9],[190,3,190,4],[167,2,170,2],[167,3,167,4],[167,9,170,9],[171,2,183,2],[171,3,171,4],[171,9,183,9],[197,3,197,4],[184,3,184,4],[152,9,157,9],[158,2,164,2],[158,3,158,4],[158,9,164,9],[137,2,141,2],[137,3,137,4],[137,9,141,9],[143,3,143,4],[144,2,151,2],[144,3,144,4],[144,9,151,9],[152,2,157,2],[152,3,152,4],[121,9,127,9],[128,2,136,2],[128,3,128,4],[128,9,136,9],[106,2,110,2],[106,3,106,4],[106,9,110,9],[111,2,120,2],[111,3,111,4],[111,9,120,9],[121,3,121,4],[121,2,127,2],[91,3,91,4],[91,9,94,9],[95,2,103,2],[95,3,95,4],[95,9,103,9],[76,2,83,2],[76,3,76,4],[76,9,83,9],[84,2,90,2],[84,3,84,4],[84,9,90,9],[91,2,94,2],[69,9,72,9],[43,2,47,2],[43,3,43,4],[43,9,47,9],[49,3,49,4],[50,2,53,2],[50,3,50,4],[50,9,53,9],[63,2,66,2],[63,3,63,4],[63,9,66,9],[54,2,58,2],[54,3,54,4],[54,9,58,9],[60,3,60,4],[61,2,62,2],[61,3,61,4],[61,9,62,9],[69,2,72,2],[22,3,22,4],[22,9,28,9],[29,2,35,2],[29,3,29,4],[29,9,35,9],[36,2,42,2],[36,3,36,4],[36,9,42,9],[22,2,28,2],[3,2,3,8],[4,3,4,4],[5,2,15,2],[5,3,5,4],[5,9,15,9],[16,2,21,2],[1,2,1,9],[16,3,16,4],[16,9,21,9]]}
[]
[null,null,"Gestão de Programas"]
[]
[null,null,"Liderança e Coordenação"]
[null,null,"Elemento","Critérios",null,"N/D","Ausente","Presente mas não ideal","Presente e funcionando bem","Média por elemento","Comentários (se aplicável) ","Absent","Present","Optimal","Average","Sustainability Single Figure"]
[null,null,"Estratégia Nacional das Populações-chave","Há a inclusão de HSH na Estratégia Nacional das Populações-Chave e na estratégia nacional global de prevenção do HIV:",null,null,null,null,null,{"$f":"O6","v":"-"},null,null,null,null,{"$f":"IFERROR(ROUND(AVERAGEIF(L7:N16,\"<>0\",L7:N16),0),\"-\")","v":"-"}]
[null,null,null,"○","Os Homens que têm Sexo com Homens (HSH) têm estado envolvidos na elaboração do plano estratégico ",null,null,null,null,null,null,{"$f":"IF(ISBLANK(G7),0,1)","v":0},{"$f":"IF(ISBLANK(H7),0,3)","v":0},{"$f":"IF(ISBLANK(I7),0,5)","v":0}]
[null,null,null,"○","Os objectivos e metas foram claramente definidos para o programa de HSH ",null,null,null,null,null,null,{"$f":"IF(ISBLANK(G8),0,1)","v":0},0,0]
[null,null,null,"○","Os HSH foram claramente definidos de acordo com as directrizes da Organização Mundial de Saúde (OMS) ",null,null,null,null,null,null,0,0,0]
[null,null,null,"○","O plano reconhece vulnerabilidades específicas de HSH devido ao sexo e à idade",null,null,null,null,null,null,0,0,0]
[null,null,null,"○","Foi atriculado um modelo lógico ou teoria da mudança claros  ",null,null,null,null,null,null,0,0,0]
[null,null,null,"○","O plano inclui um pacote abrangente de intervenções e actividades baseadas em evidências, alinhadas com as Ferramentas de Implementação de HSH, identificadas por HSH, incluindo intervenções não relacionadas ao sector da saúde (por exemplo, empoderamento da comunidade, resposta à violência, redução do estigma, entre outras) e personalizadas para fazer face à vulnerabilidades específicas.",null,null,null,null,null,null,0,0,0]
[null,null,null,"○","Foi definida uma expansão clara com responsabilidades atribuídas ",null,null,null,null,null,null,0,0,0]
[null,null,null,"○","Existem vigor planos de financiamento ",null,null,null,null,null,null,0,0,0]
[null,null,null,"○","Foi definido um quadro de monitoria e avaliação com indicadores e metas nucleares",null,null,null,null,null,null,0,0,0]
[null,null,null,"○","Mecanismo de implementação claramente definido",null,null,null,null,null,null,0,0,0]
[null,null,"Responsabilização","Foi identificado o departamento/ministério responsável pelo sucesso do programa HSH com uma forte liderança/autoridade:",null,null,null,null,null,{"$f":"O17","v":"-"},null,null,null,null,{"$f":"IFERROR(ROUND(AVERAGEIF(L18:N22,\"<>0\",L18:N22),0),\"-\")","v":"-"}]
[null,null,null,"○","Todos os projectos de HSH no país reportam regularmente sobre indicadores-chave ao governo a nível sub-nacional e nacional com indicadores comuns, ",null,null,null,null,null,null,0,0,0]
[null,null,null,"○","Ao produzir relatórios, os dados são mantidos anónimos e seguros a fim de proteger os HSH ",null,null,null,null,null,null,0,0,0]
[null,null,null,"○","São efectuadas avaliações programáticas regulares com recurso a dados programáticos",null,null,null,null,null,null,0,0,0]
[null,null,null,"○","O Ministério responsável pelo programa participa nas reuniões de coordenação relevantes.",null,null,null,null,null,null,0,0,0]
[null,null,null,"○","O Grupo de Trabalho Técnico de Populações-Chave com representação de HSH está envolvido na garantia de responsabilização ",null,null,null,null,null,null,0,0,0]
[null,null,"Grupo de trabalho técnico para HSH","Foi criado um Grupo de Trabalho Técnico (Os países podem ter GTT para as Populações-Chave em que estão incluídos HSH) a nível nacional e sub-nacional e:",null,null,null,null,null,{"$f":"O23","v":"-"},null,null,null,null,{"$f":"IFERROR(ROUND(AVERAGEIF(L24:N29,\"<>0\",L24:N29),0),\"-\")","v":"-"}]
[null,null,null,"○","Eles se reúnem regularmente ",null,null,null,null,null,null,0,0,0]
[null,null,null,"○","O Grupo de Trabalho Técnico está completo e inclui Organizações da Sociedade Civil (OSC), Parceiros de Implementação, Membros da comunidade de Homens que têm Sexo com Homens (HSH)",null,null,null,null,null,null,0,0,0]
[null,null,null,"○","Eles dispõem de mecanismos de comunicação ",null,null,null,null,null,null,0,0,0]
[null,null,null,"○","O Grupo de Trabalho Técnico dispõe de mecanismos de comunicação para assegurar a coordenação",null,null,null,null,null,null,0,0,0]
[null,null,null,"○","Eles têm Termos de Referência ou um âmbito definidos ",null,null,null,null,null,null,0,0,0]
[null,null,null,"○","Os membros da comunidade de HSH estão incluídos",null,null,null,null,null,null,{"$f":"IF(ISBLANK(G29),0,1)","v":0},{"$f":"IF(ISBLANK(H29),0,3)","v":0},{"$f":"IF(ISBLANK(I29),0,5)","v":0}]
[null,null,"Coordenação das Partes Interessadas","Existem mecanismos para assegurar que a coordenação seja alcançada em todos os níveis e que a mesma seja bem sucedida e consistente com: ",null,null,null,null,null,{"$f":"O30","v":"-"},null,null,null,null,{"$f":"IFERROR(ROUND(AVERAGEIF(L31:N36,\"<>0\",L31:N36),0),\"-\")","v":"-"}]
[null,null,null,"○","Parceiros de financiamento (a nível nacional)",null,null,null,null,null,null,0,0,0]
[null,null,null,"○","Programas locais com iniciativas nacionais mais amplas ",null,null,null,null,null,null,0,0,0]
[null,null,null,"○","Comunidades de HSH",null,null,null,null,null,null,0,0,0]
[null,null,null,"○","Parceiros de implementação ",null,null,null,null,null,null,0,0,0]
[null,null,null,"○","Ministério da Saúde/Departamentos de Saúde do Governo (a nível nacional e sub-nacional)",null,null,null,null,null,null,0,0,0]
[null,null,null,"○","Foi conseguida uma coordenação multi-sectorial com outros ministérios/departamentos (por exemplo, finanças e lei e ordem)",null,null,null,null,null,null,{"$f":"IF(ISBLANK(G36),0,1)","v":0},{"$f":"IF(ISBLANK(H36),0,3)","v":0},{"$f":"IF(ISBLANK(I36),0,5)","v":0}]
[null,null,"Plano de Capacitação e Assistência Técnica","Existe um Plano de Assistência Técnica e: ",null,null,null,null,null,{"$f":"O37","v":"-"},null,null,null,null,{"$f":"IFERROR(ROUND(AVERAGEIF(L38:N43,\"<>0\",L38:N43),0),\"-\")","v":"-"}]
[null,null,null,"○","Foi desenvolvido com base em alguma avaliação ",null,null,null,null,null,null,0,0,0,null,{"$f":"IF(MAX(L38:N38)=0,\"\",MAX(L38:N38))","v":""}]
[null,null,null,"○","Utiliza peritos técnicos nacionais e internacionais, incluindo o desenvolvimento de capacidades entre pares e assistência técnica",null,null,null,null,null,null,0,0,0,null,{"$f":"IF(MAX(L39:N39)=0,\"\",MAX(L39:N39))","v":""}]
[null,null,null,"○","Priorizou os componentes programáticas e questões de política ",null,null,null,null,null,null,0,0,0,null,""]
[null,null,null,"○","Facilita o estabelecimento e o fortalecimento de redes de implementadores ",null,null,null,null,null,null,0,0,0,null,""]
[null,null,null,"○","Identifica lacunas e formula pedidos consolidados de assistência quando falta experiência no país ",null,null,null,null,null,null,0,0,0,null,""]
[null,null,null,"○","Facilita o desenvolvimento de capacidade da comunidade de HSH para que se possa apropriar dos programas de HSH ",null,null,null,null,null,null,0,0,0,null,""]
[null,null,"Plano de Sustentabilidade e Roteiro de Transição","Existe um plano de sustentabilidade e roteiro de transição completos, que delineiam a transição intervenções apoiadas por doadores para intervenções apoiadas internamente, sendo estes fundamentados por:",null,null,null,null,null,{"$f":"O44","v":"-"},null,null,null,null,{"$f":"IFERROR(ROUND(AVERAGEIF(L45:N48,\"<>0\",L45:N48),0),\"-\")","v":"-"},""]
[null,null,null,"○","Um exercício de cálculo dos custos unitários da População-chave",null,null,null,null,null,null,0,0,0,null,""]
[null,null,null,"○"," Uma análise do panorama de financiamento da população-chave",null,null,null,null,null,null,0,0,0,null,""]
[null,null,null,"○","Planificação para a integração de serviços da PC em cuidados de saúde primários",null,null,null,null,null,null,0,0,0]
[null,null,null,"○","Considera os recursos financeiros, humanos e infra-estruturas necessários",null,null,null,null,null,null,0,0,0,null,""]
[null,null,"Leis, Políticas e Regulamentos"]
[null,null,"Elemento","Critérios",null,"N/D","Ausente","Presente mas não ideal","Presente e funcionando bem","Média por elemento","Comentários (se aplicável) "]
[null,null,"Leis e Políticas "," Políticas em vigor que promovem activamente o bom funcionamento do programa de HSH: ",null,null,null,null,null,{"$f":"O51","v":"-"},null,null,null,null,{"$f":"IFERROR(ROUND(AVERAGEIF(L52:N54,\"<>0\",L52:N54),0),\"-\")","v":"-"}]
[null,null,null,"○","Políticas em vigor que promovem activamente o acesso de HSH a serviços, inclusive para HSH adolescentes",null,null,null,null,null,null,0,0,0]
[null,null,null,"○","Existem políticas que apoiam a descriminalização de HSH",null,null,null,null,null,null,0,0,0]
[null,null,null,"○","Existem políticas para a redução do estigma, discriminação e violência contra HSH ",null,null,null,null,null,null,0,0,0]
[null,null,"Directrizes","As seguintes directrizes existem e articulam claramente as etapas para a implementação bem-sucedida do programa de HSH:",null,null,null,null,null,{"$f":"O55","v":"-"},null,0,0,0,{"$f":"IFERROR(ROUND(AVERAGEIF(L56:N59,\"<>0\",L56:N59),0),\"-\")","v":"-"}]
[null,null,null,"○","As directrizes nacionais para cada uma das intervenções clínicas e estruturais existem e atendem às necessidades específicas de HSH",null,null,null,null,null,null,0,0,0]
[null,null,null,"○","As directrizes foram desenvolvidas em colaboração com HSH",null,null,null,null,null,null,0,0,0]
[null,null,null,"○","As directrizes nacionais para os serviços de testagem de HIV, Infeções de Transmissão Sexual, Profilaxia Pré-Exposição e Preservativo têm em conta as necessidades e prioridades de HSH ",null,null,null,null,null,null,0,0,0]
[null,null,null,"○","As medidas de prevenção e controlo de infecções pela COVID-19 estão incorporadas a todas as estratégias, planos e directrizes de prevenção do HIV/HSM",null,null,null,null,null,null,{"$f":"IF(ISBLANK(G59),0,1)","v":0},{"$f":"IF(ISBLANK(H59),0,3)","v":0},{"$f":"IF(ISBLANK(I59),0,5)","v":0}]
[null,null,"Financiamento"]
[null,null,"Elemento","Critérios",null,"N/D","Ausente","Presente mas não ideal","Presente e funcionando bem","Média por elemento","Comentários (se aplicável) "]
[null,null,"Custos ","Orçamento nacional em vigor:",null,null,null,null,null,{"$f":"O62","v":"-"},null,null,null,null,{"$f":"IFERROR(ROUND(AVERAGEIF(L63:N63,\"<>0\",L63:N63),0),\"-\")","v":"-"}]
[null,null,null,"○","Foi realizado um exercício de orçamentação e o programa nacional está ciente do custo médio para alcançar um HSH com um pacote padrão de serviços, de acordo com as directrizes ",null,null,null,null,null,null,{"$f":"IF(ISBLANK(G63),0,1)","v":0},{"$f":"IF(ISBLANK(H63),0,3)","v":0},{"$f":"IF(ISBLANK(I63),0,5)","v":0},{"$f":"IFERROR(ROUND(AVERAGEIF(L64:N64,\"<>0\",L64:N64),0),\"-\")","v":"-"}]
[null,null,"Planificação orçamental","Existe um processo de planificação orçamental bem gerido para o programa de HSH ",null,null,null,null,null,{"$f":"O64","v":"-"},null,0,{"$f":"IF(ISBLANK(H64),0,3)","v":0},0,"-"]
[null,null,null,"○","Está em curso uma avaliação dos recursos disponíveis para tentar identificar lacunas e afectar orçamento ao programa de HSH",null,null,null,null,null,null,0,0,0,"-"]
[null,null,null,"○","Foi desenvolvida uma estratégia para colmatar lacunas de financiamento",null,null,null,null,null,null,0,0,0,"-"]
[null,null,null,"○","Os orçamentos estão associados às necessidades de recursos dos planos operacionais para as unidades nacionais e sub-nacionais",null,null,null,null,null,null,0,0,0]
[null,null,"Mobilização de recursos e financiamento","○","Existe financiamento suficiente para fazer face às necessidades holísticas de programação",null,null,null,null,{"$f":"O68","v":"-"},null,0,0,0,{"$f":"IFERROR(ROUND(AVERAGEIF(L68:N68,\"<>0\",L68:N68),0),\"-\")","v":"-"},{"$f":"IF(MAX(L68:N68)=0,\"\",MAX(L68:N68))","v":""}]
[null,null,"Recursos internos","○","Mais de 50% dos recursos que apoiam o programa, quer humanos quer financeiros, são internos",null,null,null,null,{"$f":"O69","v":"-"},null,0,0,0,{"$f":"IFERROR(ROUND(AVERAGEIF(L69:N69,\"<>0\",L69:N69),0),\"-\")","v":"-"},{"$f":"IF(MAX(L69:N69)=0,\"\",MAX(L69:N69))","v":""}]
[null,null,"Contratação social","○","Foram desenvolvidos mecanismos de contratação social, estando estes a ser implementados",null,null,null,null,{"$f":"O70","v":"-"},null,0,0,0,{"$f":"IFERROR(ROUND(AVERAGEIF(L70:N73,\"<>0\",L70:N73),0),\"-\")","v":"-"},{"$f":"IF(MAX(L70:N70)=0,\"\",MAX(L70:N70))","v":""}]
[null,null,null,"○","As informações são amplamente divulgadas de modo a permitir que parceiros de implementação locais e organizações lideradas por HSH tenham acesso ao financiamento",null,null,null,null,null,null,0,0,0,null,{"$f":"IF(MAX(L71:N71)=0,\"\",MAX(L71:N71))","v":""}]
[null,null,null,"○","Existe um mecanismo que permite o financiamento a organizações lideradas pela comunidade",null,null,null,null,null,null,0,0,0]
[null,null,null,"○","Os fundos são reservados a organizações lideradas pela comunidade ",null,null,null,null,null,null,0,0,0]
[null,null,"Implementação do Programa"]
[null,null,"Segmentação e Planificação"]
[null,null,"Elemento","Critérios",null,"N/D","Ausente","Presente mas não ideal","Presente e funcionando bem","Média por elemento","Comentários (se aplicável) "]
[null,null,"Avaliação demográfica (estimativa da dimensão da população e micro-planificação)","Estimativa da Dimensão da População e micro-planificação concluídos e:",null,null,null,null,null,{"$f":"O77","v":"-"},null,null,null,null,{"$f":"IFERROR(ROUND(AVERAGEIF(L78:N84,\"<>0\",L78:N84),0),\"-\")","v":"-"}]
[null,null,null,"○","É baseada no local (nível local em vez do país ou região)",null,null,null,null,null,null,0,{"$f":"IF(ISBLANK(H78),0,3)","v":0},0]
[null,null,null,"○","A confidencialidade dos hotspots e o anonimato dos inquiridos estão garantidos e a informação não é partilhada com agentes da lei e ordem",null,null,null,null,null,null,0,0,0]
[null,null,null,"○","É actualizada anualmente ou no final de um inquérito bio-comportamental",null,null,null,null,null,null,0,0,0]
[null,null,null,"○","Foram envolvidos e recrutados membros formados de HSH ou de redes de HSH a fim de realizar os exercícios de Estimativas da Dimensão da População e de micro-planificação",null,null,null,null,null,null,0,0,0]
[null,null,null,"○","As Estimativas da Dimensão da População são precisas e actualizadas ",null,null,null,null,null,null,0,0,0]
[null,null,null,"○","A informação é utilizada para fundamentar a necessidade de intervenções comportamentais, biomédicas e estruturais  ",null,null,null,null,null,null,0,0,0]
[null,null,null,"○","Esta informação também é utilizada para fazer uma estimativa dos requisitos em matéria de fundos e para a definição de metas",null,null,null,null,null,null,0,0,0]
[null,null,"Avaliação epidemiológica (inquérito de sero-prevalência e determinantes de risco)","As estimativas de sero-prevalência estão disponíveis e:",null,null,null,null,null,{"$f":"O85","v":"-"},null,null,null,null,{"$f":"IFERROR(ROUND(AVERAGEIF(L86:N91,\"<>0\",L86:N91),0),\"-\")","v":"-"}]
[null,null,null,"○","Com base numa vigilância recente e/ou contínua (estimativas modeladas actualizadas anualmente ou dados do inquérito actualizados a cada 3-5 anos)",null,null,null,null,null,null,0,0,0]
[null,null,null,"○","Específicas a HSH",null,null,null,null,null,null,0,0,0]
[null,null,null,"○","Os resultados são precisos; tamanho da amostra estatisticamente representativo (com alimentação adequada) e método de amostragem adequado para HSH: Amostragem de localização temporal e amostragem de conveniência",null,null,null,null,null,null,0,0,0]
[null,null,null,"○","Avaliações sobre determinantes de risco têm sido regularmente realizadas para HSH de forma a subsidiar o programa:",null,null,null,null,null,null,0,0,0]
[null,null,null,null,"> São específicos da HSH e têm em conta comportamentos específicos da idade ",null,null,null,null,null,null,0,0,0]
[null,null,null,null,"> Os estudos são de boa qualidade e fornecem informação exaustiva  ",null,null,null,null,null,null,0,0,0]
[null,null,"Avaliação de necessidades","Uma avaliação de necessidades para HSH foi concluída na implementação e/ou no nível local:",null,null,null,null,null,{"$f":"O92","v":"-"},null,null,null,null,{"$f":"IFERROR(ROUND(AVERAGEIF(L93:N95,\"<>0\",L93:N95),0),\"-\")","v":"-"}]
[null,null,null,"○","Envolvimento adequado com HSH e com organizações ou redes lideradas por HSH no que respeita às necessidades",null,null,null,null,null,null,0,0,0]
[null,null,null,"○","Informação suficiente sobre que serviços os HSH precisam, como prefeririam ter acesso aos mesmos e que os deve fornecer. ",null,null,null,null,null,null,0,0,0]
[null,null,null,"○","Informações completas sobre onde residem as lacunas em termos de prestação de serviços e barreiras ao acesso",null,null,null,null,null,null,0,0,0]
[null,null,"Definição de metas","As metas para HSH foram claramente definidas e:",null,null,null,null,null,{"$f":"O96","v":"-"},null,null,null,null,{"$f":"IFERROR(ROUND(AVERAGEIF(L97:N104,\"<>0\",L97:N104),0),\"-\")","v":"-"}]
[null,null,null,"○","Baseiam-se nos dados da estimativa da dimensão e de avaliação de risco",null,null,null,null,null,null,0,0,0]
[null,null,null,"○","Traçadas para facilidade de referência",null,null,null,null,null,null,0,0,0]
[null,null,null,"○","Especificada a nível nacional e sub-nacional ",null,null,null,null,null,null,0,0,0]
[null,null,null,"○","Incluem realizações já alcançadas e realizações previstas no final ",null,null,null,null,null,null,0,0,0]
[null,null,null,"○","Desenvolvidas consulta com implementadores e redes de HSH de modo a garantir que sejam realistas",null,null,null,null,null,null,0,0,0]
[null,null,null,"○","Combinam orçamentos e acordos formais com implementadores locais",null,null,null,null,null,null,0,0,0]
[null,null,null,"○","São desagregadas por idade",null,null,null,null,null,null,0,0,0]
[null,null,null,"○","As metas do Fundo Global e do Plano de Emergência do Presidente dos EUA para o Alívio da SIDA (PEPFAR) referem-se às estimativas de dimensão nacional e a metas nacionais",null,null,null,null,null,null,0,0,0]
[null,null,"Mecanismo de Implementação "]
[null,null,"Elemento","Critérios",null,"N/D","Ausente","Presente mas não ideal","Presente e funcionando bem","Média por elemento","Comentários (se aplicável) "]
[null,null,"Manter uma plataforma de acesso ","Uma plataforma de acesso promove esforços coordenados baseados na comunidade e clínica que; ",null,null,null,null,null,{"$f":"O107","v":"-"},null,null,null,null,{"$f":"IFERROR(ROUND(AVERAGEIF(L108:N111,\"<>0\",L108:N111),0),\"-\")","v":"-"}]
[null,null,null,"○","Geram confiança em toda a comunidade através dos Agentes de Sensibilização de Pares (Peer Outreach Workers) ",null,null,null,null,null,null,0,0,0]
[null,null,null,"○","Atinge HSH em números elevados e incentiva a sua adesão, retenção e participação activa no programa.",null,null,null,null,null,null,0,0,0]
[null,null,null,"○","Incentiva a adesão e a retenção de HSH",null,null,null,null,null,null,0,0,0]
[null,null,null,"○","Incentiva a participação activa de HSH ",null,null,null,null,null,null,0,0,0]
[null,null,"Estrutura de gestão","O processo da estrutura de gestão foi definido e;  ",null,null,null,null,null,{"$f":"O112","v":"-"},null,null,null,null,{"$f":"IFERROR(ROUND(AVERAGEIF(L113:N121,\"<>0\",L113:N121),0),\"-\")","v":"-"}]
[null,null,null,"○","Existem Termos de Referência (TdR) claros para descrever as funções e responsabilidades de todas as posições, incluindo o pessoal de nível da comunidade e das instalações",null,null,null,null,null,null,0,0,0]
[null,null,null,"○","Proporção adequada de Agentes de Sensibilização de Pares para membros da comunidade",null,null,null,null,null,null,0,0,0]
[null,null,null,"○","Existem directrizes para o recrutamento, retenção, avaliação e promoção de Agentes de Sensibilização de Pares ",null,null,null,null,null,null,0,0,0]
[null,null,null,"○","Todas as pessoas que trabalham no projeto são remuneradas ",null,null,null,null,null,null,0,0,0]
[null,null,null,"○","A supervisão adequada dos Agentes de Sensibilização de Pares (ASP) é assegurada pelos Supervisores de Pares",null,null,null,null,null,null,0,0,0]
[null,null,null,"○","Está definida a estratégia de promoção e plano de progressão de carreira para ASP, bem como a Comunicação para a Mudança Social e de Comportamento ",null,null,null,null,null,null,0,0,0]
[null,null,null,"○","Está estabelecido o mecanismo de encaminhamento ",null,null,null,null,null,null,0,0,0]
[null,null,null,"○","Locais de destino equipados para receber serviços",null,null,null,null,null,null,0,0,0]
[null,null,null,"○","A micro-planificação é utilizada para priorizar e gerir a sensibilização, bem como para identificar os beneficiários em maior risco",null,null,null,null,null,null,0,0,0]
[null,null,"Fluxo de dados ","Foram definidos fluxos de dados em cada nível e:",null,null,null,null,null,{"$f":"O122","v":"-"},null,null,null,null,{"$f":"IFERROR(ROUND(AVERAGEIF(L123:N128,\"<>0\",L123:N128),0),\"-\")","v":"-"}]
[null,null,null,"○","Sistemas de dados foram desenvolvidos e testados ",null,null,null,null,null,null,0,0,0]
[null,null,null,"○","Os indicadores padrão para a monitorização do programa de PC estão finalizados",null,null,null,null,null,null,0,0,0]
[null,null,null,"○","Foram desenvolvidas ferramentas padrão para a elaboração de relatórios ",null,null,null,null,null,null,0,0,0]
[null,null,null,"○","Os dados programáticos são comunicados e analisados mensalmente ",null,null,null,null,null,null,0,0,0]
[null,null,null,"○","Existem sistemas para manter a confidencialidade dos dados ",null,null,null,null,null,null,0,0,0]
[null,null,null,"○","Desenvolvido sistema de CIU ",null,null,null,null,null,null,{"$f":"IF(ISBLANK(G128),0,1)","v":0},0,{"$f":"IF(ISBLANK(I128),0,5)","v":0}]
[null,null,"Agentes de Sensibilização de Pares (ASP) ","Os Educadores de Sensibilização de Pares são utilizados de forma eficaz no programa:\n",null,null,null,null,null,{"$f":"O129","v":"-"},null,null,null,null,{"$f":"IFERROR(ROUND(AVERAGEIF(L130:N137,\"<>0\",L130:N137),0),\"-\")","v":"-"}]
[null,null,null,"○","Os Agentes de Sensibilização de Pares são seleccionados no seio da comunidade de HSH que representam ou servem",null,null,null,null,null,null,{"$f":"IF(ISBLANK(G130),0,1)","v":0},{"$f":"IF(ISBLANK(H130),0,3)","v":0},0]
[null,null,null,"○","Currículo de formação disponível, apropriado e inclui formação na vertente clínica para actualizar o conhecimento de ASP de HSH sobre as suas necessidades específicas",null,null,null,null,null,null,0,0,0]
[null,null,null,"○","Existe um plano de formação faseada para melhorar as competências, confiança e liderança dos ASP ",null,null,null,null,null,null,0,0,0]
[null,null,null,"○","Ferramentas de sensibilização disponíveis para a mobilização da comunidade para promover serviços de acesso",null,null,null,null,null,null,0,0,0]
[null,null,null,"○","Ferramentas de micro-planificação são utilizadas para fundamentar a prestação de serviços de acordo com a necessidade do indivíduo/local "]
[null,null,null,"○","Utilizam mensagens e materiais de comunicação baseados em evidências",null,null,null,null,null,null,0,0,0]
[null,null,null,"○","Fornecem informações sobre os serviços disponíveis e encaminham e associam os beneficiários aos serviços ",null,null,null,null,null,null,0,0,0]
[null,null,null,"○","Fornecem aconselhamento e apoio emocional para a manutenção no tratamento",null,null,null,null,null,null,0,0,0]
[null,null,"Envolvimento significativo das comunidades afectadas na liderança e coordenação","Organização/rede liderada por HSH representada no organismo nacional de coordenação ou no grupo de trabalho técnico para HSH e:\n\n",null,null,null,null,null,{"$f":"O138","v":"-"},null,null,null,null,{"$f":"IFERROR(ROUND(AVERAGEIF(L139:N142,\"<>0\",L139:N142),0),\"-\")","v":"-"}]
[null,null,null,"○","Eles se reúnem regularmente",null,null,null,null,null,null,0,0,0]
[null,null,null,"○","Participam activamente nos processos de tomada de decisão como parceiros iguais ",null,null,null,null,null,null,0,0,0]
[null,null,null,"○","São apoiados de modo a solicitar comentários e prestar informações sobre as principais decisões aos grupos que representam",null,null,null,null,null,null,0,0,0]
[null,null,null,"○","Há provas de que o feedback, o contributo e o aconselhamento especializado fornecido pela organização/rede liderada por HSH são tidos em conta",null,null,null,null,null,null,0,0,0]
[null,null,"Prestação de Serviços"]
[null,null,"Elemento","Critérios",null,"N/D","Ausente","Presente mas não ideal","Presente e funcionando bem","Média por elemento","Comentários (se aplicável) "]
[null,null,"Serviços acessíveis","Os serviços estão acessíveis às comunidades de HSH e:",null,null,null,null,null,{"$f":"O145","v":"-"},null,null,null,null,{"$f":"IFERROR(ROUND(AVERAGEIF(L146:N152,\"<>0\",L146:N152),0),\"-\")","v":"-"}]
[null,null,null,"○","São concebidos com base em pesquisas formativas realizadas na fase de avaliação de necessidades ",null,null,null,null,null,null,0,0,0]
[null,null,null,"○","Estão convenientemente localizados dentro ou nas proximidades de hotspots",null,null,null,null,null,null,0,0,0]
[null,null,null,"○","Contemplam serviços móveis sempre que necessário ",null,null,null,null,null,null,0,0,0]
[null,null,null,"○","Os horários de funcionamento são adequados para os HSH que pretendem alcançar ",null,null,null,null,null,null,0,0,0]
[null,null,null,"○","Estão integrados com o sistema de saúde geral e oferecem pacotes de cuidados abrangentes ",null,null,null,null,null,null,0,0,0]
[null,null,null,"○","Têm uma oferta constante de serviços e produtos",null,null,null,null,null,null,0,0,0]
[null,null,null,"○","Envolvem a mudança de tarefas de modo a permitir o desenvolvimento da capacidade dos provedores de cuidados de saúde",null,null,null,null,null,null,0,0,0]
[null,null,"Serviços aceitáveis","Os serviços são aceitáveis para a comunidade de HSH e:",null,null,null,null,null,{"$f":"O153","v":"-"},null,null,null,null,{"$f":"IFERROR(ROUND(AVERAGEIF(L154:N158,\"<>0\",L154:N158),0),\"-\")","v":"-"}]
[null,null,null,"○","São confidenciais e voluntários ",null,null,null,null,null,null,0,0,0]
[null,null,null,"○","Os provedores são sensíveis às necessidades de HSH, sem juízos de valor e sem estigmatização",null,null,null,null,null,null,0,0,0]
[null,null,null,"○","Os provedores são formados para oferecer um pacote abrangente de intervenção específico a HSH ",null,null,null,null,null,null,0,0,0]
[null,null,null,"○","Criam um ambiente seguro e de apoio ",null,null,null,null,null,null,0,0,0]
[null,null,null,"○","As intervenções online são realizadas de forma ética, respeitando a privacidade e a confidencialidade dos clientes",null,null,null,null,null,null,0,0,0]
[null,null,"Serviços personalizados/adequados","Pacote de serviços e abordagens de prestação adaptadas às necessidades específicas de HSH em toda a sua diversidade:",null,null,null,null,null,{"$f":"O159","v":"-"},null,null,null,null,{"$f":"IFERROR(ROUND(AVERAGEIF(L160:N165,\"<>0\",L160:N165),0),\"-\")","v":"-"}]
[null,null,null,"○","O pacote de serviços para HSH contempla todos os serviços relevantes de Saúde Sexual e Reprodutiva de acordo com as directrizes da OMS ",null,null,null,null,null,null,0,0,0]
[null,null,null,"○","Ampla disponibilidade de iniciação de Terapia anti-retroviral para baseada na comunidade para HSH vivendo com HIV",null,null,null,null,null,null,0,0,0]
[null,null,null,"○","Os serviços são prestados de uma forma acessível a HSH adolescentes (ex.: respondendo preocupações em torno da idade de consentimento)",null,null,null,null,null,null,0,0,0]
[null,null,null,"○","Serviços adicionais (ou ligação a) disponibilizados com base nas necessidades específicas de HSH ",null,null,null,null,null,null,0,0,0]
[null,null,null,"○","Os serviços são prestados de uma forma adequada e respeitam a confidencialidade/privacidade dos clientes (ex.: para HSH que não se identificam como homossexuais são oferecidos sob a perspectiva de saúde masculina)",null,null,null,null,null,null,0,0,0]
[null,null,null,"○","Os serviços respondem a vulnerabilidades cruzadas de adolescentes e jovens envolvidos na venda de sexo",null,null,null,null,null,null,0,0,0]
[null,null,"Intervenções Clínicas"]
[null,null,"Elemento","Critérios",null,"N/D","Ausente","Presente mas não ideal","Presente e funcionando bem","Média por elemento","Comentários (se aplicável) "]
[null,null,"Preservativos e Lubrificantes ","Todos os MSM têm acesso a preservativos, lubrificantes, demonstrações e outros serviços de saúde reprodutiva e:",null,null,null,null,null,{"$f":"O168","v":"-"},null,null,null,null,{"$f":"IFERROR(ROUND(AVERAGEIF(L169:N171,\"<>0\",L169:N171),0),\"-\")","v":"-"}]
[null,null,null,"○","São amplamente distribuídos em quantidade suficiente",null,null,null,null,null,null,0,0,0]
[null,null,null,"○","São facilmente acessíveis em locais hotspot",null,null,null,null,null,null,0,0,0]
[null,null,null,"○","São realizadas demonstrações regulares por TS  ",null,null,null,null,null,null,0,0,0]
[null,null,"Serviços de testagem de HIV","Serviços de testagem de HIV estão disponíveis para HSH e:\n",null,null,null,null,null,{"$f":"O172","v":"-"},null,null,null,null,{"$f":"IFERROR(ROUND(AVERAGEIF(L173:N184,\"<>0\",L173:N184),0),\"-\")","v":"-"}]
[null,null,null,"○","São implementadas directrizes consolidadas da OMS sobre os serviços de testagem do HIV ",null,null,null,null,null,null,0,0,0]
[null,null,null,"○","Toda a testagem é voluntária e confidencial (consentimento informado obtido)",null,null,null,null,null,null,0,0,0]
[null,null,null,"○","Aconselhamento pré e pós-teste é oferecido ",null,null,null,null,null,null,0,0,0]
[null,null,null,"○","O tratamento é oferecido independentemente da contagem de CD4",null,null,null,null,null,null,0,0,0]
[null,null,null,"○","As pessoas seropositivas recebem um encaminhamento para redes de apoio após o diagnóstico ",null,null,null,null,null,null,0,0,0]
[null,null,null,"○","O acesso aos serviços é distribuído de forma equitativa por toda a comunidade e por todos os HSH",null,null,null,null,null,null,0,0,0]
[null,null,null,"○","Existem intervenções para garantir a adesão de HSH que vivem com o HIV",null,null,null,null,null,null,0,0,0]
[null,null,null,"○","Monitorização regular da afluência aos cuidados entre  HSH que vivem com o HIV ",null,null,null,null,null,null,0,0,0]
[null,null,null,"○","São oferecidas ligações à prevenção para co-morbidades",null,null,null,null,null,null,0,0,0]
[null,null,null,"○","São oferecidas ligações ao tratamento para co-morbidades",null,null,null,null,null,null,0,0,0]
[null,null,null,"○","Testes de carga viral disponíveis e acessíveis para HSH que vivem com o HIV",null,null,null,null,null,null,0,0,0]
[null,null,null,"○","Testes de CD4 disponíveis e acessíveis para HSH que vivem com o HIV",null,null,null,null,null,null,0,0,0]
[null,null,"Profilaxia Pré-exposição","A PrEP oral (TDF) está disponível para HSH com risco substancial de infeção pelo HIV ",null,null,null,null,null,{"$f":"O185","v":"-"},null,null,null,null,{"$f":"IFERROR(ROUND(AVERAGEIF(L186:N190,\"<>0\",L186:N190),0),\"-\")","v":"-"}]
[null,null,null,"○","Existe um fornecimento ininterrupto de Profilaxia Pré-Exposição (PrEP)",null,null,null,null,null,null,0,0,0]
[null,null,null,"○","Testes de HIV são realizados antes do início da Profilaxia Pré-Exposição de modo a garantir que o indivíduo é seronegativo ",null,null,null,null,null,null,0,0,0]
[null,null,null,"○","Oferecida como parte de uma abordagem abrangente de prevenção combinada ",null,null,null,null,null,null,0,0,0]
[null,null,null,"○","As abordagens combinadas incluem o apoio à adesão, a re-testagem periódica do HIV e o aconselhamento para utilizadores de Profilaxia Pré-Exposição ",null,null,null,null,null,null,0,0,0]
[null,null,null,"○","A Profilaxia Pré-Exposição é oferecida com base na avaliação individual e não no grupo de risco para promover uma cobertura mais ampla ",null,null,null,null,null,null,0,0,0]
[null,null,"Prevenção, triagem e tratamento da STI","A triagem e testagem de ITS estão disponíveis para HSH e:",null,null,null,null,null,{"$f":"O191","v":"-"},null,null,null,null,{"$f":"IFERROR(ROUND(AVERAGEIF(L192:N197,\"<>0\",L192:N197),0),\"-\")","v":"-"}]
[null,null,null,"○","Toda a testagem é voluntária e confidencial ",null,null,null,null,null,null,{"$f":"IF(ISBLANK(G192),0,1)","v":0},{"$f":"IF(ISBLANK(H192),0,3)","v":0},{"$f":"IF(ISBLANK(I192),0,5)","v":0}]
[null,null,null,"○","O tratamento é administrado imediatamente e a fornecimento é ininterrupto ",null,null,null,null,null,null,0,0,0]
[null,null,null,"○","O acesso aos serviços é distribuído de forma equitativa entre a comunidade e os TS",null,null,null,null,null,null,0,0,0]
[null,null,null,"○","É realizada triagem periódica e tratamento para casos assintomáticos",null,null,null,null,null,null,0,0,0]
[null,null,null,"○","É realizado tratamento presuntivo periódico para casos assintomáticos em áreas de alta prevalência (> 15% de prevalência de N. gonorreia e/ou infecção por C. trachomatis) (particularmente TS)",null,null,null,null,null,null,0,0,0]
[null,null,null,"○","Na ausência de testes laboratoriais, gestão sindrómica para casos sintomáticos, em conformidade com as directrizes nacionais de gestão de ITS",null,null,null,null,null,null,0,0,0]
[null,null," Serviços de Saúde Sexual e Reprodutiva ","Todos os TS têm acesso a serviços de saúde reprodutiva e:",null,null,null,null,null,{"$f":"O198","v":"-"},null,null,null,null,{"$f":"IFERROR(ROUND(AVERAGEIF(L199:N202,\"<>0\",L199:N202),0),\"-\")","v":"-"}]
[null,null,null,"○","Incluem o rastreio do cancro ",null,null,null,null,null,null,0,0,0]
[null,null,null,"○","São amplamente distribuídos em quantidade suficiente",null,null,null,null,null,null,0,0,0]
[null,null,null,"○","São facilmente acessíveis em locais hotspot",null,null,null,null,null,null,0,0,0]
[null,null,null,"○","Workshops de demonstração são regularmente realizados em hotspots",null,null,null,null,null,null,0,0,0]
[null,null,"Cuidados pós-violência ","Todos os indivíduos que foram vítimas de violência sexual ou expostos ao HIV têm acesso à Profilaxia Pós-Exposição (no prazo de 72 horas após a exposição) e à ligação para apoio e aconselhamento.\n",null,null,null,null,null,{"$f":"O203","v":"-"},null,null,null,null,{"$f":"IFERROR(ROUND(AVERAGEIF(L204:N207,\"<>0\",L204:N207),0),\"-\")","v":"-"}]
[null,null,null,"○","Estão disponíveis serviços pós-violência, tais como apoio e aconselhamento",null,null,null,null,null,null,0,0,0]
[null,null,null,"○","Estão disponíveis serviços pós-violência, como a Profilaxia Pós-Exposição",null,null,null,null,null,null,0,0,0]
[null,null,null,"○","Testagem de ITS (sífilis, clamídia, gonorreia) é feita rotineiramente em casos de violência sexual",null,null,null,null,null,null,0,0,0]
[null,null,null,"○","Mecanismo de encaminhamento em vigor para serviços abrangentes de VBG, mediante necessidade",null,null,null,null,null,null,0,0,0]
[null,null,"Prevenção, triagem e tratamento da TB","A prevenção, triagem e tratamento da TB está disponível para HSH e:\n",null,null,null,null,null,{"$f":"O208","v":"-"},null,null,null,null,{"$f":"IFERROR(ROUND(AVERAGEIF(L209:N217,\"<>0\",L209:N217),0),\"-\")","v":"-"}]
[null,null,null,"○","Prevenção: Terapia preventiva isoniazida oferecida à seropositivos conjuntamente com a Terapia Anti-Retroviral, controlo de infecção de TB e rastreio de contactos em meios de congregação ",null,null,null,null,null,null,0,0,0]
[null,null,null,"○","Diagnóstico: utiliza Xpert MTB/RIF como primeiros testes de diagnóstico",null,null,null,null,null,null,0,0,0]
[null,null,null,"○","Toda a testagem é voluntária e confidencial ",null,null,null,null,null,null,0,0,0]
[null,null,null,"○","Existem intervenções de apoio à adesão a fim de garantir que o regime de antibióticos seja concluído",null,null,null,null,null,null,0,0,0]
[null,null,null,"○","O tratamento é administrado imediatamente e a fornecimento é ininterrupto",null,null,null,null,null,null,0,0,0]
[null,null,null,"○","O acesso aos serviços é distribuído de forma equitativa entre a comunidade e os HSH",null,null,null,null,null,null,0,0,0]
[null,null,null,"○","Boas ligações a cuidados para casos positivos ",null,null,null,null,null,null,0,0,0]
[null,null,null,"○","Esforços estão a ser envidados no sentido de tratar a Tuberculose latente em HSH",null,null,null,null,null,null,0,0,0]
[null,null,null,"○","O tratamento da TB não está a ser prejudicado pelo consumo de álcool, uso de drogas e distúrbios de saúde mental",null,null,null,null,null,null,0,0,0]
[null,null,"Prevenção, vacinação, triagem e tratamento da hepatite viral","A prevenção, vacinação, triagem e tratamentos da Hepatite Viral B e C estão disponíveis para atender às necessidades específicas de HSH e:\n",null,null,null,null,null,{"$f":"O218","v":"-"},null,null,null,null,{"$f":"IFERROR(ROUND(AVERAGEIF(L219:N223,\"<>0\",L219:N223),0),\"-\")","v":"-"}]
[null,null,null,"○","Toda a testagem é voluntária e confidencial ",null,null,null,null,null,null,0,0,0]
[null,null,null,"○","O tratamento é administrado imediatamente e a fornecimento é ininterrupto ",null,null,null,null,null,null,0,0,0]
[null,null,null,"○","O acesso aos serviços é distribuído de forma equitativa por toda a comunidade e por todos os HSH",null,null,null,null,null,null,0,0,0]
[null,null,null,"○","São realizadas rotineiramente campanhas de vacinação contra hepatite B e C ",null,null,null,null,null,null,0,0,0]
[null,null,null,"○","Regimes de vacinação rápida e padrão para a hepatite B e C estão disponíveis e facilmente acessíveis ",null,null,null,null,null,null,0,0,0]
[null,null,null,"○","Foram afectados recursos para a prevenção, vacinação, triagem e tratamento da hepatite viral"]
[null,null,"Triagem e tratamento para o consumo de drogas e álcool","A triagem e o tratamento para o consumo problemático de álcool e drogas são rotineiramente realizados nas unidades sanitárias, nos hotspots locais e nas clínicas móveis ",null,null,null,null,null,{"$f":"O225","v":"-"},null,null,null,null,{"$f":"IFERROR(ROUND(AVERAGEIF(L226:N229,\"<>0\",L226:N229),0),\"-\")","v":"-"}]
[null,null,null,"○","Os Agentes de Sensibilização de Pares encaminham indivíduos em risco aos serviços da triagem e tratamento ",null,null,null,null,null,null,0,0,0]
[null,null,null,"○","Os indivíduos são encaminhados a conselheiros, organizações e grupos de apoio adequados",null,null,null,null,null,null,0,0,0]
[null,null,null,"○","O tratamento é iniciado imediatamente se o indivíduo assim consentir voluntariamente",null,null,null,null,null,null,0,0,0]
[null,null,null,"○","O encaminhamento a outros serviços (saúde mental, apoio psicossocial) é fornecido atempadamente",null,null,null,null,null,null,0,0,0]
[null,null,"Cuidados de saúde mental","Os cuidados de saúde mental são acessíveis e fornecidos de forma consistente aos membros dos HSH que vivem com o HIV e incluem:",null,null,null,null,null,{"$f":"O230","v":"-"},null,null,null,null,{"$f":"IFERROR(ROUND(AVERAGEIF(L231:N232,\"<>0\",L231:N232),0),\"-\")","v":"-"}]
[null,null,null,"○","Triagem de rotina para distúrbios de saúde mental (em particular a depressão e stress psicossocial) conforme descrito pelo Programa de Acção para reduzir as Lacunas em Saúde Mental (mhGAP)",null,null,null,null,null,null,0,0,0]
[null,null,null,"○","Aconselhamento pós-testagem do HIV após um resultado positivo para avaliar o risco de suicídio, depressão e outros resultados de saúde mental ",null,null,null,null,null,null,0,0,0]
[null,null,"Circuncisão Masculina Médica Voluntária (CMMV)","A Circuncisão Masculina Médica Voluntária está disponível para HSH nos países da África Oriental e Austral que praticam a CMMV (se praticam sexo vaginal):",null,null,null,null,null,{"$f":"O233","v":"-"},null,null,null,null,{"$f":"IFERROR(ROUND(AVERAGEIF(L234:N235,\"<>0\",L234:N235),0),\"-\")","v":"-"}]
[null,null,null,"○","O procedimento é voluntário (o consentimento informado foi adquirido) e confidencial",null,null,null,null,null,null,0,0,0]
[null,null,null,"○","O procedimento é realizado por profissionais de saúde bem formados em ambientes adequadamente equipados",null,null,null,null,null,null,0,0,0]
[null,null,"COVID-19 ","Prestação de serviços diferenciada, centrada nas pessoas, para programas de HSH durante a COVID-19 \n",null,null,null,null,null,{"$f":"O236","v":"-"},null,null,null,null,{"$f":"IFERROR(ROUND(AVERAGEIF(L237:N238,\"<>0\",L237:N238),0),\"-\")","v":"-"}]
[null,null,null,"○","Existem programas que visam incentivar e acompanhar a adesão a vacina da COVID-19 entre HSH",null,null,null,null,null,null,0,0,0]
[null,null,null,"○","Mensagens contínuas e acesso seguro a modelos de prestação de serviços não baseados em unidades sanitárias (por exemplo, baseados na comunidade, baseados em casa, tele-saúde) durante os picos de COVID-19 de modo a evitar interrupções de serviços",null,null,null,null,null,null,0,0,0]
[null,null,"Intervenções Comportamentais"]
[null,null,"Elemento","Critérios",null,"N/D","Ausente","Presente mas não ideal","Presente e funcionando bem","Média por elemento","Comentários (se aplicável) "]
[null,null,"Comunicação para a mudança social e de comportamento (CMSC)","Actividades  de Comunicação para a Mudança Social e de Comportamento estão incluídas no Programa de População-Chave de HSH. Estas são:",null,null,null,null,null,{"$f":"O241","v":"-"},null,null,null,null,{"$f":"IFERROR(ROUND(AVERAGEIF(L242:N246,\"<>0\",L242:N246),0),\"-\")","v":"-"}]
[null,null,null,"○","Bem planeadas e com um orçamento adequado",null,null,null,null,null,null,0,0,0]
[null,null,null,"○","Baseadas em evidências ",null,null,null,null,null,null,0,0,0]
[null,null,null,"○","Os membros de HSH foram envolvidos na concepção e teste das intervenções",null,null,null,null,null,null,0,0,0]
[null,null,null,"○","As organizações e indivíduos que implementam estas intervenções são experientes e treinados em intervenções de Comunicação para a Mudança Social e de Comportamento",null,null,null,null,null,null,0,0,0]
[null,null,null,"○","Intervenções de Comunicação para a Mudança Social e de Comportamento  estão incluídas nos planos e actividades de Monitoria e Avaliação",null,null,null,null,null,null,0,0,0]
[null,null,"Intervenções Estruturais"]
[null,null,"Elemento","Critérios",null,"N/D","Ausente","Presente mas não ideal","Presente e funcionando bem","Média por elemento","Comentários (se aplicável) "]
[null,null,"Prevenção e resposta à violência","Programas de combate à violência contra HSH têm sido implementados de forma consistente e contemplam:",null,null,null,null,null,{"$f":"O249","v":"-"},null,null,null,null,{"$f":"IFERROR(ROUND(AVERAGEIF(L250:N256,\"<>0\",L250:N256),0),\"-\")","v":"-"}]
[null,null,null,"○","Informações sobre segurança",null,null,null,null,null,null,0,0,0]
[null,null,null,"○","Espaços seguros, Centros de Acolhimento (Drop in Centres - DIC)",null,null,null,null,null,null,0,0,0]
[null,null,null,"○","Segurança reforçada no local de trabalho",null,null,null,null,null,null,0,0,0]
[null,null,null,"○","Mecanismos de monitoria e denúncia de violência padronizados, que se estendem além da polícia e podem incluir apoio legal de organizações de HSH",null,null,null,null,null,null,0,0,0]
[null,null,null,"○","Formação abrangente de policiais e assistentes sociais para que sejam sensíveis às necessidades de HSH",null,null,null,null,null,null,0,0,0]
[null,null,null,"○","Planos de resposta à violência desenvolvidos pela Comunidade",null,null,null,null,null,null,0,0,0]
[null,null,null,"○","Ligações estabelecidas ao apoio jurídico",null,null,null,null,null,null,{"$f":"IF(ISBLANK(G256),0,1)","v":0},{"$f":"IF(ISBLANK(H256),0,3)","v":0},{"$f":"IF(ISBLANK(I256),0,5)","v":0}]
[null,null,"Redução do estigma e da discriminação ","Esforços com vista a reduzir o estigma e a discriminação contra o HSH, incluindo: ",null,null,null,null,null,{"$f":"O257","v":"-"},null,null,null,null,{"$f":"IFERROR(ROUND(AVERAGEIF(L258:N264,\"<>0\",L258:N264),0),\"-\")","v":"-"}]
[null,null,null,"○","Promoção de políticas anti-discriminação e de protecção para todos os HSH",null,null,null,null,null,null,0,0,0]
[null,null,null,"○","Programas, dentro e fora do sector de saúde, que instituem políticas e códigos de conduta anti-estigmatização e anti-discriminação",null,null,null,null,null,null,0,0,0]
[null,null,null,"○","A monitoria e a supervisão são realizadas de forma rotineira a fim de garantir a aplicação e manutenção de normas",null,null,null,null,null,null,0,0,0]
[null,null,null,"○","São realizadas campanhas contínuas de redução do estigma",null,null,null,null,null,null,0,0,0]
[null,null,null,"○","Sensibilização, educação e envolvimento contínuos de líderes religiosos e anciãos, agentes da autoridade e Trabalhadores de Saúde ",null,null,null,null,null,null,0,0,0]
[null,null,null,"○","Existem mecanismos eficazes são disponibilizados para permitir a comunicação anónima de incidentes de estigmatização e/ou discriminação no acesso a cuidados de saúde  ",null,null,null,null,null,null,0,0,0]
[null,null,null,"○","São oferecidos apoio e acompanhamento a HSH que denunciam incidentes de estigmatização e/ou discriminação",null,null,null,null,null,null,0,0,0]
[null,null,"Serviços jurídicos relacionados com o HIV ","Existem serviços jurídicos relacionados com o HIV para satisfazer as necessidades das populações de HSH e,  ",null,null,null,null,null,{"$f":"O265","v":"-"},null,null,null,null,{"$f":"IFERROR(ROUND(AVERAGEIF(L266:N268,\"<>0\",L266:N268),0),\"-\")","v":"-"}]
[null,null,null,"○","Existem formas alternativas de resolução de litígios",null,null,null,null,null,null,0,0,0]
[null,null,null,"○","O acesso a informação legal e referências está prontamente disponível",null,null,null,null,null,null,0,0,0]
[null,null,null,"○","O acesso a assessoria e representação jurídicas está prontamente disponível",null,null,null,null,null,null,0,0,0]
[null,null,"Monitoria da aplicação da lei","A implementação de políticas, regulamentos e leis é regularmente monitorizada com vista a avaliar o impacto sobre HSH.",null,null,null,null,null,{"$f":"O269","v":"-"},null,0,0,0,{"$f":"IFERROR(ROUND(AVERAGEIF(L269:N269,\"<>0\",L269:N269),0),\"-\")","v":"-"}]
[null,null,"Literacia legal (\"Conheça os seus direitos\")","É oferecida aos membros dos HSH uma formação detalhada sobre literacia jurídica ",null,null,null,null,null,{"$f":"O270","v":"-"},null,null,null,null,{"$f":"IFERROR(ROUND(AVERAGEIF(L271:N272,\"<>0\",L271:N272),0),\"-\")","v":"-"}]
[null,null,null,"○","Estratégias eficazes para a interacção com a polícia foram delineadas e comunicadas aos HSH",null,null,null,null,null,null,0,0,0]
[null,null,null,"○","Os HSH estão conscientes das suas leis e direitos e são capazes de defender as suas necessidades no contexto do HIV em torno das suas leis e direitos",null,null,null,null,null,null,0,0,0]
[null,null,"Sensibilização dos fazedores de políticas e dos agentes da lei e ordem ","A formação rigorosa de legisladores e agentes da lei e ordem tem lugar regularmente de modo a garantir uma sensibilização adequada destes em relação a todos os HSH e contempla: \n",null,null,null,null,null,{"$f":"O273","v":"-"},null,null,null,null,{"$f":"IFERROR(ROUND(AVERAGEIF(L274:N277,\"<>0\",L274:N277),0),\"-\")","v":"-"}]
[null,null,null,"○","Um programa abrangente de formação de sensibilização que foi adaptado ao contexto do país",null,null,null,null,null,null,0,0,0]
[null,null,null,"○","Facilitadores devidamente formados",null,null,null,null,null,null,0,0,0]
[null,null,null,"○","Participação de HSH",null,null,null,null,null,null,0,0,0]
[null,null,null,"○","Feedback dos participantes",null,null,null,null,null,null,0,0,0]
[null,null,"Formação de profissionais de saúde sobre os direitos humanos e a ética médica relacionada com o HIV ","Um programa abrangente de formação de sensibilização que foi adaptado ao contexto do país",null,null,null,null,null,{"$f":"O278","v":"-"},null,null,null,null,{"$f":"IFERROR(ROUND(AVERAGEIF(L279:N281,\"<>0\",L279:N281),0),\"-\")","v":"-"}]
[null,null,null,"○","Facilitadores devidamente formados",null,null,null,null,null,null,0,0,0]
[null,null,null,"○","Participação de HSH",null,null,null,null,null,null,0,0,0]
[null,null,null,"○","Feedback dos participantes",null,null,null,null,null,null,0,0,0]
[null,null,"Espaços seguros/centros de acolhimento","Espaços seguros/centros de acolhimento foram estabelecidos para a comunidade de HSH:",null,null,null,null,null,{"$f":"O282","v":"-"},null,null,null,null,{"$f":"IFERROR(ROUND(AVERAGEIF(L283:N291,\"<>0\",L283:N291),0),\"-\")","v":"-"}]
[null,null,null,"○","Servem como o principal local de interacção entre a comunidade e o programa",null,null,null,null,null,null,0,0,0]
[null,null,null,"○","Oferecem uma plataforma para mobilização, formação e organização de iniciativas da comunidade",null,null,null,null,null,null,0,0,0]
[null,null,null,"○","Partilham informações sobre eventos, actividades e serviços relevantes para a comunidade",null,null,null,null,null,null,0,0,0]
[null,null,null,"○","Informações, educação e materiais de comunicação fáceis de usar estão acessíveis",null,null,null,null,null,null,0,0,0]
[null,null,null,"○","Prestam serviços e apoio psicossociais ",null,null,null,null,null,null,0,0,0]
[null,null,null,"○","Preservativos e lubrificantes estão disponíveis",null,null,null,null,null,null,0,0,0]
[null,null,null,"○","Utilizados Agentes de Sensibilização de Pares para avaliar seu trabalho e planificar acções de sensibilização",null,null,null,null,null,null,0,0,0]
[null,null,null,"○","Criados em consulta com HSH por forma a determinar a localização, o horário de funcionamento e os serviços fornecidos",null,null,null,null,null,null,0,0,0]
[null,null,null,"○","Disponibilizam ou oferecem ligações a intervenções relevantes não relacionadas com o sector da saúde",null,null,null,null,null,null,0,0,0]
[null,null,"Comités comunitários","Foram formados comitês comunitários de HSH e:",null,null,null,null,null,{"$f":"O292","v":"-"},null,null,null,null,{"$f":"IFERROR(ROUND(AVERAGEIF(L293:N302,\"<>0\",L293:N302),0),\"-\")","v":"-"}]
[null,null,null,"○","Podem ser formado de forma livre e fácil",null,null,null,null,null,null,0,0,0]
[null,null,null,"○","Realizam reuniões regulares (pelo menos mensalmente) e utilizam um relatório de reunião para registar sistematicamente o debate ",null,null,null,null,null,null,0,0,0]
[null,null,null,"○","Avaliam a prestação de serviços, solucionam problemas, acompanham as mudanças, desenvolvem compreensão e responsabilização, bem como resolvem problemas gerais da comunidade",null,null,null,null,null,null,0,0,0]
[null,null,null,"○","Elegem membros da comunidade de HSH anualmente",null,null,null,null,null,null,0,0,0]
[null,null,null,"○","Elegem o defensor da comunidade de HSH para servir de intermediário do programa ",null,null,null,null,null,null,0,0,0]
[null,null,null,"○","Convidam pessoal relevante da organização responsável pela implementação para ser membros do comité ou para participar nas reuniões",null,null,null,null,null,null,0,0,0]
[null,null,null,"○","Dão feedback regular ao programa por forma a moldar a qualidade dos serviços oferecidos",null,null,null,null,null,null,0,0,0]
[null,null,null,"○","Respeitam a confidencialidade ",null,null,null,null,null,null,0,0,0]
[null,null,null,null,"Não permitem que o pessoal da organização responsável pela implementação vote nas reuniões",null,null,null,null,null,null,0,0,0]
[null,null,null,"○","Integram jovens PC e desenvolvem a sua capacidade ",null,null,null,null,null,null,0,0,0]
[null,null,"Monitoria do Programa"]
[null,null,"Elemento","Critérios",null,"N/D","Ausente","Presente mas não ideal","Presente e funcionando bem","Média por elemento","Comentários (se aplicável) "]
[null,null,"Monitoria de rotina","Indicadores do programa de rotina são definidos e comunicados ",null,null,null,null,null,{"$f":"O305","v":"-"},null,null,null,null,{"$f":"IFERROR(ROUND(AVERAGEIF(L306:N312,\"<>0\",L306:N312),0),\"-\")","v":"-"}]
[null,null,null,"○"," Rotineiramente (mensal, trimestral),",null,null,null,null,null,null,0,0,0]
[null,null,null,"○","Completamente (os dados são consistentes e não há informação em falta)",null,null,null,null,null,null,0,0,0]
[null,null,null,"○","A todos os níveis (ou seja, estado/concelho/província)",null,null,null,null,null,null,0,0,0]
[null,null,null,"○"," Por todos os parceiros de implementação",null,null,null,null,null,null,0,0,0]
[null,null,null,"○","Através da plataforma DHIS/EMR",null,null,null,null,null,null,0,0,0]
[null,null,null,"○","O rastreamento individual de dados é feito por parceiros de implementação ",null,null,null,null,null,null,0,0,0]
[null,null,null,"○","Os dados são regularmente analisados por todas as partes interessadas (governo, sociedade civil, comunidade de HSH, parceiros de implementação, doadores) e utilizados para melhorar os programas ",null,null,null,null,null,null,0,0,0]
[null,null,"Monitoria para a responsabilização liderada pela Comunidade","Incorporar a monitoria liderada pela comunidade em plataformas de monitoria nacionais e:",null,null,null,null,null,{"$f":"O313","v":"-"},null,null,null,null,{"$f":"IFERROR(ROUND(AVERAGEIF(L314:N320,\"<>0\",L314:N320),0),\"-\")","v":"-"}]
[null,null,null,"○","A MLC é aceite e integrada  em processos de tomada de decisão e negociações com autoridades locais, financiadores e outros apoiantes externos ",null,null,null,null,null,null,{"$f":"IF(ISBLANK(G314),0,1)","v":0},{"$f":"IF(ISBLANK(H314),0,3)","v":0},{"$f":"IF(ISBLANK(I314),0,5)","v":0}]
[null,null,null,"○","Funciona como um mecanismo comunitário de vigilância e responsabilização",null,null,null,null,null,null,{"$f":"IF(ISBLANK(G315),0,1)","v":0},{"$f":"IF(ISBLANK(H315),0,3)","v":0},{"$f":"IF(ISBLANK(I315),0,5)","v":0}]
[null,null,null,"○","Monitores de pares formados que recolhem e analisam de forma sistemática e regular dados qualitativos e quantitativos sobre a prestação de serviços de HIV",null,null,null,null,null,null,{"$f":"IF(ISBLANK(G316),0,1)","v":0},{"$f":"IF(ISBLANK(H316),0,3)","v":0},{"$f":"IF(ISBLANK(I316),0,5)","v":0}]
[null,null,null,"○","Existem equipas de monitoria liderada pela comunidade para responder aos défices na prestação de serviços de HIV nas comunidades",null,null,null,null,null,null,{"$f":"IF(ISBLANK(G317),0,1)","v":0},{"$f":"IF(ISBLANK(H317),0,3)","v":0},{"$f":"IF(ISBLANK(I317),0,5)","v":0}]
[null,null,null,"○","Existe colaboração entre diferentes redes de pessoas vivendo com HIV (PVHIV) e organizações lideradas pela comunidade das comunidades afectadas",null,null,null,null,null,null,{"$f":"IF(ISBLANK(G318),0,1)","v":0},{"$f":"IF(ISBLANK(H318),0,3)","v":0},{"$f":"IF(ISBLANK(I318),0,5)","v":0}]
[null,null,null,"○","Os agentes de recolha de dados e outros membros da comunidade envolvidos na realização da monitoria liderada pela comunidade são remunerados de acordo com práticas e padrões nacionais",null,null,null,null,null,null,{"$f":"IF(ISBLANK(G319),0,1)","v":0},{"$f":"IF(ISBLANK(H319),0,3)","v":0},{"$f":"IF(ISBLANK(I319),0,5)","v":0}]
[null,null,null,"○","As comunidades de HSH são formadas e apoiadas para avaliar as unidades sanitárias e realizar a audiências públicas a fim de responsabilizar os dirigentes ",null,null,null,null,null,null,0,0,0]
[null,null,"Rastreamento do sistema de encaminhamento","Existem sistemas de rastreamento de encaminhamentos e contemplam:",null,null,null,null,null,{"$f":"O321","v":"-"},null,null,null,null,{"$f":"IFERROR(ROUND(AVERAGEIF(L322:N326,\"<>0\",L322:N326),0),\"-\")","v":"-"}]
[null,null,null,"○","Uma ferramenta de encaminhamento amplamente disponível, incluindo Procedimentos Operacionais Padrão (POP) claros",null,null,null,null,null,null,0,0,0]
[null,null,null,"○","Um directório de encaminhamento nas unidades e nas organizações lideradas por pares ",null,null,null,null,null,null,0,0,0]
[null,null,null,"○","Registo de resultados ",null,null,null,null,null,null,0,0,0]
[null,null,null,"○","Mecanismos de feedback entre pacientes e fornecedores (de encaminhamentos) ",null,null,null,null,null,null,0,0,0]
[null,null,null,"○","Relatórios sobre o encaminhamento (mensalmente) a fim de monitorizar a eficácia do sistema de encaminhamento",null,null,null,null,null,null,0,0,0]
[null,null,"Avaliação de qualidade","Foram definidos sistemas de recolha de dados sobre a qualidade do programa e indicadores conexos e:\n",null,null,null,null,null,{"$f":"O327","v":"-"},null,null,null,null,{"$f":"IFERROR(ROUND(AVERAGEIF(L328:N331,\"<>0\",L328:N331),0),\"-\")","v":"-"}]
[null,null,null,"○","São recolhidos dados precisos",null,null,null,null,null,null,0,0,0]
[null,null,null,"○","Os dados servem de base a acção ",null,null,null,null,null,null,{"$f":"IF(ISBLANK(G329),0,1)","v":0},{"$f":"IF(ISBLANK(H329),0,3)","v":0},{"$f":"IF(ISBLANK(I329),0,5)","v":0}]
[null,null,null,"○","Os mecanismos de feedback permitem aos HSH avaliar os serviços que receberam como mecanismo de monitorização da qualidade do programa",null,null,null,null,null,null,0,0,0]
[null,null,null,"○","Os dados são auditados regularmente ",null,null,null,null,null,null,0,0,0]
[null,null,"Vigilância ","A vigilância permite uma descrição precisa do contexto e resultados/impactos do programa de HSH Vigilância: \n",null,null,null,null,null,{"$f":"O332","v":"-"},null,null,null,null,{"$f":"IFERROR(ROUND(AVERAGEIF(L333:N336,\"<>0\",L333:N336),0),\"-\")","v":"-"}]
[null,null,null,"○","Os resultados de estudos são utilizados para subsidiar a tomada de decisões e a correcção do percurso ",null,null,null,null,null,null,0,0,0]
[null,null,null,"○","Envolve a análise e interpretação de dados em intervalos regulares ",null,null,null,null,null,null,0,0,0]
[null,null,null,"○","Envolve a divulgação regular de informações para atender às necessidades locais, provinciais e nacionais ",null,null,null,null,null,null,0,0,0]
[null,null,null,"○","Inclui inquéritos biológicos e comportamentais, inquéritos sentinela e outros estudos de investigação que examinem indicadores para HSH ",null,null,null,null,null,null,0,0,0]
[null,null,"Dados para tomada de decisão","O Programa Nacional, a Unidade de Monitoria e Avaliação do Ministério da Saúde, ou órgão de coordenação similar supervisiona/coordena a monitoria, pesquisa e recolha de dados de vigilância e:",null,null,null,null,null,{"$f":"O337","v":"-"},null,null,null,null,{"$f":"IFERROR(ROUND(AVERAGEIF(L338:N345,\"<>0\",L338:N345),0),\"-\")","v":"-"}]
[null,null,null,"○","Partilha dados com o Grupo de Trabalho Técnico de HSH",null,null,null,null,null,null,0,0,0]
[null,null,null,"○","O Grupo de Trabalho Técnico de HSH analisa os dados do programa existentes trimestralmente e identifica áreas para correcção do percurso",null,null,null,null,null,null,0,0,0]
[null,null,null,"○","O Grupo de Trabalho Técnico de HSH ajuda na elaboração de estratégias para suprir as lacunas ",null,null,null,null,null,null,0,0,0]
[null,null,null,"○","São recolhidos dados de boa qualidade (válidos, fiáveis, consistentes, precisos, atempados, relevantes) e a maioria das necessidades de informação são atendidas e, caso não sejam atendidas, as lacunas são compreendidas ",null,null,null,null,null,null,0,0,0]
[null,null,null,"○","Os dados são utilizados de forma consistente e adequada para fundamentar as decisões ",null,null,null,null,null,null,0,0,0]
[null,null,null,"○","Os dados foram desduplicados em todos os parceiros de implementação e os duplicações são mínimas, se existirem",null,null,null,null,null,null,0,0,0]
[null,null,null,"○","Os dados são agregados centralmente, mas podem ser desagregados por localidade, sexo e idade",null,null,null,null,null,null,0,0,0]
[null,null,null,"○","O programa fornece dados ao Grupo de Trabalho Técnico para análise",null,null,null,null,null,null,0,0,0]
[null,null,"Utilização do Código de Identificação Único para a monitoria do programa","Um sistema utilizado para monitorizar o programa está plenamente funcional e é adequado para acompanhar o desempenho do programa",null,null,null,null,null,{"$f":"O346","v":"-"},null,null,null,null,{"$f":"IFERROR(ROUND(AVERAGEIF(L347:N350,\"<>0\",L347:N350),0),\"-\")","v":"-"}]
[null,null,null,"○","Vários Códigos de Identificação Únicos podem ser utilizados num determinado país, mas estão harmonizados",null,null,null,null,null,null,0,0,0]
[null,null,null,"○","O programa nacional utiliza dados agregados do Código de Identificação Único",null,null,null,null,null,null,0,0,0]
[null,null,null,"○","O Código de Identificação Único é capaz de distinguir o contacto/alcance, com vista a desduplicação ",null,null,null,null,null,null,0,0,0]
[null,null,null,"○","O Código de Identificação Único é baseado na electrónica",null,null,null,null,null,null,0,0,0]
[null,null,"Monitoria orçamental","A monitoria do desempenho financeiro e não financeiro do programa de Raparigas Adolescentes e Mulheres Jovens é integrada e são gerados relatórios regulares: ",null,null,null,null,null,{"$f":"O351","v":"-"},null,null,null,null,{"$f":"IFERROR(ROUND(AVERAGEIF(L352:N354,\"<>0\",L352:N354),0),\"-\")","v":"-"}]
[null,null,null,"○","Os dados sobre as despesas relativas às intervenções relacionadas com HSH são facilmente acessíveis  ",null,null,null,null,null,null,0,0,0]
[null,null,null,"○","Existem mecanismos de responsabilização para as sub-despesas. ",null,null,null,null,null,null,0,0,0]
[null,null,null,"○","Os dados financeiros e não financeiros são utilizados para aferir a relação qualidade/preço.",null,null,null,null,null,null,0,0,0]
[null,null,"Resultados do Programa"]
[null,null,"Resultados e indicadores"]
[null,null,"Elemento","Critérios",null,"N/D","Não monitorizado ","Meta não atingida ou não está no rumo certo ","Meta atingida ou está no rumo certo ","Média por elemento","Comentários (se aplicável) "]
[null,null,"Estimativas da dimensão populacional de HSH disponíveis",null,null,null,null,null,null,{"$f":"O358","v":"-"},null,0,0,0,{"$f":"IFERROR(ROUND(AVERAGEIF(L358:N358,\"<>0\",L358:N358),0),\"-\")","v":"-"}]
[null,null,"A estratégia de prevenção inclui elementos centrais do pacote de prevenção dos HSH",null,null,null,null,null,null,{"$f":"O359","v":"-"},null,0,0,0,{"$f":"IFERROR(ROUND(AVERAGEIF(L359:N359,\"<>0\",L359:N359),0),\"-\")","v":"-"}]
[null,null,"HSH vivendo com o HIV conhecem o seu estado de seropositividade (meta 90%)",null,null,null,null,null,null,"-",null,0,0,0,"-"]
[null,null,"HSH vivendo com HIV em terapia anti-retroviral (meta 90%)",null,null,null,null,null,null,"-",null,0,0,0,"-"]
[null,null,"HSH que receberam pelo menos 2 intervenções de prevenção do HIV nos últimos 3 meses",null,null,null,null,null,null,"-",null,0,0,0,"-"]
[null,null,"HSH vivendo com HIV que suprimiram cargas virais (meta 90%)",null,null,null,null,null,null,"-",null,0,0,0,"-"]
[null,null," % de HSH que evitaram cuidados de saúde devido ao estigma e discriminação",null,null,null,null,null,null,"-",null,0,0,0,"-"]
[null,null,"Criminalização de actos sexuais entre pessoas do mesmo sexo",null,null,null,null,null,null,"-",null,0,0,0,"-"]
[null,null,"Uso de preservativo no último sexo anal entre HSH (meta 80%)",null,null,null,null,null,null,"-",null,0,0,0,"-"]
[null,null,null,null,null,null,null,null,null,null,null,null,{"$f":"COUNTIF(O6:O366,\"-\")","v":67}]
[null,null,null,null,null,null,null,null,null,null,null,null,{"$f":"COUNTIF(O6:O366,\">0\")","v":0}]
[null,null,null,null,null,null,null,null,null,null,null,"Preenchimento de folha",{"$f":"M368/(M367+M368)","v":0},{"$f":"1-M369","v":1}]

{"sheet":"Pessoas transgénero","index":6,"n_rows":371,"n_cols":16,"rows_kept":371,"cut":false,"hidden":false,"merged":[[358,2,358,4],[359,2,359,4],[363,2,363,4],[366,2,366,4],[364,2,364,4],[367,2,367,4],[361,2,361,4],[360,2,360,4],[357,2,357,4],[362,2,362,4],[365,2,365,4],[352,10,354,10],[356,3,356,4],[348,2,351,2],[348,3,348,4],[348,9,351,9],[310,3,310,4],[310,9,317,9],[334,2,342,2],[334,3,334,4],[334,9,342,9],[343,2,347,2],[343,3,343,4],[343,9,347,9],[310,2,317,2],[324,9,328,9],[329,2,333,2],[329,3,329,4],[329,9,333,9],[318,2,323,2],[318,3,318,4],[318,9,323,9],[324,2,328,2],[289,9,299,9],[301,3,301,4],[302,2,309,2],[302,3,302,4],[302,9,309,9],[324,3,324,4],[289,2,299,2],[289,3,289,4],[271,2,278,2],[271,3,271,4],[271,9,278,9],[279,2,288,2],[279,3,279,4],[279,9,288,9],[262,9,266,9],[267,2,270,2],[267,3,267,4],[267,9,270,9],[262,2,266,2],[262,3,262,4],[254,2,257,2],[254,3,254,4],[254,9,257,9],[258,3,258,4],[259,2,261,2],[259,3,259,4],[259,9,261,9],[238,9,245,9],[246,2,253,2],[246,3,246,4],[246,9,253,9],[225,3,225,4],[229,3,229,4],[230,2,235,2],[230,3,230,4],[230,9,235,9],[237,3,237,4],[238,2,245,2],[238,3,238,4],[209,9,215,9],[222,2,224,2],[222,3,222,4],[222,9,224,9],[225,9,227,9],[216,2,221,2],[216,3,216,5],[225,2,227,2],[216,9,221,9],[209,2,215,2],[209,3,209,4],[193,9,198,9],[199,2,208,2],[199,3,199,4],[199,9,208,9],[183,2,188,2],[183,3,183,4],[183,9,188,9],[189,2,192,2],[189,3,189,4],[189,9,192,9],[193,2,198,2],[193,3,193,4],[168,9,171,9],[172,2,182,2],[172,3,172,4],[172,9,182,9],[153,2,158,2],[153,3,153,4],[153,9,158,9],[159,2,165,2],[159,3,159,4],[159,9,165,9],[167,3,167,4],[168,2,171,2],[168,3,168,4],[138,3,138,4],[138,9,142,9],[144,3,144,4],[145,2,152,2],[145,3,145,4],[145,9,152,9],[122,2,128,2],[122,3,122,4],[122,9,128,9],[129,2,137,2],[129,3,129,4],[129,9,137,9],[138,2,142,2],[106,3,106,4],[107,2,111,2],[107,3,107,4],[107,9,111,9],[112,2,121,2],[112,3,112,4],[112,9,121,9],[92,2,95,2],[92,3,92,4],[92,9,95,9],[96,2,104,2],[96,3,96,4],[96,9,104,9],[76,3,76,4],[77,2,84,2],[77,3,77,4],[77,9,84,9],[85,2,91,2],[85,3,85,4],[85,9,91,9],[68,2,69,2],[68,9,69,9],[68,4,69,4],[68,3,69,3],[68,5,69,5],[68,6,69,6],[68,7,69,7],[68,8,69,8],[70,2,73,2],[70,9,73,9],[62,2,65,2],[62,3,62,4],[62,9,65,9],[53,2,57,2],[53,3,53,4],[53,9,57,9],[59,3,59,4],[60,2,61,2],[60,3,60,4],[60,9,61,9],[42,2,46,2],[42,3,42,4],[42,9,46,9],[48,3,48,4],[49,2,52,2],[49,3,49,4],[49,9,52,9],[22,9,27,9],[28,2,34,2],[28,3,28,4],[28,9,34,9],[35,2,41,2],[35,3,35,4],[35,9,41,9],[4,3,4,4],[5,2,15,2],[5,3,5,4],[5,9,15,9],[16,2,21,2],[16,3,16,4],[1,2,1,9],[16,9,21,9],[22,2,27,2],[22,3,22,4],[66,10,67,10],[68,10,69,10],[66,9,67,9],[66,2,67,2],[66,8,67,8],[66,7,67,7],[66,6,67,6],[66,5,67,5],[66,4,67,4],[66,3,67,3]]}
[]
[null,null,"Gestão de Programas"]
[]
[null,null,"Liderança e Coordenação"]
[null,null,"Elemento","Critérios",null,"N/D","Ausente","Presente mas não ideal","Presente e funcionando bem","Média por elemento","Comentários (se aplicável)","Absent","Present","Optimal","Average","Sustainability Single Figure"]
[null,null,"Estratégia nacional das populações-chave","Existe inclusão de pessoas Transgénero na Estratégia Nacional das Populações-chave e na estratégia nacional global de prevenção do HIV:",null,null,null,null,null,{"$f":"O6","v":"-"},null,null,null,null,{"$f":"IFERROR(ROUND(AVERAGEIF(L7:N16,\"<>0\",L7:N16),0),\"-\")","v":"-"}]
[null,null,null,"○","Pessoas transgénero foram envolvidos na elaboração do plano estratégico ",null,null,null,null,null,null,{"$f":"IF(ISBLANK(G7),0,1)","v":0},{"$f":"IF(ISBLANK(H7),0,3)","v":0},{"$f":"IF(ISBLANK(I7),0,5)","v":0}]
[null,null,null,"○","Os objectivos e metas foram claramente definidos para o programa de pessoas transgénero ",null,null,null,null,null,null,{"$f":"IF(ISBLANK(G8),0,1)","v":0},0,0]
[null,null,null,"○","A comunidade transgénero foi claramente definida de acordo com as directrizes da Organização Mundial de Saúde (OMS)",null,null,null,null,null,null,0,0,0]
[null,null,null,"○","O plano reconhece vulnerabilidades específicas de pessoas transgénero devido ao sexo e à idade",null,null,null,null,null,null,0,0,0]
[null,null,null,"○","Foi atriculado um modelo lógico ou teoria da mudança claros  ",null,null,null,null,null,null,0,0,0]
[null,null,null,"○","O plano inclui um pacote abrangente de intervenções e actividades baseadas em evidências, alinhadas com as Ferramentas de Implementação de pessoas transgénero, incluindo intervenções não relacionadas com o sector da saúde (por exemplo, empoderamento da comunidade, combate à violência, redução do estigma, entre outras) e adaptadas para responder a vulnerabilidades específicas.",null,null,null,null,null,null,0,0,0]
[null,null,null,"○","Foi definida uma expansão clara com responsabilidades atribuídas ",null,null,null,null,null,null,0,0,0]
[null,null,null,"○","Existem vigor planos de financiamento ",null,null,null,null,null,null,0,0,0]
[null,null,null,"○","Foi definido um quadro de monitoria e avaliação com indicadores e metas nucleares",null,null,null,null,null,null,0,0,0]
[null,null,null,"○","O mecanismo de implementação está claramente definido",null,null,null,null,null,null,0,0,0]
[null,null,"Responsabilização","O departamento/ministério principal responsável pelo sucesso do programa de pessoas transgénero, com uma forte liderança/autoridade, foi identificado:",null,null,null,null,null,{"$f":"O17","v":"-"},null,null,null,null,{"$f":"IFERROR(ROUND(AVERAGEIF(L18:N22,\"<>0\",L18:N22),0),\"-\")","v":"-"}]
[null,null,null,"○","Todos os projectos no país apresentam relatórios regulares sobre indicadores-chave para o governo a nível sub-nacional e nacional, com indicadores comuns",null,null,null,null,null,null,0,0,0]
[null,null,null,"○","Nestes relatórios, os dados são tornados anónimos e protegidos por forma a proteger as pessoas transgénero  ",null,null,null,null,null,null,0,0,0]
[null,null,null,"○","São efectuadas avaliações programáticas regulares com recurso a dados programáticos",null,null,null,null,null,null,0,0,0]
[null,null,null,"○","O Ministério responsável pelo programa participa nas reuniões de coordenação relevantes.",null,null,null,null,null,null,0,0,0]
[null,null,null,"○","O Grupo de Trabalho Técnico de População-Chave (GTT) com representação de pessoas transgénero, está envolvido na garantia da responsabilização ",null,null,null,null,null,null,0,0,0]
[null,null,"Grupo de trabalho técnico para pessoas transgénero ","Foi criado um GTT (os países podem ter GTTs para as Populações-Chave em que estão incluídas pessoas Transgénero) a nível nacional e sub-nacional e:",null,null,null,null,null,{"$f":"O23","v":"-"},null,null,null,null,{"$f":"IFERROR(ROUND(AVERAGEIF(L24:N28,\"<>0\",L24:N28),0),\"-\")","v":"-"}]
[null,null,null,"○","Eles se reúnem regularmente ",null,null,null,null,null,null,0,0,0]
[null,null,null,"○","O GTT está completo e integra Organizações da Sociedade Civil, parceiros de implementação, membros da comunidade transgénero",null,null,null,null,null,null,0,0,0]
[null,null,null,"○","Dispõem de mecanismos de comunicação para assegurar a coordenação",null,null,null,null,null,null,0,0,0]
[null,null,null,"○","Eles têm Termos de Referência ou um âmbito definidos ",null,null,null,null,null,null,0,0,0]
[null,null,null,"○","Os membros da comunidade transgénero estão incluídos",null,null,null,null,null,null,0,0,0]
[null,null,"Coordenação das Partes Interessadas","Existem mecanismos para assegurar que a coordenação seja alcançada em todos os níveis e que a mesma seja bem sucedida e consistente com: ",null,null,null,null,null,{"$f":"O29","v":"-"},null,null,null,null,{"$f":"IFERROR(ROUND(AVERAGEIF(L30:N35,\"<>0\",L30:N35),0),\"-\")","v":"-"}]
[null,null,null,"○","Parceiros de financiamento (a nível nacional)",null,null,null,null,null,null,{"$f":"IF(ISBLANK(G30),0,1)","v":0},{"$f":"IF(ISBLANK(H30),0,3)","v":0},{"$f":"IF(ISBLANK(I30),0,5)","v":0}]
[null,null,null,"○","Programas locais com iniciativas nacionais mais amplas ",null,null,null,null,null,null,0,0,0]
[null,null,null,"○","Pessoas transgénero",null,null,null,null,null,null,0,0,0]
[null,null,null,"○","Parceiros de implementação ",null,null,null,null,null,null,0,0,0]
[null,null,null,"○","Ministérios da Saúde/Departamentos de Saúde do Governo (a nível nacional e sub-nacional)",null,null,null,null,null,null,0,0,0]
[null,null,null,"○","Foi conseguida uma coordenação multi-sectorial com outros ministérios/departamentos (por exemplo, finanças e lei e ordem)",null,null,null,null,null,null,0,0,0]
[null,null,"Plano de Capacitação e Assistência Técnica","Existe um Plano de Assistência Técnica e: ",null,null,null,null,null,{"$f":"O36","v":"-"},null,null,null,null,{"$f":"IFERROR(ROUND(AVERAGEIF(L37:N42,\"<>0\",L37:N42),0),\"-\")","v":"-"}]
[null,null,null,"○","Foi desenvolvido com base em alguma avaliação ",null,null,null,null,null,null,{"$f":"IF(ISBLANK(G37),0,1)","v":0},{"$f":"IF(ISBLANK(H37),0,3)","v":0},{"$f":"IF(ISBLANK(I37),0,5)","v":0},null,{"$f":"IF(MAX(L37:N37)=0,\"\",MAX(L37:N37))","v":""}]
[null,null,null,"○","Utiliza peritos técnicos nacionais e internacionais, incluindo o desenvolvimento de capacidades entre pares e assistência técnica",null,null,null,null,null,null,0,0,0,null,""]
[null,null,null,"○","Priorizou os componentes programáticas e questões de política ",null,null,null,null,null,null,0,0,0,null,""]
[null,null,null,"○","Facilita o estabelecimento e o fortalecimento de redes de implementadores ",null,null,null,null,null,null,0,0,0,null,""]
[null,null,null,"○","Identifica lacunas e formula pedidos consolidados de assistência quando falta experiência no país ",null,null,null,null,null,null,0,0,0,null,""]
[null,null,null,"○","Facilita o desenvolvimento de capacidade da comunidade transgénero para que esta se possa apropriar dos programas de TS ",null,null,null,null,null,null,0,0,0,null,""]
[null,null,"Plano Sustentável e Roteiro de Transição","Existe um plano de sustentabilidade e roteiro de transição completos, que delineiam a transição intervenções apoiadas por doadores para intervenções apoiadas internamente, sendo estes fundamentados por:  considera todos os recursos, incluindo: ",null,null,null,null,null,{"$f":"O43","v":"-"},null,null,null,null,{"$f":"IFERROR(ROUND(AVERAGEIF(L44:N47,\"<>0\",L44:N47),0),\"-\")","v":"-"},""]
[null,null,null,"○","Um exercício de cálculo dos custos unitários da População-chave",null,null,null,null,null,null,{"$f":"IF(ISBLANK(G44),0,1)","v":0},{"$f":"IF(ISBLANK(H44),0,3)","v":0},{"$f":"IF(ISBLANK(I44),0,5)","v":0},null,""]
[null,null,null,"○","Uma análise do panorama de financiamento da população-chave",null,null,null,null,null,null,0,0,0,null,""]
[null,null,null,"○","Planificação para a integração de serviços da PC em cuidados de saúde primários"]
[null,null,null,"○","Considera os recursos financeiros, humanos e infra-estruturas necessários",null,null,null,null,null,null,0,0,0,null,""]
[null,null,"Leis, Políticas e Regulamentos"]
[null,null,"Elemento","Critérios",null,"N/D","Ausente","Presente mas não ideal","Presente e funcionando bem","Média por elemento","Comentários (se aplicável)"]
[null,null,"Leis e Políticas ","Existem políticas que promovem activamente o bom funcionamento do programa: ",null,null,null,null,null,{"$f":"O50","v":"-"},null,null,null,null,{"$f":"IFERROR(ROUND(AVERAGEIF(L51:N53,\"<>0\",L51:N53),0),\"-\")","v":"-"}]
[null,null,null,"○","Existem políticas que promovem activamente o acesso de pessoas transgénero a serviços, inclusivamente para adolescentes ",null,null,null,null,null,null,{"$f":"IF(ISBLANK(G51),0,1)","v":0},{"$f":"IF(ISBLANK(H51),0,3)","v":0},{"$f":"IF(ISBLANK(I51),0,5)","v":0}]
[null,null,null,"○","Existem políticas que apoiam as pessoas transgénero a acederem aos serviços apesar das leis que criminalizam o consumo de drogas, o trabalho sexual e a actividade sexual com pessoas do mesmo sexo",null,null,null,null,null,null,0,0,0]
[null,null,null,"○","Existem políticas que visam reduzir o estigma, a discriminação e a violência contra pessoas transgénero ",null,null,null,null,null,null,0,0,0]
[null,null,"Directrizes","As seguintes directrizes existem e explicam de forma clara as etapas para uma implementação bem-sucedida do programa:",null,null,null,null,null,{"$f":"O54","v":"-"},null,null,null,null,{"$f":"IFERROR(ROUND(AVERAGEIF(L55:N58,\"<>0\",L55:N58),0),\"-\")","v":"-"}]
[null,null,null,"○","Existem directrizes nacionais para cada uma das intervenções e serviços comportamentais, biomédicos e estruturais, estando estas alinhadas com a orientação global",null,null,null,null,null,null,0,0,0]
[null,null,null,"○","Foram elaboradas directrizes em colaboração com pessoas transgénero",null,null,null,null,null,null,0,0,0]
[null,null,null,"○","As directrizes nacionais para os serviços de testagem do HIV, Infeções de Transmissão Sexual, Profilaxia Pré-Exposição e Preservativos têm em conta as necessidades e prioridades de pessoas transgénero",null,null,null,null,null,null,0,0,0]
[null,null,null,"○","Medidas de prevenção e controlo de infeções por COVID-19 são incorporadas em todas as estratégias, planos e directrizes de prevenção do HIV/ Transgénero",null,null,null,null,null,null,0,0,0]
[null,null,"Financiamento"]
[null,null,"Elemento","Critérios",null,"N/D","Ausente","Presente mas não ideal","Presente e funcionando bem","Média por elemento","Comentários (se aplicável)"]
[null,null,"Custos ","Orçamento nacional em vigor:",null,null,null,null,null,{"$f":"O61","v":"-"},null,null,null,null,{"$f":"IFERROR(ROUND(AVERAGEIF(L62:N62,\"<>0\",L62:N62),0),\"-\")","v":"-"}]
[null,null,null,"○","Foi realizado um exercício de orçamentação e o programa nacional está a par do custo médio para chegar a pessoas transgénero com um pacote padrão de serviços de acordo com as directrizes ",null,null,null,null,null,null,{"$f":"IF(ISBLANK(G62),0,1)","v":0},{"$f":"IF(ISBLANK(H62),0,3)","v":0},{"$f":"IF(ISBLANK(I62),0,5)","v":0}]
[null,null,"Planificação orçamental","Existe um processo bem gerido de planificação orçamental para o programa de prevenção do HIV que considera as pessoas transgénero",null,null,null,null,null,{"$f":"O63","v":"-"},null,null,null,null,{"$f":"IFERROR(ROUND(AVERAGEIF(L64:N66,\"<>0\",L64:N66),0),\"-\")","v":"-"}]
[null,null,null,"○","Está em curso uma avaliação dos recursos disponíveis a fim de tentar identificar lacunas e afectar um orçamento ao programa",null,null,null,null,null,null,0,0,{"$f":"IF(ISBLANK(I64),0,5)","v":0}]
[null,null,null,"○","Foi desenvolvida uma estratégia para colmatar lacunas de financiamento",null,null,null,null,null,null,0,0,{"$f":"IF(ISBLANK(I65),0,5)","v":0}]
[null,null,null,"○","Os orçamentos estão associados às necessidades de recursos dos planos operacionais para as unidades nacionais e sub-nacionais",null,null,null,null,null,null,0,0,{"$f":"IF(ISBLANK(I66),0,5)","v":0}]
[null,null,"Mobilização de Recursos e Financiamento","○","Existe financiamento suficiente para fazer face às necessidades holísticas de programação",null,null,null,null,{"$f":"O67","v":"-"},null,null,null,null,{"$f":"IFERROR(ROUND(AVERAGEIF(L68:N68,\"<>0\",L68:N68),0),\"-\")","v":"-"},{"$f":"IF(MAX(L67:N67)=0,\"\",MAX(L67:N67))","v":""}]
[null,null,null,null,null,null,null,null,null,null,null,{"$f":"IF(ISBLANK(G67),0,1)","v":0},{"$f":"IF(ISBLANK(H67),0,3)","v":0},{"$f":"IF(ISBLANK(I67),0,5)","v":0},null,""]
[null,null,"Recursos internos ","○","Mais de 50% dos recursos que apoiam o programa, quer humanos quer financeiros, são internos",null,null,null,null,{"$f":"O69","v":"-"},null,null,null,null,{"$f":"IFERROR(ROUND(AVERAGEIF(L70:N70,\"<>0\",L70:N70),0),\"-\")","v":"-"},{"$f":"IF(MAX(L69:N69)=0,\"\",MAX(L69:N69))","v":""}]
[null,null,null,null,null,null,null,null,null,null,null,{"$f":"IF(ISBLANK(G69),0,1)","v":0},{"$f":"IF(ISBLANK(H69),0,3)","v":0},{"$f":"IF(ISBLANK(I69),0,5)","v":0},null,""]
[null,null,"Contratação social","○","Foram desenvolvidos mecanismos de contratação social, estando estes a ser implementados",null,null,null,null,{"$f":"O71","v":"-"},null,{"$f":"IF(ISBLANK(G71),0,1)","v":0},{"$f":"IF(ISBLANK(H71),0,3)","v":0},{"$f":"IF(ISBLANK(I71),0,5)","v":0},{"$f":"IFERROR(ROUND(AVERAGEIF(L71:N74,\"<>0\",L71:N74),0),\"-\")","v":"-"}]
[null,null,null,"○","A informação é amplamente divulgada com vista a permitir que Parceiros locais de Implementação e organizações dirigidas por pessoas transgénero tenham acesso a financiamento",null,null,null,null,null,null,{"$f":"IF(ISBLANK(G72),0,1)","v":0},{"$f":"IF(ISBLANK(H72),0,3)","v":0},{"$f":"IF(ISBLANK(I72),0,5)","v":0}]
[null,null,null,"○","Existe um mecanismo que permite o financiamento a organizações lideradas pela comunidade",null,null,null,null,null,null,{"$f":"IF(ISBLANK(G73),0,1)","v":0},0,0]
[null,null,null,"○","Os fundos são reservados a organizações lideradas pela comunidade ",null,null,null,null,null,null,0,0,0,null,""]
[null,null,"Implementação do Programa"]
[null,null,"Segmentação e Planificação"]
[null,null,"Elemento","Critérios",null,"N/D","Ausente","Presente mas não ideal","Presente e funcionando bem","Média por elemento","Comentários (se aplicável)"]
[null,null,"Avaliação demográfica (estimativa da dimensão da população e micro-planificação)","Estimativa da Dimensão da População e micro-planificação concluídos e:",null,null,null,null,null,{"$f":"O78","v":"-"},null,null,null,null,{"$f":"IFERROR(ROUND(AVERAGEIF(L79:N85,\"<>0\",L79:N85),0),\"-\")","v":"-"}]
[null,null,null,"○","É baseada no local (nível local em vez do país ou região)",null,null,null,null,null,null,{"$f":"IF(ISBLANK(G79),0,1)","v":0},{"$f":"IF(ISBLANK(H79),0,3)","v":0},{"$f":"IF(ISBLANK(I79),0,5)","v":0}]
[null,null,null,"○","A confidencialidade dos hotspots e o anonimato dos inquiridos estão garantidos e a informação não é partilhada com agentes da lei e ordem",null,null,null,null,null,null,0,0,0]
[null,null,null,"○","É actualizada anualmente ou no final de um inquérito bio-comportamental",null,null,null,null,null,null,0,0,0]
[null,null,null,"○","Foram contratados e recrutados membros formados da comunidade transgénero ou de redes Transgénero para realizar os exercícios de Estimativa da Dimensão da População e de micro-planificação",null,null,null,null,null,null,0,0,0]
[null,null,null,"○","As Estimativas da Dimensão da População são precisas e actualizadas ",null,null,null,null,null,null,0,0,0]
[null,null,null,"○","A informação é utilizada para fundamentar a necessidade de intervenções comportamentais, biomédicas e estruturais  ",null,null,null,null,null,null,0,0,0]
[null,null,null,"○","Esta informação também é utilizada para fazer uma estimativa dos requisitos em matéria de fundos e para a definição de metas",null,null,null,null,null,null,0,0,0]
[null,null,"Avaliação epidemiológica (inquérito de sero-prevalência e determinantes de risco)","As estimativas de sero-prevalência estão disponíveis e:",null,null,null,null,null,{"$f":"O86","v":"-"},null,null,null,null,{"$f":"IFERROR(ROUND(AVERAGEIF(L87:N92,\"<>0\",L87:N92),0),\"-\")","v":"-"}]
[null,null,null,"○","Com base numa vigilância recente e/ou contínua (estimativas modeladas actualizadas anualmente ou dados do inquérito actualizados a cada 3-5 anos)",null,null,null,null,null,null,{"$f":"IF(ISBLANK(G87),0,1)","v":0},{"$f":"IF(ISBLANK(H87),0,3)","v":0},{"$f":"IF(ISBLANK(I87),0,5)","v":0}]
[null,null,null,"○","Específicas para cada pessoa transgénero",null,null,null,null,null,null,0,0,0]
[null,null,null,"○","Os resultados são precisos; tamanho da amostra estatisticamente representativo (com alimentação adequada) e método de amostragem adequado para pessoas transgénero: amostragem de localização temporal e amostragem de conveniência.",null,null,null,null,null,null,0,0,0]
[null,null,null,"‎○","Foram regularmente realizadas avaliações dos determinantes de risco para pessoas transgénero com vista a fundamentar o programa:",null,null,null,null,null,null,0,0,0]
[null,null,null,null,"> São específicas a pessoas transgénero e têm em conta comportamentos específicos a idade e género  ",null,null,null,null,null,null,0,0,0]
[null,null,null,null,"> Os estudos são de boa qualidade e fornecem informação exaustiva  ",null,null,null,null,null,null,0,0,0]
[null,null,"Avaliação de necessidades","Foi concluída uma avaliação de necessidades para pessoas transgénero a nível da implementação e/ou local:",null,null,null,null,null,{"$f":"O93","v":"-"},null,null,null,null,{"$f":"IFERROR(ROUND(AVERAGEIF(L94:N96,\"<>0\",L94:N96),0),\"-\")","v":"-"}]
[null,null,null,"○","Contactos adequados com pessoas transgénero e organizações ou redes lideradas por pessoas transgénero a fim de aferir as necessidades",null,null,null,null,null,null,{"$f":"IF(ISBLANK(G94),0,1)","v":0},{"$f":"IF(ISBLANK(H94),0,3)","v":0},{"$f":"IF(ISBLANK(I94),0,5)","v":0}]
[null,null,null,"○","Informações suficientes sobre que serviços as pessoas transgénero precisam, como prefeririam aceder aos serviços e quem deveria prestar os mesmos. ",null,null,null,null,null,null,{"$f":"IF(ISBLANK(G95),0,1)","v":0},{"$f":"IF(ISBLANK(H95),0,3)","v":0},{"$f":"IF(ISBLANK(I95),0,5)","v":0}]
[null,null,null,"○","Informações completas sobre onde residem as lacunas em termos de prestação de serviços e barreiras ao acesso",null,null,null,null,null,null,{"$f":"IF(ISBLANK(G96),0,1)","v":0},{"$f":"IF(ISBLANK(H96),0,3)","v":0},{"$f":"IF(ISBLANK(I96),0,5)","v":0}]
[null,null,"Definição de metas","As metas para as pessoas transgénero foram claramente definidas e:",null,null,null,null,null,{"$f":"O97","v":"-"},null,null,null,null,{"$f":"IFERROR(ROUND(AVERAGEIF(L98:N105,\"<>0\",L98:N105),0),\"-\")","v":"-"}]
[null,null,null,"○","Baseiam-se nos dados da estimativa da dimensão e de avaliação de risco",null,null,null,null,null,null,{"$f":"IF(ISBLANK(G98),0,1)","v":0},{"$f":"IF(ISBLANK(H98),0,3)","v":0},{"$f":"IF(ISBLANK(I98),0,5)","v":0}]
[null,null,null,"○","Traçadas para pessoas transgénero  ",null,null,null,null,null,null,0,0,0]
[null,null,null,"○","Especificada a nível nacional e sub-nacional ",null,null,null,null,null,null,0,0,0]
[null,null,null,"○","Incluem realizações já alcançadas e realizações previstas no final ",null,null,null,null,null,null,0,0,0]
[null,null,null,"○","Desenvolvidas em consulta com implementadores e redes de transgénero para garantir que sejam realistas",null,null,null,null,null,null,0,0,0]
[null,null,null,"○","Combinam orçamentos e acordos formais com implementadores locais",null,null,null,null,null,null,0,0,0]
[null,null,null,"○","Estão desagregadas por idade e sexo",null,null,null,null,null,null,0,0,0]
[null,null,null,"○","As metas do Fundo Global e do Plano de Emergência do Presidente dos EUA para o Alívio da SIDA (PEPFAR) referem-se às estimativas de dimensão nacional e a metas nacionais  ",null,null,null,null,null,null,0,0,0]
[null,null,"Mecanismo de Implementação "]
[null,null,"Elemento","Critérios",null,"N/D","Ausente","Presente mas não ideal","Presente e funcionando bem","Média por elemento","Comentários (se aplicável)"]
[null,null,"Manter uma plataforma de acesso","Uma plataforma de acesso promove esforços coordenados baseados na comunidade e clínica que;",null,null,null,null,null,{"$f":"O108","v":"-"},null,null,null,null,{"$f":"IFERROR(ROUND(AVERAGEIF(L109:N112,\"<>0\",L109:N112),0),\"-\")","v":"-"}]
[null,null,null,"○","Geram confiança em toda a comunidade através dos Agentes de Sensibilização de Pares (Peer Outreach Workers) ",null,null,null,null,null,null,{"$f":"IF(ISBLANK(G109),0,1)","v":0},{"$f":"IF(ISBLANK(H109),0,3)","v":0},{"$f":"IF(ISBLANK(I109),0,5)","v":0}]
[null,null,null,"○","Atingem as pessoas transgénero em elevado número e incentivam a sua adesão, retenção e participação activa no programa.",null,null,null,null,null,null,{"$f":"IF(ISBLANK(G110),0,1)","v":0},{"$f":"IF(ISBLANK(H110),0,3)","v":0},{"$f":"IF(ISBLANK(I110),0,5)","v":0}]
[null,null,null,"○","Incentiva a adesão e a retenção de pessoas transgénero",null,null,null,null,null,null,{"$f":"IF(ISBLANK(G111),0,1)","v":0},{"$f":"IF(ISBLANK(H111),0,3)","v":0},{"$f":"IF(ISBLANK(I111),0,5)","v":0}]
[null,null,null,"○","Incentiva a participação activa de pessoas transgénero",null,null,null,null,null,null,{"$f":"IF(ISBLANK(G112),0,1)","v":0},{"$f":"IF(ISBLANK(H112),0,3)","v":0},{"$f":"IF(ISBLANK(I112),0,5)","v":0}]
[null,null,"Estrutura de gestão","O processo da estrutura de gestão foi definido e;  ",null,null,null,null,null,{"$f":"O113","v":"-"},null,null,null,null,{"$f":"IFERROR(ROUND(AVERAGEIF(L114:N122,\"<>0\",L114:N122),0),\"-\")","v":"-"}]
[null,null,null,"○","Existem Termos de Referência (TdR) claros para descrever as funções e responsabilidades de todas as posições, incluindo o pessoal de nível da comunidade e das instalações",null,null,null,null,null,null,{"$f":"IF(ISBLANK(G114),0,1)","v":0},{"$f":"IF(ISBLANK(H114),0,3)","v":0},{"$f":"IF(ISBLANK(I114),0,5)","v":0}]
[null,null,null,"○","Proporção adequada de Agentes de Sensibilização de Pares para membros da comunidade"]
[null,null,null,"○","Existem directrizes para o recrutamento, retenção, avaliação e promoção de Agentes de Sensibilização de Pares ",null,null,null,null,null,null,{"$f":"IF(ISBLANK(G116),0,1)","v":0},{"$f":"IF(ISBLANK(H116),0,3)","v":0},{"$f":"IF(ISBLANK(I116),0,5)","v":0}]
[null,null,null,"○","Todas as pessoas que trabalham no projeto são remuneradas ",null,null,null,null,null,null,0,0,0]
[null,null,null,"○","A supervisão adequada dos Agentes de Sensibilização de Pares (ASP) é assegurada pelos Supervisores de Pares",null,null,null,null,null,null,0,0,0]
[null,null,null,"○","A estratégia de promoção e o plano de progressão de carreira para os ASP e profissionais da Comunicação Social e para a Mudança de Comportamento (CSMCC) estão definidos ",null,null,null,null,null,null,0,0,0]
[null,null,null,"○","Está estabelecido um mecanismo formal de encaminhamento ",null,null,null,null,null,null,0,0,0]
[null,null,null,"○","Locais de destino equipados para receber serviços (os locais de destino são os pontos em que os serviços serão prestados, por exemplo, clínicas, hospitais, comunidades)",null,null,null,null,null,null,0,0,0]
[null,null,null,"○","A micro-planificação é utilizada para priorizar e gerir a sensibilização, bem como para identificar os beneficiários em maior risco",null,null,null,null,null,null,0,0,0]
[null,null,"Fluxo de dados ","Foram definidos fluxos de dados em cada nível e:",null,null,null,null,null,{"$f":"O123","v":"-"},null,null,null,null,{"$f":"IFERROR(ROUND(AVERAGEIF(L124:N129,\"<>0\",L124:N129),0),\"-\")","v":"-"}]
[null,null,null,"○","Sistemas de dados foram desenvolvidos e testados ",null,null,null,null,null,null,{"$f":"IF(ISBLANK(G124),0,1)","v":0},{"$f":"IF(ISBLANK(H124),0,3)","v":0},{"$f":"IF(ISBLANK(I124),0,5)","v":0}]
[null,null,null,"○","Os indicadores padrão para a monitorização do programa de PC estão finalizados",null,null,null,null,null,null,{"$f":"IF(ISBLANK(G125),0,1)","v":0},{"$f":"IF(ISBLANK(H125),0,3)","v":0},{"$f":"IF(ISBLANK(I125),0,5)","v":0}]
[null,null,null,"○","Foram desenvolvidas ferramentas padrão para a elaboração de relatórios ",null,null,null,null,null,null,0,0,0]
[null,null,null,"○","Os dados programáticos são comunicados e analisados mensalmente ",null,null,null,null,null,null,0,0,0]
[null,null,null,"○","Existem sistemas para manter a confidencialidade dos dados ",null,null,null,null,null,null,{"$f":"IF(ISBLANK(G128),0,1)","v":0},{"$f":"IF(ISBLANK(H128),0,3)","v":0},0]
[null,null,null,"○","Desenvolvido sistema de Código de Identificador Único ",null,null,null,null,null,null,{"$f":"IF(ISBLANK(G129),0,1)","v":0},{"$f":"IF(ISBLANK(H129),0,3)","v":0},{"$f":"IF(ISBLANK(I129),0,5)","v":0}]
[null,null,"Agentes de Sensibilização de Pares (ASP)","Os Agentes de Sensibilização de Pares são utilizados de forma eficaz no programa:\n",null,null,null,null,null,{"$f":"O130","v":"-"},null,null,null,null,{"$f":"IFERROR(ROUND(AVERAGEIF(L131:N138,\"<>0\",L131:N138),0),\"-\")","v":"-"}]
[null,null,null,"○","Os ASP são recrutados no seio da comunidade de pessoas transgénero que representam ou servem",null,null,null,null,null,null,{"$f":"IF(ISBLANK(G131),0,1)","v":0},{"$f":"IF(ISBLANK(H131),0,3)","v":0},{"$f":"IF(ISBLANK(I131),0,5)","v":0}]
[null,null,null,"○","Currículo de formação disponível, apropriado e inclui formação cínica para a actualização de conhecimento de ASP de pessoas transgénero sobre necessidades específicas da comunidade transgénero",null,null,null,null,null,null,{"$f":"IF(ISBLANK(G132),0,1)","v":0},{"$f":"IF(ISBLANK(H132),0,3)","v":0},{"$f":"IF(ISBLANK(I132),0,5)","v":0}]
[null,null,null,"○","Os ASP beneficiam de formação em micro-planificação e sensibilização",null,null,null,null,null,null,0,0,0]
[null,null,null,"○","Existe um plano de formação faseada para melhorar as competências, confiança e liderança dos ASP ",null,null,null,null,null,null,0,0,0]
[null,null,null,"○","Ferramentas de sensibilização disponíveis para a mobilização da comunidade para promover serviços de acesso",null,null,null,null,null,null,{"$f":"IF(ISBLANK(G135),0,1)","v":0},{"$f":"IF(ISBLANK(H135),0,3)","v":0},0]
[null,null,null,"○","Utilizam mensagens e materiais de comunicação baseados em evidências",null,null,null,null,null,null,{"$f":"IF(ISBLANK(G136),0,1)","v":0},{"$f":"IF(ISBLANK(H136),0,3)","v":0},{"$f":"IF(ISBLANK(I136),0,5)","v":0}]
[null,null,null,"○","Fornecem informações sobre os serviços disponíveis e encaminham e associam os beneficiários aos serviços ",null,null,null,null,null,null,{"$f":"IF(ISBLANK(G137),0,1)","v":0},{"$f":"IF(ISBLANK(H137),0,3)","v":0},{"$f":"IF(ISBLANK(I137),0,5)","v":0}]
[null,null,null,"○","Fornecem aconselhamento e apoio emocional para a manutenção no tratamento",null,null,null,null,null,null,{"$f":"IF(ISBLANK(G138),0,1)","v":0},{"$f":"IF(ISBLANK(H138),0,3)","v":0},{"$f":"IF(ISBLANK(I138),0,5)","v":0}]
[null,null,"Envolvimento significativo das comunidades afectadas na liderança e coordenação","Pessoas transgénero estão representadas no organismo nacional de coordenação ou no grupo de trabalho técnico e:\n\n",null,null,null,null,null,{"$f":"O139","v":"-"},null,null,null,null,{"$f":"IFERROR(ROUND(AVERAGEIF(L140:N143,\"<>0\",L140:N143),0),\"-\")","v":"-"}]
[null,null,null,"○","Eles se reúnem regularmente",null,null,null,null,null,null,{"$f":"IF(ISBLANK(G140),0,1)","v":0},{"$f":"IF(ISBLANK(H140),0,3)","v":0},{"$f":"IF(ISBLANK(I140),0,5)","v":0}]
[null,null,null,"○","Participam activamente nos processos de tomada de decisão como parceiros iguais ",null,null,null,null,null,null,{"$f":"IF(ISBLANK(G141),0,1)","v":0},{"$f":"IF(ISBLANK(H141),0,3)","v":0},{"$f":"IF(ISBLANK(I141),0,5)","v":0}]
[null,null,null,"○","São apoiados de modo a solicitar comentários e prestar informações sobre as principais decisões aos grupos que representam",null,null,null,null,null,null,{"$f":"IF(ISBLANK(G142),0,1)","v":0},0,0]
[null,null,null,"○","Existem provas de que os comentários, contribuições e aconselhamento especializado fornecidos por membros da comunidade transgénero são tidos em conta",null,null,null,null,null,null,{"$f":"IF(ISBLANK(G143),0,1)","v":0},{"$f":"IF(ISBLANK(H143),0,3)","v":0},0]
[null,null,"Prestação de Serviços"]
[null,null,"Elemento","Critérios",null,"N/D","Ausente","Presente mas não ideal","Presente e funcionando bem","Média por elemento","Comentários (se aplicável)"]
[null,null,"Serviços acessíveis","Os serviços são acessíveis às pessoas transgénero e:",null,null,null,null,null,{"$f":"O146","v":"-"},null,null,null,null,{"$f":"IFERROR(ROUND(AVERAGEIF(L147:N153,\"<>0\",L147:N153),0),\"-\")","v":"-"}]
[null,null,null,"○","São concebidos com base em pesquisas formativas realizadas na fase de avaliação de necessidades ",null,null,null,null,null,null,{"$f":"IF(ISBLANK(G147),0,1)","v":0},{"$f":"IF(ISBLANK(H147),0,3)","v":0},{"$f":"IF(ISBLANK(I147),0,5)","v":0}]
[null,null,null,"○","Estão convenientemente localizados dentro ou nas proximidades de hotspots",null,null,null,null,null,null,0,0,0]
[null,null,null,"○","Contemplam serviços móveis sempre que necessário ",null,null,null,null,null,null,0,0,0]
[null,null,null,"○","Os horários de funcionamento são adequados para as pessoas transgénero que pretendem alcançar ",null,null,null,null,null,null,0,0,0]
[null,null,null,"○","Estão integrados com o sistema de saúde geral e oferecem pacotes de cuidados abrangentes ",null,null,null,null,null,null,0,0,0]
[null,null,null,"○","Têm uma oferta constante de serviços e produtos",null,null,null,null,null,null,0,0,0]
[null,null,null,"○","Envolvem a mudança de tarefas de modo a permitir o desenvolvimento da capacidade dos provedores de cuidados de saúde",null,null,null,null,null,null,0,0,0]
[null,null,"Serviços aceitáveis","Os serviços são aceitáveis para as pessoas transgénero e:",null,null,null,null,null,{"$f":"O154","v":"-"},null,null,null,null,{"$f":"IFERROR(ROUND(AVERAGEIF(L155:N159,\"<>0\",L155:N159),0),\"-\")","v":"-"}]
[null,null,null,"○","São confidenciais e voluntários ",null,null,null,null,null,null,{"$f":"IF(ISBLANK(G155),0,1)","v":0},{"$f":"IF(ISBLANK(H155),0,3)","v":0},{"$f":"IF(ISBLANK(I155),0,5)","v":0}]
[null,null,null,"○","Os provedores são sensíveis às necessidades das pessoas transgénero, sem juízos de valor e sem estigmatização",null,null,null,null,null,null,{"$f":"IF(ISBLANK(G156),0,1)","v":0},{"$f":"IF(ISBLANK(H156),0,3)","v":0},{"$f":"IF(ISBLANK(I156),0,5)","v":0}]
[null,null,null,"○","Os provedores são treinados para poderem oferecer um pacote abrangente de intervenção específico para pessoas transgénero  ",null,null,null,null,null,null,{"$f":"IF(ISBLANK(G157),0,1)","v":0},{"$f":"IF(ISBLANK(H157),0,3)","v":0},{"$f":"IF(ISBLANK(I157),0,5)","v":0}]
[null,null,null,"○","Criam um ambiente seguro e de apoio ",null,null,null,null,null,null,{"$f":"IF(ISBLANK(G158),0,1)","v":0},{"$f":"IF(ISBLANK(H158),0,3)","v":0},{"$f":"IF(ISBLANK(I158),0,5)","v":0}]
[null,null,null,"○","As intervenções online são realizadas de forma ética, respeitando a privacidade e a confidencialidade dos clientes",null,null,null,null,null,null,{"$f":"IF(ISBLANK(G159),0,1)","v":0},{"$f":"IF(ISBLANK(H159),0,3)","v":0},{"$f":"IF(ISBLANK(I159),0,5)","v":0}]
[null,null,"Serviços personalizados/adequados","Pacote de serviços e abordagens de prestação adaptadas às necessidades específicas de pessoas transgénero em toda a sua diversidade:",null,null,null,null,null,{"$f":"O160","v":"-"},null,null,null,null,{"$f":"IFERROR(ROUND(AVERAGEIF(L161:N166,\"<>0\",L161:N166),0),\"-\")","v":"-"}]
[null,null,null,"○","O pacote de serviços para pessoas transgénero contempla todos os serviços relevantes de Saúde Sexual e Reprodutiva de acordo com as directrizes da OMS",null,null,null,null,null,null,{"$f":"IF(ISBLANK(G161),0,1)","v":0},{"$f":"IF(ISBLANK(H161),0,3)","v":0},{"$f":"IF(ISBLANK(I161),0,5)","v":0}]
[null,null,null,"○","Ampla disponibilidade de iniciação de Terapia Anti-Retroviral baseada na comunidade para pessoas transgénero vivendo com HIV",null,null,null,null,null,null,0,0,0]
[null,null,null,"○","Os serviços são prestados de uma forma acessível a pessoas transgénero jovens (ex.: respondendo a questões relacionadas com a idade do consentimento)",null,null,null,null,null,null,0,0,0]
[null,null,null,"○","Serviços adicionais (ou ligação a) disponibilizados com base nas necessidades específicas de pessoas transgénero (ex.: serviços de saúde de afirmação de género para indivíduos transgénero)",null,null,null,null,null,null,0,0,0]
[null,null,null,"○","Os serviços respondem a vulnerabilidades cruzadas de adolescentes e jovens envolvidos na venda de sexo",null,null,null,null,null,null,0,0,0]
[null,null,null,"○","Os serviços são prestados de uma forma adequada e respeitam a confidencialidade/privacidade dos clientes",null,null,null,null,null,null,0,0,0]
[null,null,"Intervenções Clínicas  "]
[null,null,"Elemento","Critérios",null,"N/D","Ausente","Presente mas não ideal","Presente e funcionando bem","Média por elemento","Comentários (se aplicável)"]
[null,null,"Preservativos e Lubrificantes ","Todos as pessoas transgénero têm acesso a preservativos, lubrificantes, demonstrações e outros serviços de saúde reprodutiva e:\n",null,null,null,null,null,{"$f":"O169","v":"-"},null,null,null,null,{"$f":"IFERROR(ROUND(AVERAGEIF(L170:N172,\"<>0\",L170:N172),0),\"-\")","v":"-"}]
[null,null,null,"○","São amplamente distribuídos em quantidade suficiente",null,null,null,null,null,null,{"$f":"IF(ISBLANK(G170),0,1)","v":0},{"$f":"IF(ISBLANK(H170),0,3)","v":0},{"$f":"IF(ISBLANK(I170),0,5)","v":0}]
[null,null,null,"○","São facilmente acessíveis em locais hotspot",null,null,null,null,null,null,{"$f":"IF(ISBLANK(G171),0,1)","v":0},{"$f":"IF(ISBLANK(H171),0,3)","v":0},{"$f":"IF(ISBLANK(I171),0,5)","v":0}]
[null,null,null,"○","São realizadas demonstrações regulares por TS  ",null,null,null,null,null,null,{"$f":"IF(ISBLANK(G172),0,1)","v":0},{"$f":"IF(ISBLANK(H172),0,3)","v":0},{"$f":"IF(ISBLANK(I172),0,5)","v":0}]
[null,null,"Serviços de testagem de HIV","Serviços de testagem de HIV estão disponíveis para pessoas transgénero e:\n",null,null,null,null,null,{"$f":"O173","v":"-"},null,null,null,null,{"$f":"IFERROR(ROUND(AVERAGEIF(L174:N183,\"<>0\",L174:N183),0),\"-\")","v":"-"}]
[null,null,null,"○","São implementadas directrizes consolidadas da OMS sobre os serviços de testagem do HIV",null,null,null,null,null,null,{"$f":"IF(ISBLANK(G174),0,1)","v":0},{"$f":"IF(ISBLANK(H174),0,3)","v":0},{"$f":"IF(ISBLANK(I174),0,5)","v":0}]
[null,null,null,"○","Toda a testagem é voluntária e confidencial (consentimento informado obtido)",null,null,null,null,null,null,0,0,0]
[null,null,null,"○","Aconselhamento pré e pós-teste é oferecido ",null,null,null,null,null,null,0,0,0]
[null,null,null,"○","O tratamento é oferecido independentemente da contagem de CD4",null,null,null,null,null,null,0,0,0]
[null,null,null,"○","As pessoas seropositivas recebem um encaminhamento para redes de apoio após o diagnóstico ",null,null,null,null,null,null,0,0,0]
[null,null,null,"○","O acesso aos serviços é distribuído de forma equitativa por toda a comunidade transgénero",null,null,null,null,null,null,0,0,0]
[null,null,null,"○","Existem intervenções para garantir a adesão de pessoas transgénero que vivem com o HIV",null,null,null,null,null,null,0,0,0]
[null,null,null,"○","Monitorização regular da afluência aos cuidados entre as pessoas transgénero que vivem com o HIV ",null,null,null,null,null,null,0,0,0]
[null,null,null,"○","São oferecidas ligações à prevenção, tratamento para co-morbidades",null,null,null,null,null,null,0,0,0]
[null,null,null,"○","Testes de carga viral e de CD4 disponíveis e acessíveis para pessoas transgénero que vivem com o HIV",null,null,null,null,null,null,0,0,0]
[null,null,"Profilaxia Pré-exposição","A Profilaxia Pré-Exposição oral (TDF) é oferecida a pessoas transgénero com risco substancial de infecção pelo HIV ",null,null,null,null,null,{"$f":"O184","v":"-"},null,null,null,null,{"$f":"IFERROR(ROUND(AVERAGEIF(L185:N189,\"<>0\",L185:N189),0),\"-\")","v":"-"}]
[null,null,null,"○","Existe um fornecimento ininterrupto de Profilaxia Pré-Exposição ",null,null,null,null,null,null,{"$f":"IF(ISBLANK(G185),0,1)","v":0},{"$f":"IF(ISBLANK(H185),0,3)","v":0},{"$f":"IF(ISBLANK(I185),0,5)","v":0}]
[null,null,null,"○","Testes de HIV são realizados antes do início da Profilaxia Pré-Exposição de modo a garantir que o indivíduo é seronegativo ",null,null,null,null,null,null,{"$f":"IF(ISBLANK(G186),0,1)","v":0},{"$f":"IF(ISBLANK(H186),0,3)","v":0},{"$f":"IF(ISBLANK(I186),0,5)","v":0}]
[null,null,null,"○","Oferecida como parte de uma abordagem abrangente de prevenção combinada ",null,null,null,null,null,null,{"$f":"IF(ISBLANK(G187),0,1)","v":0},{"$f":"IF(ISBLANK(H187),0,3)","v":0},{"$f":"IF(ISBLANK(I187),0,5)","v":0}]
[null,null,null,"○","As abordagens combinadas incluem o apoio à adesão, a re-testagem periódica do HIV e o aconselhamento para utilizadores de Profilaxia Pré-Exposição ",null,null,null,null,null,null,{"$f":"IF(ISBLANK(G188),0,1)","v":0},{"$f":"IF(ISBLANK(H188),0,3)","v":0},{"$f":"IF(ISBLANK(I188),0,5)","v":0}]
[null,null,null,"○","A Profilaxia Pré-Exposição é oferecida com base na avaliação individual e não no grupo de risco para promover uma cobertura mais ampla ",null,null,null,null,null,null,{"$f":"IF(ISBLANK(G189),0,1)","v":0},{"$f":"IF(ISBLANK(H189),0,3)","v":0},{"$f":"IF(ISBLANK(I189),0,5)","v":0}]
[null,null,"Planeamento familiar e SSR ","Todas as pessoas transgénero têm acesso ao planeamento familiar e a outros serviços de saúde reprodutiva e:",null,null,null,null,null,{"$f":"O190","v":"-"},null,null,null,null,{"$f":"IFERROR(ROUND(AVERAGEIF(L191:N193,\"<>0\",L191:N193),0),\"-\")","v":"-"}]
[null,null,null,"○","São amplamente distribuídos em quantidade suficiente",null,null,null,null,null,null,{"$f":"IF(ISBLANK(G191),0,1)","v":0},{"$f":"IF(ISBLANK(H191),0,3)","v":0},{"$f":"IF(ISBLANK(I191),0,5)","v":0}]
[null,null,null,"○","São facilmente acessíveis em locais hotspot",null,null,null,null,null,null,{"$f":"IF(ISBLANK(G192),0,1)","v":0},{"$f":"IF(ISBLANK(H192),0,3)","v":0},{"$f":"IF(ISBLANK(I192),0,5)","v":0}]
[null,null,null,"○","Workshops de demonstração são regularmente realizados em hotspots",null,null,null,null,null,null,{"$f":"IF(ISBLANK(G193),0,1)","v":0},{"$f":"IF(ISBLANK(H193),0,3)","v":0},{"$f":"IF(ISBLANK(I193),0,5)","v":0}]
[null,null,"Cuidados pós-violência ","Todas as pessoas transgénero têm acesso a cuidados pós-violência e:\n",null,null,null,null,null,{"$f":"O194","v":"-"},null,null,null,null,{"$f":"IFERROR(ROUND(AVERAGEIF(L195:N199,\"<>0\",L195:N199),0),\"-\")","v":"-"}]
[null,null,null,"○","Estão disponíveis serviços pós-violência, tais como apoio e aconselhamento",null,null,null,null,null,null,{"$f":"IF(ISBLANK(G195),0,1)","v":0},{"$f":"IF(ISBLANK(H195),0,3)","v":0},{"$f":"IF(ISBLANK(I195),0,5)","v":0}]
[null,null,null,"○","Estão disponíveis serviços pós-violência, como a Profilaxia Pós-Exposição",null,null,null,null,null,null,0,0,0]
[null,null,null,"○","Testagem de ITS (sífilis, clamídia, gonorreia) é feita rotineiramente em casos de violência sexual",null,null,null,null,null,null,0,0,0]
[null,null,null,"○","Mecanismo de encaminhamento em vigor para serviços abrangentes de VBG, mediante necessidade",null,null,null,null,null,null,0,0,0]
[null,null,null,"○","A prevenção, o rastreio e a reparação da violência baseada no género, o apoio à saúde mental e outras intervenções para fazer face às barreiras relacionadas com os direitos humanos e aumentar o acesso à justiça estão plenamente implementadas e disponíveis",null,null,null,null,null,null,{"$f":"IF(ISBLANK(G199),0,1)","v":0},{"$f":"IF(ISBLANK(H199),0,3)","v":0},{"$f":"IF(ISBLANK(I199),0,5)","v":0}]
[null,null,"Prevenção, triagem e tratamento da TB","A prevenção, triagem e tratamento da TB está disponível para pessoas transgénero e:\n",null,null,null,null,null,{"$f":"O200","v":"-"},null,null,null,null,{"$f":"IFERROR(ROUND(AVERAGEIF(L201:N209,\"<>0\",L201:N209),0),\"-\")","v":"-"}]
[null,null,null,"○","Prevenção: Terapia preventiva isoniazida oferecida à seropositivos conjuntamente com a Terapia Anti-Retroviral, controlo de infeção de Tuberculose e rastreio de contactos em meios de congregação ",null,null,null,null,null,null,{"$f":"IF(ISBLANK(G201),0,1)","v":0},{"$f":"IF(ISBLANK(H201),0,3)","v":0},{"$f":"IF(ISBLANK(I201),0,5)","v":0}]
[null,null,null,"○","Diagnóstico: utiliza Xpert MTB/RIF como primeiros testes de diagnóstico",null,null,null,null,null,null,0,0,0]
[null,null,null,"○","Toda a testagem é voluntária e confidencial ",null,null,null,null,null,null,0,0,0]
[null,null,null,"○","Existem intervenções de apoio à adesão a fim de garantir que o regime de antibióticos seja concluído",null,null,null,null,null,null,0,0,0]
[null,null,null,"○","O tratamento é administrado imediatamente e a fornecimento é ininterrupto",null,null,null,null,null,null,0,0,0]
[null,null,null,"○","O acesso aos serviços é distribuído de forma equitativa para toda a comunidade e as pessoas transgénero ",null,null,null,null,null,null,0,0,0]
[null,null,null,"○","Boas ligações a testagem e aconselhamento de HIV para casos positivos ",null,null,null,null,null,null,0,0,0]
[null,null,null,"○","Esforços estão a ser envidados no sentido de tratar a Tuberculose latente em pessoas transgénero ",null,null,null,null,null,null,0,0,0]
[null,null,null,"○","O tratamento da Tuberculose não é contra-indicado pelo consumo de álcool, uso de drogas e distúrbios de saúde mental",null,null,null,null,null,null,0,0,0]
[null,null,"Prevenção, vacinação, triagem e tratamento da hepatite viral","Prevenção, vacinação, triagem e tratamentos de Hepatites B e C virais estão disponíveis para atender às necessidades específicas de pessoas transgénero e:\n",null,null,null,null,null,{"$f":"O210","v":"-"},null,null,null,null,{"$f":"IFERROR(ROUND(AVERAGEIF(L211:N216,\"<>0\",L211:N216),0),\"-\")","v":"-"}]
[null,null,null,"○","Toda a testagem é voluntária e confidencial ",null,null,null,null,null,null,{"$f":"IF(ISBLANK(G211),0,1)","v":0},{"$f":"IF(ISBLANK(H211),0,3)","v":0},{"$f":"IF(ISBLANK(I211),0,5)","v":0}]
[null,null,null,"○","O tratamento é administrado imediatamente e a fornecimento é ininterrupto ",null,null,null,null,null,null,0,0,0]
[null,null,null,"○","O acesso aos serviços é distribuído de forma equitativa por toda a comunidade e por todas as pessoas transgénero ",null,null,null,null,null,null,0,0,0]
[null,null,null,"○","São realizadas rotineiramente campanhas de vacinação contra hepatite B e C ",null,null,null,null,null,null,0,0,0]
[null,null,null,null,"Regimes de vacinação rápida e padrão para a hepatite B e C estão disponíveis e facilmente acessíveis ",null,null,null,null,null,null,0,0,0]
[null,null,null,"○","Foram afectados recursos para a prevenção, vacinação, triagem e tratamento da hepatite viral",null,null,null,null,null,null,0,0,0]
[null,null,"Triagem e tratamento para o consumo de drogas e álcool","A triagem e o tratamento para o consumo problemático de álcool e drogas são rotineiramente realizados nas unidades sanitárias, nos hotspots locais e nas clínicas móveis ",null,null,null,null,null,{"$f":"O217","v":"-"},null,null,null,null,{"$f":"IFERROR(ROUND(AVERAGEIF(L218:N222,\"<>0\",L218:N222),0),\"-\")","v":"-"}]
[null,null,null,"○","A triagem e o tratamento para o consumo problemático de álcool e drogas são rotineiramente realizados nas unidades sanitárias, nos hotspots locais e nas clínicas móveis ",null,null,null,null,null,null,{"$f":"IF(ISBLANK(G218),0,1)","v":0},{"$f":"IF(ISBLANK(H218),0,3)","v":0},{"$f":"IF(ISBLANK(I218),0,5)","v":0}]
[null,null,null,"○","Os Agentes de Sensibilização de Pares encaminham indivíduos em risco aos serviços de triagem e tratamento ",null,null,null,null,null,null,{"$f":"IF(ISBLANK(G219),0,1)","v":0},{"$f":"IF(ISBLANK(H219),0,3)","v":0},{"$f":"IF(ISBLANK(I219),0,5)","v":0}]
[null,null,null,"○","Os indivíduos são encaminhados a conselheiros, organizações e grupos de apoio adequados",null,null,null,null,null,null,{"$f":"IF(ISBLANK(G220),0,1)","v":0},{"$f":"IF(ISBLANK(H220),0,3)","v":0},{"$f":"IF(ISBLANK(I220),0,5)","v":0}]
[null,null,null,"○","O tratamento é iniciado imediatamente se o indivíduo assim consentir voluntariamente",null,null,null,null,null,null,{"$f":"IF(ISBLANK(G221),0,1)","v":0},{"$f":"IF(ISBLANK(H221),0,3)","v":0},{"$f":"IF(ISBLANK(I221),0,5)","v":0}]
[null,null,null,"○","O encaminhamento a outros serviços (saúde mental, apoio psicossocial) é fornecido atempadamente",null,null,null,null,null,null,{"$f":"IF(ISBLANK(G222),0,1)","v":0},{"$f":"IF(ISBLANK(H222),0,3)","v":0},{"$f":"IF(ISBLANK(I222),0,5)","v":0}]
[null,null,"Cuidados de saúde mental","Os cuidados de saúde mental são acessíveis e fornecidos de forma consistente a pessoas transgénero que vivem com o HIV e incluem:",null,null,null,null,null,{"$f":"O223","v":"-"},null,null,null,null,{"$f":"IFERROR(ROUND(AVERAGEIF(L224:N225,\"<>0\",L224:N225),0),\"-\")","v":"-"}]
[null,null,null,"○","Triagem de rotina para distúrbios de saúde mental (em particular a depressão e stress psicossocial) conforme descrito pelo Programa de Acção para reduzir as Lacunas em Saúde Mental (mhGAP)",null,null,null,null,null,null,{"$f":"IF(ISBLANK(G224),0,1)","v":0},{"$f":"IF(ISBLANK(H224),0,3)","v":0},{"$f":"IF(ISBLANK(I224),0,5)","v":0}]
[null,null,null,"○","Aconselhamento pós-testagem do HIV após um resultado positivo para avaliar o risco de suicídio, depressão e outros resultados de saúde mental ",null,null,null,null,null,null,{"$f":"IF(ISBLANK(G225),0,1)","v":0},{"$f":"IF(ISBLANK(H225),0,3)","v":0},{"$f":"IF(ISBLANK(I225),0,5)","v":0}]
[null,null,"COVID-19 ","Prestação de serviços diferenciada, centrada nas pessoas, para programas de pessoas Transgénero durante a COVID-19 \n",null,null,null,null,null,{"$f":"O226","v":"-"},null,null,null,null,{"$f":"IFERROR(ROUND(AVERAGEIF(L227:N228,\"<>0\",L227:N228),0),\"-\")","v":"-"}]
[null,null,null,"○","Existem programas para incentivar e acompanhar a adesão a vacina da COVID-19 entre pessoas transgénero",null,null,null,null,null,null,{"$f":"IF(ISBLANK(G227),0,1)","v":0},{"$f":"IF(ISBLANK(H227),0,3)","v":0},{"$f":"IF(ISBLANK(I227),0,5)","v":0}]
[null,null,null,"○","Mensagens contínuas e acesso seguro a modelos de prestação de serviços não baseados em unidades sanitárias (por exemplo, baseados na comunidade, baseados em casa, tele-saúde) durante os picos de COVID-19 de modo a evitar interrupções de serviços",null,null,null,null,null,null,{"$f":"IF(ISBLANK(G228),0,1)","v":0},{"$f":"IF(ISBLANK(H228),0,3)","v":0},{"$f":"IF(ISBLANK(I228),0,5)","v":0}]
[null,null,"Intervenções Comportamentais"]
[null,null,"Elemento","Critérios",null,"N/D","Ausente","Presente mas não ideal","Presente e funcionando bem","Média por elemento","Comentários (se aplicável)"]
[null,null,"Comunicação para a mudança social e de comportamento (CMSC)","Actividades de CMSC estão incluídas no Programa de População-Chave. Estas são:",null,null,null,null,null,{"$f":"O231","v":"-"},null,null,null,null,{"$f":"IFERROR(ROUND(AVERAGEIF(L232:N236,\"<>0\",L232:N236),0),\"-\")","v":"-"}]
[null,null,null,"○","Bem planeadas e com um orçamento adequado",null,null,null,null,null,null,{"$f":"IF(ISBLANK(G232),0,1)","v":0},{"$f":"IF(ISBLANK(H232),0,3)","v":0},{"$f":"IF(ISBLANK(I232),0,5)","v":0}]
[null,null,null,"○","Baseadas em evidências ",null,null,null,null,null,null,{"$f":"IF(ISBLANK(G233),0,1)","v":0},{"$f":"IF(ISBLANK(H233),0,3)","v":0},{"$f":"IF(ISBLANK(I233),0,5)","v":0}]
[null,null,null,"○","Pessoas transgénero foram envolvidas na concepção e testes das intervenções",null,null,null,null,null,null,{"$f":"IF(ISBLANK(G234),0,1)","v":0},{"$f":"IF(ISBLANK(H234),0,3)","v":0},{"$f":"IF(ISBLANK(I234),0,5)","v":0}]
[null,null,null,"○","As organizações e indivíduos que implementam estas intervenções são experientes e formados em intervenções de CMSC",null,null,null,null,null,null,{"$f":"IF(ISBLANK(G235),0,1)","v":0},{"$f":"IF(ISBLANK(H235),0,3)","v":0},{"$f":"IF(ISBLANK(I235),0,5)","v":0}]
[null,null,null,"○","Intervenções de Comunicação para a Mudança Social e de Comportamento estão incluídas nos planos e actividades de Monitoria e Avaliação (M&A)",null,null,null,null,null,null,{"$f":"IF(ISBLANK(G236),0,1)","v":0},{"$f":"IF(ISBLANK(H236),0,3)","v":0},{"$f":"IF(ISBLANK(I236),0,5)","v":0}]
[null,null,"Intervenções Estruturais"]
[null,null,"Elemento","Critérios",null,"N/D","Ausente","Presente mas não ideal","Presente e funcionando bem","Média por elemento","Comentários (se aplicável)"]
[null,null,"Prevenção e resposta à violência","Os programas para combater a violência contra pessoas transgénero foram implementados de forma consistente e contemplam:",null,null,null,null,null,{"$f":"O239","v":"-"},null,null,null,null,{"$f":"IFERROR(ROUND(AVERAGEIF(L240:N246,\"<>0\",L240:N246),0),\"-\")","v":"-"}]
[null,null,null,"○","Informações sobre segurança",null,null,null,null,null,null,{"$f":"IF(ISBLANK(G240),0,1)","v":0},{"$f":"IF(ISBLANK(H240),0,3)","v":0},{"$f":"IF(ISBLANK(I240),0,5)","v":0}]
[null,null,null,"○","Espaços seguros (Centros de Acolhimento)",null,null,null,null,null,null,0,0,0]
[null,null,null,"○","Segurança reforçada no local de trabalho",null,null,null,null,null,null,0,0,0]
[null,null,null,"○","Mecanismos de monitoria e denúncia de violência padronizados que se estendem além da polícia e podem incluir apoio paralegal de organizações de pessoas transgénero",null,null,null,null,null,null,0,0,0]
[null,null,null,"○","Formação abrangente de agentes da polícia e assistentes sociais para que sejam sensíveis às necessidades de pessoas transgénero",null,null,null,null,null,null,0,0,0]
[null,null,null,"○","Planos de resposta à violência desenvolvidos pela comunidade",null,null,null,null,null,null,0,0,0]
[null,null,null,"○","Ligações estabelecidas ao apoio jurídico",null,null,null,null,null,null,0,0,0]
[null,null,"Redução do estigma e da discriminação ","Esforços para reduzir o estigma e a discriminação contra pessoas transgénero, incluindo:  ",null,null,null,null,null,{"$f":"O247","v":"-"},null,null,null,null,{"$f":"IFERROR(ROUND(AVERAGEIF(L248:N254,\"<>0\",L248:N254),0),\"-\")","v":"-"}]
[null,null,null,"○","Promoção de políticas anti-discriminação e de protecção para todas as pessoas transgénero",null,null,null,null,null,null,{"$f":"IF(ISBLANK(G248),0,1)","v":0},{"$f":"IF(ISBLANK(H248),0,3)","v":0},{"$f":"IF(ISBLANK(I248),0,5)","v":0}]
[null,null,null,"○","Programas, dentro e fora do sector de saúde, que instituem políticas e códigos de conduta anti-estigmatização e anti-discriminação",null,null,null,null,null,null,{"$f":"IF(ISBLANK(G249),0,1)","v":0},{"$f":"IF(ISBLANK(H249),0,3)","v":0},{"$f":"IF(ISBLANK(I249),0,5)","v":0}]
[null,null,null,"○","A monitoria e a supervisão são realizadas de forma rotineira a fim de garantir que as normas sejam implementadas e mantidas",null,null,null,null,null,null,{"$f":"IF(ISBLANK(G250),0,1)","v":0},{"$f":"IF(ISBLANK(H250),0,3)","v":0},{"$f":"IF(ISBLANK(I250),0,5)","v":0}]
[null,null,null,"○","São realizadas campanhas contínuas para a redução do estigma",null,null,null,null,null,null,0,0,0]
[null,null,null,"○","Sensibilização, educação e envolvimento contínuos de líderes religiosos e anciãos, agentes da autoridade e Trabalhadores da Saúde ",null,null,null,null,null,null,0,0,0]
[null,null,null,"○","Mecanismos eficazes são disponibilizados para permitir a denúncia anónima de incidentes de estigma e/ou discriminação aquando do acesso a cuidados de saúde  ",null,null,null,null,null,null,0,0,0]
[null,null,null,"○","Apoio e acompanhamento são oferecidos à pessoas transgénero que denunciam incidentes de estigma e/ou discriminação",null,null,null,null,null,null,0,{"$f":"IF(ISBLANK(H254),0,3)","v":0},0]
[null,null,"Serviços jurídicos relacionados com o HIV ","Existem serviços jurídicos relacionados com o HIV para atender as necessidades de pessoas transgénero e:",null,null,null,null,null,{"$f":"O255","v":"-"},null,null,null,null,{"$f":"IFERROR(ROUND(AVERAGEIF(L256:N258,\"<>0\",L256:N258),0),\"-\")","v":"-"}]
[null,null,null,"○","Existem formas alternativas de resolução de litígios",null,null,null,null,null,null,{"$f":"IF(ISBLANK(G256),0,1)","v":0},{"$f":"IF(ISBLANK(H256),0,3)","v":0},{"$f":"IF(ISBLANK(I256),0,5)","v":0}]
[null,null,null,"○","O acesso a informações legais e referências está prontamente disponível",null,null,null,null,null,null,{"$f":"IF(ISBLANK(G257),0,1)","v":0},{"$f":"IF(ISBLANK(H257),0,3)","v":0},{"$f":"IF(ISBLANK(I257),0,5)","v":0}]
[null,null,null,"○","O acesso a assessoria e representação jurídicas está prontamente disponível",null,null,null,null,null,null,{"$f":"IF(ISBLANK(G258),0,1)","v":0},{"$f":"IF(ISBLANK(H258),0,3)","v":0},{"$f":"IF(ISBLANK(I258),0,5)","v":0}]
[null,null,"Monitoria da aplicação da lei ","A implementação de políticas, regulamentos e leis é regularmente monitorizada com vista a avaliar o impacto sobre as pessoas transgénero.",null,null,null,null,null,{"$f":"O259","v":"-"},null,{"$f":"IF(ISBLANK(G259),0,1)","v":0},{"$f":"IF(ISBLANK(H259),0,3)","v":0},{"$f":"IF(ISBLANK(I259),0,5)","v":0},{"$f":"IFERROR(ROUND(AVERAGEIF(L259:N259,\"<>0\",L259:N259),0),\"-\")","v":"-"}]
[null,null,"Literacia legal (\"Conheça os seus direitos\")","É oferecida aos membros das pessoas transgénero uma formação detalhada sobre literacia jurídica ",null,null,null,null,null,{"$f":"O260","v":"-"},null,null,null,null,{"$f":"IFERROR(ROUND(AVERAGEIF(L261:N262,\"<>0\",L261:N262),0),\"-\")","v":"-"}]
[null,null,null,"○","Estratégias eficazes para a interacção com a polícia foram delineadas e comunicadas a pessoas transgéneros  ",null,null,null,null,null,null,{"$f":"IF(ISBLANK(G261),0,1)","v":0},{"$f":"IF(ISBLANK(H261),0,3)","v":0},{"$f":"IF(ISBLANK(I261),0,5)","v":0}]
[null,null,null,"○","As pessoas transgénero estão conscientes das suas leis e direitos e são capazes de defender as suas necessidades no contexto do HIV em torno das suas leis e direitos",null,null,null,null,null,null,{"$f":"IF(ISBLANK(G262),0,1)","v":0},{"$f":"IF(ISBLANK(H262),0,3)","v":0},{"$f":"IF(ISBLANK(I262),0,5)","v":0}]
[null,null,"Sensibilização dos fazedores de políticas e dos agentes da lei e ordem ","Uma formação rigorosa de legisladores e agentes da lei e ordem tem lugar regularmente de modo a garantir uma sensibilização adequada destes em relação a todas as pessoas transgénero e contempla: ",null,null,null,null,null,{"$f":"O263","v":"-"},null,null,null,null,{"$f":"IFERROR(ROUND(AVERAGEIF(L264:N267,\"<>0\",L264:N267),0),\"-\")","v":"-"}]
[null,null,null,"○","Um programa abrangente de formação de sensibilização que foi adaptado ao contexto do país",null,null,null,null,null,null,{"$f":"IF(ISBLANK(G264),0,1)","v":0},{"$f":"IF(ISBLANK(H264),0,3)","v":0},{"$f":"IF(ISBLANK(I264),0,5)","v":0}]
[null,null,null,"○","Facilitadores devidamente formados",null,null,null,null,null,null,{"$f":"IF(ISBLANK(G265),0,1)","v":0},{"$f":"IF(ISBLANK(H265),0,3)","v":0},{"$f":"IF(ISBLANK(I265),0,5)","v":0}]
[null,null,null,"○","Participação de pessoas transgénero ",null,null,null,null,null,null,{"$f":"IF(ISBLANK(G266),0,1)","v":0},{"$f":"IF(ISBLANK(H266),0,3)","v":0},{"$f":"IF(ISBLANK(I266),0,5)","v":0}]
[null,null,null,"○","Feedback dos participantes",null,null,null,null,null,null,{"$f":"IF(ISBLANK(G267),0,1)","v":0},{"$f":"IF(ISBLANK(H267),0,3)","v":0},{"$f":"IF(ISBLANK(I267),0,5)","v":0}]
[null,null,"Formação de profissionais de saúde sobre os direitos humanos e a ética médica relacionada com o HIV ","Um programa abrangente de formação de sensibilização que foi adaptado ao contexto do país",null,null,null,null,null,{"$f":"O268","v":"-"},null,null,null,null,{"$f":"IFERROR(ROUND(AVERAGEIF(L269:N271,\"<>0\",L269:N271),0),\"-\")","v":"-"}]
[null,null,null,"○","Facilitadores devidamente formados",null,null,null,null,null,null,{"$f":"IF(ISBLANK(G269),0,1)","v":0},{"$f":"IF(ISBLANK(H269),0,3)","v":0},{"$f":"IF(ISBLANK(I269),0,5)","v":0}]
[null,null,null,"○","Participação de pessoas transgénero ",null,null,null,null,null,null,{"$f":"IF(ISBLANK(G270),0,1)","v":0},{"$f":"IF(ISBLANK(H270),0,3)","v":0},{"$f":"IF(ISBLANK(I270),0,5)","v":0}]
[null,null,null,"○","Feedback dos participantes",null,null,null,null,null,null,{"$f":"IF(ISBLANK(G271),0,1)","v":0},{"$f":"IF(ISBLANK(H271),0,3)","v":0},{"$f":"IF(ISBLANK(I271),0,5)","v":0}]
[null,null,"Redução da discriminação contra as mulheres no contexto do HIV ","Foram implementados programas para fazer face a desigualdade de género e a violência baseada no género e o HIV, contemplando: ",null,null,null,null,null,{"$f":"O272","v":"-"},null,null,null,null,{"$f":"IFERROR(ROUND(AVERAGEIF(L273:N279,\"<>0\",L273:N279),0),\"-\")","v":"-"}]
[null,null,null,"○","A desigualdade entre mulheres e raparigas na tomada de decisões sexuais e reprodutivas; ",null,null,null,null,null,null,{"$f":"IF(ISBLANK(G273),0,1)","v":0},{"$f":"IF(ISBLANK(H273),0,3)","v":0},{"$f":"IF(ISBLANK(I273),0,5)","v":0}]
[null,null,null,"○","As barreiras de género no acesso aos serviços de saúde; ",null,null,null,null,null,null,0,0,0]
[null,null,null,"○","Discriminação em matéria de herança, posse de património, casamento, divórcio e custódia; ",null,null,null,null,null,null,0,0,0]
[null,null,null,"○","Violência sexual e outras; ",null,null,null,null,null,null,0,0,0]
[null,null,null,"○","Falta de igualdade de acesso à oportunidades de educação e económicas; ",null,null,null,null,null,null,0,0,0]
[null,null,null,"○","Falta de apoio aos cuidadores em agregados familiares afectados pelo HIV. ",null,null,null,null,null,null,0,0,0]
[null,null,null,"○","São complementados por programas que visam homens e rapazes que abordam as normas de género nocivas ",null,null,null,null,null,null,0,0,0]
[null,null,"Espaços seguros/centros de acolhimento","Espaços seguros/centros de acolhimento foram estabelecidos para pessoas transgénero:",null,null,null,null,null,{"$f":"O280","v":"-"},null,null,null,null,{"$f":"IFERROR(ROUND(AVERAGEIF(L281:N289,\"<>0\",L281:N289),0),\"-\")","v":"-"}]
[null,null,null,"○","Servem como o principal local de interacção entre a comunidade e o programa",null,null,null,null,null,null,{"$f":"IF(ISBLANK(G281),0,1)","v":0},{"$f":"IF(ISBLANK(H281),0,3)","v":0},{"$f":"IF(ISBLANK(I281),0,5)","v":0}]
[null,null,null,"○","Oferecem uma plataforma para mobilização, formação e organização de iniciativas da comunidade",null,null,null,null,null,null,0,0,0]
[null,null,null,"○","Partilham informações sobre eventos, actividades e serviços relevantes para a comunidade",null,null,null,null,null,null,0,0,0]
[null,null,null,"○","Informações, educação e materiais de comunicação fáceis de usar estão acessíveis",null,null,null,null,null,null,0,0,0]
[null,null,null,"○","Prestam serviços e apoio psicossociais ",null,null,null,null,null,null,0,0,0]
[null,null,null,"○","Preservativos e lubrificantes estão disponíveis",null,null,null,null,null,null,0,0,0]
[null,null,null,"○","Utilizados por Agentes de Sensibilização de Pares para avaliar seu trabalho e planificar acções de sensibilização",null,null,null,null,null,null,0,0,0]
[null,null,null,"○","Criados em consulta com pessoas transgénero por forma a determinar a localização, o horário de funcionamento e os serviços fornecidos",null,null,null,null,null,null,0,0,0]
[null,null,null,"○","Disponibilizam ou oferecem ligações a intervenções relevantes não relacionadas com o sector da saúde",null,null,null,null,null,null,0,0,0]
[null,null,"Comités comunitários","Foram formados comités da comunidade transgénero e:",null,null,null,null,null,{"$f":"O290","v":"-"},null,null,null,null,{"$f":"IFERROR(ROUND(AVERAGEIF(L291:N300,\"<>0\",L291:N300),0),\"-\")","v":"-"}]
[null,null,null,"○","Podem ser formado de forma livre e fácil",null,null,null,null,null,null,{"$f":"IF(ISBLANK(G291),0,1)","v":0},{"$f":"IF(ISBLANK(H291),0,3)","v":0},{"$f":"IF(ISBLANK(I291),0,5)","v":0}]
[null,null,null,"○","Realizam reuniões regulares (pelo menos mensalmente) e utilizam um relatório de reunião para registar sistematicamente o debate ",null,null,null,null,null,null,0,0,0]
[null,null,null,"○","Avaliam a prestação de serviços, solucionam problemas, acompanham as mudanças, desenvolvem compreensão e responsabilização, bem como resolvem problemas gerais da comunidade",null,null,null,null,null,null,0,0,0]
[null,null,null,"○","Elegem membros da comunidade de transgénero anualmente",null,null,null,null,null,null,0,0,0]
[null,null,null,"○","Elegem o defensor da comunidade transgénero para servir de intermediário do programa ",null,null,null,null,null,null,0,0,0]
[null,null,null,"○","Convidam pessoal relevante da organização responsável pela implementação para ser membros do comité ou para participar nas reuniões",null,null,null,null,null,null,0,0,0]
[null,null,null,"○","Dão feedback regular ao programa por forma a moldar a qualidade dos serviços oferecidos",null,null,null,null,null,null,0,0,0]
[null,null,null,"○","Respeitam a confidencialidade ",null,null,null,null,null,null,0,0,0]
[null,null,null,"○","Não permitem que o pessoal da organização responsável pela implementação vote nas reuniões",null,null,null,null,null,null,0,0,0]
[null,null,null,"○","Integram jovens PC e desenvolvem a sua capacidade ",null,null,null,null,null,null,0,0,0]
[null,null,"Monitoria do Programa"]
[null,null,"Elemento","Critérios",null,"N/D","Ausente","Presente mas não ideal","Presente e funcionando bem","Média por elemento","Comentários (se aplicável)"]
[null,null,"Monitoria de rotina","Indicadores do programa de rotina são definidos:",null,null,null,null,null,{"$f":"O303","v":"-"},null,null,null,null,{"$f":"IFERROR(ROUND(AVERAGEIF(L304:N310,\"<>0\",L304:N310),0),\"-\")","v":"-"}]
[null,null,null,"○","Rotineiramente (mensal, trimestral),",null,null,null,null,null,null,{"$f":"IF(ISBLANK(G304),0,1)","v":0},{"$f":"IF(ISBLANK(H304),0,3)","v":0},{"$f":"IF(ISBLANK(I304),0,5)","v":0}]
[null,null,null,"○","Completamente (os dados são consistentes e não há informação em falta)",null,null,null,null,null,null,0,0,0]
[null,null,null,"○","A todos os níveis (ou seja, estado/concelho/província)",null,null,null,null,null,null,0,0,0]
[null,null,null,"○"," Por todos os parceiros de implementação",null,null,null,null,null,null,0,0,0]
[null,null,null,"○","Através da plataforma DHIS/EMR",null,null,null,null,null,null,0,0,0]
[null,null,null,"○","O rastreamento individual de dados é feito por parceiros de implementação ",null,null,null,null,null,null,0,0,0]
[null,null,null,"○","Os dados são regularmente analisados por todas as partes interessadas (governo, sociedade civil, comunidade transgénero, parceiros de implementação, doadores) e utilizados para melhorar os programas ",null,null,null,null,null,null,0,0,0]
[null,null,"Monitoria para a responsabilização liderada pela Comunidade ","Incorporar a monitoria liderada pela comunidade em plataformas de monitoria nacionais e:",null,null,null,null,null,{"$f":"O311","v":"-"},null,null,null,null,{"$f":"IFERROR(ROUND(AVERAGEIF(L312:N318,\"<>0\",L312:N318),0),\"-\")","v":"-"}]
[null,null,null,"○","A MLC é aceite e integrada  em processos de tomada de decisão e negociações com autoridades locais, financiadores e outros apoiantes externos ",null,null,null,null,null,null,{"$f":"IF(ISBLANK(G312),0,1)","v":0},{"$f":"IF(ISBLANK(H312),0,3)","v":0},{"$f":"IF(ISBLANK(I312),0,5)","v":0}]
[null,null,null,"○","Funciona como um mecanismo comunitário de vigilância e responsabilização",null,null,null,null,null,null,0,0,0]
[null,null,null,"○","Monitores de pares formados que recolhem e analisam de forma sistemática e regular dados qualitativos e quantitativos sobre a prestação de serviços de HIV",null,null,null,null,null,null,0,0,0]
[null,null,null,"○","Existem equipas de monitoria liderada pela comunidade para responder aos défices na prestação de serviços de HIV nas comunidades",null,null,null,null,null,null,0,0,0]
[null,null,null,"○","Existe colaboração entre diferentes redes de pessoas vivendo com HIV (PVHIV) e organizações lideradas pela comunidade das comunidades afectadas",null,null,null,null,null,null,0,0,0]
[null,null,null,"○","Os agentes de recolha de dados e outros membros da comunidade envolvidos na realização da monitoria liderada pela comunidade são remunerados de acordo com práticas e padrões nacionais",null,null,null,null,null,null,0,0,0]
[null,null,null,"○"," As comunidades transgénero são formadas e apoiadas para avaliar as unidades sanitárias e realizar a audiências públicas a fim de responsabilizar os dirigentes ",null,null,null,null,null,null,0,0,0]
[null,null,"Rastreamento do sistema de encaminhamento","Existem sistemas de rastreamento de encaminhamentos e contemplam:",null,null,null,null,null,{"$f":"O319","v":"-"},null,null,null,null,{"$f":"IFERROR(ROUND(AVERAGEIF(L320:N324,\"<>0\",L320:N324),0),\"-\")","v":"-"}]
[null,null,null,"○","Uma ferramenta de encaminhamento amplamente disponível, incluindo Procedimentos Operacionais Padrão claros",null,null,null,null,null,null,{"$f":"IF(ISBLANK(G320),0,1)","v":0},{"$f":"IF(ISBLANK(H320),0,3)","v":0},{"$f":"IF(ISBLANK(I320),0,5)","v":0}]
[null,null,null,"○","Um directório de encaminhamento nas unidades e nas organizações lideradas por pares ",null,null,null,null,null,null,{"$f":"IF(ISBLANK(G321),0,1)","v":0},{"$f":"IF(ISBLANK(H321),0,3)","v":0},{"$f":"IF(ISBLANK(I321),0,5)","v":0}]
[null,null,null,"○","Registo de resultados ",null,null,null,null,null,null,{"$f":"IF(ISBLANK(G322),0,1)","v":0},{"$f":"IF(ISBLANK(H322),0,3)","v":0},{"$f":"IF(ISBLANK(I322),0,5)","v":0}]
[null,null,null,"○","Mecanismos de feedback entre pacientes e fornecedores (de encaminhamentos) ",null,null,null,null,null,null,{"$f":"IF(ISBLANK(G323),0,1)","v":0},{"$f":"IF(ISBLANK(H323),0,3)","v":0},{"$f":"IF(ISBLANK(I323),0,5)","v":0}]
[null,null,null,"○","Relatórios sobre o encaminhamento (mensalmente) a fim de monitorizar a eficácia do sistema de encaminhamento",null,null,null,null,null,null,{"$f":"IF(ISBLANK(G324),0,1)","v":0},{"$f":"IF(ISBLANK(H324),0,3)","v":0},{"$f":"IF(ISBLANK(I324),0,5)","v":0}]
[null,null,"Avaliação de qualidade","Foram definidos sistemas de recolha de dados sobre a qualidade do programa e indicadores conexos e:\n",null,null,null,null,null,{"$f":"O325","v":"-"},null,null,null,null,{"$f":"IFERROR(ROUND(AVERAGEIF(L326:N329,\"<>0\",L326:N329),0),\"-\")","v":"-"}]
[null,null,null,"○","São recolhidos dados precisos",null,null,null,null,null,null,{"$f":"IF(ISBLANK(G326),0,1)","v":0},{"$f":"IF(ISBLANK(H326),0,3)","v":0},{"$f":"IF(ISBLANK(I326),0,5)","v":0}]
[null,null,null,"○","Os dados servem de base a acção ",null,null,null,null,null,null,{"$f":"IF(ISBLANK(G327),0,1)","v":0},{"$f":"IF(ISBLANK(H327),0,3)","v":0},{"$f":"IF(ISBLANK(I327),0,5)","v":0}]
[null,null,null,"○","Os mecanismos de feedback permitem as pessoas transgénero avaliar os serviços recebidos como mecanismo de monitorização da qualidade do programa",null,null,null,null,null,null,{"$f":"IF(ISBLANK(G328),0,1)","v":0},{"$f":"IF(ISBLANK(H328),0,3)","v":0},{"$f":"IF(ISBLANK(I328),0,5)","v":0}]
[null,null,null,"○","Os dados são auditados regularmente ",null,null,null,null,null,null,{"$f":"IF(ISBLANK(G329),0,1)","v":0},{"$f":"IF(ISBLANK(H329),0,3)","v":0},{"$f":"IF(ISBLANK(I329),0,5)","v":0}]
[null,null,"Vigilância ","A vigilância permite uma descrição precisa do contexto e resultados/impactos do programa da comunidade transgénero \n",null,null,null,null,null,{"$f":"O330","v":"-"},null,null,null,null,{"$f":"IFERROR(ROUND(AVERAGEIF(L331:N334,\"<>0\",L331:N334),0),\"-\")","v":"-"}]
[null,null,null,"○","Os resultados de estudos são utilizados para subsidiar a tomada de decisões e a correcção do percurso ",null,null,null,null,null,null,{"$f":"IF(ISBLANK(G331),0,1)","v":0},{"$f":"IF(ISBLANK(H331),0,3)","v":0},{"$f":"IF(ISBLANK(I331),0,5)","v":0}]
[null,null,null,"○","Envolve a análise e interpretação de dados em intervalos regulares ",null,null,null,null,null,null,{"$f":"IF(ISBLANK(G332),0,1)","v":0},{"$f":"IF(ISBLANK(H332),0,3)","v":0},{"$f":"IF(ISBLANK(I332),0,5)","v":0}]
[null,null,null,"○","Envolve a divulgação regular de informações para atender às necessidades locais, provinciais e nacionais ",null,null,null,null,null,null,{"$f":"IF(ISBLANK(G333),0,1)","v":0},{"$f":"IF(ISBLANK(H333),0,3)","v":0},{"$f":"IF(ISBLANK(I333),0,5)","v":0}]
[null,null,null,"○","Inclui inquéritos biológicos e comportamentais, inquéritos sentinela e outros estudos de investigação que examinem indicadores para pessoas transgénero ",null,null,null,null,null,null,{"$f":"IF(ISBLANK(G334),0,1)","v":0},{"$f":"IF(ISBLANK(H334),0,3)","v":0},{"$f":"IF(ISBLANK(I334),0,5)","v":0}]
[null,null,"Dados para tomada de decisão","O Programa Nacional, a Unidade de Monitoria e Avaliação do Ministério da Saúde, ou órgão de coordenação similar supervisiona/coordena a monitoria, pesquisa e recolha de dados de vigilância e:",null,null,null,null,null,{"$f":"O335","v":"-"},null,null,null,null,{"$f":"IFERROR(ROUND(AVERAGEIF(L336:N343,\"<>0\",L336:N343),0),\"-\")","v":"-"}]
[null,null,null,"○","Partilha dados com o Grupo de Trabalho Técnico da comunidade transgénero",null,null,null,null,null,null,{"$f":"IF(ISBLANK(G336),0,1)","v":0},{"$f":"IF(ISBLANK(H336),0,3)","v":0},{"$f":"IF(ISBLANK(I336),0,5)","v":0}]
[null,null,null,"○","O Grupo de Trabalho Técnico da comunidade transgénero analisa os dados do programa existentes trimestralmente e identifica áreas para correcção do percurso",null,null,null,null,null,null,0,0,0]
[null,null,null,"○","O Grupo de Trabalho Técnico da comunidade transgénero ajuda na elaboração de estratégias para suprir as lacunas ",null,null,null,null,null,null,0,0,0]
[null,null,null,"○","São recolhidos dados de boa qualidade (válidos, fiáveis, consistentes, precisos, atempados, relevantes) e a maioria das necessidades de informação são atendidas e, caso não sejam atendidas, as lacunas são compreendidas ",null,null,null,null,null,null,0,0,0]
[null,null,null,"○","Os dados são utilizados de forma consistente e adequada para fundamentar as decisões ",null,null,null,null,null,null,0,0,0]
[null,null,null,"○","Os dados foram desduplicados em todos os parceiros de implementação e os duplicações são mínimas, se existirem",null,null,null,null,null,null,0,0,0]
[null,null,null,"○","Os dados são agregados centralmente, mas podem ser desagregados por localidade, sexo e idade",null,null,null,null,null,null,0,0,0]
[null,null,null,"○","O programa fornece dados ao Grupo de Trabalho Técnico para análise",null,null,null,null,null,null,0,0,0]
[null,null,"Utilização do Código de Identificação Único para a monitoria do programa","Um sistema utilizado para monitorizar o programa está plenamente funcional e é adequado para acompanhar o desempenho do programa",null,null,null,null,null,{"$f":"O344","v":"-"},null,null,null,null,{"$f":"IFERROR(ROUND(AVERAGEIF(L345:N348,\"<>0\",L345:N348),0),\"-\")","v":"-"}]
[null,null,null,"○","Vários Códigos de Identificação Únicos podem ser utilizados num determinado país, mas estão harmonizados",null,null,null,null,null,null,{"$f":"IF(ISBLANK(G345),0,1)","v":0},{"$f":"IF(ISBLANK(H345),0,3)","v":0},{"$f":"IF(ISBLANK(I345),0,5)","v":0}]
[null,null,null,"○","O programa nacional utiliza dados agregados do Código de Identificação Único",null,null,null,null,null,null,{"$f":"IF(ISBLANK(G346),0,1)","v":0},{"$f":"IF(ISBLANK(H346),0,3)","v":0},{"$f":"IF(ISBLANK(I346),0,5)","v":0}]
[null,null,null,"○","O Código de Identificação Único é capaz de distinguir o contacto/alcance, com vista a desduplicação ",null,null,null,null,null,null,{"$f":"IF(ISBLANK(G347),0,1)","v":0},{"$f":"IF(ISBLANK(H347),0,3)","v":0},{"$f":"IF(ISBLANK(I347),0,5)","v":0}]
[null,null,null,"○","O Código de Identificação Único é baseado na electrónica",null,null,null,null,null,null,{"$f":"IF(ISBLANK(G348),0,1)","v":0},{"$f":"IF(ISBLANK(H348),0,3)","v":0},{"$f":"IF(ISBLANK(I348),0,5)","v":0}]
[null,null,"Monitoria orçamental","A monitoria do desempenho financeiro e não financeiro do programa de Raparigas Adolescentes e Mulheres Jovens é integrada e são gerados relatórios regulares: ",null,null,null,null,null,{"$f":"O349","v":"-"},null,null,null,null,{"$f":"IFERROR(ROUND(AVERAGEIF(L350:N352,\"<>0\",L350:N352),0),\"-\")","v":"-"}]
[null,null,null,"○","Os dados sobre as despesas relativas às intervenções relacionadas com pessoas transgénero são facilmente acessíveis ",null,null,null,null,null,null,{"$f":"IF(ISBLANK(G350),0,1)","v":0},{"$f":"IF(ISBLANK(H350),0,3)","v":0},{"$f":"IF(ISBLANK(I350),0,5)","v":0}]
[null,null,null,"○","Existem mecanismos de responsabilização para as sub-despesas. ",null,null,null,null,null,null,{"$f":"IF(ISBLANK(G351),0,1)","v":0},{"$f":"IF(ISBLANK(H351),0,3)","v":0},{"$f":"IF(ISBLANK(I351),0,5)","v":0}]
[null,null,null,"○","Os dados financeiros e não financeiros são utilizados para aferir a relação qualidade/preço.",null,null,null,null,null,null,{"$f":"IF(ISBLANK(G352),0,1)","v":0},{"$f":"IF(ISBLANK(H352),0,3)","v":0},{"$f":"IF(ISBLANK(I352),0,5)","v":0}]
[]
[null,null,"Resultados do Programa"]
[]
[null,null,"Resultados e indicadores"]
[null,null,"Indicador",null,null,"N/D","Não monitorizado ","Meta não atingida ou não está no rumo certo ","Meta atingida ou está no rumo certo ","Média por elemento","Comentários (se aplicável)"]
[null,null,"Estimativas da dimensão populacional de pessoas transgénero disponíveis",null,null,null,null,null,null,{"$f":"O358","v":"-"},null,{"$f":"IF(ISBLANK(G358),0,1)","v":0},{"$f":"IF(ISBLANK(H358),0,3)","v":0},{"$f":"IF(ISBLANK(I358),0,5)","v":0},{"$f":"IFERROR(ROUND(AVERAGEIF(L358:N358,\"<>0\",L358:N358),0),\"-\")","v":"-"}]
[null,null,"A estratégia de prevenção inclui elementos centrais do pacote de prevenção Transgénero",null,null,null,null,null,null,{"$f":"O359","v":"-"},null,0,0,0,{"$f":"IFERROR(ROUND(AVERAGEIF(L359:N359,\"<>0\",L359:N359),0),\"-\")","v":"-"}]
[null,null,"Prevalência do HIV entre pessoas transgénero",null,null,null,null,null,null,{"$f":"O360","v":"-"},null,0,0,0,"-"]
[null,null,"Pessoas transgénero vivendo com o HIV conhecem o seu estado de seropositividade (meta 90%) ",null,null,null,null,null,null,{"$f":"O361","v":"-"},null,0,0,0,"-"]
[null,null,"Pessoas transgénero vivendo com HIV em terapia anti-retroviral (meta 90%) ",null,null,null,null,null,null,"-",null,0,0,0,"-"]
[null,null,"Pessoas transgénero vivendo com HIV que suprimiram cargas virais (meta 90%)",null,null,null,null,null,null,"-",null,0,0,0,"-"]
[null,null,"Pessoas transgénero que receberam pelo menos 2 intervenções de prevenção do HIV nos últimos 3 meses",null,null,null,null,null,null,"-",null,0,0,0,"-"]
[null,null,"Criminalização de pessoas transgénero",null,null,null,null,null,null,"-",null,0,0,0,"-"]
[null,null,"% de pessoas transgénero que evitaram cuidados de saúde devido ao estigma e discriminação ",null,null,null,null,null,null,"-",null,0,0,0,"-"]
[null,null,"Cuidados de saúde afirmativos de género prestados em centros de saúde",null,null,null,null,null,null,"-",null,0,0,0,"-"]
[null,null,"Uso de preservativo entre pessoas transgénero (meta 80%)",null,null,null,null,null,null,"-",null,0,0,0,"-"]
[null,null,null,null,null,null,null,null,null,null,null,null,{"$f":"COUNTIF(O6:O368,\"-\")","v":65}]
[null,null,null,null,null,null,null,null,null,null,null,null,{"$f":"COUNTIF(O6:O368,\">0\")","v":0}]
[null,null,null,null,null,null,null,null,null,null,null,"Preenchimento de folha",{"$f":"M370/(M369+M370)","v":0},{"$f":"1-M371","v":1}]

{"sheet":"Prisioneiros ","index":7,"n_rows":328,"n_cols":16,"rows_kept":328,"cut":false,"hidden":false,"merged":[[316,2,316,8],[317,3,317,4],[320,2,320,4],[321,2,321,4],[322,2,322,4],[311,2,314,2],[311,3,311,4],[311,9,314,9],[318,2,318,4],[319,2,319,4],[297,2,305,2],[297,3,297,4],[297,9,305,9],[306,2,310,2],[306,3,306,4],[306,9,310,9],[287,2,291,2],[287,3,287,4],[287,9,291,9],[292,2,296,2],[292,3,292,4],[292,9,296,9],[281,2,286,2],[281,3,281,4],[281,9,286,9],[256,2,263,2],[256,3,256,4],[256,9,263,9],[264,2,264,8],[265,3,265,4],[266,2,273,2],[266,3,266,4],[266,9,273,9],[274,3,274,4],[274,9,280,9],[274,2,280,2],[247,2,251,2],[247,3,247,4],[247,9,251,9],[252,2,255,2],[252,3,252,4],[252,9,255,9],[240,2,243,2],[240,3,240,4],[240,9,243,9],[244,3,244,4],[245,2,246,2],[245,3,245,4],[245,9,246,9],[232,2,239,2],[232,3,232,4],[232,9,239,9],[218,2,218,8],[219,3,219,4],[220,2,225,2],[220,3,220,4],[220,9,225,9],[226,2,226,8],[212,2,214,2],[212,3,212,4],[212,9,214,9],[215,2,217,2],[215,3,215,4],[215,9,217,9],[227,3,227,4],[228,2,231,2],[228,9,231,9],[204,2,208,2],[204,3,204,4],[204,9,208,9],[209,2,211,2],[209,3,209,4],[209,9,211,9],[186,2,196,2],[186,3,186,4],[186,9,196,9],[197,2,203,2],[197,3,197,4],[197,9,203,9],[177,2,180,2],[177,3,177,4],[177,9,180,9],[181,3,181,4],[182,2,185,2],[182,3,182,4],[182,9,185,9],[158,2,170,2],[158,3,158,4],[158,9,170,9],[171,2,176,2],[171,3,171,4],[171,9,176,9],[146,2,151,2],[146,3,146,4],[146,9,151,9],[152,2,152,8],[153,3,153,4],[154,2,157,2],[154,3,154,4],[154,9,157,9],[130,2,130,8],[131,3,131,4],[132,2,139,2],[132,3,132,4],[132,9,139,9],[140,2,145,2],[140,3,140,4],[140,9,145,9],[118,2,124,2],[118,3,118,4],[118,9,124,9],[125,2,129,2],[125,3,125,4],[125,9,129,9],[107,2,111,2],[107,3,107,4],[107,9,111,9],[112,2,117,2],[112,3,112,4],[112,9,117,9],[91,2,99,2],[91,3,91,4],[91,9,99,9],[100,2,100,8],[101,3,101,4],[102,2,106,2],[102,3,102,4],[102,9,106,9],[80,2,86,2],[80,3,80,4],[80,9,86,9],[87,2,90,2],[87,3,87,4],[87,9,90,9],[61,2,64,2],[61,3,61,4],[61,9,64,9],[73,2,73,8],[74,3,74,4],[75,2,79,2],[75,3,75,4],[75,9,79,9],[52,2,56,2],[52,3,52,4],[52,9,56,9],[57,2,57,8],[58,3,58,4],[59,2,60,2],[59,3,59,4],[59,9,60,9],[67,2,70,2],[67,9,70,9],[42,2,46,2],[42,3,42,4],[42,9,46,9],[47,2,47,8],[48,3,48,4],[49,2,51,2],[49,3,49,4],[49,9,51,9],[21,3,21,4],[21,9,27,9],[28,2,34,2],[28,3,28,4],[28,9,34,9],[35,2,41,2],[35,3,35,4],[35,9,41,9],[21,2,27,2],[3,2,3,8],[4,3,4,4],[5,2,14,2],[5,3,5,4],[5,9,14,9],[15,2,20,2],[15,3,15,4],[1,2,1,9],[15,9,20,9]]}
[]
[null,null,"Gestão de Programas"]
[]
[null,null,"Liderança e Coordenação"]
[null,null,"Elemento","Critérios",null,"N/D","Ausente","Presente mas não ideal","Presente e funcionando bem","Média por elemento","Comentários (se aplicável) ","Absent","Present","Optimal","Average","Sustainability Single Figure"]
[null,null,"Estratégia Nacional das Populações-chave","Existe a inclusão de prisioneiros na estratégia nacional das populações-chave e na estratégia nacional global de prevenção do HIV:",null,null,null,null,null,{"$f":"O6","v":"-"},null,null,null,null,{"$f":"IFERROR(ROUND(AVERAGEIF(L7:N15,\"<>0\",L7:N15),0),\"-\")","v":"-"}]
[null,null,null,"○","Os prisioneiros foram envolvidos na elaboração do plano estratégico ",null,null,null,null,null,null,{"$f":"IF(ISBLANK(G7),0,1)","v":0},{"$f":"IF(ISBLANK(H7),0,3)","v":0},{"$f":"IF(ISBLANK(I7),0,5)","v":0}]
[null,null,null,"○","Os objectivos e metas foram claramente definidos para o programa  ",null,null,null,null,null,null,0,0,0]
[null,null,null,"○","Os prisioneiros ou pessoas em locais fechados foram claramente definidos de acordo com as directrizes do Escritório das Nações Unidas sobre Drogas e Crime (UNODC) ",null,null,null,null,null,null,0,0,0]
[null,null,null,"○","Foi atriculado um modelo lógico ou teoria da mudança claros  ",null,null,null,null,null,null,0,0,0]
[null,null,null,"○","O plano inclui um pacote abrangente de intervenções e actividades baseadas em evidências, alinhadas com as Ferramentas de Implementação da Organização Mundial de Saúde, identificadas por Prisioneiros, incluindo intervenções não relacionadas com o sector da saúde (por exemplo, empoderamento da comunidade, combate à violência, redução do estigma, entre outras) e adaptadas para responder a vulnerabilidades específicas.",null,null,null,null,null,null,0,0,0]
[null,null,null,"○","Foi definida uma expansão clara com responsabilidades atribuídas ",null,null,null,null,null,null,0,0,0]
[null,null,null,"○","Existem vigor planos de financiamento ",null,null,null,null,null,null,0,0,0]
[null,null,null,"○","Foi definido um quadro de monitoria e avaliação com indicadores e metas nucleares",null,null,null,null,null,null,0,0,0]
[null,null,null,"○","Mecanismo de implementação claramente definido",null,null,null,null,null,null,0,0,0]
[null,null,"Responsabilização","O departamento/ministério principal responsável pelo sucesso do programa, com uma forte liderança/autoridade, foi identificado:",null,null,null,null,null,{"$f":"O16","v":"-"},null,null,null,null,{"$f":"IFERROR(ROUND(AVERAGEIF(L17:N21,\"<>0\",L17:N21),0),\"-\")","v":"-"}]
[null,null,null,"○","Todos os projectos no país apresentam relatórios regulares sobre indicadores-chave para o governo a nível sub-nacional e nacional, com indicadores comuns, ",null,null,null,null,null,null,{"$f":"IF(ISBLANK(G17),0,1)","v":0},{"$f":"IF(ISBLANK(H17),0,3)","v":0},{"$f":"IF(ISBLANK(I17),0,5)","v":0}]
[null,null,null,"○","Nestes relatórios, os dados são tornados anónimos e protegidos por forma a proteger os Prisioneiros  ",null,null,null,null,null,null,0,0,0]
[null,null,null,"○","São efectuadas avaliações programáticas regulares com recurso a dados programáticos",null,null,null,null,null,null,0,0,0]
[null,null,null,"○","O Ministério responsável pelo programa participa nas reuniões de coordenação relevantes.",null,null,null,null,null,null,0,0,0]
[null,null,null,"○","O Grupo de Trabalho Técnico de População-Chave (GTT), com representação de prisioneiros, está envolvido na garantia da responsabilização",null,null,null,null,null,null,0,0,0]
[null,null,"Grupo de trabalho técnico para Prisioneiros","Foi criado um Grupo de Trabalho Técnico Nacional para os Prisioneiros:",null,null,null,null,null,{"$f":"O22","v":"-"},null,null,null,null,{"$f":"IFERROR(ROUND(AVERAGEIF(L23:N28,\"<>0\",L23:N28),0),\"-\")","v":"-"}]
[null,null,null,"○","Reúne-se regularmente ",null,null,null,null,null,null,0,0,0]
[null,null,null,"○","O Grupo de Trabalho Técnico está completo e integra Organizações da Sociedade Civil (OSC), parceiros de implementação, representantes das populações afectadas",null,null,null,null,null,null,0,0,0]
[null,null,null,"○","O Grupo de Trabalho Técnico dispõe de mecanismos de comunicação para assegurar a coordenação",null,null,null,null,null,null,0,0,0]
[null,null,null,"○","Eles dispõem de mecanismos de comunicação ",null,null,null,null,null,null,0,0,0]
[null,null,null,"○","Têm Termos de Referência (TdR) ou um âmbito definido ",null,null,null,null,null,null,0,0,0]
[null,null,null,"○","Membros da Comunidade dos Prisioneiros estão incluídos",null,null,null,null,null,null,0,0,0]
[null,null,"Coordenação das Partes Interessadas","Existem mecanismos para assegurar que a coordenação seja alcançada em todos os níveis e que a mesma seja bem sucedida e consistente com: ",null,null,null,null,null,{"$f":"O29","v":"-"},null,null,null,null,{"$f":"IFERROR(ROUND(AVERAGEIF(L30:N35,\"<>0\",L30:N35),0),\"-\")","v":"-"}]
[null,null,null,"○","Parceiros de financiamento (a nível nacional)",null,null,null,null,null,null,0,0,0]
[null,null,null,"○","Programas locais com iniciativas nacionais mais amplas ",null,null,null,null,null,null,0,0,0]
[null,null,null,"○","Comunidades afectadas",null,null,null,null,null,null,0,0,0]
[null,null,null,"○","Parceiros de implementação ",null,null,null,null,null,null,0,0,0]
[null,null,null,"○","Ministério da Saúde/Departamentos de Saúde do Governo (a nível nacional e sub-nacional)",null,null,null,null,null,null,0,0,0]
[null,null,null,"○","Foi conseguida uma coordenação multi-sectorial com outros ministérios/departamentos (por exemplo, finanças e lei e ordem)",null,null,null,null,null,null,0,0,0]
[null,null,"Plano de Capacitação e Assistência Técnica","Existe um Plano de Assistência Técnica e: ",null,null,null,null,null,{"$f":"O36","v":"-"},null,null,null,null,{"$f":"IFERROR(ROUND(AVERAGEIF(L37:N42,\"<>0\",L37:N42),0),\"-\")","v":"-"}]
[null,null,null,"○","Foi desenvolvido com base em alguma avaliação ",null,null,null,null,null,null,0,0,0,null,{"$f":"IF(MAX(L37:N37)=0,\"\",MAX(L37:N37))","v":""}]
[null,null,null,"○","Utiliza peritos técnicos nacionais e internacionais, incluindo o desenvolvimento de capacidades entre pares e assistência técnica",null,null,null,null,null,null,0,0,0,null,""]
[null,null,null,"○","Priorizou os componentes programáticas e questões de política ",null,null,null,null,null,null,0,0,0,null,""]
[null,null,null,"○","Facilita o estabelecimento e o fortalecimento de redes de implementadores ",null,null,null,null,null,null,0,0,0,null,""]
[null,null,null,"○","Identifica lacunas e formula pedidos consolidados de assistência quando falta experiência no país ",null,null,null,null,null,null,0,0,0,null,""]
[null,null,null,"○","Facilita o desenvolvimento de capacidade da comunidade de Prisioneiros para que esta se possa apropriar dos programas para Prisioneiros ",null,null,null,null,null,null,0,0,0,null,""]
[null,null,"Plano de sustentabilidade e roteiro de transição","Existe um plano de sustentabilidade e roteiro de transição completos, que delineiam a transição intervenções apoiadas por doadores para intervenções apoiadas internamente, sendo estes fundamentados por: ",null,null,null,null,null,{"$f":"O43","v":"-"},null,null,null,null,{"$f":"IFERROR(ROUND(AVERAGEIF(L44:N47,\"<>0\",L44:N47),0),\"-\")","v":"-"},""]
[null,null,null,"○","Um exercício de cálculo dos custos unitários da População-chave",null,null,null,null,null,null,0,0,0,null,""]
[null,null,null,"○","Uma análise do panorama de financiamento da população-chave",null,null,null,null,null,null,0,0,0,null,""]
[null,null,null,"○","Planificação para a integração de serviços da PC em cuidados de saúde primários",null,null,null,null,null,null,0,0,0]
[null,null,null,"○","Considera os recursos financeiros, humanos e infra-estruturas necessários",null,null,null,null,null,null,0,0,0,null,""]
[null,null,"Leis, Políticas e Regulamentos"]
[null,null,"Elemento","Critérios",null,"N/D","Ausente","Presente mas não ideal","Presente e funcionando bem","Média por elemento","Comentários (se aplicável) "]
[null,null,"Leis e Políticas ","As políticas promovem activamente o bom funcionamento do programa de prevenção de HIV para os prisioneiros: ",null,null,null,null,null,{"$f":"O50","v":"-"},null,null,null,null,{"$f":"IFERROR(ROUND(AVERAGEIF(L51:N52,\"<>0\",L51:N52),0),\"-\")","v":"-"}]
[null,null,null,"○","Disponibilidade de políticas que promovem activamente o acesso de Prisioneiros a serviços, inclusive para prisioneiros juvenis",null,null,null,null,null,null,{"$f":"IF(ISBLANK(G51),0,1)","v":0},{"$f":"IF(ISBLANK(H51),0,3)","v":0},{"$f":"IF(ISBLANK(I51),0,5)","v":0}]
[null,null,null,"○","Existem políticas que apoiem os serviços de acesso dos prisioneiros apesar das leis que criminalizam o uso de drogas, o trabalho sexual, a actividade sexual do mesmo sexo",null,null,null,null,null,null,{"$f":"IF(ISBLANK(G52),0,1)","v":0},{"$f":"IF(ISBLANK(H52),0,3)","v":0},{"$f":"IF(ISBLANK(I52),0,5)","v":0}]
[null,null,"Directrizes","As seguintes directrizes existem e explicam de forma clara as etapas para uma implementação bem-sucedida do programa:",null,null,null,null,null,{"$f":"O53","v":"-"},null,null,null,null,{"$f":"IFERROR(ROUND(AVERAGEIF(L54:N57,\"<>0\",L54:N57),0),\"-\")","v":"-"}]
[null,null,null,"○","Existem directrizes nacionais para cada uma das intervenções e serviços comportamentais, biomédicos e estruturais, estando estas alinhadas com a orientação global ",null,null,null,null,null,null,{"$f":"IF(ISBLANK(G54),0,1)","v":0},{"$f":"IF(ISBLANK(H54),0,3)","v":0},{"$f":"IF(ISBLANK(I54),0,5)","v":0}]
[null,null,null,"○","Foram elaboradas directrizes em colaboração com as populações afectadas",null,null,null,null,null,null,0,0,0]
[null,null,null,"○","As directrizes nacionais para os serviços de testagem do HIV, Infeções de Transmissão Sexual, Profilaxia Pré-Exposição e Preservativos têm em conta as necessidades e prioridades dos prisioneiros",null,null,null,null,null,null,0,0,0]
[null,null,null,"○","Medidas de prevenção e controlo de infeções por COVID-19 são incorporadas em todas as estratégias, planos e directrizes de prevenção do HIV/ Prisioneiros",null,null,null,null,null,null,0,0,0]
[null,null,"Financiamentos"]
[null,null,"Elemento","Critérios",null,"N/D","Ausente","Presente mas não ideal","Presente e funcionando bem","Média por elemento","Comentários (se aplicável) "]
[null,null,"Custos ","Orçamento nacional em vigor:",null,null,null,null,null,{"$f":"O60","v":"-"},null,null,null,null,{"$f":"IFERROR(ROUND(AVERAGEIF(L61:N61,\"<>0\",L61:N61),0),\"-\")","v":"-"}]
[null,null,null,"○","Foi realizado um exercício de orçamentação e o programa nacional está a par do custo médio para chegar a um prisioneiro com um pacote padrão de serviços de acordo com as directrizes ",null,null,null,null,null,null,{"$f":"IF(ISBLANK(G61),0,1)","v":0},{"$f":"IF(ISBLANK(H61),0,3)","v":0},{"$f":"IF(ISBLANK(I61),0,5)","v":0}]
[null,null,"Planificação orçamental","Existe um processo bem gerido de planificação orçamental para o programa de prevenção do HIV que têm em conta pessoas transgénero",null,null,null,null,null,{"$f":"O62","v":"-"},null,null,null,null,{"$f":"IFERROR(ROUND(AVERAGEIF(L63:N65,\"<>0\",L63:N65),0),\"-\")","v":"-"}]
[null,null,null,"○","Está em curso uma avaliação dos recursos disponíveis a fim de tentar identificar lacunas e afectar um orçamento ao programa",null,null,null,null,null,null,0,0,0]
[null,null,null,"○","Foi desenvolvida uma estratégia para colmatar lacunas de financiamento",null,null,null,null,null,null,0,0,0]
[null,null,null,"○","Os orçamentos estão associados às necessidades de recursos dos planos operacionais para as unidades nacionais e sub-nacionais",null,null,null,null,null,null,0,0,0]
[null,null,"Mobilização de recursos e financiamento","○","Existe financiamento suficiente para fazer face às necessidades holísticas de programação ",null,null,null,null,{"$f":"O66","v":"-"},null,{"$f":"IF(ISBLANK(G66),0,1)","v":0},{"$f":"IF(ISBLANK(H66),0,3)","v":0},{"$f":"IF(ISBLANK(I66),0,5)","v":0},{"$f":"IFERROR(ROUND(AVERAGEIF(L66:N66,\"<>0\",L66:N66),0),\"-\")","v":"-"},{"$f":"IF(MAX(L66:N66)=0,\"\",MAX(L66:N66))","v":""}]
[null,null,"Recursos internos","○","Mais de 50% dos recursos que apoiam o programa, humanos e financeiros, são domésticos",null,null,null,null,{"$f":"O67","v":"-"},null,{"$f":"IF(ISBLANK(G67),0,1)","v":0},{"$f":"IF(ISBLANK(H67),0,3)","v":0},{"$f":"IF(ISBLANK(I67),0,5)","v":0},{"$f":"IFERROR(ROUND(AVERAGEIF(L67:N67,\"<>0\",L67:N67),0),\"-\")","v":"-"},{"$f":"IF(MAX(L67:N67)=0,\"\",MAX(L67:N67))","v":""}]
[null,null,"Contratação social","○","Foram desenvolvidos mecanismos de contratação social, estando estes a ser implementados",null,null,null,null,{"$f":"O68","v":"-"},null,{"$f":"IF(ISBLANK(G68),0,1)","v":0},{"$f":"IF(ISBLANK(H68),0,3)","v":0},{"$f":"IF(ISBLANK(I68),0,5)","v":0},{"$f":"IFERROR(ROUND(AVERAGEIF(L68:N71,\"<>0\",L68:N71),0),\"-\")","v":"-"},{"$f":"IF(MAX(L68:N68)=0,\"\",MAX(L68:N68))","v":""}]
[null,null,null,"○","A informação é amplamente divulgada com vista a permitir que Parceiros locais de Implementação e organizações dirigidas por prisioneiros tenham acesso a financiamento",null,null,null,null,null,null,{"$f":"IF(ISBLANK(G69),0,1)","v":0},{"$f":"IF(ISBLANK(H69),0,3)","v":0},{"$f":"IF(ISBLANK(I69),0,5)","v":0}]
[null,null,null,"○","Existe um mecanismo que permite o financiamento a organizações lideradas pela comunidade",null,null,null,null,null,null,0,0,0]
[null,null,null,"○","Os fundos são reservados a organizações lideradas pela comunidade ",null,null,null,null,null,null,0,0,0]
[null,null,"Implementação do Programa"]
[]
[null,null,"Segmentação e Planificação"]
[null,null,"Elemento","Critérios",null,"N/D","Ausente","Presente mas não ideal","Presente e funcionando bem","Média por elemento","Comentários (se aplicável) "]
[null,null,"Avaliação demográfica (estimativa da dimensão da população e micro-planificação)","Estimativa da Dimensão da População e micro-planificação concluídos e:",null,null,null,null,null,{"$f":"O76","v":"-"},null,null,null,null,{"$f":"IFERROR(ROUND(AVERAGEIF(L77:N80,\"<>0\",L77:N80),0),\"-\")","v":"-"}]
[null,null,null,"○","É baseada no local (nível local em vez do país ou região)",null,null,null,null,null,null,0,0,0]
[null,null,null,"○","É actualizada anualmente ou no final de um inquérito bio-comportamental",null,null,null,null,null,null,0,0,0]
[null,null,null,"○","A informação é utilizada para fundamentar a necessidade de intervenções comportamentais, biomédicas e estruturais   ",null,null,null,null,null,null,0,0,0]
[null,null,null,"○","Esta informação também é utilizada para fazer uma estimativa dos requisitos em matéria de fundos e para a definição de metas",null,null,null,null,null,null,0,0,0]
[null,null,"Avaliação epidemiológica (inquérito de sero-prevalência e determinantes de risco)","As estimativas de sero-prevalência estão disponíveis e:",null,null,null,null,null,{"$f":"O81","v":"-"},null,null,null,null,{"$f":"IFERROR(ROUND(AVERAGEIF(L82:N87,\"<>0\",L82:N87),0),\"-\")","v":"-"}]
[null,null,null,"○","Com base numa vigilância recente e/ou contínua (estimativas modeladas actualizadas anualmente ou dados do inquérito actualizados a cada 3-5 anos)",null,null,null,null,null,null,0,0,0]
[null,null,null,"○","Específico à prisioneiros",null,null,null,null,null,null,0,0,0]
[null,null,null,"○","Os resultados são precisos; tamanho da amostra estatisticamente representativo (com alimentação adequada) e método de amostragem adequado para Prisioneiros",null,null,null,null,null,null,0,0,0]
[null,null,null,"○","Foram regularmente realizadas avaliações dos determinantes de risco para Prisioneiros com vista a fundamentar o programa:",null,null,null,null,null,null,0,0,0]
[null,null,null,null,"> São específica a TS e têm em conta comportamentos específicos a idade e género  ",null,null,null,null,null,null,0,0,0]
[null,null,null,null," > Os estudos são de boa qualidade e fornecem informação exaustiva  ",null,null,null,null,null,null,0,0,0]
[null,null,"Avaliação das necessidades","Foi concluída uma avaliação de necessidades para Prisioneiros a nível da implementação e/ou local:",null,null,null,null,null,{"$f":"O88","v":"-"},null,null,null,null,{"$f":"IFERROR(ROUND(AVERAGEIF(L89:N91,\"<>0\",L89:N91),0),\"-\")","v":"-"}]
[null,null,null,"○","Contactos adequados com Prisioneiros e organizações ou redes lideradas por estes lideradas a fim de aferir as necessidades",null,null,null,null,null,null,0,0,0]
[null,null,null,"○","Informações suficientes sobre que serviços os Prisioneiros precisam, como prefeririam aceder aos serviços e quem deveria prestar os mesmos. ",null,null,null,null,null,null,0,0,0]
[null,null,null,"○","Informações completas sobre onde residem as lacunas em termos de prestação de serviços e barreiras ao acesso",null,null,null,null,null,null,0,0,0]
[null,null,"Definição de metas","As metas para os Prisioneiros foram claramente definidas e:",null,null,null,null,null,{"$f":"O92","v":"-"},null,null,null,null,{"$f":"IFERROR(ROUND(AVERAGEIF(L93:N100,\"<>0\",L93:N100),0),\"-\")","v":"-"}]
[null,null,null,"○","Baseiam-se nos dados da estimativa da dimensão e de avaliação de risco",null,null,null,null,null,null,0,0,0]
[null,null,null,"○","Delineadas para Prisioneiros ",null,null,null,null,null,null,0,0,0]
[null,null,null,"○","Especificada a nível nacional e sub-nacional ",null,null,null,null,null,null,0,0,0]
[null,null,null,"○","Incluem realizações já alcançadas e realizações previstas no final ",null,null,null,null,null,null,0,0,0]
[null,null,null,"○","Formuladas em consulta com implementadores e redes de prisioneiros de modo a garantir que sejam realistas",null,null,null,null,null,null,0,0,0]
[null,null,null,"○","Combinam orçamentos e acordos formais com implementadores locais",null,null,null,null,null,null,0,0,0]
[null,null,null,"○","Estão desagregadas por idade e sexo",null,null,null,null,null,null,0,0,0]
[null,null,null,"○","As metas do Fundo Global e do Plano de Emergência do Presidente dos EUA para o Alívio da SIDA (PEPFAR) referem-se às estimativas de dimensão nacional e a metas nacionais ",null,null,null,null,null,null,0,0,0]
[null,null,"Mecanismo de Implementação "]
[null,null,"Elemento","Critérios",null,"N/D","Ausente","Presente mas não ideal","Presente e funcionando bem","Média por elemento","Comentários (se aplicável) "]
[null,null,"Manter uma plataforma de acesso","Uma plataforma de acesso promove esforços coordenados baseados na comunidade e clínica que; ",null,null,null,null,null,{"$f":"O103","v":"-"},null,null,null,null,{"$f":"IFERROR(ROUND(AVERAGEIF(L104:N107,\"<>0\",L104:N107),0),\"-\")","v":"-"}]
[null,null,null,"○","Geram confiança em toda a comunidade através dos Agentes de Sensibilização de Pares (Peer Outreach Workers) ",null,null,null,null,null,null,0,0,0]
[null,null,null,"○","Atingem os prisioneiros em elevado número e incentivam a sua adesão, retenção e participação activa no programa.",null,null,null,null,null,null,0,0,0]
[null,null,null,"○","Incentiva a adesão e a retenção de prisioneiros ",null,null,null,null,null,null,0,0,0]
[null,null,null,"○","Incentiva a participação activa de prisioneiros ",null,null,null,null,null,null,0,0,0]
[null,null,"Estrutura de gestão","O processo da estrutura de gestão foi definido e: ",null,null,null,null,null,{"$f":"O108","v":"-"},null,null,null,null,{"$f":"IFERROR(ROUND(AVERAGEIF(L109:N112,\"<>0\",L109:N112),0),\"-\")","v":"-"}]
[null,null,null,"○","Proporção adequada de Agentes de Sensibilização de Pares para as populações afectadas ",null,null,null,null,null,null,0,0,0]
[null,null,null,"○","Existem directrizes para o recrutamento, retenção, avaliação e promoção de Agentes de Sensibilização de Pares",null,null,null,null,null,null,0,0,0]
[null,null,null,"○","A supervisão adequada dos Agentes de Sensibilização de Pares é assegurada pelos Supervisores de Pares ",null,null,null,null,null,null,0,0,0]
[null,null,null,"○","Está estabelecido um mecanismo formal de encaminhamento ",null,null,null,null,null,null,0,0,0]
[null,null,"Fluxo de dados ","Foram definidos fluxos de dados em cada nível e:",null,null,null,null,null,{"$f":"O113","v":"-"},null,null,null,null,{"$f":"IFERROR(ROUND(AVERAGEIF(L114:N118,\"<>0\",L114:N118),0),\"-\")","v":"-"}]
[null,null,null,"○","Sistemas de dados foram desenvolvidos e testados ",null,null,null,null,null,null,0,0,0]
[null,null,null,"○","Os indicadores padrão para a monitorização do programa de PC estão finalizados",null,null,null,null,null,null,0,0,0]
[null,null,null,"○","Foram desenvolvidas ferramentas padrão para a elaboração de relatórios ",null,null,null,null,null,null,0,0,0]
[null,null,null,"○","Os dados programáticos são comunicados e analisados mensalmente ",null,null,null,null,null,null,0,0,0]
[null,null,null,"○","Existem sistemas para manter a confidencialidade dos dados ",null,null,null,null,null,null,0,0,0]
[null,null,"Agentes de Sensibilização de Pares (ASP) ","Os Agentes de Sensibilização de Pares são utilizados de forma eficaz no programa:\n",null,null,null,null,null,{"$f":"O119","v":"-"},null,null,null,null,{"$f":"IFERROR(ROUND(AVERAGEIF(L120:N125,\"<>0\",L120:N125),0),\"-\")","v":"-"}]
[null,null,null,"○","Os ASP são recrutados no seio da comunidade de prisioneiros que representam ou servem",null,null,null,null,null,null,0,0,0]
[null,null,null,"○","Currículo de formação disponível, apropriado e inclui formação cínica para a actualização de conhecimento de ASP de prisioneiros sobre necessidades específicas destes",null,null,null,null,null,null,0,0,0]
[null,null,null,"○","Os ASP beneficiam de formação em micro-planificação e sensibilização",null,null,null,null,null,null,0,0,0]
[null,null,null,"○","Utilizam mensagens e materiais de comunicação baseados em evidências",null,null,null,null,null,null,0,0,0]
[null,null,null,"○","Fornecem informações sobre os serviços disponíveis e encaminham e associam os beneficiários aos serviços ",null,null,null,null,null,null,0,0,0]
[null,null,null,"○","Fornecem aconselhamento e apoio emocional para a manutenção no tratamento",null,null,null,null,null,null,0,0,0]
[null,null,"Envolvimento significativo das comunidades afectadas na liderança e coordenação","Membros das populações afectadas estão representados no organismo nacional de coordenação ou no grupo de trabalho técnico e:\n\n",null,null,null,null,null,{"$f":"O126","v":"-"},null,null,null,null,{"$f":"IFERROR(ROUND(AVERAGEIF(L127:N130,\"<>0\",L127:N130),0),\"-\")","v":"-"}]
[null,null,null,"○","Eles se reúnem regularmente",null,null,null,null,null,null,{"$f":"IF(ISBLANK(G127),0,1)","v":0},{"$f":"IF(ISBLANK(H127),0,3)","v":0},{"$f":"IF(ISBLANK(I127),0,5)","v":0}]
[null,null,null,"○","Participam activamente nos processos de tomada de decisão como parceiros iguais ",null,null,null,null,null,null,0,0,0]
[null,null,null,"○","São apoiados de modo a solicitar comentários e prestar informações sobre as principais decisões aos grupos que representam",null,null,null,null,null,null,0,0,0]
[null,null,null,"○","Existem provas de que os comentários, contribuições e aconselhamento especializado fornecidos pela organização/rede liderada por prisioneiros são tidos em conta",null,null,null,null,null,null,0,0,0]
[null,null,"Prestação de Serviços"]
[null,null,"Elemento","Critérios",null,"N/D","Ausente","Presente mas não ideal","Presente e funcionando bem","Média por elemento","Comentários (se aplicável) "]
[null,null,"Serviços acessíveis","Os serviços são acessíveis aos prisioneiros e:",null,null,null,null,null,{"$f":"O133","v":"-"},null,null,null,null,{"$f":"IFERROR(ROUND(AVERAGEIF(L134:N140,\"<>0\",L134:N140),0),\"-\")","v":"-"}]
[null,null,null,"○","São concebidos com base em pesquisas formativas realizadas na fase de avaliação de necessidades ",null,null,null,null,null,null,0,0,0]
[null,null,null,"○","Estão convenientemente localizados dentro ou nas proximidades de hotspots",null,null,null,null,null,null,0,0,0]
[null,null,null,"○","Contemplam serviços móveis sempre que necessário ",null,null,null,null,null,null,0,0,0]
[null,null,null,"○","Os horários de funcionamento são adequados para os prisioneiros que pretendem alcançar ",null,null,null,null,null,null,0,0,0]
[null,null,null,"○","Estão integrados com o sistema de saúde geral e oferecem pacotes de cuidados abrangentes ",null,null,null,null,null,null,0,0,0]
[null,null,null,"○","Têm uma oferta constante de serviços e produtos",null,null,null,null,null,null,0,0,0]
[null,null,null,"○","Envolvem a mudança de tarefas de modo a permitir o desenvolvimento da capacidade dos provedores de cuidados de saúde",null,null,null,null,null,null,0,0,0]
[null,null,"Serviços aceitáveis","Os serviços são aceitáveis para os Prisioneiros e:",null,null,null,null,null,{"$f":"O141","v":"-"},null,null,null,null,{"$f":"IFERROR(ROUND(AVERAGEIF(L142:N146,\"<>0\",L142:N146),0),\"-\")","v":"-"}]
[null,null,null,"○","São confidenciais e voluntários ",null,null,null,null,null,null,0,0,0]
[null,null,null,"○","Os provedores são sensíveis às necessidades dos Prisioneiros, sem juízos de valor e sem estigmatização",null,null,null,null,null,null,0,0,0]
[null,null,null,"○","Os provedores são treinados para poderem oferecer um pacote abrangente de intervenção específico para Prisioneiros ",null,null,null,null,null,null,0,0,0]
[null,null,null,"○","Criam um ambiente seguro e de apoio ",null,null,null,null,null,null,0,0,0]
[null,null,null,"○","As intervenções online são realizadas de forma ética, respeitando a privacidade e a confidencialidade dos clientes",null,null,null,null,null,null,0,0,0]
[null,null,"Serviços personalizados/adequados","Pacote de serviços e abordagens de prestação adaptadas às necessidades específicas dos Prisioneiros em toda a sua diversidade:",null,null,null,null,null,{"$f":"O147","v":"-"},null,null,null,null,{"$f":"IFERROR(ROUND(AVERAGEIF(L148:N152,\"<>0\",L148:N152),0),\"-\")","v":"-"}]
[null,null,null,"○","O pacote de serviços para Prisioneiros contempla todos os serviços relevantes de Saúde Sexual e Reprodutiva de acordo com as directrizes da OMS ",null,null,null,null,null,null,0,0,0]
[null,null,null,"○","Ampla disponibilidade de iniciação de Terapia Anti-Retroviral para Prisioneiros vivendo vivendo com HIV",null,null,null,null,null,null,0,0,0]
[null,null,null,"○","Os serviços são prestados de uma forma acessível a Prisioneiros Juvenis (ex.: respondendo à questões relacionadas com a idade do consentimento)",null,null,null,null,null,null,0,0,0]
[null,null,null,"○","Serviços adicionais (ou ligação a) disponibilizados com base nas necessidades específicas dos Prisioneiros (ex.; serviços de saúde de afirmação do género para indivíduos transgénero)",null,null,null,null,null,null,0,0,0]
[null,null,null,"○","Os serviços são prestados de uma forma adequada e respeitam a confidencialidade/privacidade dos clientes (ex.: para HSH que não se identificam como homossexuais são oferecidos sob a perspectiva de saúde masculina)",null,null,null,null,null,null,0,0,0]
[null,null,"Intervenção Clínica "]
[null,null,"Elemento","Critérios",null,"N/D","Ausente","Presente mas não ideal","Presente e funcionando bem","Média por elemento","Comentários (se aplicável) "]
[null,null,"Preservativos e Lubrificantes ","Todos os Prisioneiros têm acesso a preservativos, lubrificantes, demonstrações e outros serviços de saúde reprodutiva e:\nTodos os Prisioneiros têm acesso a preservativos, lubrificantes, demonstrações e outros serviços de saúde reprodutiva e:\n",null,null,null,null,null,{"$f":"O155","v":"-"},null,null,null,null,{"$f":"IFERROR(ROUND(AVERAGEIF(L156:N158,\"<>0\",L156:N158),0),\"-\")","v":"-"}]
[null,null,null,"○","São amplamente distribuídos em quantidade suficiente",null,null,null,null,null,null,0,0,0]
[null,null,null,"○","São facilmente acessíveis",null,null,null,null,null,null,0,0,0]
[null,null,null,"○","São realizadas demonstrações regulares por ASP em prisões ",null,null,null,null,null,null,0,0,0]
[null,null,"Serviços de testagem de HIV","Serviços de testagem de HIV estão disponíveis para Prisioneiros e:\n",null,null,null,null,null,{"$f":"O159","v":"-"},null,null,null,null,{"$f":"IFERROR(ROUND(AVERAGEIF(L160:N171,\"<>0\",L160:N171),0),\"-\")","v":"-"}]
[null,null,null,"○","São implementadas directrizes consolidadas da OMS sobre os serviços de testagem do HIV ",null,null,null,null,null,null,0,0,0]
[null,null,null,"○","Toda a testagem é voluntária e confidencial (consentimento informado obtido)",null,null,null,null,null,null,0,0,0]
[null,null,null,"○","Aconselhamento pré e pós-teste é oferecido ",null,null,null,null,null,null,0,0,0]
[null,null,null,"○","O tratamento é oferecido independentemente da contagem de CD4 ",null,null,null,null,null,null,0,0,0]
[null,null,null,"○","As pessoas seropositivas recebem um encaminhamento para redes de apoio após o diagnóstico ",null,null,null,null,null,null,0,0,0]
[null,null,null,"○","O acesso aos serviços é distribuído de forma equitativa por toda a comunidade  ",null,null,null,null,null,null,0,0,0]
[null,null,null,"○","Existem intervenções para garantir a adesão de Prisioneiros que vivem com o HIV",null,null,null,null,null,null,0,0,0]
[null,null,null,"○","Monitorização regular da afluência aos cuidados entre os Prisioneiros que vivem com o HIV ",null,null,null,null,null,null,0,0,0]
[null,null,null,"○","São oferecidas ligações à prevenção para co-morbidades",null,null,null,null,null,null,0,0,0]
[null,null,null,"○","São oferecidas ligações ao tratamento para co-morbidades",null,null,null,null,null,null,0,0,0]
[null,null,null,"○","Testes de carga viral disponíveis e acessíveis para Prisioneiros que vivem com o HIV",null,null,null,null,null,null,0,0,0]
[null,null,null,"○","Testes de CD4 disponíveis e acessíveis para Prisioneiros que vivem com o HIV",null,null,null,null,null,null,0,0,0]
[null,null,"Profilaxia Pré-exposição","A PrEP oral (TDF) está disponível para Prisioneiros com risco substancial de infecção pelo HIV ",null,null,null,null,null,{"$f":"O172","v":"-"},null,null,null,null,{"$f":"IFERROR(ROUND(AVERAGEIF(L173:N177,\"<>0\",L173:N177),0),\"-\")","v":"-"}]
[null,null,null,"○","Existe um fornecimento ininterrupto de Profilaxia Pré-Exposição ",null,null,null,null,null,null,0,0,0]
[null,null,null,"○","Testes de HIV são realizados antes do início da Profilaxia Pré-Exposição de modo a garantir que o indivíduo é seronegativo ",null,null,null,null,null,null,0,0,0]
[null,null,null,"○","Oferecida como parte de uma abordagem abrangente de prevenção combinada ",null,null,null,null,null,null,0,0,0]
[null,null,null,"○","As abordagens combinadas incluem o apoio à adesão, a re-testagem periódica do HIV e o aconselhamento para utilizadores de Profilaxia Pré-Exposição ",null,null,null,null,null,null,0,0,0]
[null,null,null,"○","A Profilaxia Pré-Exposição é oferecida com base na avaliação individual e não no grupo de risco para promover uma cobertura mais ampla ",null,null,null,null,null,null,0,0,0]
[null,null,"Planeamento familiar e SSR ","Todos os Prisioneiros têm acesso ao planeamento familiar e a outros serviços de saúde reprodutiva e:",null,null,null,null,null,{"$f":"O178","v":"-"},null,0,0,0,{"$f":"IFERROR(ROUND(AVERAGEIF(L179:N181,\"<>0\",L179:N181),0),\"-\")","v":"-"}]
[null,null,null,"○","Incluem o rastreio do cancro cervical",null,null,null,null,null,null,0,0,0]
[null,null,null,"○","São amplamente distribuídos em quantidade suficiente",null,null,null,null,null,null,0,0,0]
[null,null,null,"○","São facilmente acessíveis nas prisões",null,null,null,null,null,null,0,0,0]
[null,null,"PTMF","Todos as prisioneiras do sexo feminino têm acesso a informações, tratamentos e cuidados adequados para prevenir a transmissão do HIV de mãe para filho",null,null,null,null,null,{"$f":"O182","v":"-"},null,0,0,0,{"$f":"IFERROR(ROUND(AVERAGEIF(L182:N182,\"<>0\",L182:N182),0),\"-\")","v":"-"}]
[null,null,"Cuidados pós-violência","Todos os prisioneiros têm acesso a cuidados pós-violência e:\n",null,null,null,null,null,{"$f":"O183","v":"-"},null,null,null,null,{"$f":"IFERROR(ROUND(AVERAGEIF(L184:N186,\"<>0\",L184:N186),0),\"-\")","v":"-"}]
[null,null,null,"○","Estão disponíveis serviços pós-violência, tais como apoio e aconselhamento",null,null,null,null,null,null,0,0,0]
[null,null,null,"○","Estão disponíveis serviços pós-violência, como a Profilaxia Pós-Exposição",null,null,null,null,null,null,0,0,0]
[null,null,null,"○","Testagem de Infecções de Transmissão Sexual (sífilis, clamídia, gonorreia) realizados rotineiramente",null,null,null,null,null,null,0,0,0]
[null,null,"Prevenção, triagem e tratamento da TB","A prevenção, triagem e tratamento da TB está disponível para Prisioneiros e:\n",null,null,null,null,null,{"$f":"O187","v":"-"},null,null,null,null,{"$f":"IFERROR(ROUND(AVERAGEIF(L188:N197,\"<>0\",L188:N197),0),\"-\")","v":"-"}]
[null,null,null,"○","Prevenção: Terapia preventiva isoniazida oferecida à seropositivos conjuntamente com a Terapia Anti-Retroviral, controlo de infeção de Tuberculose e rastreio de contactos em meios de congregação ",null,null,null,null,null,null,0,0,0]
[null,null,null,"○","Acções de triagem da TB nas prisões são intensificados devido à superlotação e a outros factores de risco ",null,null,null,null,null,null,0,0,0]
[null,null,null,"○","Diagnóstico: utiliza Xpert MTB/RIF como primeiros testes de diagnóstico",null,null,null,null,null,null,{"$f":"IF(ISBLANK(G190),0,1)","v":0},{"$f":"IF(ISBLANK(H190),0,3)","v":0},{"$f":"IF(ISBLANK(I190),0,5)","v":0}]
[null,null,null,"○","Toda a testagem é voluntária e confidencial ",null,null,null,null,null,null,0,0,0]
[null,null,null,"○","Existem intervenções de apoio à adesão a fim de garantir que o regime de antibióticos seja concluído",null,null,null,null,null,null,0,0,0]
[null,null,null,"○","O tratamento é administrado imediatamente e a fornecimento é ininterrupto",null,null,null,null,null,null,0,0,0]
[null,null,null,"○","O acesso aos serviços é distribuído de forma equitativa entre a comunidade e os prisioneiros",null,null,null,null,null,null,0,0,0]
[null,null,null,"○","Boas ligações a testagem e aconselhamento de HIV para casos positivos ",null,null,null,null,null,null,0,0,0]
[null,null,null,"○","Esforços estão a ser envidados no sentido de tratar a TB latente em Prisioneiros",null,null,null,null,null,null,0,0,0]
[null,null,null,"○","O tratamento da Tuberculose não é contra-indicado pelo consumo de álcool, uso de drogas e distúrbios de saúde mental",null,null,null,null,null,null,0,0,0]
[null,null,"Prevenção, vacinação, triagem e tratamento da hepatite viral","Prevenção, vacinação, triagem e tratamentos de Hepatite B e C virais estão disponíveis para atender às necessidades específicas dos Prisioneiros e:\n",null,null,null,null,null,{"$f":"O198","v":"-"},null,null,null,null,{"$f":"IFERROR(ROUND(AVERAGEIF(L199:N204,\"<>0\",L199:N204),0),\"-\")","v":"-"}]
[null,null,null,"○","Toda a testagem é voluntária e confidencial ",null,null,null,null,null,null,0,0,0]
[null,null,null,"○","O tratamento é administrado imediatamente e a fornecimento é ininterrupto ",null,null,null,null,null,null,0,0,0]
[null,null,null,"○","O acesso aos serviços é distribuído de forma equitativa por toda a comunidade e por todos os Prisioneiros",null,null,null,null,null,null,0,0,0]
[null,null,null,"○","São realizadas rotineiramente campanhas de vacinação contra hepatite B e C ",null,null,null,null,null,null,0,0,0]
[null,null,null,"○","Regimes de vacinação rápida e padrão para a hepatite B e C estão disponíveis e facilmente acessíveis ",null,null,null,null,null,null,0,0,0]
[null,null,null,"○","Foram afectados recursos para a prevenção, vacinação, triagem e tratamento da hepatite viral",null,null,null,null,null,null,0,0,0]
[null,null,"Triagem e tratamento para o consumo de drogas e álcool","A triagem e o tratamento para o consumo problemático de álcool e drogas são rotineiramente realizados: ",null,null,null,null,null,{"$f":"O205","v":"-"},null,null,null,null,{"$f":"IFERROR(ROUND(AVERAGEIF(L206:N209,\"<>0\",L206:N209),0),\"-\")","v":"-"}]
[null,null,null,"○","Os Agentes de Sensibilização de Pares encaminham indivíduos em risco aos serviços da triagem e tratamento ",null,null,null,null,null,null,0,0,0]
[null,null,null,"○","Os indivíduos são encaminhados a conselheiros, organizações e grupos de apoio adequados",null,null,null,null,null,null,0,0,0]
[null,null,null,"○","O tratamento é iniciado imediatamente se o indivíduo assim consentir voluntariamente",null,null,null,null,null,null,0,0,0]
[null,null,null,"○","O encaminhamento a outros serviços (saúde mental, apoio psicossocial) é fornecido atempadamente",null,null,null,null,null,null,0,0,0]
[null,null,"Cuidados de saúde mental","Os cuidados de saúde mental são acessíveis e fornecidos de forma consistente a prisioneiros que vivem com o HIV e incluem:",null,null,null,null,null,{"$f":"O210","v":"-"},null,null,null,null,{"$f":"IFERROR(ROUND(AVERAGEIF(L211:N212,\"<>0\",L211:N212),0),\"-\")","v":"-"}]
[null,null,null,"○","Triagem de rotina para distúrbios de saúde mental (em particular a depressão e stress psicossocial) conforme descrito pelo Programa de Acção para reduzir as Lacunas em Saúde Mental (mhGAP)",null,null,null,null,null,null,0,0,0]
[null,null,null,"○","Aconselhamento pós-testagem do HIV após um resultado positivo para avaliar o risco de suicídio, depressão e outros resultados de saúde mental ",null,null,null,null,null,null,0,0,0]
[null,null,"CMMV","A CMMV está disponível para prisioneiros do sexo masculino e heterossexuais (que estão prestes a ser libertados nos países da África Oriental e Austral que praticam a CMMV) e:",null,null,null,null,null,{"$f":"O213","v":"-"},null,null,null,null,{"$f":"IFERROR(ROUND(AVERAGEIF(L214:N215,\"<>0\",L214:N215),0),\"-\")","v":"-"}]
[null,null,null,"○","O procedimento é voluntário (o consentimento informado foi adquirido) e confidencial",null,null,null,null,null,null,0,0,0]
[null,null,null,"○","O procedimento é realizado por profissionais de saúde bem formados em ambientes adequadamente equipados",null,null,null,null,null,null,0,0,0]
[null,null,"COVID-19 ","Prestação de serviços diferenciada, centrada nas pessoas, para programas de Prisioneiros durante a COVID-19 \n",null,null,null,null,null,{"$f":"O216","v":"-"},null,null,null,null,{"$f":"IFERROR(ROUND(AVERAGEIF(L217:N218,\"<>0\",L217:N218),0),\"-\")","v":"-"}]
[null,null,null,"○","Existem programas que visam incentivar e acompanhar a adesão a vacina da COVID-19 entre Prisioneiros ",null,null,null,null,null,null,0,0,0]
[null,null,null,"○","Mensagens contínuas e acesso seguro a modelos de prestação de serviços não baseados em unidades sanitárias (por exemplo, baseados na comunidade, baseados em casa, tele-saúde) durante os picos de COVID-19 de modo a evitar interrupções de serviços",null,null,null,null,null,null,0,0,0]
[null,null,"Intervenções Comportamentais"]
[null,null,"Elemento","Critérios",null,"N/D","Ausente","Presente mas não ideal","Presente e funcionando bem","Média por elemento","Comentários (se aplicável) "]
[null,null,"Comunicação para a mudança social e de comportamento (CMSC)","Actividades de Comunicação para a Mudança Social e de Comportamento estão incluídas no Programa.  Estas são:",null,null,null,null,null,{"$f":"O221","v":"-"},null,null,null,null,{"$f":"IFERROR(ROUND(AVERAGEIF(L222:N226,\"<>0\",L222:N226),0),\"-\")","v":"-"}]
[null,null,null,"○","Bem planeadas e com um orçamento adequado",null,null,null,null,null,null,0,0,0]
[null,null,null,"○","Baseadas em evidências ",null,null,null,null,null,null,0,0,0]
[null,null,null,"○","Os membros de comunidades afectadas foram envolvidos na concepção e teste das intervenções",null,null,null,null,null,null,0,0,0]
[null,null,null,"○","As organizações e indivíduos que implementam estas intervenções são experientes e treinados em intervenções de Comunicação para a Mudança Social e de Comportamento",null,null,null,null,null,null,0,0,0]
[null,null,null,"○","Intervenções de Comunicação para a Mudança Social e de Comportamento estão incluídas nos planos e actividades de Monitoria e Avaliação (M&A)",null,null,null,null,null,null,0,0,0]
[null,null,"Intervenções Estruturais"]
[null,null,"Elemento","Critérios",null,"N/D","Ausente","Presente mas não ideal","Presente e funcionando bem","Média por elemento","Comentários (se aplicável) "]
[null,null,"Prevenção e resposta à violência","Programas de combate à violência contra e entre prisioneiros têm sido implementados de forma consistente e contemplam:",null,null,null,null,null,{"$f":"O229","v":"-"},null,null,null,null,{"$f":"IFERROR(ROUND(AVERAGEIF(L230:N232,\"<>0\",L230:N232),0),\"-\")","v":"-"}]
[null,null,null,"○","Informações sobre segurança",null,null,null,null,null,null,0,0,0]
[null,null,null,"○","Mecanismos de monitoria e denúncia de violência padronizados, que se estendem além da polícia e podem incluir apoio paralegal",null,null,null,null,null,null,{"$f":"IF(ISBLANK(G231),0,1)","v":0},{"$f":"IF(ISBLANK(H231),0,3)","v":0},{"$f":"IF(ISBLANK(I231),0,5)","v":0}]
[null,null,null,"○","Ligações estabelecidas ao apoio jurídico",null,null,null,null,null,null,0,0,0]
[null,null,"Redução do estigma e da discriminação ","Esforços com vista a reduzir o estigma e a discriminação contra prisioneiros, incluindo:  ",null,null,null,null,null,{"$f":"O233","v":"-"},null,null,null,null,{"$f":"IFERROR(ROUND(AVERAGEIF(L234:N240,\"<>0\",L234:N240),0),\"-\")","v":"-"}]
[null,null,null,"○","Promoção de políticas anti-discriminação e de protecção para todos os prisioneiros ",null,null,null,null,null,null,0,0,0]
[null,null,null,"○","Programas, dentro e fora do sector de saúde, que instituem políticas e códigos de conduta anti-estigmatização e anti-discriminação",null,null,null,null,null,null,0,0,0]
[null,null,null,"○","A monitoria e a supervisão são realizadas de forma rotineira a fim de garantir que as normas sejam implementadas e mantidas",null,null,null,null,null,null,0,0,0]
[null,null,null,"○","São realizadas campanhas contínuas para a redução do estigma",null,null,null,null,null,null,0,0,0]
[null,null,null,"○","Sensibilização, educação e envolvimento contínuos de líderes religiosos e anciãos, agentes da autoridade e Trabalhadores de Saúde ",null,null,null,null,null,null,0,0,0]
[null,null,null,"○","Existem mecanismos eficazes são disponibilizados para permitir a denúncia anónima de incidentes de estigmatização e/ou discriminação no acesso a cuidados de saúde  ",null,null,null,null,null,null,0,0,0]
[null,null,null,"○","São oferecidos apoio e acompanhamento a prisioneiros que denunciam incidentes de estigmatização e/ou discriminação",null,null,null,null,null,null,0,0,0]
[null,null,"Serviços jurídicos relacionados com o HIV ","Existem serviços jurídicos relacionados com o HIV para satisfazer as necessidades das populações de prisioneiros e,  ",null,null,null,null,null,{"$f":"O241","v":"-"},null,null,null,null,{"$f":"IFERROR(ROUND(AVERAGEIF(L242:N244,\"<>0\",L242:N244),0),\"-\")","v":"-"}]
[null,null,null,"○","Existem formas alternativas de resolução de litígios",null,null,null,null,null,null,0,0,0]
[null,null,null,"○","O acesso a informação legal e referências está prontamente disponível",null,null,null,null,null,null,0,0,0]
[null,null,null,"○","O acesso a assessoria e representação jurídicas está prontamente disponível",null,null,null,null,null,null,0,0,0]
[null,null,"Monitoria da aplicação da lei ","A implementação de políticas, regulamentos e leis é regularmente monitorizada com vista a avaliar o impacto sobre os prisioneiros ",null,null,null,null,null,{"$f":"O245","v":"-"},null,0,0,0,{"$f":"IFERROR(ROUND(AVERAGEIF(L245:N245,\"<>0\",L245:N245),0),\"-\")","v":"-"}]
[null,null,"Literacia legal (\"Conheça os seus direitos\")","É oferecida aos prisioneiros uma formação detalhada sobre literacia jurídica ",null,null,null,null,null,{"$f":"O246","v":"-"},null,null,null,null,{"$f":"IFERROR(ROUND(AVERAGEIF(L247:N247,\"<>0\",L247:N247),0),\"-\")","v":"-"}]
[null,null,null,"○","Os prisioneiros estão conscientes das suas leis e direitos e são capazes de defender as suas necessidades no contexto do HIV em torno das suas leis e direitos",null,null,null,null,null,null,0,0,0]
[null,null,"Sensibilização dos fazedores de políticas e dos agentes da lei e ordem ","A formação rigorosa de legisladores e agentes da lei e ordem tem lugar regularmente de modo a garantir uma sensibilização adequada destes em relação a todos os Prisioneiros e contempla: \n",null,null,null,null,null,{"$f":"O248","v":"-"},null,null,null,null,{"$f":"IFERROR(ROUND(AVERAGEIF(L249:N252,\"<>0\",L249:N252),0),\"-\")","v":"-"}]
[null,null,null,"○","Um programa abrangente de formação de sensibilização que foi adaptado ao contexto do país",null,null,null,null,null,null,0,0,0]
[null,null,null,"○","Facilitadores devidamente formados",null,null,null,null,null,null,0,0,0]
[null,null,null,"○","Participação dos Prisioneiros",null,null,null,null,null,null,0,0,0]
[null,null,null,"○","Feedback dos participantes",null,null,null,null,null,null,0,0,0]
[null,null,"Formação de profissionais de saúde sobre os direitos humanos e a ética médica relacionada com o HIV ","Um programa abrangente de formação de sensibilização que foi adaptado ao contexto do país",null,null,null,null,null,{"$f":"O253","v":"-"},null,null,null,null,{"$f":"IFERROR(ROUND(AVERAGEIF(L254:N256,\"<>0\",L254:N256),0),\"-\")","v":"-"}]
[null,null,null,"○","Facilitadores devidamente formados",null,null,null,null,null,null,0,0,0]
[null,null,null,"○","Participação dos Prisioneiros",null,null,null,null,null,null,0,0,0]
[null,null,null,"○","Feedback dos participantes",null,null,null,null,null,null,0,0,0]
[null,null,"Redução da discriminação contra as mulheres no contexto do HIV ","Foram implementados programas para fazer face a desigualdade de género e a violência baseada no género e o HIV, contemplando: ",null,null,null,null,null,{"$f":"O257","v":"-"},null,null,null,null,{"$f":"IFERROR(ROUND(AVERAGEIF(L258:N264,\"<>0\",L258:N264),0),\"-\")","v":"-"}]
[null,null,null,"○","A desigualdade entre mulheres e raparigas na tomada de decisões sexuais e reprodutivas; ",null,null,null,null,null,null,0,0,0]
[null,null,null,"○","As barreiras de género no acesso aos serviços de saúde; ",null,null,null,null,null,null,0,0,0]
[null,null,null,"○","Discriminação em matéria de herança, posse de património, casamento, divórcio e custódia; ",null,null,null,null,null,null,0,0,0]
[null,null,null,"○","Violência sexual e outras; ",null,null,null,null,null,null,0,0,0]
[null,null,null,"○","Falta de igualdade de acesso à oportunidades de educação e económicas; ",null,null,null,null,null,null,0,0,0]
[null,null,null,"○","Falta de apoio aos cuidadores em agregados familiares afectados pelo HIV. ",null,null,null,null,null,null,0,0,0]
[null,null,null,"○","São complementados por programas que visam homens e rapazes que abordam as normas de género nocivas ",null,null,null,null,null,null,0,0,0]
[null,null,"Monitoria do Programa"]
[null,null,"Elemento","Critérios",null,"N/D","Ausente","Presente mas não ideal","Presente e funcionando bem","Média por elemento","Comentários (se aplicável) "]
[null,null,"Monitoria de rotina","Os indicadores do programa de rotina são definidos pelo governo e os parceiros de implementação apresentam relatórios em relação a estes indicadores: ",null,null,null,null,null,{"$f":"O267","v":"-"},null,null,null,null,{"$f":"IFERROR(ROUND(AVERAGEIF(L268:N274,\"<>0\",L268:N274),0),\"-\")","v":"-"}]
[null,null,null,"○"," Rotineiramente (mensal, trimestral),",null,null,null,null,null,null,0,0,0]
[null,null,null,"○","Completamente (os dados são consistentes e não há informação em falta)",null,null,null,null,null,null,0,0,0]
[null,null,null,"○","A todos os níveis (ou seja, estado/concelho/província)",null,null,null,null,null,null,0,0,0]
[null,null,null,"○","Por todos os parceiros de implementação",null,null,null,null,null,null,0,0,0]
[null,null,null,"○","Através da plataforma DHIS/EMR",null,null,null,null,null,null,0,0,0]
[null,null,null,"○","O rastreamento individual de dados é feito por parceiros de implementação ",null,null,null,null,null,null,0,0,0]
[null,null,null,"○","Os dados são regularmente analisados por todas as partes interessadas (governo, sociedade civil, comunidade de prisioneiros, parceiros de implementação, doadores) e utilizados para melhorar os programas ",null,null,null,null,null,null,0,0,0]
[null,null,"Monitoria para a responsabilização liderada pela Comunidade ","Incorporar a monitoria liderada pela comunidade em plataformas de monitoria nacionais e:",null,null,null,null,null,{"$f":"O275","v":"-"},null,null,null,null,{"$f":"IFERROR(ROUND(AVERAGEIF(L276:N281,\"<>0\",L276:N281),0),\"-\")","v":"-"}]
[null,null,null,"○","A MLC é aceite e integrada  em processos de tomada de decisão e negociações com autoridades locais, financiadores e outros apoiantes externos ",null,null,null,null,null,null,{"$f":"IF(ISBLANK(G276),0,1)","v":0},{"$f":"IF(ISBLANK(H276),0,3)","v":0},{"$f":"IF(ISBLANK(I276),0,5)","v":0}]
[null,null,null,"○","Funciona como um mecanismo comunitário de vigilância e responsabilização",null,null,null,null,null,null,0,0,0]
[null,null,null,"○","Monitores de pares formados que recolhem e analisam de forma sistemática e regular dados qualitativos e quantitativos sobre a prestação de serviços de HIV",null,null,null,null,null,null,0,0,0]
[null,null,null,"○","Existem equipas de monitoria liderada pela comunidade para responder aos défices na prestação de serviços de HIV nas comunidades",null,null,null,null,null,null,0,0,0]
[null,null,null,"○","Existe colaboração entre diferentes redes de pessoas vivendo com HIV (PVHIV) e organizações lideradas pela comunidade das comunidades afectadas",null,null,null,null,null,null,0,0,0]
[null,null,null,"○","Os agentes de recolha de dados e outros membros da comunidade envolvidos na realização da monitoria liderada pela comunidade são remunerados de acordo com práticas e padrões nacionais",null,null,null,null,null,null,0,0,0]
[null,null,"Rastreamento do sistema de encaminhamento","Existem sistemas de rastreamento de encaminhamentos e contemplam:",null,null,null,null,null,{"$f":"O282","v":"-"},null,null,null,null,{"$f":"IFERROR(ROUND(AVERAGEIF(L283:N287,\"<>0\",L283:N287),0),\"-\")","v":"-"}]
[null,null,null,"○","Uma ferramenta de encaminhamento amplamente disponível, incluindo Procedimentos Operacionais Padrão claros",null,null,null,null,null,null,0,0,0]
[null,null,null,"○","Um directório de encaminhamento nas unidades e nas organizações lideradas por pares ",null,null,null,null,null,null,0,0,0]
[null,null,null,"○","Registo de resultados ",null,null,null,null,null,null,0,0,0]
[null,null,null,"○","Mecanismos de feedback entre pacientes e fornecedores (de encaminhamentos) ",null,null,null,null,null,null,0,0,0]
[null,null,null,"○","Relatórios sobre o encaminhamento (mensalmente) a fim de monitorizar a eficácia do sistema de encaminhamento",null,null,null,null,null,null,0,0,0]
[null,null,"Avaliação de qualidade","Foram definidos sistemas de recolha de dados sobre a qualidade do programa e indicadores conexos e:\n",null,null,null,null,null,{"$f":"O288","v":"-"},null,null,null,null,{"$f":"IFERROR(ROUND(AVERAGEIF(L289:N292,\"<>0\",L289:N292),0),\"-\")","v":"-"}]
[null,null,null,"○","São recolhidos dados precisos",null,null,null,null,null,null,0,0,0]
[null,null,null,"○","Os dados servem de base a acção ",null,null,null,null,null,null,0,0,0]
[null,null,null,"○","Os mecanismos de feedback permitem aos Prisioneiros avaliar os serviços que receberam como mecanismo de monitorização da qualidade do programa",null,null,null,null,null,null,0,0,0]
[null,null,null,"○","Os dados são auditados regularmente ",null,null,null,null,null,null,0,0,0]
[null,null,"Vigilância ","A vigilância permite uma descrição precisa do contexto e resultados/impactos do programa de Prisioneiros Vigilância: \n",null,null,null,null,null,{"$f":"O293","v":"-"},null,null,null,null,{"$f":"IFERROR(ROUND(AVERAGEIF(L294:N297,\"<>0\",L294:N297),0),\"-\")","v":"-"}]
[null,null,null,"○","Os resultados de estudos são utilizados para subsidiar a tomada de decisões e a correcção do percurso ",null,null,null,null,null,null,0,0,0]
[null,null,null,"○","Envolve a análise e interpretação de dados em intervalos regulares ",null,null,null,null,null,null,0,0,0]
[null,null,null,"○","Envolve a divulgação regular de informações para atender às necessidades locais, provinciais e nacionais ",null,null,null,null,null,null,0,0,0]
[null,null,null,"○","Inclui inquéritos biológicos e comportamentais, inquéritos sentinela e outros estudos de investigação que examinem indicadores para Prisioneiros ",null,null,null,null,null,null,0,0,0]
[null,null,"Dados para tomada de decisão","O Programa Nacional, a Unidade de Monitoria e Avaliação do Ministério da Saúde, ou órgão de coordenação similar supervisiona/coordena a monitoria, pesquisa e recolha de dados de vigilância ",null,null,null,null,null,{"$f":"O298","v":"-"},null,null,null,null,{"$f":"IFERROR(ROUND(AVERAGEIF(L299:N306,\"<>0\",L299:N306),0),\"-\")","v":"-"}]
[null,null,null,"○","Partilha dados com o Grupo de Trabalho Técnico de Prisioneiros",null,null,null,null,null,null,0,0,0]
[null,null,null,"○","O Grupo de Trabalho Técnico de Prisioneiros analisa os dados do programa existentes trimestralmente e identifica áreas para correcção do percurso",null,null,null,null,null,null,0,0,0]
[null,null,null,"○","O Grupo de Trabalho Técnico de Prisioneiros ajuda na elaboração de estratégias para suprir as lacunas ",null,null,null,null,null,null,0,0,0]
[null,null,null,"○","São recolhidos dados de boa qualidade (válidos, fiáveis, consistentes, precisos, atempados, relevantes) e a maioria das necessidades de informação são atendidas e, caso não sejam atendidas, as lacunas são compreendidas ",null,null,null,null,null,null,0,0,0]
[null,null,null,"○","Os dados são utilizados de forma consistente e adequada para fundamentar as decisões ",null,null,null,null,null,null,0,0,0]
[null,null,null,"○","Os dados foram desduplicados em todos os parceiros de implementação e os duplicações são mínimas, se existirem",null,null,null,null,null,null,0,0,0]
[null,null,null,"○","Os dados são agregados centralmente, mas podem ser desagregados por localidade, sexo e idade",null,null,null,null,null,null,{"$f":"IF(ISBLANK(G305),0,1)","v":0},{"$f":"IF(ISBLANK(H305),0,3)","v":0},{"$f":"IF(ISBLANK(I305),0,5)","v":0}]
[null,null,null,"○","O programa fornece dados ao Grupo de Trabalho Técnico para análise",null,null,null,null,null,null,0,0,0]
[null,null,"Utilização do Código de Identificação Único para a monitoria do programa","Um sistema utilizado para monitorizar o programa está plenamente funcional e é adequado para acompanhar o desempenho do programa",null,null,null,null,null,{"$f":"O307","v":"-"},null,null,null,null,{"$f":"IFERROR(ROUND(AVERAGEIF(L308:N311,\"<>0\",L308:N311),0),\"-\")","v":"-"}]
[null,null,null,"○","Vários Códigos de Identificação Únicos podem ser utilizados num determinado país, mas estão harmonizados",null,null,null,null,null,null,0,0,0]
[null,null,null,"○","O programa nacional utiliza dados agregados do Código de Identificação Único",null,null,null,null,null,null,0,0,0]
[null,null,null,"○","O Código de Identificação Único é capaz de distinguir o contacto/alcance, com vista a desduplicação ",null,null,null,null,null,null,0,0,0]
[null,null,null,"○","O Código de Identificação Único é baseado na electrónica",null,null,null,null,null,null,0,0,0]
[null,null,"Monitoria orçamental","A monitoria do desempenho financeiro e não financeiro do programa de Raparigas Adolescentes e Mulheres Jovens é integrada e são gerados relatórios regulares: ",null,null,null,null,null,{"$f":"O312","v":"-"},null,null,null,null,{"$f":"IFERROR(ROUND(AVERAGEIF(L313:N315,\"<>0\",L313:N315),0),\"-\")","v":"-"}]
[null,null,null,"○","Os dados sobre as despesas relativas às intervenções relacionadas com Prisioneiros são facilmente acessíveis a nível nacional ",null,null,null,null,null,null,0,0,0]
[null,null,null,"○","Existem mecanismos de responsabilização para as sub-despesas. ",null,null,null,null,null,null,0,0,0]
[null,null,null,"○","Os dados financeiros e não financeiros são utilizados para aferir a relação qualidade/preço.",null,null,null,null,null,null,0,0,0]
[null,null,"Resultados do Programa"]
[null,null,"Resultados e indicadores"]
[null,null,"Elemento","Critérios",null,"N/D","Não monitorizado ","Meta não atingida ou não está no rumo certo ","Meta atingida ou está no rumo certo ","Média por elemento","Comentários (se aplicável) "]
[null,null,"Estimativas da dimensão populacional de prisioneiros disponíveis",null,null,null,null,null,null,{"$f":"O319","v":"-"},null,0,0,0,{"$f":"IFERROR(ROUND(AVERAGEIF(L319:N319,\"<>0\",L319:N319),0),\"-\")","v":"-"}]
[null,null,"A estratégia de prevenção inclui elementos centrais do pacote de prevenção de prisioneiros",null,null,null,null,null,null,"-",null,0,0,0,"-"]
[null,null,"Prisioneiros vivendo com o HIV conhecem o seu estado de seropositividade (meta 90%)",null,null,null,null,null,null,{"$f":"O321","v":"-"},null,0,0,0,{"$f":"IFERROR(ROUND(AVERAGEIF(L321:N321,\"<>0\",L321:N321),0),\"-\")","v":"-"}]
[null,null,"Prisioneiros vivendo com HIV em terapia anti-retroviral (meta 90%)",null,null,null,null,null,null,{"$f":"O322","v":"-"},null,0,0,0,{"$f":"IFERROR(ROUND(AVERAGEIF(L322:N322,\"<>0\",L322:N322),0),\"-\")","v":"-"}]
[null,null,"Prisioneiros vivendo com HIV que suprimiram cargas virais (meta 90%)",null,null,null,null,null,null,"-",null,0,0,0,"-"]
[]
[]
[null,null,null,null,null,null,null,null,null,null,null,null,{"$f":"COUNTIF(O6:O323,\"-\")","v":59}]
[null,null,null,null,null,null,null,null,null,null,null,null,{"$f":"COUNTIF(O6:O323,\">0\")","v":0}]
[null,null,null,null,null,null,null,null,null,null,null,"Preenchimento de folha",{"$f":"M327/(M326+M327)","v":0},{"$f":"1-M328","v":1}]

{"sheet":"PID ","index":8,"n_rows":391,"n_cols":16,"rows_kept":391,"cut":false,"hidden":false,"merged":[[385,2,385,4],[386,2,386,4],[67,9,70,9],[238,3,238,4],[231,9,237,9],[331,3,331,4],[331,9,338,9],[364,3,364,4],[374,2,374,8],[375,3,375,4],[376,2,376,4],[377,2,377,4],[378,2,378,4],[379,2,379,4],[383,2,383,4],[384,2,384,4],[364,2,368,2],[364,9,368,9],[369,2,372,2],[369,3,369,4],[369,9,372,9],[355,2,363,2],[355,3,355,4],[355,9,363,9],[339,2,344,2],[339,3,339,4],[339,9,344,9],[345,2,349,2],[345,3,345,4],[345,9,349,9],[350,2,354,2],[350,3,350,4],[350,9,354,9],[231,3,231,4],[279,3,279,4],[253,3,253,4],[243,3,243,4],[238,2,242,2],[238,9,242,9],[243,2,245,2],[243,9,245,9],[246,2,248,2],[246,3,246,4],[246,9,248,9],[249,3,249,4],[249,9,251,9],[252,2,252,8],[260,2,260,8],[261,3,261,4],[262,2,269,2],[262,9,269,9],[270,2,274,2],[270,3,270,4],[270,9,274,9],[275,2,278,2],[275,3,275,4],[164,2,164,8],[165,3,165,4],[143,3,143,4],[151,3,151,4],[93,2,101,2],[216,2,220,2],[216,3,216,4],[216,9,220,9],[221,2,230,2],[221,3,221,4],[221,9,230,9],[211,2,215,2],[192,9,204,9],[188,2,191,2],[188,3,188,4],[188,9,191,9],[211,3,211,4],[211,9,215,9],[151,9,156,9],[157,2,163,2],[157,3,157,4],[157,9,163,9],[93,3,93,4],[93,9,101,9],[102,2,102,8],[103,3,103,4],[126,3,126,4],[119,2,125,2],[119,3,119,4],[109,2,118,2],[109,3,109,4],[109,9,118,9],[119,9,125,9],[104,3,104,4],[104,2,108,2],[104,9,108,9],[52,9,56,9],[57,2,57,8],[59,2,60,2],[59,3,59,4],[59,9,60,9],[61,2,64,2],[61,3,61,4],[61,9,64,9],[16,9,21,9],[22,2,27,2],[22,3,22,4],[22,9,27,9],[49,2,51,2],[49,9,51,9],[58,3,58,4],[52,2,56,2],[52,3,52,4],[42,2,46,2],[42,3,42,4],[42,9,46,9],[47,2,47,8],[48,3,48,4],[49,3,49,4],[28,2,34,2],[323,2,330,2],[323,9,330,9],[323,3,323,4],[254,2,259,2],[254,3,254,4],[254,9,259,9],[300,2,309,2],[300,3,300,4],[300,9,309,9],[310,2,320,2],[292,2,299,2],[292,9,299,9],[292,3,292,4],[288,2,291,2],[288,3,288,4],[288,9,291,9],[310,3,310,4],[310,9,320,9],[275,9,278,9],[280,2,282,2],[280,9,282,9],[283,2,287,2],[283,3,283,4],[283,9,287,9],[322,3,322,4],[72,2,72,8],[73,3,73,4],[74,2,81,2],[74,3,74,4],[74,9,81,9],[82,2,88,2],[82,3,82,4],[82,9,88,9],[126,2,135,2],[126,9,135,9],[136,2,140,2],[136,3,136,4],[136,9,140,9],[141,2,141,8],[89,9,92,9],[231,2,237,2],[249,2,251,2],[89,2,92,2],[89,3,89,4],[142,3,142,4],[143,2,150,2],[143,9,150,9],[151,2,156,2],[331,2,338,2],[382,2,382,4],[387,2,387,4],[387,5,387,7],[1,2,1,9],[3,2,3,8],[4,3,4,4],[5,3,5,4],[28,3,28,4],[28,9,34,9],[35,2,41,2],[35,3,35,4],[35,9,41,9],[5,2,15,2],[5,9,15,9],[16,2,21,2],[16,3,16,4],[205,2,210,2],[205,3,205,4],[205,9,210,9],[192,2,204,2],[192,3,192,4],[67,2,70,2],[321,2,321,8],[166,2,178,2],[166,3,166,4],[166,9,178,9],[167,3,168,3],[167,4,168,4],[167,6,168,6],[167,7,168,7],[167,8,168,8],[179,2,187,2],[179,3,179,4],[179,9,187,9]]}
[]
[null,null,"Gestão de Programas"]
[]
[null,null,"Liderança e Coordenação"]
[null,null,"Elemento","Critérios",null,"N/D","Ausente","Presente mas não ideal","Presente e funcionando bem","Média por elemento","Comentários (se aplicável)","Absent","Present","Optimal","Average","Sustainability Single Figure"]
[null,null,"Estratégia Nacional das Populações-chave","Existe um plano estratégico para a prevenção do HIV entre as Pessoas que Injectam Drogas (PWID) ou Pessoas que Injectam Drogas foram incluídas numa estratégia nacional global de prevenção do HIV:",null,null,null,null,null,{"$f":"O6","v":"-"},null,null,null,null,{"$f":"IFERROR(ROUND(AVERAGEIF(L7:N16,\"<>0\",L7:N16),0),\"-\")","v":"-"}]
[null,null,null,"○","Pessoas que Injectam Drogas foram envolvidas na elaboração do plano estratégico ",null,null,null,null,null,null,{"$f":"IF(ISBLANK(G7),0,1)","v":0},{"$f":"IF(ISBLANK(H7),0,3)","v":0},{"$f":"IF(ISBLANK(I7),0,5)","v":0}]
[null,null,null,"○","Os objectivos e metas foram claramente definidos para o programa de PWID ",null,null,null,null,null,null,0,0,0]
[null,null,null,"○","As PWID foram foi claramente definidas de acordo com as directrizes da Organização Mundial de Saúde ",null,null,null,null,null,null,0,0,0]
[null,null,null,"○","O plano reconhece vulnerabilidades específicas de PWIDs devido ao sexo e à idade",null,null,null,null,null,null,0,0,0]
[null,null,null,"○","Foi atriculado um modelo lógico ou teoria da mudança claros  ",null,null,null,null,null,null,0,0,0]
[null,null,null,"○","O plano inclui um pacote abrangente de intervenções e actividades baseadas em evidências, alinhadas com as Ferramentas de Implementação de PWID, identificadas por PWID, incluindo intervenções não relacionadas com o sector da saúde (por exemplo, empoderamento da comunidade, combate à violência, redução do estigma, entre outras) e adaptadas para responder à vulnerabilidades específicas",null,null,null,null,null,null,0,0,0]
[null,null,null,"○","Foi definida uma expansão clara com responsabilidades atribuídas ",null,null,null,null,null,null,0,0,0]
[null,null,null,"○","Existem vigor planos de financiamento ",null,null,null,null,null,null,0,0,0]
[null,null,null,"○","Foi definido um quadro de monitoria e avaliação com indicadores e metas nucleares",null,null,null,null,null,null,0,0,0]
[null,null,null,"○","Mecanismo de implementação claramente definido",null,null,null,null,null,null,{"$f":"IF(ISBLANK(G16),0,1)","v":0},{"$f":"IF(ISBLANK(H16),0,3)","v":0},{"$f":"IF(ISBLANK(I16),0,5)","v":0}]
[null,null,"Responsabilização","O departamento/ministério principal responsável pelo sucesso do programa de PWID, com uma forte liderança/autoridade, foi identificado:",null,null,null,null,null,{"$f":"O17","v":"-"},null,null,null,null,{"$f":"IFERROR(ROUND(AVERAGEIF(L18:N22,\"<>0\",L18:N22),0),\"-\")","v":"-"}]
[null,null,null,"○","Todos os projectos de PWID do país apresentam relatórios regulares sobre indicadores-chave para o governo a nível sub-nacional e nacional, com indicadores comuns, ",null,null,null,null,null,null,0,0,0]
[null,null,null,"○","Nestes relatórios, os dados são tornados anónimos e protegidos por forma a proteger PWID  ",null,null,null,null,null,null,0,0,0]
[null,null,null,"○","São efectuadas avaliações programáticas regulares com recurso a dados programáticos",null,null,null,null,null,null,0,0,0]
[null,null,null,"○","O Ministério responsável pelo programa participa nas reuniões de coordenação relevantes.",null,null,null,null,null,null,0,0,0]
[null,null,null,"○","O Grupo de Trabalho Técnico de Populações-Chave (GTT), com representação de PWID está envolvido na garantia da responsabilização ",null,null,null,null,null,null,0,0,0]
[null,null,"Grupo de Trabalho Técnico para PWID","Foi criado um Grupo de Trabalho Técnico (os países podem ter um Grupo de Trabalho Técnico onde estão incluídas PWID) a nível nacional e sub-nacional e:",null,null,null,null,null,{"$f":"O23","v":"-"},null,null,null,null,{"$f":"IFERROR(ROUND(AVERAGEIF(L24:N28,\"<>0\",L24:N28),0),\"-\")","v":"-"}]
[null,null,null,"○","Eles se reúnem regularmente ",null,null,null,null,null,null,0,0,0]
[null,null,null,"○","O Grupo de Trabalho Técnico está completo e integra Organizações da Sociedade Civil (OSC), parceiros de implementação, membros de PWID",null,null,null,null,null,null,0,0,0]
[null,null,null,"○","Dispõem de mecanismos de comunicação para assegurar a coordenação",null,null,null,null,null,null,0,0,0]
[null,null,null,"○","Eles têm Termos de Referência ou um âmbito definidos ",null,null,null,null,null,null,0,0,0]
[null,null,null,"○","Os membros da Comunidade de PWID estão incluídos",null,null,null,null,null,null,0,0,0]
[null,null,"Coordenação das Partes Interessadas","Existem mecanismos para assegurar que a coordenação seja alcançada em todos os níveis e que a mesma seja bem sucedida e consistente com: ",null,null,null,null,null,{"$f":"O29","v":"-"},null,null,null,null,{"$f":"IFERROR(ROUND(AVERAGEIF(L30:N35,\"<>0\",L30:N35),0),\"-\")","v":"-"}]
[null,null,null,"○","Parceiros de financiamento (a nível nacional)",null,null,null,null,null,null,0,0,0]
[null,null,null,"○","Programas locais com iniciativas nacionais mais amplas ",null,null,null,null,null,null,0,0,0]
[null,null,null,"○","Comunidades de PWID",null,null,null,null,null,null,0,0,0]
[null,null,null,"○","Parceiros de implementação ",null,null,null,null,null,null,0,0,0]
[null,null,null,"○","Ministérios da saúde/departamentos de saúde do governo (a nível nacional e sub-nacional)",null,null,null,null,null,null,0,0,0]
[null,null,null,"○","Foi conseguida uma coordenação multi-sectorial com outros ministérios/departamentos (por exemplo, finanças e lei e ordem)",null,null,null,null,null,null,0,0,0]
[null,null,"Plano de Capacitação e Assistência Técnica","Existe um Plano de Assistência Técnica e: ",null,null,null,null,null,{"$f":"O36","v":"-"},null,null,null,null,{"$f":"IFERROR(ROUND(AVERAGEIF(L37:N42,\"<>0\",L37:N42),0),\"-\")","v":"-"}]
[null,null,null,"○","Foi desenvolvido com base em alguma avaliação ",null,null,null,null,null,null,0,0,0,null,{"$f":"IF(MAX(L37:N37)=0,\"\",MAX(L37:N37))","v":""}]
[null,null,null,"○","Utiliza peritos técnicos nacionais e internacionais, incluindo o desenvolvimento de capacidades entre pares e assistência técnica",null,null,null,null,null,null,0,0,0,null,""]
[null,null,null,"○","Priorizou os componentes programáticas e questões de política ",null,null,null,null,null,null,0,0,0,null,""]
[null,null,null,"○","Facilita o estabelecimento e o fortalecimento de redes de implementadores ",null,null,null,null,null,null,0,0,0,null,""]
[null,null,null,"○","Identifica lacunas e formula pedidos consolidados de assistência quando falta experiência no país ",null,null,null,null,null,null,0,0,0,null,""]
[null,null,null,"○","Facilita o desenvolvimento de capacidade da comunidade de PWID para que esta se possa apropriar dos programas de PWID ",null,null,null,null,null,null,0,0,0,null,""]
[null,null,"Plano de sustentabilidade e roteiro de transição","Existe um plano de sustentabilidade e roteiro de transição completos, que delineiam a transição intervenções apoiadas por doadores para intervenções apoiadas internamente, sendo estes fundamentados por: ",null,null,null,null,null,{"$f":"O43","v":"-"},null,null,null,null,{"$f":"IFERROR(ROUND(AVERAGEIF(L44:N47,\"<>0\",L44:N47),0),\"-\")","v":"-"},""]
[null,null,null,"○","Um exercício de cálculo dos custos unitários da População-chave",null,null,null,null,null,null,0,0,0,null,""]
[null,null,null,"○","Uma análise do panorama de financiamento da população-chave",null,null,null,null,null,null,0,0,0,null,""]
[null,null,null,"○"," Planificação para a integração de serviços da PC em cuidados de saúde primários",null,null,null,null,null,null,0,0,0]
[null,null,null,"○","Considera os recursos financeiros, humanos e infra-estruturas necessários",null,null,null,null,null,null,0,0,0,null,""]
[null,null,"Leis, Políticas e Regulamentos"]
[null,null,"Elemento","Critérios",null,"N/D","Ausente","Presente mas não ideal","Presente e funcionando bem","Média por elemento","Comentários (se aplicável)"]
[null,null,"Leis e Políticas ","Políticas promovem activamente o bom funcionamento do programa de PWID ",null,null,null,null,null,{"$f":"O50","v":"-"},null,null,null,null,{"$f":"IFERROR(ROUND(AVERAGEIF(L51:N52,\"<>0\",L51:N52),0),\"-\")","v":"-"}]
[null,null,null,"○","Existem directrizes nacionais para cada uma das intervenções e serviços comportamentais, biomédicos e estruturais, estando estas alinhadas com a orientação global",null,null,null,null,null,null,{"$f":"IF(ISBLANK(G51),0,1)","v":0},{"$f":"IF(ISBLANK(H51),0,3)","v":0},{"$f":"IF(ISBLANK(I51),0,5)","v":0}]
[null,null,null,"○","Existem políticas que apoiam os serviços de acesso das PWID apesar de leis que criminalizam o uso de drogas, o trabalho sexual, actividades do mesmo sexo",null,null,null,null,null,null,{"$f":"IF(ISBLANK(G52),0,1)","v":0},{"$f":"IF(ISBLANK(H52),0,3)","v":0},{"$f":"IF(ISBLANK(I52),0,5)","v":0}]
[null,null,"Directrizes","As seguintes directrizes existem e explicam de forma clara as etapas para uma implementação bem-sucedida do programa de PWID",null,null,null,null,null,{"$f":"O53","v":"-"},null,null,null,null,{"$f":"IFERROR(ROUND(AVERAGEIF(L54:N57,\"<>0\",L54:N57),0),\"-\")","v":"-"}]
[null,null,null,"○","Existem directrizes nacionais para cada uma das intervenções e serviços comportamentais, biomédicos e estruturais, estando estas alinhadas com a orientação global ",null,null,null,null,null,null,0,0,0]
[null,null,null,"○","Foram elaboradas directrizes em colaboração com PWID ",null,null,null,null,null,null,0,0,0]
[null,null,null,"○","As directrizes nacionais para os serviços de testagem do HIV, Infeções de Transmissão Sexual, Profilaxia Pré-Exposição e Preservativos têm em conta as necessidades e prioridades das PWID ",null,null,null,null,null,null,0,0,0]
[null,null,null,"○","Medidas de prevenção e controlo de infeções por COVID-19 são incorporadas em todas as estratégias, planos e directrizes de prevenção do HIV/PWID",null,null,null,null,null,null,0,0,0]
[null,null,"Financiamento"]
[null,null,"Elemento","Critérios",null,"N/D","Ausente","Presente mas não ideal","Presente e funcionando bem","Média por elemento","Comentários (se aplicável)"]
[null,null,"Custos ","Orçamento nacional em vigor:",null,null,null,null,null,{"$f":"O60","v":"-"},null,null,null,null,{"$f":"IFERROR(ROUND(AVERAGEIF(L61:N61,\"<>0\",L61:N61),0),\"-\")","v":"-"}]
[null,null,null,"○","Foi realizado um exercício de orçamentação e o programa nacional está a par do custo médio para chegar a uma PWID com um pacote padrão de serviços de acordo com as directrizes ",null,null,null,null,null,null,{"$f":"IF(ISBLANK(G61),0,1)","v":0},{"$f":"IF(ISBLANK(H61),0,3)","v":0},{"$f":"IF(ISBLANK(I61),0,5)","v":0}]
[null,null,"Planificação orçamental","Existe um processo bem gerido de planificação orçamental para o programa de prevenção do HIV  que tem em conta as PWID",null,null,null,null,null,{"$f":"O62","v":"-"},null,null,null,null,{"$f":"IFERROR(ROUND(AVERAGEIF(L63:N65,\"<>0\",L63:N65),0),\"-\")","v":"-"}]
[null,null,null,"○","Está em curso uma avaliação dos recursos disponíveis a fim de tentar identificar lacunas e afectar um orçamento ao programa",null,null,null,null,null,null,0,0,0,{"$f":"IFERROR(ROUND(AVERAGEIF(L64:N66,\"<>0\",L64:N66),0),\"-\")","v":"-"}]
[null,null,null,"○","Foi desenvolvida uma estratégia para colmatar lacunas de financiamento",null,null,null,null,null,null,0,0,0,{"$f":"IFERROR(ROUND(AVERAGEIF(L65:N67,\"<>0\",L65:N67),0),\"-\")","v":"-"}]
[null,null,null,"○","Os orçamentos estão associados às necessidades de recursos dos planos operacionais para as unidades nacionais e sub-nacionais",null,null,null,null,null,null,0,0,0,{"$f":"IFERROR(ROUND(AVERAGEIF(L66:N71,\"<>0\",L66:N71),0),\"-\")","v":"-"}]
[null,null,"Mobilização de Recursos e Financiamento ","○","Existe financiamento suficiente para fazer face às necessidades holísticas de programação",null,null,null,null,{"$f":"O66","v":"-"},null,0,0,0,{"$f":"IFERROR(ROUND(AVERAGEIF(L66:N66,\"<>0\",L66:N66),0),\"-\")","v":"-"}]
[null,null,"Recursos internos","○","Mais de 50% dos recursos que apoiam o programa, humanos e financeiros, são domésticos",null,null,null,null,{"$f":"O67","v":"-"},null,0,0,0,{"$f":"IFERROR(ROUND(AVERAGEIF(L67:N67,\"<>0\",L67:N67),0),\"-\")","v":"-"},{"$f":"IF(MAX(L67:N67)=0,\"\",MAX(L67:N67))","v":""}]
[null,null,"Contratação Social ","○","Foram desenvolvidos mecanismos de contratação social, estando estes a ser implementados",null,null,null,null,{"$f":"O68","v":"-"},null,0,0,0,{"$f":"IFERROR(ROUND(AVERAGEIF(L68:N71,\"<>0\",L68:N71),0),\"-\")","v":"-"}]
[null,null,null,"○","A informação é amplamente divulgada com vista a permitir que Parceiros locais de Implementação e organizações dirigidas por PWID tenham acesso a financiamento",null,null,null,null,null,null,0,0,0]
[null,null,null,"○","Existe um mecanismo que permite o financiamento a organizações lideradas pela comunidade",null,null,null,null,null,null,0,0,0]
[null,null,null,"○","Os fundos são reservados a organizações lideradas pela comunidade ",null,null,null,null,null,null,0,0,0,null,{"$f":"IF(MAX(L71:N71)=0,\"\",MAX(L71:N71))","v":""}]
[null,null,"Implementação do Programa"]
[null,null,"Segmentação e Planificação"]
[null,null,"Elemento","Critérios",null,"N/D","Ausente","Presente mas não ideal","Presente e funcionando bem","Média por elemento","Comentários (se aplicável)"]
[null,null,"Avaliação demográfica (estimativa da dimensão da população e micro-planificação)","Estimativa da Dimensão da População e micro-planificação concluídos e:",null,null,null,null,null,{"$f":"O75","v":"-"},null,null,null,null,{"$f":"IFERROR(ROUND(AVERAGEIF(L76:N82,\"<>0\",L76:N82),0),\"-\")","v":"-"}]
[null,null,null,"○","É baseada no local (nível local em vez do país ou região)",null,null,null,null,null,null,{"$f":"IF(ISBLANK(G76),0,1)","v":0},{"$f":"IF(ISBLANK(H76),0,3)","v":0},{"$f":"IF(ISBLANK(I76),0,5)","v":0}]
[null,null,null,"○","A confidencialidade dos hotspots e o anonimato dos inquiridos estão garantidos e a informação não é partilhada com agentes da lei e ordem",null,null,null,null,null,null,{"$f":"IF(ISBLANK(G77),0,1)","v":0},{"$f":"IF(ISBLANK(H77),0,3)","v":0},{"$f":"IF(ISBLANK(I77),0,5)","v":0}]
[null,null,null,"○","É actualizada anualmente ou no final de um inquérito bio-comportamental",null,null,null,null,null,null,0,0,0]
[null,null,null,"○","Foram contratados e recrutados membros formados das PWID ou de redes de PWID para realizar os exercícios de Estimativa da Dimensão da População e de micro-planificação",null,null,null,null,null,null,0,0,0]
[null,null,null,"○","As Estimativas da Dimensão da População são precisas e actualizadas",null,null,null,null,null,null,0,0,0]
[null,null,null,"○","A informação é utilizada para fundamentar a necessidade de intervenções comportamentais, biomédicas e estruturais  ",null,null,null,null,null,null,0,0,0]
[null,null,null,"○","Esta informação também é utilizada para fazer uma estimativa dos requisitos em matéria de fundos e para a definição de metas",null,null,null,null,null,null,0,0,0]
[null,null,"Avaliação epidemiológica (inquérito de sero-prevalência e determinantes de risco)","As estimativas de sero-prevalência estão disponíveis e:",null,null,null,null,null,{"$f":"O83","v":"-"},null,null,null,null,{"$f":"IFERROR(ROUND(AVERAGEIF(L84:N89,\"<>0\",L84:N89),0),\"-\")","v":"-"}]
[null,null,null,"○","Com base numa vigilância recente e/ou contínua (estimativas modeladas actualizadas anualmente ou dados do inquérito actualizados a cada 3-5 anos)",null,null,null,null,null,null,0,0,0]
[null,null,null,"○","Específicas a PWID",null,null,null,null,null,null,0,0,0]
[null,null,null,"○","Os resultados são precisos; tamanho da amostra estatisticamente representativo (com alimentação adequada) e método de amostragem adequado para PWID: amostragem de localização temporal e amostragem de conveniência. PWID: amostragem de localização temporal e amostragem de conveniência.",null,null,null,null,null,null,0,0,0]
[null,null,null,"○","Foram regularmente realizadas avaliações dos determinantes de risco para PWID com vista a fundamentar o programa e:",null,null,null,null,null,null,0,0,0]
[null,null,null,null,"> São específicos a PWID e têm em conta a idade e o sexo-específico e comportamentos ",null,null,null,null,null,null,0,0,0]
[null,null,null,null,"> Os estudos são de boa qualidade e fornecem informação exaustiva  ",null,null,null,null,null,null,0,0,0]
[null,null,"Avaliação de necessidades","Foi concluída uma avaliação de necessidades para PWID a nível da implementação e/ou local:",null,null,null,null,null,{"$f":"O90","v":"-"},null,null,null,null,{"$f":"IFERROR(ROUND(AVERAGEIF(L91:N93,\"<>0\",L91:N93),0),\"-\")","v":"-"}]
[null,null,null,"○","Contactos adequados com PWID e organizações ou redes lideradas por PWID a fim de aferir as necessidades",null,null,null,null,null,null,0,0,0]
[null,null,null,"○","Informações suficientes sobre que serviços as PWID precisam, como prefeririam aceder aos serviços e quem deveria prestar os mesmos. ",null,null,null,null,null,null,0,0,0]
[null,null,null,"○","Informações completas sobre onde residem as lacunas em termos de prestação de serviços e barreiras ao acesso",null,null,null,null,null,null,0,0,0]
[null,null,"Definição de metas","As metas para as PWID foram claramente definidas e:",null,null,null,null,null,{"$f":"O94","v":"-"},null,null,null,null,{"$f":"IFERROR(ROUND(AVERAGEIF(L95:N102,\"<>0\",L95:N102),0),\"-\")","v":"-"}]
[null,null,null,"○","Baseiam-se nos dados da estimativa da dimensão e de avaliação de risco",null,null,null,null,null,null,0,0,0]
[null,null,null,"○","Delineada para PWID, em toda a sua diversidade  ",null,null,null,null,null,null,0,0,0]
[null,null,null,"○","Especificada a nível nacional e sub-nacional ",null,null,null,null,null,null,0,0,0]
[null,null,null,"○","Incluem realizações já alcançadas e realizações previstas no final ",null,null,null,null,null,null,0,0,0]
[null,null,null,"○","Formuladas em consulta com implementadores e redes de PWID de modo a garantir que sejam realistas",null,null,null,null,null,null,0,0,0]
[null,null,null,"○","Combinam orçamentos e acordos formais com implementadores locais",null,null,null,null,null,null,0,0,0]
[null,null,null,"○","Estão desagregadas por idade e sexo",null,null,null,null,null,null,0,0,0]
[null,null,null,"○","As metas do Fundo Global e do Plano de Emergência do Presidente dos EUA para o Alívio da SIDA (PEPFAR) referem-se às estimativas de dimensão nacional e a metas nacionais",null,null,null,null,null,null,0,0,0]
[null,null,"Mecanismo de Implementação "]
[null,null,"Elemento","Critérios",null,"N/D","Ausente","Presente mas não ideal","Presente e funcionando bem","Média por elemento","Comentários (se aplicável)"]
[null,null,"Manter uma plataforma de acesso","Uma plataforma de acesso promove esforços coordenados baseados na comunidade e clínica que;",null,null,null,null,null,{"$f":"O105","v":"-"},null,null,null,null,{"$f":"IFERROR(ROUND(AVERAGEIF(L106:N109,\"<>0\",L106:N109),0),\"-\")","v":"-"}]
[null,null,null,"○","Geram confiança em toda a comunidade através dos Agentes de Sensibilização de Pares (Peer Outreach Workers) ",null,null,null,null,null,null,0,0,0]
[null,null,null,"○","Atingem as PWID em elevado número e incentivam a sua adesão, retenção e participação activa no programa.",null,null,null,null,null,null,0,0,0]
[null,null,null,"○","Incentiva a adesão e a retenção de PWID",null,null,null,null,null,null,0,0,0]
[null,null,null,"○","Incentiva a participação activa de PWID ",null,null,null,null,null,null,0,0,0]
[null,null,"Estrutura de gestão","O processo da estrutura de gestão foi definido e;  ",null,null,null,null,null,{"$f":"O110","v":"-"},null,null,null,null,{"$f":"IFERROR(ROUND(AVERAGEIF(L111:N119,\"<>0\",L111:N119),0),\"-\")","v":"-"}]
[null,null,null,"○","Existem Termos de Referência (TdR) claros para descrever as funções e responsabilidades de todas as posições, incluindo o pessoal de nível da comunidade e das instalações",null,null,null,null,null,null,0,0,0]
[null,null,null,"○","Proporção adequada de Agentes de Sensibilização de Pares (ASP) para membros da comunidade",null,null,null,null,null,null,0,0,0]
[null,null,null,"○","Existem directrizes para o recrutamento, retenção, avaliação e promoção de ASP",null,null,null,null,null,null,0,0,0]
[null,null,null,"○","Todas as pessoas que trabalham no projeto são remuneradas ",null,null,null,null,null,null,0,0,0]
[null,null,null,"○","A supervisão adequada dos ASP (ASP) é assegurada pelos Supervisores de Pares",null,null,null,null,null,null,0,0,0]
[null,null,null,"○","A estratégia de promoção e o plano de progressão de carreira para os ASP e profissionais da Comunicação Social e para a Mudança de Comportamento (CSMCC) estão definidos ",null,null,null,null,null,null,0,0,0]
[null,null,null,"○","Está estabelecido um mecanismo formal de encaminhamento ",null,null,null,null,null,null,0,0,0]
[null,null,null,"○","Locais de destino equipados para receber serviços (os locais de destino são os pontos em que os serviços serão prestados, por exemplo, clínicas, hospitais, comunidades)",null,null,null,null,null,null,0,0,0]
[null,null,null,"○","A micro-planificação é utilizada para priorizar e gerir a sensibilização, bem como para identificar os beneficiários em maior risco",null,null,null,null,null,null,0,0,0]
[null,null,"Fluxo de dados ","Foram definidos fluxos de dados em cada nível e:",null,null,null,null,null,{"$f":"O120","v":"-"},null,null,null,null,{"$f":"IFERROR(ROUND(AVERAGEIF(L121:N126,\"<>0\",L121:N126),0),\"-\")","v":"-"}]
[null,null,null,"○","Sistemas de dados foram desenvolvidos e testados ",null,null,null,null,null,null,0,0,0]
[null,null,null,"○","Os indicadores padrão para a monitorização do programa de PC estão finalizados",null,null,null,null,null,null,0,0,0]
[null,null,null,"○","Foram desenvolvidas ferramentas padrão para a elaboração de relatórios ",null,null,null,null,null,null,0,0,0]
[null,null,null,"○","Os dados programáticos são comunicados e analisados mensalmente ",null,null,null,null,null,null,0,0,0]
[null,null,null,"○","Existem sistemas para manter a confidencialidade dos dados ",null,null,null,null,null,null,0,0,0]
[null,null,null,"○","Desenvolvido sistema de CIU ",null,null,null,null,null,null,0,0,0]
[null,null,"Agentes de Sensibilização de Pares (ASP)  "," Os Agentes de Sensibilização de Pares são utilizados de forma eficaz no programa:\n",null,null,null,null,null,{"$f":"O127","v":"-"},null,null,null,null,{"$f":"IFERROR(ROUND(AVERAGEIF(L128:N136,\"<>0\",L128:N136),0),\"-\")","v":"-"}]
[null,null,null,"○","Os ASP são recrutados no seio da comunidade de PWID que representam ou servem",null,null,null,null,null,null,0,0,0]
[null,null,null,"○","Currículo de formação disponível, apropriado e inclui formação cínica para a actualização de conhecimento de ASP de PWID sobre necessidades específicas de PWID",null,null,null,null,null,null,0,0,0]
[null,null,null,"○","Os ASP beneficiam de formação em micro-planificação e sensibilização",null,null,null,null,null,null,0,0,0]
[null,null,null,"○","Existe um plano de formação faseada para melhorar as competências, confiança e liderança dos ASP ",null,null,null,null,null,null,0,0,0]
[null,null,null,"○","Ferramentas de sensibilização disponíveis para a mobilização da comunidade para promover serviços de acesso",null,null,null,null,null,null,0,0,0]
[null,null,null,"○","Ferramentas de micro-planificação são utilizadas para fundamentar a prestação de serviços de acordo com a necessidade do indivíduo/local ",null,null,null,null,null,null,0,0,0]
[null,null,null,"○","Utilizam mensagens e materiais de comunicação baseados em evidências",null,null,null,null,null,null,0,0,0]
[null,null,null,"○","Fornecem informações sobre os serviços disponíveis e encaminham e associam os beneficiários aos serviços ",null,null,null,null,null,null,0,0,0]
[null,null,null,"○","Fornecem aconselhamento e apoio emocional para a manutenção no tratamento",null,null,null,null,null,null,0,0,0]
[null,null,"Envolvimento significativo das comunidades afectadas na liderança e coordenação","Organização/rede liderada por PWID representada no organismo nacional de coordenação ou no grupo de trabalho técnico para PWID e:\n\n",null,null,null,null,null,{"$f":"O137","v":"-"},null,null,null,null,{"$f":"IFERROR(ROUND(AVERAGEIF(L138:N141,\"<>0\",L138:N141),0),\"-\")","v":"-"}]
[null,null,null,"○","Eles se reúnem regularmente",null,null,null,null,null,null,0,0,0]
[null,null,null,"○","Participam activamente nos processos de tomada de decisão como parceiros iguais ",null,null,null,null,null,null,0,0,0]
[null,null,null,"○","São apoiados de modo a solicitar comentários e prestar informações sobre as principais decisões aos grupos que representam",null,null,null,null,null,null,0,0,0]
[null,null,null,"○","Existem provas de que os comentários, contribuições e aconselhamento especializado fornecidos pela organização/rede liderada por PWID são tidos em conta",null,null,null,null,null,null,0,0,0]
[null,null,"Prestação de Serviços"]
[null,null,"Elemento","Critérios",null,"N/D","Ausente","Presente mas não ideal","Presente e funcionando bem","Média por elemento","Comentários (se aplicável)"]
[null,null,"Serviços acessíveis","Os serviços são acessíveis às comunidades de PWID e:",null,null,null,null,null,{"$f":"O144","v":"-"},null,null,null,null,{"$f":"IFERROR(ROUND(AVERAGEIF(L145:N151,\"<>0\",L145:N151),0),\"-\")","v":"-"}]
[null,null,null,"○","São concebidos com base em pesquisas formativas realizadas na fase de avaliação de necessidades ",null,null,null,null,null,null,{"$f":"IF(ISBLANK(G145),0,1)","v":0},{"$f":"IF(ISBLANK(H145),0,3)","v":0},{"$f":"IF(ISBLANK(I145),0,5)","v":0}]
[null,null,null,"○","Estão convenientemente localizados dentro ou nas proximidades de hotspots",null,null,null,null,null,null,0,0,0]
[null,null,null,"○","Contemplam serviços móveis sempre que necessário ",null,null,null,null,null,null,0,0,0]
[null,null,null,"○","Os horários de funcionamento são adequados para PWID que pretendem alcançar ",null,null,null,null,null,null,0,0,0]
[null,null,null,"○","Estão integrados com o sistema de saúde geral e oferecem pacotes de cuidados abrangentes ",null,null,null,null,null,null,0,0,0]
[null,null,null,"○","Têm uma oferta constante de serviços e produtos",null,null,null,null,null,null,0,0,0]
[null,null,null,"○","Envolvem a mudança de tarefas de modo a permitir o desenvolvimento da capacidade dos provedores de cuidados de saúde",null,null,null,null,null,null,0,0,0]
[null,null,"Serviços aceitáveis","Os serviços são aceitáveis para a comunidade PWID e:",null,null,null,null,null,{"$f":"O152","v":"-"},null,null,null,null,{"$f":"IFERROR(ROUND(AVERAGEIF(L153:N157,\"<>0\",L153:N157),0),\"-\")","v":"-"}]
[null,null,null,"○","São confidenciais e voluntários ",null,null,null,null,null,null,0,0,0]
[null,null,null,"○","Os provedores são sensíveis às necessidades de PWID, sem juízos de valor e sem estigmatização",null,null,null,null,null,null,0,0,0]
[null,null,null,"○","Os provedores são treinados para poderem oferecer um pacote abrangente de intervenção específico para PWID ",null,null,null,null,null,null,0,0,0]
[null,null,null,"○","Criam um ambiente seguro e de apoio ",null,null,null,null,null,null,0,0,0]
[null,null,null,"○","As intervenções online são realizadas de forma ética, respeitando a privacidade e a confidencialidade dos clientes",null,null,null,null,null,null,0,0,0]
[null,null,"Serviços personalizados/adequados","Pacote de serviços e abordagens de prestação adaptados às necessidades específicas de PWID em toda a sua diversidade:",null,null,null,null,null,{"$f":"O158","v":"-"},null,null,null,null,{"$f":"IFERROR(ROUND(AVERAGEIF(L159:N164,\"<>0\",L159:N164),0),\"-\")","v":"-"}]
[null,null,null,"○","O pacote de serviços para PWID do sexo feminino contempla todos os serviços relevantes de SSR de acordo com as directrizes da OMS ",null,null,null,null,null,null,0,0,0]
[null,null,null,"○","Ampla disponibilidade de iniciação de Terapia Anti-retroviral para PWIDs vivendo com HIV",null,null,null,null,null,null,0,0,0]
[null,null,null,"○","Os serviços são prestados de uma forma acessível a PWID adolescentes em toda a sua diversidade ",null,null,null,null,null,null,0,0,0]
[null,null,null,"○","Serviços adicionais (ou ligação a) disponibilizados com base nas necessidades específicas de PWID (ex.: serviços de saúde de afirmação de género para indivíduos transgénero)",null,null,null,null,null,null,0,0,0]
[null,null,null,"○","Os serviços são prestados de uma forma adequada e respeitam a confidencialidade/privacidade dos clientes (ex.: para Homens que têm Sexo com Homens (HSH) não identificados como homossexuais, prestados sob a forma de saúde masculina)",null,null,null,null,null,null,0,0,0]
[null,null,null,"○","Os serviços respondem a vulnerabilidades cruzadas de adolescentes e jovens envolvidos na venda de sexo",null,null,null,null,null,null,0,0,0]
[null,null,"Intervenções Clínicas",null,null,null,null,null,null,null,null,0,0,0]
[null,null,"Elemento","Critérios",null,"N/D","Ausente","Presente mas não ideal","Presente e funcionando bem","Média por elemento","Comentários (se aplicável)"]
[null,null,"Programa de troca de agulhas e seringas (PAS)","Um PAS foi estabelecido e:",null,null,null,null,null,{"$f":"O167","v":"-"},null,null,null,null,{"$f":"IFERROR(ROUND(AVERAGEIF(L168:N179,\"<>0\",L168:N179),0),\"-\")","v":"-"}]
[null,null,null,"○","Agulhas esterilizadas, seringas e outras mercadorias estão livre e prontamente à disposição dos PID sem restrições de quantidade ou distribuição secundária, incluindo: preservativos e lubrificantes, filtros, água esterilizada, cotonetes com álcool, cotonetes, colheres, recipientes à prova de perfuração, acidificantes, torniquetes.",null,null,null,null,null,null,0,0,0]
[null,null,null,null,null,null,null,null,null,null,null,0,0,0]
[null,null,null,"○","Integrado com acesso a outros serviços de apoio e cuidados relacionados com a gestão da saúde dos PID, incluindo a gestão de overdose (reanimação por overdose e naloxona)",null,null,null,null,null,null,0,0,0]
[null,null,null,"○","Convenientemente localizado em máquinas de venda automática, centros de acolhimento, farmácias, postos de saúde e outros locais de acesso rotineiro ",null,null,null,null,null,null,0,0,0]
[null,null,null,"○","Sem interferência das autoridades",null,null,null,null,null,null,0,0,0]
[null,null,null,"○","Existem um mecanismo estabelecido para retorno/alienação de agulhas ou seringas usadas com segurança",null,null,null,null,null,null,0,0,0]
[null,null,null,"○","Membros da comunidade são envolvidos na selecção e distribuição de productos",null,null,null,null,null,null,0,0,0]
[null,null,null,"○","Partilhas não são necessárias",null,null,null,null,null,null,0,0,0]
[null,null,null,"○","As abordagens para a prestação do PAS tem em conta considerações relacionadas com a idade e o género (ex: co-embalagem de serviços de PAS e SSR/existência de mulheres que usam drogas - extensionistas)",null,null,null,null,null,null,0,0,0]
[null,null,null,"○","Quantidade suficiente de agulhas distribuídas por pessoa por ano, com base nas necessidades e em conformidade com a quantidade recomendada pela OMS",null,null,null,null,null,null,0,0,0]
[null,null,null,"○","Amplo acesso de métodos seguros de alienação",null,null,null,null,null,null,0,0,0]
[null,null,null,"○","São fornecidas agulhas correctas e seringas de baixo espaço-morto",null,null,null,null,null,null,0,0,0]
[null,null,"Tratamento de substituição de opióide (TSO)","O tratamento de substituição de opióide é oferecido gratuitamente aos PID, e:",null,null,null,null,null,{"$f":"O180","v":"-"},null,null,null,null,{"$f":"IFERROR(ROUND(AVERAGEIF(L181:N188,\"<>0\",L181:N188),0),\"-\")","v":"-"}]
[null,null,null,"○","É acessível e está prontamente disponível",null,null,null,null,null,null,0,0,0]
[null,null,null,"○","É garantida a segurança aos utentes",null,null,null,null,null,null,0,0,0]
[null,null,null,"○","Tratamento no mesmo dia, após o registo",null,null,null,null,null,null,0,0,0]
[null,null,null,"○","Cuidados de alta qualidade, livre da discriminação",null,null,null,null,null,null,0,0,0]
[null,null,null,"○","Os PID são permitidos a continuar com o TSO mesmo em caso de prisão",null,null,null,null,null,null,0,0,0]
[null,null,null,"○","Existe uma política de dosagem flexível, conforme as directrizes da OMS",null,null,null,null,null,null,0,0,0]
[null,null,null,"○","É possível levar a dosagem para casa",null,null,null,null,null,null,0,0,0]
[null,null,null,"○","Existem programas de distribuição comunitária",null,null,null,null,null,null,0,0,0]
[null,null,"Preservativos e Lubrificantes ","Todos os PWID têm acesso a preservativos, lubrificantes, demonstrações e outros serviços de saúde reprodutiva e:\n\n",null,null,null,null,null,{"$f":"O189","v":"-"},null,null,null,null,{"$f":"IFERROR(ROUND(AVERAGEIF(L190:N192,\"<>0\",L190:N192),0),\"-\")","v":"-"}]
[null,null,null,"○","São amplamente distribuídos em quantidade suficiente",null,null,null,null,null,null,0,0,0]
[null,null,null,"○","São facilmente acessíveis em locais hotspot",null,null,null,null,null,null,0,0,0]
[null,null,null,"○","São realizadas demonstrações regulares por TS ",null,null,null,null,null,null,0,0,0]
[null,null,"Serviços de testagem de HIV","Serviços de testagem, tratamento, aconselhamento e apoio de HIV estão disponíveis para PWID e: \n",null,null,null,null,null,{"$f":"O193","v":"-"},null,null,null,null,{"$f":"IFERROR(ROUND(AVERAGEIF(L194:N205,\"<>0\",L194:N205),0),\"-\")","v":"-"}]
[null,null,null,"○","São implementadas directrizes consolidadas da OMS sobre os serviços de testagem do HIV",null,null,null,null,null,null,0,0,0]
[null,null,null,"○","Toda a testagem é voluntária e confidencial (consentimento informado obtido)",null,null,null,null,null,null,0,0,0]
[null,null,null,"○","Aconselhamento pré e pós-teste é oferecido ",null,null,null,null,null,null,0,0,0]
[null,null,null,"○","Tratamento é oferecido independentemente da contagem de CD4",null,null,null,null,null,null,0,0,0]
[null,null,null,"○","As pessoas seropositivas recebem um encaminhamento para redes de apoio após o diagnóstico ",null,null,null,null,null,null,0,0,0]
[null,null,null,"○","O acesso aos serviços é distribuído de forma equitativa por toda a comunidade e por todas as PWID ",null,null,null,null,null,null,0,0,0]
[null,null,null,"○","Existem intervenções para garantir a adesão de PWID que vivem com HIV",null,null,null,null,null,null,0,0,0]
[null,null,null,"○","Monitorização regular da afluência aos cuidados entre PWID que vivem com HIV ",null,null,null,null,null,null,0,0,0]
[null,null,null,"○","São oferecidas ligações à prevenção para co-morbidades",null,null,null,null,null,null,0,0,0]
[null,null,null,"○","São oferecidas ligações a prevenção e tratamento para co-morbidades",null,null,null,null,null,null,0,0,0]
[null,null,null,"○","Testes de carga viral disponíveis e acessíveis para PWID que vivem com HIV",null,null,null,null,null,null,0,0,0]
[null,null,null,"○","Testes de CD4 disponíveis e acessíveis para PWID que vivem com HIV",null,null,null,null,null,null,0,0,0]
[null,null,"Profilaxia Pré-exposição","A PrEP oral (TDF) está disponível para PWID com risco substancial de infecção pelo HIV ",null,null,null,null,null,{"$f":"O206","v":"-"},null,null,null,null,{"$f":"IFERROR(ROUND(AVERAGEIF(L207:N211,\"<>0\",L207:N211),0),\"-\")","v":"-"}]
[null,null,null,"○","Existe um fornecimento ininterrupto de Profilaxia Pré-Exposição ",null,null,null,null,null,null,{"$f":"IF(ISBLANK(G207),0,1)","v":0},{"$f":"IF(ISBLANK(H207),0,3)","v":0},{"$f":"IF(ISBLANK(I207),0,5)","v":0}]
[null,null,null,"○","Testes de HIV são realizados antes do início da Profilaxia Pré-Exposição de modo a garantir que o indivíduo é seronegativo ",null,null,null,null,null,null,0,0,0]
[null,null,null,"○","Oferecida como parte de uma abordagem abrangente de prevenção combinada ",null,null,null,null,null,null,0,0,0]
[null,null,null,"○","As abordagens combinadas incluem o apoio à adesão, a re-testagem periódica do HIV e o aconselhamento para utilizadores de Profilaxia Pré-Exposição ",null,null,null,null,null,null,0,0,0]
[null,null,null,"○","A Profilaxia Pré-Exposição é oferecida com base na avaliação individual e não no grupo de risco para promover uma cobertura mais ampla ",null,null,null,null,null,null,0,0,0]
[null,null,"Planeamento familiar e SSR","Todas as PWID têm acesso ao planeamento familiar e a outros serviços de saúde reprodutiva e:",null,null,null,null,null,{"$f":"O212","v":"-"},null,null,null,null,{"$f":"IFERROR(ROUND(AVERAGEIF(L213:N216,\"<>0\",L213:N216),0),\"-\")","v":"-"}]
[null,null,null,"○","Incluem o rastreio do cancro cervical",null,null,null,null,null,null,0,0,0]
[null,null,null,"○","São amplamente distribuídos em quantidade suficiente",null,null,null,null,null,null,0,0,0]
[null,null,null,"○","São facilmente acessíveis em locais hotspot",null,null,null,null,null,null,0,0,0]
[null,null,null,"○","Workshops de demonstração são regularmente realizados em hotspots",null,null,null,null,null,null,0,0,0]
[null,null,"Cuidados pós-violência ","Todos as PWID têm acesso a cuidados pós-violência e:\n",null,null,null,null,null,{"$f":"O217","v":"-"},null,null,null,null,{"$f":"IFERROR(ROUND(AVERAGEIF(L217:N221,\"<>0\",L217:N221),0),\"-\")","v":"-"}]
[null,null,null,"○","Estão disponíveis serviços pós-violência, tais como apoio e aconselhamento",null,null,null,null,null,null,0,0,0]
[null,null,null,"○","Estão disponíveis serviços pós-violência, como a Profilaxia Pós-Exposição",null,null,null,null,null,null,0,0,0]
[null,null,null,"○","Testagem de ITS (sífilis, clamídia, gonorreia) é feita rotineiramente em casos de violência sexual",null,null,null,null,null,null,0,0,0]
[null,null,null,"○","Mecanismo de encaminhamento em vigor para serviços abrangentes de VBG, mediante necessidade",null,null,null,null,null,null,0,0,0]
[null,null,"Prevenção, triagem e tratamento da TB","A prevenção, triagem e tratamento da TB estão disponíveis para PWID e:\n",null,null,null,null,null,{"$f":"O222","v":"-"},null,null,null,null,{"$f":"IFERROR(ROUND(AVERAGEIF(L223:N231,\"<>0\",L223:N231),0),\"-\")","v":"-"}]
[null,null,null,"○","Prevenção: Terapia preventiva isoniazida oferecida à seropositivos conjuntamente com a Terapia Anti-Retroviral, controlo de infeção de Tuberculose e rastreio de contactos em meios de congregação ",null,null,null,null,null,null,0,0,0]
[null,null,null,"○","Diagnóstico: utiliza Xpert MTB/RIF como primeiros testes de diagnóstico",null,null,null,null,null,null,0,0,0]
[null,null,null,"○","Toda a testagem é voluntária e confidencial ",null,null,null,null,null,null,0,0,0]
[null,null,null,"○","Existem intervenções de apoio à adesão a fim de garantir que o regime de antibióticos seja concluído",null,null,null,null,null,null,0,0,0]
[null,null,null,"○","O tratamento é administrado imediatamente e a fornecimento é ininterrupto",null,null,null,null,null,null,0,0,0]
[null,null,null,"○","O acesso aos serviços é distribuído de forma equitativa entre a comunidade e PWID",null,null,null,null,null,null,0,0,0]
[null,null,null,"○","Boas ligações a testagem e aconselhamento de HIV para casos positivos ",null,null,null,null,null,null,0,0,0]
[null,null,null,"○","Esforços estão a ser envidados no sentido de tratar a TB latente em PWID",null,null,null,null,null,null,0,0,0]
[null,null,null,"○","O tratamento da Tuberculose não é contra-indicado pelo consumo de álcool, uso de drogas e distúrbios de saúde mental",null,null,null,null,null,null,0,0,0]
[null,null,"Prevenção, vacinação, triagem e tratamento da hepatite viral","Prevenção, vacinação, triagem e tratamentos de Hep B e C virais estão disponíveis para atender às necessidades específicas de PWID e:\n",null,null,null,null,null,{"$f":"O232","v":"-"},null,null,null,null,{"$f":"IFERROR(ROUND(AVERAGEIF(L233:N238,\"<>0\",L233:N238),0),\"-\")","v":"-"}]
[null,null,null,"○","Toda a testagem é voluntária e confidencial ",null,null,null,null,null,null,0,0,0]
[null,null,null,"○","O tratamento é administrado imediatamente e a fornecimento é ininterrupto ",null,null,null,null,null,null,0,0,0]
[null,null,null,"○","O acesso aos serviços é distribuído de forma equitativa por toda a comunidade e por todas as PWID",null,null,null,null,null,null,0,0,0]
[null,null,null,"○","São realizadas rotineiramente campanhas de vacinação contra hepatite B e C ",null,null,null,null,null,null,0,0,0]
[null,null,null,"○","Regimes de vacinação rápida e padrão para a hepatite B e C estão disponíveis e facilmente acessíveis ",null,null,null,null,null,null,0,0,0]
[null,null,null,"○","Foram afectados recursos para a prevenção, vacinação, triagem e tratamento da hepatite viral",null,null,null,null,null,null,0,0,0]
[null,null,"Triagem e tratamento para o consumo de drogas e álcool","A triagem e o tratamento para o consumo problemático de álcool e drogas são rotineiramente realizados nas unidades sanitárias, nos hotspots locais e nas clínicas móveis ",null,null,null,null,null,{"$f":"O239","v":"-"},null,null,null,null,{"$f":"IFERROR(ROUND(AVERAGEIF(L240:N243,\"<>0\",L240:N243),0),\"-\")","v":"-"}]
[null,null,null,"○","Os Agentes de Sensibilização de Pares encaminham indivíduos em risco aos serviços da triagem e tratamento ",null,null,null,null,null,null,0,0,0]
[null,null,null,"○","Os indivíduos são encaminhados a conselheiros, organizações e grupos de apoio adequados",null,null,null,null,null,null,0,0,0]
[null,null,null,"○","O tratamento é iniciado imediatamente se o indivíduo assim consentir voluntariamente",null,null,null,null,null,null,0,0,0]
[null,null,null,"○","O encaminhamento a outros serviços (saúde mental, apoio psicossocial) é fornecido atempadamente",null,null,null,null,null,null,0,0,0]
[null,null,"Cuidados de saúde mental","Os cuidados de saúde mental são acessíveis e fornecidos de forma consistente aos membros de PWID que vivem com o HIV e incluem:",null,null,null,null,null,{"$f":"O244","v":"-"},null,null,null,null,{"$f":"IFERROR(ROUND(AVERAGEIF(L245:N246,\"<>0\",L245:N246),0),\"-\")","v":"-"}]
[null,null,null,"○","Triagem de rotina para distúrbios de saúde mental (em particular a depressão e stress psicossocial) conforme descrito pelo Programa de Acção para reduzir as Lacunas em Saúde Mental (mhGAP)",null,null,null,null,null,null,0,0,0]
[null,null,null,"○","Aconselhamento pós-testagem do HIV após um resultado positivo para avaliar o risco de suicídio, depressão e outros resultados de saúde mental ",null,null,null,null,null,null,0,0,0]
[null,null,"CMMV","A CMMV está disponível para prisioneiros do sexo masculino e heterossexuais (que estão prestes a ser libertados nos países da África Oriental e Austral que praticam a CMMV) e:",null,null,null,null,null,{"$f":"O247","v":"-"},null,null,null,null,{"$f":"IFERROR(ROUND(AVERAGEIF(L248:N249,\"<>0\",L248:N249),0),\"-\")","v":"-"}]
[null,null,null,"○","O procedimento é voluntário (o consentimento informado foi adquirido) e confidencial",null,null,null,null,null,null,0,0,0]
[null,null,null,"○","O procedimento é realizado por profissionais de saúde bem formados em ambientes adequadamente equipados",null,null,null,null,null,null,0,0,0]
[null,null,"COVID-19 ","Prestação de serviços diferenciada, centrada nas pessoas, para programas de PWID durante a COVID-19 \n",null,null,null,null,null,{"$f":"O250","v":"-"},null,null,null,null,{"$f":"IFERROR(ROUND(AVERAGEIF(L251:N252,\"<>0\",L251:N252),0),\"-\")","v":"-"}]
[null,null,null,"○","Existem programas que visam incentivar e acompanhar a adesão a vacina da COVID-19 entre PWID",null,null,null,null,null,null,0,0,0]
[null,null,null,"○","Mensagens contínuas e acesso seguro a modelos de prestação de serviços não baseados em unidades sanitárias (por exemplo, baseados na comunidade, baseados em casa, tele-saúde) durante os picos de COVID-19 de modo a evitar interrupções de serviços",null,null,null,null,null,null,0,0,0]
[null,null,"Intervenções Comportamentais"]
[null,null,"Elemento","Critérios",null,"N/D","Ausente","Presente mas não ideal","Presente e funcionando bem","Média por elemento","Comentários (se aplicável)"]
[null,null,"Comunicação para a mudança social e de comportamento (CMSC)","Actividades de CMSC estão incluídas no Programa de População-Chave. Estas são:",null,null,null,null,null,{"$f":"O255","v":"-"},null,null,null,null,{"$f":"IFERROR(ROUND(AVERAGEIF(L256:N260,\"<>0\",L256:N260),0),\"-\")","v":"-"}]
[null,null,null,"○","Bem planeadas e com um orçamento adequado",null,null,null,null,null,null,{"$f":"IF(ISBLANK(G256),0,1)","v":0},{"$f":"IF(ISBLANK(H256),0,3)","v":0},{"$f":"IF(ISBLANK(I256),0,5)","v":0},{"$f":"IF(ISBLANK(J256),0,5)","v":0}]
[null,null,null,"○","Baseadas em evidências ",null,null,null,null,null,null,{"$f":"IF(ISBLANK(G257),0,1)","v":0},{"$f":"IF(ISBLANK(H257),0,3)","v":0},{"$f":"IF(ISBLANK(I257),0,5)","v":0}]
[null,null,null,"○","Os membros de populações-chave foram envolvidos na concepção e teste das intervenções",null,null,null,null,null,null,0,0,0]
[null,null,null,"○","As organizações e indivíduos que implementam estas intervenções são experientes e formados em intervenções de CMSC",null,null,null,null,null,null,0,0,0]
[null,null,null,"○","Intervenções de CMSC estão incluídas nos planos e actividades de Monitoria e Avaliação",null,null,null,null,null,null,0,0,0]
[null,null,"Intervenções Estruturais"]
[null,null,"Elemento","Critérios",null,"N/D","Ausente","Presente mas não ideal","Presente e funcionando bem","Média por elemento","Comentários (se aplicável)"]
[null,null,"Prevenção e resposta à violência","Programas de combate à violência contra PWID têm sido implementados de forma consistente e contemplam:",null,null,null,null,null,{"$f":"O263","v":"-"},null,null,null,null,{"$f":"IFERROR(ROUND(AVERAGEIF(L264:N270,\"<>0\",L264:N270),0),\"-\")","v":"-"}]
[null,null,null,"○","Informações sobre segurança",null,null,null,null,null,null,0,0,0]
[null,null,null,"○","Espaços seguros (Centros de Acolhimento -DIC)",null,null,null,null,null,null,{"$f":"IF(ISBLANK(G265),0,1)","v":0},{"$f":"IF(ISBLANK(H265),0,3)","v":0},{"$f":"IF(ISBLANK(I265),0,5)","v":0}]
[null,null,null,"○","Segurança reforçada no local de trabalho",null,null,null,null,null,null,0,0,0]
[null,null,null,"○","Mecanismos de monitoria e denúncia de violência padronizados, que se estendem além da polícia e podem incluir apoio legal de organizações de PWID",null,null,null,null,null,null,0,0,0]
[null,null,null,"○","Formação abrangente de policiais e assistentes sociais para que sejam sensíveis às necessidades de PWID",null,null,null,null,null,null,0,0,0]
[null,null,null,"○","Planos de resposta à violência desenvolvidos pela comunidade",null,null,null,null,null,null,0,0,0]
[null,null,null,"○","Ligações estabelecidas ao apoio jurídico",null,null,null,null,null,null,0,0,0]
[null,null,"Redução do estigma e da discriminação ","Existe um abordagem consistente à redução do estigma em unidades sanitárias, bem como aquando da busca por assistência jurídica ",null,null,null,null,null,{"$f":"O271","v":"-"},null,null,null,null,{"$f":"IFERROR(ROUND(AVERAGEIF(L272:N275,\"<>0\",L272:N275),0),\"-\")","v":"-"}]
[null,null,null,"○","São realizadas campanhas contínuas de redução do estigma ",null,null,null,null,null,null,0,0,0]
[null,null,null,"○","Sensibilização, educação e envolvimento contínuos de líderes religiosos e anciãos, agentes da autoridade e Trabalhadores de Saúde",null,null,null,null,null,null,0,0,0]
[null,null,null,"○","Existem mecanismos eficazes para permitir a denúncia de incidentes de discriminação no acesso a cuidados de saúde  ",null,null,null,null,null,null,0,0,0]
[null,null,null,"○","O apoio e o acompanhamento são fornecidos a PWID que denunciam incidentes de discriminação",null,null,null,null,null,null,0,0,0]
[null,null,"Serviços jurídicos relacionados com o HIV ","Existem serviços jurídicos relacionados com o HIV para atender às necessidades das populações de PWID e,  ",null,null,null,null,null,{"$f":"O276","v":"-"},null,null,null,null,{"$f":"IFERROR(ROUND(AVERAGEIF(L277:N279,\"<>0\",L277:N279),0),\"-\")","v":"-"}]
[null,null,null,"○","Existem formas alternativas de resolução de litígios",null,null,null,null,null,null,0,0,0]
[null,null,null,"○","O acesso a informação legal e referências está prontamente disponível",null,null,null,null,null,null,0,0,0]
[null,null,null,"○","O acesso a assessoria e representação jurídicas está prontamente disponível",null,null,null,null,null,null,0,0,0]
[null,null,"Monitoria da aplicação da lei ","A implementação de políticas, regulamentos e leis é regularmente monitorizada com vista a avaliar o impacto sobre PWID.",null,null,null,null,null,{"$f":"O280","v":"-"},null,0,0,0,{"$f":"IFERROR(ROUND(AVERAGEIF(L280:N280,\"<>0\",L280:N280),0),\"-\")","v":"-"}]
[null,null,"Literacia legal (\"Conheça os seus direitos\")","○","É oferecida aos membros de PWID uma formação detalhada sobre literacia jurídica ",null,null,null,null,{"$f":"O281","v":"-"},null,null,null,null,{"$f":"IFERROR(ROUND(AVERAGEIF(L282:N283,\"<>0\",L282:N283),0),\"-\")","v":"-"}]
[null,null,null,"○","Estratégias eficazes para a interacção com a polícia foram delineadas e comunicadas a PWID",null,null,null,null,null,null,0,0,0]
[null,null,null,"○","As PWID estão conscientes das suas leis e direitos e são capazes de defender as suas necessidades no contexto do HIV em torno das suas leis e direitos",null,null,null,null,null,null,0,0,0]
[null,null,"Sensibilização dos fazedores de políticas e dos agentes da lei e ordem ","A formação rigorosa de legisladores e agentes da lei e ordem tem lugar regularmente de modo a garantir uma sensibilização adequada destes em relação a todas as PWID e contempla: \n",null,null,null,null,null,{"$f":"O284","v":"-"},null,null,null,null,{"$f":"IFERROR(ROUND(AVERAGEIF(L285:N288,\"<>0\",L285:N288),0),\"-\")","v":"-"}]
[null,null,null,"○","Um programa abrangente de formação de sensibilização que foi adaptado ao contexto do país",null,null,null,null,null,null,0,0,0]
[null,null,null,"○","Facilitadores devidamente formados",null,null,null,null,null,null,0,0,0]
[null,null,null,"○","Participação de PWID",null,null,null,null,null,null,0,0,0]
[null,null,null,"○","Feedback dos participantes",null,null,null,null,null,null,0,0,0]
[null,null,"Formação de profissionais de saúde sobre os direitos humanos e a ética médica relacionada com o HIV ","Um programa abrangente de formação de sensibilização que foi adaptado ao contexto do país",null,null,null,null,null,{"$f":"O289","v":"-"},null,null,null,null,{"$f":"IFERROR(ROUND(AVERAGEIF(L290:N292,\"<>0\",L290:N292),0),\"-\")","v":"-"}]
[null,null,null,"○","Facilitadores devidamente formados",null,null,null,null,null,null,0,0,0]
[null,null,null,"○","Participação de PWID",null,null,null,null,null,null,0,0,0]
[null,null,null,"○","Feedback dos participantes",null,null,null,null,null,null,0,0,0]
[null,null,"Redução da discriminação contra as mulheres no contexto do HIV ","Foram implementados programas para fazer face a desigualdade de género e a violência baseada no género e o HIV, contemplando: ",null,null,null,null,null,{"$f":"O293","v":"-"},null,null,null,null,{"$f":"IFERROR(ROUND(AVERAGEIF(L294:N300,\"<>0\",L294:N300),0),\"-\")","v":"-"}]
[null,null,null,"○","A desigualdade entre mulheres e raparigas na tomada de decisões sexuais e reprodutivas; ",null,null,null,null,null,null,0,0,0]
[null,null,null,"○","As barreiras de género no acesso aos serviços de saúde; ",null,null,null,null,null,null,0,0,0]
[null,null,null,"○","Discriminação em matéria de herança, posse de património, casamento, divórcio e custódia; ",null,null,null,null,null,null,0,0,0]
[null,null,null,"○","Violência sexual e outras; ",null,null,null,null,null,null,0,0,0]
[null,null,null,"○","Falta de igualdade de acesso às oportunidades de educação e económicas; ",null,null,null,null,null,null,0,0,0]
[null,null,null,"○","Falta de apoio aos cuidadores em agregados familiares afectados pelo HIV. ",null,null,null,null,null,null,0,0,0]
[null,null,null,"○","São complementados por programas que visam homens e rapazes que abordam as normas de género nocivas ",null,null,null,null,null,null,0,0,0]
[null,null,"Espaços seguros/centros de acolhimento","Espaços seguros/centros de acolhimento foram estabelecidos para a comunidade de PWID",null,null,null,null,null,{"$f":"O301","v":"-"},null,null,null,null,{"$f":"IFERROR(ROUND(AVERAGEIF(L302:N310,\"<>0\",L302:N310),0),\"-\")","v":"-"}]
[null,null,null,"○","Servem como o principal local de interacção entre a comunidade e o programa",null,null,null,null,null,null,0,0,0]
[null,null,null,"○","Oferecem uma plataforma para mobilização, formação e organização de iniciativas da comunidade",null,null,null,null,null,null,0,0,0]
[null,null,null,"○","Partilham informações sobre eventos, actividades e serviços relevantes para a comunidade",null,null,null,null,null,null,0,0,0]
[null,null,null,"○","Informações, educação e materiais de comunicação fáceis de usar estão acessíveis",null,null,null,null,null,null,0,0,0]
[null,null,null,"○","Prestam serviços e apoio psicossociais ",null,null,null,null,null,null,0,0,0]
[null,null,null,"○","Preservativos e lubrificantes estão disponíveis",null,null,null,null,null,null,0,0,0]
[null,null,null,"○","Utilizados ASPs para avaliar seu trabalho e planificar acções de sensibilização",null,null,null,null,null,null,0,0,0]
[null,null,null,"○","Criados em consulta com PWID por forma a determinar a localização, o horário de funcionamento e os serviços fornecidos",null,null,null,null,null,null,0,0,0]
[null,null,null,"○","Disponibilizam ou oferecem ligações a intervenções relevantes não relacionadas com o sector da saúde",null,null,null,null,null,null,0,0,0]
[null,null,"Comités comunitários","Foram formados comitês da comunidade de PWID e:",null,null,null,null,null,{"$f":"O311","v":"-"},null,null,null,null,{"$f":"IFERROR(ROUND(AVERAGEIF(L312:N321,\"<>0\",L312:N321),0),\"-\")","v":"-"}]
[null,null,null,"○","Podem ser formado de forma livre e fácil",null,null,null,null,null,null,0,0,0]
[null,null,null,"○","Realizam reuniões regulares (pelo menos mensalmente) e utilizam um relatório de reunião para registar sistematicamente o debate ",null,null,null,null,null,null,0,0,0]
[null,null,null,"○","Avaliam a prestação de serviços, solucionam problemas, acompanham as mudanças, desenvolvem compreensão e responsabilização, bem como resolvem problemas gerais da comunidade",null,null,null,null,null,null,0,0,0]
[null,null,null,"○","Elegem membros da comunidade de PWID anualmente",null,null,null,null,null,null,0,0,0]
[null,null,null,"○","Elegem o defensor da comunidade de PWID para servir de intermediário do programa ",null,null,null,null,null,null,0,0,0]
[null,null,null,"○","Convidam pessoal relevante da organização responsável pela implementação para ser membros do comité ou para participar nas reuniões",null,null,null,null,null,null,0,0,0]
[null,null,null,"○","Dão feedback regular ao programa por forma a moldar a qualidade dos serviços oferecidos",null,null,null,null,null,null,0,0,0]
[null,null,null,"○","Respeitam a confidencialidade ",null,null,null,null,null,null,0,0,0]
[null,null,null,"○","Não permitem que o pessoal da organização responsável pela implementação vote nas reuniões",null,null,null,null,null,null,0,0,0]
[null,null,null,"○","Integram jovens PC e desenvolvem a sua capacidade ",null,null,null,null,null,null,0,0,0]
[null,null,"Monitoria do Programa"]
[null,null,"Elemento","Critérios",null,"N/D","Ausente","Presente mas não ideal","Presente e funcionando bem","Média por elemento","Comentários (se aplicável)"]
[null,null,"Monitoria de rotina","Indicadores do programa de rotina são definidos e comunicados ",null,null,null,null,null,{"$f":"O324","v":"-"},null,null,null,null,{"$f":"IFERROR(ROUND(AVERAGEIF(L325:N331,\"<>0\",L325:N331),0),\"-\")","v":"-"}]
[null,null,null,"○","Rotineiramente (mensal, trimestral),",null,null,null,null,null,null,0,0,0]
[null,null,null,"○","Completamente (os dados são consistentes e não há informação em falta)",null,null,null,null,null,null,0,0,0]
[null,null,null,"○","A todos os níveis (ou seja, estado/concelho/província)",null,null,null,null,null,null,0,0,0]
[null,null,null,"○","Por todos os parceiros de implementação",null,null,null,null,null,null,0,0,0]
[null,null,null,"○","Através da plataforma DHIS/EMR",null,null,null,null,null,null,0,0,0]
[null,null,null,"○","O rastreamento individual de dados é feito por parceiros de implementação ",null,null,null,null,null,null,0,0,0]
[null,null,null,"○","Os dados são regularmente analisados por todas as partes interessadas (governo, sociedade civil, comunidade de PWID, parceiros de implementação, doadores) e utilizados para melhorar os programas ",null,null,null,null,null,null,0,0,0]
[null,null,"Monitoria para a responsabilização liderada pela Comunidade ","Incorporar a monitoria liderada pela comunidade em plataformas de monitoria nacionais e:",null,null,null,null,null,{"$f":"O332","v":"-"},null,null,null,null,{"$f":"IFERROR(ROUND(AVERAGEIF(L333:N339,\"<>0\",L333:N339),0),\"-\")","v":"-"}]
[null,null,null,"○","A MLC é aceite e integrada  em processos de tomada de decisão e negociações com autoridades locais, financiadores e outros apoiantes externos ",null,null,null,null,null,null,{"$f":"IF(ISBLANK(G333),0,1)","v":0},{"$f":"IF(ISBLANK(H333),0,3)","v":0},{"$f":"IF(ISBLANK(I333),0,5)","v":0}]
[null,null,null,"○","Funciona como um mecanismo comunitário de vigilância e responsabilização",null,null,null,null,null,null,0,0,0]
[null,null,null,"○","Monitores de pares formados que recolhem e analisam de forma sistemática e regular dados qualitativos e quantitativos sobre a prestação de serviços de HIV",null,null,null,null,null,null,0,0,0]
[null,null,null,"○","Existem equipas de monitoria liderada pela comunidade para responder aos défices na prestação de serviços de HIV nas comunidades",null,null,null,null,null,null,0,0,0]
[null,null,null,"○","Existe colaboração entre diferentes redes de pessoas vivendo com HIV (PVHIV) e organizações lideradas pela comunidade das comunidades afectadas",null,null,null,null,null,null,0,0,0]
[null,null,null,"○","Os agentes de recolha de dados e outros membros da comunidade envolvidos na realização da monitoria liderada pela comunidade são remunerados de acordo com práticas e padrões nacionais",null,null,null,null,null,null,0,0,0]
[null,null,null,"○","As comunidades de PWID são formadas e apoiadas para avaliar as unidades sanitárias e realizar a audiências públicas a fim de responsabilizar os dirigentes ",null,null,null,null,null,null,0,0,0]
[null,null,"Rastreamento do sistema de encaminhamento","Existem sistemas de rastreamento de encaminhamentos e contemplam:",null,null,null,null,null,{"$f":"O340","v":"-"},null,null,null,null,{"$f":"IFERROR(ROUND(AVERAGEIF(L341:N345,\"<>0\",L341:N345),0),\"-\")","v":"-"}]
[null,null,null,"○","Uma ferramenta de encaminhamento amplamente disponível, incluindo Procedimentos Operacionais Padrão claros",null,null,null,null,null,null,{"$f":"IF(ISBLANK(G341),0,1)","v":0},{"$f":"IF(ISBLANK(H341),0,3)","v":0},{"$f":"IF(ISBLANK(I341),0,5)","v":0}]
[null,null,null,"○","Um directório de encaminhamento nas unidades e nas organizações lideradas por pares ",null,null,null,null,null,null,0,0,0]
[null,null,null,"○","Registo de resultados ",null,null,null,null,null,null,0,0,0]
[null,null,null,"○","Mecanismos de feedback entre pacientes e fornecedores (de encaminhamentos) ",null,null,null,null,null,null,0,0,0]
[null,null,null,"○","Relatórios sobre o encaminhamento (mensalmente) a fim de monitorizar a eficácia do sistema de encaminhamento",null,null,null,null,null,null,0,0,0]
[null,null,"Avaliação de qualidade","Foram definidos sistemas de recolha de dados sobre a qualidade do programa e indicadores conexos e:\n",null,null,null,null,null,{"$f":"O346","v":"-"},null,null,null,null,{"$f":"IFERROR(ROUND(AVERAGEIF(L347:N350,\"<>0\",L347:N350),0),\"-\")","v":"-"}]
[null,null,null,"○","São recolhidos dados precisos",null,null,null,null,null,null,0,0,0]
[null,null,null,"○","Os dados servem de base a acção ",null,null,null,null,null,null,0,0,0]
[null,null,null,"○","Os mecanismos de feedback permitem a PWID avaliar os serviços que receberam como mecanismo de monitorização da qualidade do programa",null,null,null,null,null,null,0,0,0]
[null,null,null,"○","Os dados são auditados regularmente ",null,null,null,null,null,null,0,0,0]
[null,null,"Vigilância ","A vigilância permite uma descrição precisa do contexto e resultados/impactos do programa de PWID.  Vigilância: \n",null,null,null,null,null,{"$f":"O351","v":"-"},null,null,null,null,{"$f":"IFERROR(ROUND(AVERAGEIF(L352:N355,\"<>0\",L352:N355),0),\"-\")","v":"-"}]
[null,null,null,"○","Os resultados de estudos são utilizados para subsidiar a tomada de decisões e a correcção do percurso ",null,null,null,null,null,null,0,0,0]
[null,null,null,"○","Envolve a análise e interpretação de dados em intervalos regulares ",null,null,null,null,null,null,0,0,0]
[null,null,null,"○","Envolve a divulgação regular de informações para atender às necessidades locais, provinciais e nacionais ",null,null,null,null,null,null,0,0,0]
[null,null,null,"○","Inclui inquéritos biológicos e comportamentais, inquéritos sentinela e outros estudos de investigação que examinem indicadores para PWID ",null,null,null,null,null,null,0,0,0]
[null,null,"Dados para tomada de decisão","O Programa Nacional, a Unidade de Monitoria e Avaliação do Ministério da Saúde, ou órgão de coordenação similar supervisiona/coordena a monitoria, pesquisa e recolha de dados de vigilância e:",null,null,null,null,null,{"$f":"O356","v":"-"},null,null,null,null,{"$f":"IFERROR(ROUND(AVERAGEIF(L357:N364,\"<>0\",L357:N364),0),\"-\")","v":"-"}]
[null,null,null,"○","Partilha dados com o Grupo de Trabalho Técnico de PWID",null,null,null,null,null,null,0,0,0]
[null,null,null,"○","O Grupo de Trabalho Técnico de PWID analisa os dados do programa existentes trimestralmente e identifica áreas para correcção do percurso",null,null,null,null,null,null,0,0,0]
[null,null,null,"○","O Grupo de Trabalho Técnico de PWID ajuda na elaboração de estratégias para suprir as lacunas ",null,null,null,null,null,null,0,0,0]
[null,null,null,"○","São recolhidos dados de boa qualidade (válidos, fiáveis, consistentes, precisos, atempados, relevantes) e a maioria das necessidades de informação são atendidas e, caso não sejam atendidas, as lacunas são compreendidas ",null,null,null,null,null,null,0,0,0]
[null,null,null,"○","Os dados são utilizados de forma consistente e adequada para fundamentar as decisões ",null,null,null,null,null,null,0,0,0]
[null,null,null,"○","Os dados foram desduplicados em todos os parceiros de implementação e os duplicações são mínimas, se existirem",null,null,null,null,null,null,0,0,0]
[null,null,null,"○","Os dados são agregados centralmente, mas podem ser desagregados por localidade, sexo e idade",null,null,null,null,null,null,0,0,0]
[null,null,null,"○","O programa fornece dados ao Grupo de Trabalho Técnico para análise",null,null,null,null,null,null,0,0,0]
[null,null,"Utilização do Código de Identificação Único para a monitoria do programa","Um sistema utilizado para monitorizar o programa está plenamente funcional e é adequado para acompanhar o desempenho do programa",null,null,null,null,null,{"$f":"O365","v":"-"},null,null,null,null,{"$f":"IFERROR(ROUND(AVERAGEIF(L366:N369,\"<>0\",L366:N369),0),\"-\")","v":"-"}]
[null,null,null,"○","Vários Códigos de Identificação Únicos podem ser utilizados num determinado país, mas estão harmonizados",null,null,null,null,null,null,0,0,0]
[null,null,null,"○","O programa nacional utiliza dados agregados do Código de Identificação Único",null,null,null,null,null,null,0,0,0]
[null,null,null,"○","O Código de Identificação Único é capaz de distinguir o contacto/alcance, com vista a desduplicação ",null,null,null,null,null,null,0,0,0]
[null,null,null,"○","O Código de Identificação Único é baseado na electrónica",null,null,null,null,null,null,0,0,0]
[null,null,"Monitoria orçamental","A monitoria do desempenho financeiro e não financeiro do programa de Raparigas Adolescentes e Mulheres Jovens é integrada e são gerados relatórios regulares: ",null,null,null,null,null,{"$f":"O370","v":"-"},null,null,null,null,{"$f":"IFERROR(ROUND(AVERAGEIF(L371:N373,\"<>0\",L371:N373),0),\"-\")","v":"-"}]
[null,null,null,"○","Os dados sobre as despesas relativas às intervenções relacionadas com PWID são facilmente acessíveis. ",null,null,null,null,null,null,0,0,0]
[null,null,null,"○","Existem mecanismos de responsabilização para as sub-despesas. ",null,null,null,null,null,null,0,0,0]
[null,null,null,"○","Os dados financeiros e não financeiros são utilizados para aferir a relação qualidade/preço.",null,null,null,null,null,null,0,0,0]
[null,null,"Resultados do Programa"]
[null,null,"Resultados e indicadores"]
[null,null,"Elemento","Critérios",null,"N/D","Não monitorizado ","Meta não atingida ou não está no rumo certo ","Meta atingida ou está no rumo certo ","Média por elemento","Comentários (se aplicável)"]
[null,null,"Estimativas da dimensão populacional de pessoas que injectam drogas, disponíveis",null,null,null,null,null,null,{"$f":"O377","v":"-"},null,0,0,0,{"$f":"IFERROR(ROUND(AVERAGEIF(L377:N377,\"<>0\",L377:N377),0),\"-\")","v":"-"}]
[null,null,"PWID vivendo com o HIV conhecem o seu estado de seropositividade (meta 90%)",null,null,null,null,null,null,{"$f":"O378","v":"-"},null,0,0,0,"-"]
[null,null,"PWID vivendo com HIV em terapia anti-retroviral (meta 90%)",null,null,null,null,null,null,"-",null,0,0,0,"-"]
[null,null,"PWID vivendo com HIV que suprimiram cargas virais (meta 90%)",null,null,null,null,null,null,"-",null,0,0,0,"-"]
[null,null,"A estratégia de prevenção inclui elementos centrais do pacote de redução de danos de PWID",null,null,null,null,null,null,"-",null,0,0,0,"-"]
[null,null,"Pessoas que injectam drogas que receberam pelo menos 2 intervenções de prevenção do HIV nos últimos 3 meses",null,null,null,null,null,null,"-",null,0,0,0,"-"]
[null,null,"Número de agulhas/seringas por pessoa que injecta drogas",null,null,null,null,null,null,"-",null,0,0,0,"-"]
[null,null,"% das pessoas que injectam drogas que evitaram cuidados de saúde devido ao estigma e à discriminação",null,null,null,null,null,null,"-",null,0,0,0,"-"]
[null,null,"Experiência de discriminação relacionada com o HIV contra PWID em ambientes de cuidados de saúde ",null,null,null,null,null,null,"-",null,0,0,0,"-"]
[null,null,"Práticas de injecção segura (PWID) (meta 90%)",null,null,null,null,null,null,"-",null,{"$f":"IF(ISBLANK(G386),0,1)","v":0},{"$f":"IF(ISBLANK(H386),0,3)","v":0},{"$f":"IF(ISBLANK(I386),0,5)","v":0},"-"]
[null,null,"Percentagem de utilizadores de opiáceos que recebem MAT (PWID) (meta 25%)",null,null,null,null,null,null,"-",null,0,0,0,"-"]
[null,null,"Criminalização do uso/consumo de drogas ou posse para uso pessoal",null,null,null,null,null,null,"-",null,0,0,0,"-"]
[null,null,null,null,null,null,null,null,null,null,null,null,{"$f":"COUNTIF(O6:O387,\"-\")","v":71}]
[null,null,null,null,null,null,null,null,null,null,null,null,{"$f":"COUNTIF(O6:O387,\">0\")","v":0}]
[null,null,null,null,null,null,null,null,null,null,null,"Preenchimento de folha",{"$f":"M390/(M389+M390)","v":0},{"$f":"1-M391","v":1}]

{"sheet":"Resumo das pontuações ","index":9,"n_rows":84,"n_cols":14,"rows_kept":84,"cut":false,"hidden":false,"merged":[[64,2,79,2],[2,2,2,4],[3,2,15,2],[3,3,8,3],[9,3,10,3],[16,2,61,2],[16,3,19,3],[20,3,24,3],[25,3,27,3],[28,3,42,3],[44,3,53,3],[54,3,61,3],[64,3,77,3],[11,3,15,3]]}
[]
[]
[null,null,"Resumo das pontuações",null,null,"Trabalhadores do sexo (TS)","Homens que têm sexo com homens (HSH)","Pessoas transgénero","Prisioneiros e pessoas em locais fechados","Pessoas que injectam drogas (PID)"]
[null,null,"Gestão de Programas","Liderança e coordenação","Estratégia nacional De PC",{"$f":"'TS '!O6","v":"-"},{"$f":"'HSH '!O6","v":"-"},{"$f":"'Pessoas transgénero'!O6","v":"-"},{"$f":"'Prisioneiros '!O6","v":"-"},{"$f":"'PID '!O6","v":"-"}]
[null,null,null,null,"Responsabilização",{"$f":"'TS '!O17","v":"-"},{"$f":"'HSH '!O17","v":"-"},{"$f":"'Pessoas transgénero'!O17","v":"-"},{"$f":"'Prisioneiros '!O16","v":"-"},{"$f":"'PID '!O17","v":"-"}]
[null,null,null,null,"Grupo de Trabalho Técnico para PC",{"$f":"'TS '!O23","v":"-"},{"$f":"'HSH '!O23","v":"-"},{"$f":"'Pessoas transgénero'!O23","v":"-"},{"$f":"'Prisioneiros '!O22","v":"-"},{"$f":"'PID '!O23","v":"-"}]
[null,null,null,null,"Coordenação das partes interessadas",{"$f":"'TS '!O29","v":"-"},{"$f":"'HSH '!O30","v":"-"},{"$f":"'Pessoas transgénero'!O29","v":"-"},{"$f":"'Prisioneiros '!O29","v":"-"},{"$f":"'PID '!O29","v":"-"}]
[null,null,null,null,"Plano de Capacitação e Assistência Técnica",{"$f":"'TS '!O36","v":"-"},{"$f":"'HSH '!O37","v":"-"},{"$f":"'Pessoas transgénero'!O36","v":"-"},{"$f":"'Prisioneiros '!O36","v":"-"},{"$f":"'PID '!O36","v":"-"}]
[null,null,null,null,"Plano de sustentabilidade e roteiro de transição",{"$f":"'TS '!O43","v":"-"},{"$f":"'HSH '!O44","v":"-"},{"$f":"'Pessoas transgénero'!O43","v":"-"},{"$f":"'Prisioneiros '!O43","v":"-"},{"$f":"'PID '!O43","v":"-"}]
[null,null,null,"Leis, Políticas e Regulamentos","Leis e Políticas ",{"$f":"'TS '!O50","v":"-"},{"$f":"'HSH '!O51","v":"-"},{"$f":"'Pessoas transgénero'!O50","v":"-"},{"$f":"'Prisioneiros '!O50","v":"-"},{"$f":"'PID '!O50","v":"-"}]
[null,null,null,null,"Directrizes",{"$f":"'TS '!O54","v":"-"},{"$f":"'HSH '!O55","v":"-"},{"$f":"'Pessoas transgénero'!O54","v":"-"},{"$f":"'Prisioneiros '!O53","v":"-"},{"$f":"'PID '!O53","v":"-"}]
[null,null,null,"Financiamento","Custos",{"$f":"'TS '!O61","v":"-"},{"$f":"'HSH '!O62","v":"-"},{"$f":"'Pessoas transgénero'!O61","v":"-"},{"$f":"'Prisioneiros '!O60","v":"-"},{"$f":"'PID '!O60","v":"-"}]
[null,null,null,null,"Planificação orçamental",{"$f":"'TS '!O63","v":"-"},{"$f":"'HSH '!O64","v":"-"},{"$f":"'Pessoas transgénero'!O63","v":"-"},{"$f":"'Prisioneiros '!O62","v":"-"},{"$f":"'PID '!O62","v":"-"}]
[null,null,null,null,"Mobilização de recursos e financiamento",{"$f":"'TS '!O67","v":"-"},{"$f":"'HSH '!O68","v":"-"},{"$f":"'Pessoas transgénero'!O67","v":"-"},{"$f":"'Prisioneiros '!O66","v":"-"},{"$f":"'PID '!O66","v":"-"}]
[null,null,null,null,"Recursos internos",{"$f":"'TS '!O68","v":"-"},{"$f":"'HSH '!O69","v":"-"},{"$f":"'Pessoas transgénero'!O69","v":"-"},{"$f":"'Prisioneiros '!O67","v":"-"},{"$f":"'PID '!O67","v":"-"}]
[null,null,null,null,"Contratação social",{"$f":"'TS '!O69","v":"-"},{"$f":"'HSH '!O70","v":"-"},{"$f":"'Pessoas transgénero'!O71","v":"-"},{"$f":"'Prisioneiros '!O68","v":"-"},{"$f":"'PID '!O68","v":"-"}]
[null,null,"Implementação do Programa","Segmentação e planificação","Avaliação demográfica (estimativa da dimensão da população e micro-planificação)",{"$f":"'TS '!O76","v":"-"},{"$f":"'HSH '!O77","v":"-"},{"$f":"'Pessoas transgénero'!O78","v":"-"},{"$f":"'Prisioneiros '!O76","v":"-"},{"$f":"'PID '!O75","v":"-"}]
[null,null,null,null,"Avaliação epidemiológica (inquérito de sero-prevalência e determinantes de risco)",{"$f":"'TS '!O84","v":"-"},{"$f":"'HSH '!O85","v":"-"},{"$f":"'Pessoas transgénero'!O86","v":"-"},{"$f":"'Prisioneiros '!O81","v":"-"},{"$f":"'PID '!O83","v":"-"}]
[null,null,null,null,"Avaliação das necessidades",{"$f":"'TS '!O91","v":"-"},{"$f":"'HSH '!O92","v":"-"},{"$f":"'Pessoas transgénero'!O93","v":"-"},{"$f":"'Prisioneiros '!O88","v":"-"},{"$f":"'PID '!O90","v":"-"}]
[null,null,null,null,"Definição de metas",{"$f":"'TS '!O95","v":"-"},{"$f":"'HSH '!O96","v":"-"},{"$f":"'Pessoas transgénero'!O97","v":"-"},{"$f":"'Prisioneiros '!O92","v":"-"},{"$f":"'PID '!O94","v":"-"}]
[null,null,null,"Mecanismo de implementação ","Manter uma plataforma de acesso",{"$f":"'TS '!O106","v":"-"},{"$f":"'HSH '!O107","v":"-"},{"$f":"'Pessoas transgénero'!O108","v":"-"},{"$f":"'Prisioneiros '!O103","v":"-"},{"$f":"'PID '!O105","v":"-"}]
[null,null,null,null,"Estrutura de gestão",{"$f":"'TS '!O111","v":"-"},{"$f":"'HSH '!O112","v":"-"},{"$f":"'Pessoas transgénero'!O113","v":"-"},{"$f":"'Prisioneiros '!O108","v":"-"},{"$f":"'PID '!O110","v":"-"}]
[null,null,null,null,"Fluxo de dados ",{"$f":"'TS '!O121","v":"-"},{"$f":"'HSH '!O122","v":"-"},{"$f":"'Pessoas transgénero'!O123","v":"-"},{"$f":"'Prisioneiros '!O113","v":"-"},{"$f":"'PID '!O120","v":"-"}]
[null,null,null,null,"Agentes de sensibilização de pares ",{"$f":"'TS '!O128","v":"-"},{"$f":"'HSH '!O129","v":"-"},{"$f":"'Pessoas transgénero'!O130","v":"-"},{"$f":"'Prisioneiros '!O119","v":"-"},{"$f":"'PID '!O120","v":"-"}]
[null,null,null,null,"Envolvimento significativo das comunidades afectadas na liderança e coordenação",{"$f":"'TS '!O139","v":"-"},{"$f":"'HSH '!O138","v":"-"},{"$f":"'Pessoas transgénero'!O139","v":"-"},{"$f":"'Prisioneiros '!O126","v":"-"},{"$f":"'PID '!O127","v":"-"}]
[null,null,null,"Prestação de serviços diferenciada","Serviços acessíveis",{"$f":"'TS '!O146","v":"-"},{"$f":"'HSH '!O145","v":"-"},{"$f":"'Pessoas transgénero'!O146","v":"-"},{"$f":"'Prisioneiros '!O133","v":"-"},{"$f":"'PID '!O144","v":"-"}]
[null,null,null,null,"Serviços aceitáveis",{"$f":"'TS '!O155","v":"-"},{"$f":"'HSH '!O153","v":"-"},{"$f":"'Pessoas transgénero'!O154","v":"-"},{"$f":"'Prisioneiros '!O141","v":"-"},{"$f":"'PID '!O152","v":"-"}]
[null,null,null,null,"Serviços personalizados/adequados",{"$f":"'TS '!O162","v":"-"},{"$f":"'HSH '!O159","v":"-"},{"$f":"'Pessoas transgénero'!O160","v":"-"},{"$f":"'Prisioneiros '!O147","v":"-"},{"$f":"'PID '!O158","v":"-"}]
[null,null,null,"Intervenção clínica ","Preservativos e Lubrificantes ",{"$f":"'TS '!O171","v":"-"},{"$f":"'HSH '!O168","v":"-"},{"$f":"'Pessoas transgénero'!O169","v":"-"},{"$f":"'Prisioneiros '!O155","v":"-"},{"$f":"'PID '!O189","v":"-"}]
[null,null,null,null,"Serviços de testagem de HIV",{"$f":"'TS '!O175","v":"-"},{"$f":"'HSH '!O172","v":"-"},{"$f":"'Pessoas transgénero'!O173","v":"-"},{"$f":"'Prisioneiros '!O159","v":"-"},{"$f":"'PID '!O193","v":"-"}]
[null,null,null,null,"Profilaxia Pré-exposição",{"$f":"'TS '!O188","v":"-"},{"$f":"'HSH '!O172","v":"-"},{"$f":"'Pessoas transgénero'!O184","v":"-"},{"$f":"'Prisioneiros '!O172","v":"-"},{"$f":"'PID '!O206","v":"-"}]
[null,null,null,null,"Prevenção, triagem e tratamento da STI",{"$f":"'TS '!O194","v":"-"},{"$f":"'HSH '!O191","v":"-"}]
[null,null,null,null,"Planeamento familiar e SSR",{"$f":"'TS '!O201","v":"-"},{"$f":"'HSH '!O198","v":"-"},{"$f":"'Pessoas transgénero'!O190","v":"-"},{"$f":"'Prisioneiros '!O178","v":"-"}]
[null,null,null,null,"Cuidados pós-violência ",{"$f":"'TS '!O206","v":"-"},{"$f":"'HSH '!O203","v":"-"},{"$f":"'Pessoas transgénero'!O194","v":"-"},{"$f":"'Prisioneiros '!O183","v":"-"},{"$f":"'PID '!O212","v":"-"}]
[null,null,null,null,"Prevenção, triagem e tratamento da TB",{"$f":"'TS '!O211","v":"-"},{"$f":"'HSH '!O208","v":"-"},{"$f":"'Pessoas transgénero'!O200","v":"-"},{"$f":"'Prisioneiros '!O187","v":"-"},{"$f":"'PID '!O217","v":"-"}]
[null,null,null,null,"PTMF",{"$f":"'TS '!O221","v":"-"},null,null,{"$f":"'Prisioneiros '!O182","v":"-"},{"$f":"'PID '!O222","v":"-"}]
[null,null,null,null,"Prevenção, vacinação, triagem e tratamento da hepatite viral",{"$f":"'TS '!O223","v":"-"},{"$f":"'HSH '!O218","v":"-"},{"$f":"'Pessoas transgénero'!O210","v":"-"},{"$f":"'Prisioneiros '!O198","v":"-"}]
[null,null,null,null,"Triagem e tratamento para o consumo de drogas e álcool",{"$f":"'TS '!O230","v":"-"},{"$f":"'HSH '!O225","v":"-"},{"$f":"'Pessoas transgénero'!O217","v":"-"},{"$f":"'Prisioneiros '!O205","v":"-"},{"$f":"'PID '!O232","v":"-"}]
[null,null,null,null,"Cuidados de saúde mental",{"$f":"'TS '!O235","v":"-"},{"$f":"'HSH '!O230","v":"-"},{"$f":"'Pessoas transgénero'!O223","v":"-"},{"$f":"'Prisioneiros '!O210","v":"-"},{"$f":"'PID '!O239","v":"-"}]
[null,null,null,null,"Programa de troca de agulhas e seringas (PAS)",null,null,null,null,{"$f":"'PID '!O167","v":"-"}]
[null,null,null,null,"Tratamento de substituição de opióide (TSO)",null,null,null,null,{"$f":"'PID '!O180","v":"-"}]
[null,null,null,null,"CMMV",null,{"$f":"'HSH '!O233","v":"-"},null,{"$f":"'Prisioneiros '!O213","v":"-"},{"$f":"'PID '!O247","v":"-"}]
[null,null,null,null,"COVID-19",{"$f":"'TS '!O238","v":"-"},{"$f":"'HSH '!O236","v":"-"},{"$f":"'Pessoas transgénero'!O226","v":"-"},{"$f":"'Prisioneiros '!O216","v":"-"},{"$f":"'PID '!O250","v":"-"}]
[null,null,null,"Intervenções comportamentais","Comunicação para a Mudança Social e de Comportamento ",{"$f":"'TS '!O243","v":"-"},{"$f":"'HSH '!O241","v":"-"},{"$f":"'Pessoas transgénero'!O231","v":"-"},{"$f":"'Prisioneiros '!O221","v":"-"},{"$f":"'PID '!O255","v":"-"}]
[null,null,null,"Pacote de intervenção estrutural","Prevenção e resposta à violência",{"$f":"'TS '!O251","v":"-"},{"$f":"'HSH '!O249","v":"-"},{"$f":"'Pessoas transgénero'!O239","v":"-"},{"$f":"'Prisioneiros '!O229","v":"-"},{"$f":"'PID '!O263","v":"-"}]
[null,null,null,null,"Redução do estigma e da discriminação ",{"$f":"'TS '!O259","v":"-"},{"$f":"'HSH '!O257","v":"-"},{"$f":"'Pessoas transgénero'!O247","v":"-"},{"$f":"'Prisioneiros '!O233","v":"-"},{"$f":"'PID '!O271","v":"-"}]
[null,null,null,null,"Serviços jurídicos relacionados com o HIV ",{"$f":"'TS '!O267","v":"-"},{"$f":"'HSH '!O265","v":"-"},{"$f":"'Pessoas transgénero'!O255","v":"-"},{"$f":"'Prisioneiros '!O241","v":"-"},{"$f":"'PID '!O276","v":"-"}]
[null,null,null,null,"Monitoria da aplicação da lei",{"$f":"'TS '!O271","v":"-"},{"$f":"'HSH '!O269","v":"-"},{"$f":"'Pessoas transgénero'!O259","v":"-"},{"$f":"'Prisioneiros '!O245","v":"-"},{"$f":"'PID '!O280","v":"-"}]
[null,null,null,null,"Literacia legal (\"Conheça os seus direitos\")",{"$f":"'TS '!O272","v":"-"},{"$f":"'HSH '!O270","v":"-"},{"$f":"'Pessoas transgénero'!O260","v":"-"},{"$f":"'Prisioneiros '!O246","v":"-"},{"$f":"'PID '!O281","v":"-"}]
[null,null,null,null,"Sensibilização dos fazedores de políticas e dos agentes da lei e ordem ",{"$f":"'TS '!O275","v":"-"},{"$f":"'HSH '!O273","v":"-"},{"$f":"'Pessoas transgénero'!O263","v":"-"},{"$f":"'Prisioneiros '!O248","v":"-"},{"$f":"'PID '!O284","v":"-"}]
[null,null,null,null,"Formação de profissionais de saúde sobre os direitos humanos e a ética médica relacionada com o HIV ",{"$f":"'TS '!O280","v":"-"},{"$f":"'HSH '!O278","v":"-"},{"$f":"'Pessoas transgénero'!O268","v":"-"},{"$f":"'Prisioneiros '!O253","v":"-"},{"$f":"'PID '!O289","v":"-"}]
[null,null,null,null,"Redução da discriminação contra as mulheres no contexto do HIV ",{"$f":"'TS '!O284","v":"-"},null,{"$f":"'Pessoas transgénero'!O272","v":"-"},{"$f":"'Prisioneiros '!O257","v":"-"},{"$f":"'PID '!O293","v":"-"}]
[null,null,null,null,"Espaços seguros/centros de acolhimento",{"$f":"'TS '!O292","v":"-"},{"$f":"'HSH '!O282","v":"-"},{"$f":"'Pessoas transgénero'!O280","v":"-"},null,{"$f":"'PID '!O301","v":"-"}]
[null,null,null,null,"Comités comunitários",{"$f":"'TS '!O302","v":"-"},{"$f":"'HSH '!O292","v":"-"},{"$f":"'Pessoas transgénero'!O290","v":"-"},null,{"$f":"'PID '!O311","v":"-"}]
[null,null,null,"Monitoria e Avaliação do programa","Monitoria de rotina",{"$f":"'TS '!O315","v":"-"},{"$f":"'HSH '!O305","v":"-"},{"$f":"'Pessoas transgénero'!O303","v":"-"},{"$f":"'Prisioneiros '!O267","v":"-"},{"$f":"'PID '!O324","v":"-"}]
[null,null,null,null,"Monitoria para a responsabilização liderada pela Comunidade ",{"$f":"'TS '!O323","v":"-"},{"$f":"'HSH '!O313","v":"-"},{"$f":"'Pessoas transgénero'!O311","v":"-"},{"$f":"'Prisioneiros '!O275","v":"-"},{"$f":"'PID '!O332","v":"-"}]
[null,null,null,null,"Rastreamento do sistema de encaminhamento",{"$f":"'TS '!O331","v":"-"},{"$f":"'HSH '!O321","v":"-"},{"$f":"'Pessoas transgénero'!O319","v":"-"},{"$f":"'Prisioneiros '!O282","v":"-"},{"$f":"'PID '!O340","v":"-"}]
[null,null,null,null,"Avaliação de qualidade",{"$f":"'TS '!O337","v":"-"},{"$f":"'HSH '!O327","v":"-"},{"$f":"'Pessoas transgénero'!O325","v":"-"},{"$f":"'Prisioneiros '!O288","v":"-"},{"$f":"'PID '!O340","v":"-"}]
[null,null,null,null,"Vigilância ",{"$f":"'TS '!O342","v":"-"},{"$f":"'HSH '!O332","v":"-"},{"$f":"'Pessoas transgénero'!O330","v":"-"},{"$f":"'Prisioneiros '!O293","v":"-"},{"$f":"'PID '!O351","v":"-"}]
[null,null,null,null,"Dados para tomada de decisão",{"$f":"'TS '!O347","v":"-"},{"$f":"'HSH '!O337","v":"-"},{"$f":"'Pessoas transgénero'!O335","v":"-"},{"$f":"'Prisioneiros '!O298","v":"-"},{"$f":"'PID '!O356","v":"-"}]
[null,null,null,null,"Utilização do Código de Identificação Único para a monitoria do programa",{"$f":"'TS '!O356","v":"-"},{"$f":"'HSH '!O346","v":"-"},{"$f":"'Pessoas transgénero'!O344","v":"-"},{"$f":"'Prisioneiros '!O307","v":"-"},{"$f":"'PID '!O365","v":"-"}]
[null,null,null,null,"Monitoria orçamental",{"$f":"'TS '!O361","v":"-"},{"$f":"'HSH '!O351","v":"-"},{"$f":"'Pessoas transgénero'!O349","v":"-"},{"$f":"'Prisioneiros '!O312","v":"-"},{"$f":"'PID '!O370","v":"-"}]
[null,null,null,null,"Estimativas de dimensão da populacional para PC disponíveis",{"$f":"'TS '!O369","v":"-"},{"$f":"'HSH '!O358","v":"-"},{"$f":"'Pessoas transgénero'!O358","v":"-"},null,{"$f":"'PID '!O377","v":"-"}]
[null,null,null,null,"A estratégia de prevenção inclui elementos centrais do pacote de prevenção de PC",{"$f":"'TS '!O370","v":"-"},{"$f":"'HSH '!O359","v":"-"},{"$f":"'Pessoas transgénero'!O359","v":"-"},null,{"$f":"'PID '!O381","v":"-"}]
[null,null,"Resultados do Programa","Resultados entre PC","PVHIV que conhecem o seu estado de seropositividade (meta 90%)",{"$f":"'TS '!O370","v":"-"},{"$f":"'HSH '!O360","v":"-"},{"$f":"'Pessoas transgénero'!O361","v":"-"},{"$f":"'Prisioneiros '!O321","v":"-"},{"$f":"'PID '!O378","v":"-"}]
[null,null,null,null,"PVHIV a receber terapia anti-retroviral (meta 90%)",{"$f":"'TS '!O371","v":"-"},{"$f":"'HSH '!O361","v":"-"},{"$f":"'Pessoas transgénero'!O362","v":"-"},{"$f":"'Prisioneiros '!O322","v":"-"},{"$f":"'PID '!O379","v":"-"}]
[null,null,null,null,"PVHIV que suprimiram cargas (meta 90%)",{"$f":"'TS '!O373","v":"-"},{"$f":"'HSH '!O363","v":"-"},{"$f":"'Pessoas transgénero'!O363","v":"-"},{"$f":"'Prisioneiros '!O323","v":"-"},{"$f":"'PID '!O380","v":"-"}]
[null,null,null,null,"Uso do preservativo por parte dos TS com o cliente mais recente (meta 80%)",{"$f":"'TS '!O374","v":"-"}]
[null,null,null,null,"PC que recebem pelo menos 2 intervenções de prevenção do HIV nos últimos 3 meses",{"$f":"'TS '!O375","v":"-"},{"$f":"'HSH '!O362","v":"-"},{"$f":"'Pessoas transgénero'!O364","v":"-"},null,{"$f":"'PID '!O382","v":"-"}]
[null,null,null,null,"% que evitaram cuidados de saúde devido ao estigma e discriminação",{"$f":"'TS '!O376","v":"-"},{"$f":"'HSH '!O364","v":"-"},{"$f":"'Pessoas transgénero'!O366","v":"-"},null,{"$f":"'PID '!O384","v":"-"}]
[null,null,null,null,"Criminalização de PC",{"$f":"'TS '!O377","v":"-"},{"$f":"'HSH '!O365","v":"-"},{"$f":"'Pessoas transgénero'!O365","v":"-"},null,{"$f":"'PID '!O388","v":"-"}]
[null,null,null,null,"Uso de preservativo no último sexo anal entre os HSH ",null,{"$f":"'HSH '!O366","v":"-"}]
[null,null,null,null,"Cuidados de saúde afirmativos de género prestados em centros de saúde",null,null,{"$f":"'Pessoas transgénero'!O367","v":"-"}]
[null,null,null,null,"Prevalência do HIV entre pessoas transgénero",null,null,{"$f":"'Pessoas transgénero'!O360","v":"-"}]
[null,null,null,null,"Número de agulhas/seringas por pessoa que injecta drogas"]
[null,null,null,null,"Uso de preservativo entre transgénero (meta 80%)",null,null,{"$f":"'Pessoas transgénero'!O368","v":"-"},null,{"$f":"'PID '!O383","v":"-"}]
[null,null,null,null,"Práticas de injecção segura (PWID) (meta 90%)",null,null,null,null,{"$f":"'PID '!O386","v":"-"}]
[null,null,null,null,"Percentagem de utilizadores de opiáceos que recebem MAT (PWID) (meta 25%)",null,null,null,null,{"$f":"'PID '!O387","v":"-"}]
[null,null,null,"Sustentabilidade",null,{"$f":"IFERROR(ROUND(AVERAGE('TS '!P6:P377),0),\"-\")","v":"-"},{"$f":"IFERROR(ROUND(AVERAGE('HSH '!P6:P377),0),\"-\")","v":"-"},{"$f":"IFERROR(ROUND(AVERAGE('Pessoas transgénero'!P6:P378),0),\"-\")","v":"-"},{"$f":"IFERROR(ROUND(AVERAGE('Prisioneiros '!P6:P354),0),\"-\")","v":"-"},{"$f":"IFERROR(ROUND(AVERAGE('PID '!P6:P382),0),\"-\")","v":"-"}]
[null,null,null,"Indicadores da COVID-19 (e outras pandemias)",null,{"$f":"IF((SUM('TS '!L58:N58)+SUM('TS '!L239:N239)+SUM('TS '!L240:N240))/3=0,\"-\",ROUND((SUM('TS '!L58:N58)+SUM('TS '!L239:N239)+SUM('TS '!L240:N240))/3,0))","v":"-"},{"$f":"IF((SUM('HSH '!L59:N59)+SUM('HSH '!L237:N237)+SUM('HSH '!L238:N238))/3=0,\"-\",ROUND((SUM('HSH '!L59:N59)+SUM('HSH '!L237:N237)+SUM('HSH '!L238:N238))/3,0))","v":"-"},{"$f":"IF((SUM('Pessoas transgénero'!L58:N58)+SUM('Pessoas transgénero'!L237:N237)+SUM('Pessoas transgénero'!L238:N238))/3=0,\"-\",ROUND((SUM('Pessoas transgénero'!L58:N58)+SUM('Pessoas transgénero'!L237:N237)+SUM('Pessoas transgénero'!L238:N238))/3,0))","v":"-"},{"$f":"IF((SUM('Prisioneiros '!L57:N57)+SUM('Prisioneiros '!L217:N217)+SUM('Prisioneiros '!L218:N218))/3=0,\"-\",ROUND((SUM('Prisioneiros '!L57:N57)+SUM('Prisioneiros '!L217:N217)+SUM('Prisioneiros '!L218:N218))/3,0))","v":"-"},{"$f":"IF((SUM('PID '!L57:N57)+SUM('PID '!L251:N251)+SUM('PID '!L252:N252))/3=0,\"-\",ROUND((SUM('PID '!L57:N57)+SUM('PID '!L251:N251)+SUM('PID '!L252:N252))/3,0))","v":"-"}]
[]
[null,null,null,null,null,null,null,null,null,null,null,null,{"$f":"COUNTIF(F4:J80,\"-\")","v":328}]
[null,null,null,null,null,null,null,null,null,null,null,null,{"$f":"COUNTIF(F4:J80,\">0\")","v":0}]
[null,null,null,null,null,null,null,null,null,null,null,"Conclusão PSAT",{"$f":"M83/(M82+M83)","v":0},{"$f":"1-M84","v":1}]

{"sheet":"Etapas seguintes","index":10,"n_rows":92,"n_cols":8,"rows_kept":92,"cut":false,"hidden":false,"merged":[[58,2,58,8],[60,4,60,5],[76,2,76,8],[78,4,78,5],[4,2,4,8],[6,4,6,5],[22,2,22,8],[24,4,24,5],[40,2,40,8],[42,4,42,5]]}
[]
[]
[]
[]
[null,null,"Próximos passos - Trabalhadores do Sexo"]
[]
[null,null,null,null,"Elemento que precisa ser resolvido",null,"Razão para o baixo desempenho","Acções propostas (por exemplo, apoio necessário ou acções de melhoria)"]
[null,null,null,null,1]
[null,null,null,null,2]
[null,null,null,null,3]
[null,null,null,null,4]
[null,null,null,null,5]
[null,null,null,null,6]
[null,null,null,null,7]
[null,null,null,null,8]
[null,null,null,null,9]
[null,null,null,null,10]
[null,null,null,null,11]
[null,null,null,null,12]
[null,null,null,null,13]
[]
[]
[null,null,"Etapas Seguintes - Homens que têm sexo com homens"]
[]
[null,null,null,null,"Elemento que precisa ser resolvido",null,"Razão para o baixo desempenho","Acções propostas (por exemplo, apoio necessário ou acções de melhoria)"]
[null,null,null,null,1]
[null,null,null,null,2]
[null,null,null,null,3]
[null,null,null,null,4]
[null,null,null,null,5]
[null,null,null,null,6]
[null,null,null,null,7]
[null,null,null,null,8]
[null,null,null,null,9]
[null,null,null,null,10]
[null,null,null,null,11]
[null,null,null,null,12]
[null,null,null,null,13]
[]
[]
[null,null,"Etapas Seguintes - Pessoas Transgénero"]
[]
[null,null,null,null,"Elemento que precisa ser resolvido",null,"Razão para o baixo desempenho","Acções propostas (por exemplo, apoio necessário ou acções de melhoria)"]
[null,null,null,null,1]
[null,null,null,null,2]
[null,null,null,null,3]
[null,null,null,null,4]
[null,null,null,null,5]
[null,null,null,null,6]
[null,null,null,null,7]
[null,null,null,null,8]
[null,null,null,null,9]
[null,null,null,null,10]
[null,null,null,null,11]
[null,null,null,null,12]
[null,null,null,null,13]
[]
[]
[null,null,"Etapas Seguintes - Prisioneiros e outras pessoas em locais fechados"]
[]
[null,null,null,null,"Elemento que precisa ser resolvido",null,"Razão para o baixo desempenho","Acções propostas (por exemplo, apoio necessário ou acções de melhoria)"]
[null,null,null,null,1]
[null,null,null,null,2]
[null,null,null,null,3]
[null,null,null,null,4]
[null,null,null,null,5]
[null,null,null,null,6]
[null,null,null,null,7]
[null,null,null,null,8]
[null,null,null,null,9]
[null,null,null,null,10]
[null,null,null,null,11]
[null,null,null,null,12]
[null,null,null,null,13]
[]
[]
[null,null,"Etapas Seguintes - Pessoas que injectam drogas"]
[]
[null,null,null,null,"Elemento que precisa ser resolvido",null,"Razão para o baixo desempenho","Acções propostas (por exemplo, apoio necessário ou acções de melhoria)"]
[null,null,null,null,1]
[null,null,null,null,2]
[null,null,null,null,3]
[null,null,null,null,4]
[null,null,null,null,5]
[null,null,null,null,6]
[null,null,null,null,7]
[null,null,null,null,8]
[null,null,null,null,9]
[null,null,null,null,10]
[null,null,null,null,11]
[null,null,null,null,12]
[null,null,null,null,13]

{"sheet":"Bibliografia","index":11,"n_rows":39,"n_cols":4,"rows_kept":39,"cut":false,"hidden":false,"merged":[[1,2,1,3]]}
[]
[null,null,"Bibliografia"]
[null,null,1,"Bridging the Gaps. (2015). Reaching Key Populations and Improving Their Access to HIV Services in Kenya."]
[null,null,2,"Joint United Nations Programme on HIV/AIDS. (2008). A framework for monitoring and evaluating HIV prevention programmes for most-at-risk populations."]
[null,null,3,"Joint United Nations Programme on HIV/AIDS. (2012). Key programmes to reduce stigma and discrimination and increase access to justice in national HIV responses. Guidance Note"]
[null,null,4,"Joint United Nations Programme on HIV/AIDS. (2017). HIV prevention 2020 road map—accelerating HIV prevention to reduce new infections by 75%. Geneva: UNAIDS."]
[null,null,5,"Joint United Nations Programme on HIV/AIDS. (2018). Global AIDS Monitoring 2019: Indicators for Monitoring the 2016 Political Declaration on Ending AIDS. Geneva: UNAIDS."]
[null,null,6,"Joint United Nations Programme on HIV/AIDS. (2018). HIV Prevention Scorecard for Key Populations. Geneva: UNAIDS."]
[null,null,7,"Joint United Nations Programme on HIV/AIDS. (2018). Implementation of the HIV Prevention 2020 Road Map - First progress report, March 2018. Geneva: UNAIDS."]
[null,null,8,"Joint United Nations Programme on HIV/AIDS. (2020). Maintaining and prioritizing HIV prevention services in the time of COVID-19."]
[null,null,9,"Joint United Nations Programme on HIV/AIDS. (2020). Condoms and lubricants in the time of COVID-19. Sustaining supplies and people-centred approaches to meet the need in low- and middle-income countries."]
[null,null,10,"Joint United Nations Programme on HIV/AIDS. (2020). UNAIDS highlights six critical actions to put gender equality at the centre of COVID-19 responses. "]
[null,null,11,"Joint United Nations Programme on HIV/AIDS. (2020). Strategic Considerations for Mitigating the Impact of COVID-19 on Key-Population-Focused HIV Programs."]
[null,null,12,"Joint United Nations Programme on HIV/AIDS. (2020). Preventing HIV and other STIs among women and girls using contraceptive services in contexts with high HIV incidence. "]
[null,null,13,"Joint United Nations Programme on HIV/AIDS. (2021). Going Online: A Budgeting and Programming Aid for Virtual HIV Interventions. "]
[null,null,14,"Kenya Ministry of Health. (2018). National implementation guidelines for HIV and STI programme among young key populations. "]
[null,null,15,"LINKAGES. (2015). HIV cascade framework for Key Populations. "]
[null,null,16,"LINKAGES. (2016). Annex 2: Acceleration Technical Assistance Checklist of Accelerating the Implementation and Scale-up of Comprehensive Programs for HIV Prevention, Diagnosis, Treatment and Care for Key Populations."]
[null,null,17,"LINKAGES. (2017). Key Population Programme Implementation Guide. "]
[null,null,18,"NASCOP. (2014). Ministry of Health National Guidelines of HIV and STI Programming with Key Populations. Kenya"]
[null,null,19,"Kageni, A., Mwangi, L., Mugyenyi, C., & Macintyre, K. (2015). Representation and participation of key populations on country coordinating mechanisms (CCMs) in sex countries in Southern Africa. Final report."]
[null,null,20,"SANAC. (2016). South African National Strategic Plan 2017-2020."]
[null,null,21,"United Nations Office on Drugs and Crime, International Network of People Who Use Drugs, Joint United Nations Programme on HIV/AIDS, United Nations Development Programme, United Nations Population Fund, World Health Organization, United States Agency for International Development. (2017). Implementing comprehensive HIV and HCV programmes with people who inject drugs: practical guidance for collaborative interventions. Vienna: United Nations Office on Drugs and Crime."]
[null,null,22,"International AIDS Society. (2018). Differentiated service delivery: A decision framework for differentiated antiretroviral therapy for key populations. "]
[null,null,23,"International AIDS Society. (2018). Differentiated service delivery for HIV: A decision framework for HIV testing services. "]
[null,null,24,"World Health Organization. (2007). Guide to starting and managing needle and syringe programmes."]
[null,null,25,"World Health Organization. (2009). Toolkit for Monitoring and Evaluation of interventions for sex workers. "]
[null,null,26,"World Health Organization. (2010). Delivering HIV test results and messages for re-testing and counselling in adults. "]
[null,null,27,"World Health Organization. (2011). Guidelines on surveillance among populations most at risk for HIV."]
[null,null,28,"World Health Organization. (2011). Preventing HIV in Sex Work in Sub-Saharan Africa."]
[null,null,29,"World Health Organization. (2012). Guidance on Pre-Exposure Prophylaxis (PrEP) for serodiscordant couples, men and transgender women who have sex with men at high risk of HIV."]
[null,null,30,"World Health Organization. (2012). Prevention and treatment of HIV and other sexually transmitted infections for sex workers in low-and middle-income countries: recommendations for a public health approach. World Health Organization."]
[null,null,31,"World Health Organization. (2012). Responding to intimate partner violence and sexual violence against women. "]
[null,null,32,"World Health Organization. (2012). Service delivery approaches to HIV testing and counselling (HTC): A strategic HTC programme framework."]
[null,null,33,"World Health Organization. (2015). Tool to set and monitor targets for HIV prevention, diagnosis, treatment and care for key populations: supplement to the 2014 consolidated guidelines for HIV prevention, diagnosis, treatment and care for key populations. World Health Organization."]
[null,null,34,"World Health Organization. (2016). Consolidated guideline on HIV prevention diagnosis, treatment and care for Key Populations - 2016 update. "]
[null,null,35,"World Health Organization. (2017). Consolidated guidelines on person-centred HIV patient monitoring and case surveillance."]
[null,null,36,"World Health Organization. (2018). mhGAP operations manual."]
[null,null,37," United Nations Office on Drugs and Crime. (2020). International Standards for the treatment of drug use disorders"]

{"sheet":"Acrónimos","index":12,"n_rows":38,"n_cols":4,"rows_kept":38,"cut":false,"hidden":false,"merged":[[1,2,1,3]]}
[]
[null,null,"Acrónimos"]
[null,null,"ART","Terapia anti-retroviral"]
[null,null,"OSC","Organizações da sociedade civil "]
[null,null,"OC","Organização comunitária"]
[null,null,"LIGAÇÕES","Continuum dos Serviços de HIV para as Populações Chave afectadas pelo projeto de HIV"]
[null,null,"PF","Planeamento familiar"]
[null,null,"VHB","Vírus da hepatite B. "]
[null,null,"STH","Serviços de testagem de HIV "]
[null,null,"ONUSIDA","Programa Conjunto das Nações Unidas para o HIV/SIDA "]
[null,null,"PC","Populações-chave "]
[null,null,"HSH","Homens que têm sexo com homens "]
[null,null,"M&A","Monitoria e avaliação"]
[null,null,"NSP","Programa de troca de agulhas de seringas "]
[null,null,"PAS","Programa de Troca de Agulha e Seringa"]
[null,null,"GNC","Identidades de género não conformes"]
[null,null,"ONG","Organização não governamental"]
[null,null,"PO","Planos operacionais"]
[null,null,"TSO","Terapia de substituição de opiáceos"]
[null,null,"ASP","Agentes de sensibilização de pares"]
[null,null,"PWID","Pessoas que injectam drogas"]
[null,null,"EDP","Estimativa da Dimensão da População"]
[null,null,"PrEP","Profilaxia pré-exposição"]
[null,null,"PTMF","Prevenção da transmissão mãe-filho"]
[null,null,"PSAT","Ferramenta de Auto-avaliação de Prevenção"]
[null,null,"PVHIV","Pessoas que vivem com HIV"]
[null,null,"TS","Trabalhador do sexo"]
[null,null,"SSR","Saúde sexual e reprodutiva "]
[null,null,"CMSC","Comunicação para a Mudança Social e de Comportamento"]
[null,null,"AT","Plano de assistência técnica"]
[null,null,"GTT","Grupo de trabalho técnico "]
[null,null,"TdR","Termos de referência"]
[null,null,"TOC","Teoria da Mudança"]
[null,null,"TLS","Amostragem de localização temporal "]
[null,null,"TB","Tuberculose"]
[null,null,"CIU","Código de identificação único"]
[null,null,"USAID","Agência dos Estados Unidos para o Desenvolvimento Internacional"]
[null,null,"OMS","Organização Mundial da Saúde "]